Workbook

Sheet Cover
A1: =RIGHT(CELL("filename", $A$1), LEN(CELL("filename", $A$1)) - SEARCH("]", CELL("filename", $A$1))) -> Cover
B3: Restoration management
B5: Model code: | C5: PR24CA74
B6: Version number: | C6: 2
B7: File name: | C7: =MID(CELL("filename"), FIND("[", CELL("filename"), 1) + 1, FIND("]", CELL("filename"), 1) - FIND("[", CELL("filename"), 1) - 1) -> PR24CA74 - WW - restoration management.xlsm
B8: Date: | C8: 2024-12-01
B10: For enquiries please contact: | C10: PR24@ofwat.gov.uk
B24: Contents:
B26: Tab name | C26: Description
B27: Cover | C27: Details of the file and the enhancement assessment approach
B28: Conceptual model | C28: Flow diagram of the high-level enhancement assessment process within models.
B29: Inputs > > | C29: Blank - section header
B30: F_Inputs | C30: Submitted business plan data import from central database
B31: F_Inputs merged | C31: Re-organising of input data to take account of transitional / accelerated process expenditure and drivers, and including any reallocations between enhancement lines.
B32: Consolidated Input | C32: Combined input data taking account of any other contributing data, where applicable (e.g. historical APR data)
B33: F_Input Override | C33: Manual adjustments to requested data where not corrected in business plan data table resubmissions
B34: Final Input | C34: Final data used for the enhancement assessment
B35: Data_Final_Model_Format | C35: Summary of the expenditure and associated drivers used during the assessment
B36: Company level efficiencies | C36: Wastewater price control company-level efficiency challenges
B37: Post Adj & FS Allowances | C37: Summary of imported, post-adjusted allowances per company per enhancement line per year.
B38: NETTOTEX _WASTE | C38: Wastewater price control net Totex data import from central database used for materiality assessment.
B39: Analysis > > | C39: Blank - section header
B40: Materiality and shallow dive | C40: Initial assessment of the materiality of requested expenditure to inform the decision on the assessment approach
B41: Modelled costs | C41: Analysis undertaken to support a modelled assessment approach
B42: Outputs > > | C42: Blank - section header
B43: Allowance | C43: Summary of our assessed allowances per company before other adjustments (e.g. frontier shift)
B44: Outputs to aggregator | C44: Summary of submitted and assessed costs profiled over the 2023-30 period (including transitional and accelerated process expenditure)
B45: F-Outputs | C45: Allowance data export to central database
B46: DROPDOWN LISTS | C46: Data validation lists used throughout the file
B48: Error log
B50: Company | C50: Description of error | D50: Sheet(s) in current model

Sheet Conceptual model
A1: =RIGHT(CELL("filename", A1), LEN(CELL("filename", A1)) - SEARCH("]", CELL("filename", A1))) -> Conceptual model
A3: Conceptual model
A49: End of sheet

Sheet Inputs >>

Sheet F_Inputs
A1: =RIGHT(CELL("filename", $A$1), LEN(CELL("filename", $A$1)) - SEARCH("]", CELL("filename", $A$1))) -> F_Inputs
C2: Restoration mgmt f input | E2: Run on 05 Sep 2024 10:10
A3: Acronym | B3: Reference | C3: Item description | D3: Unit | E3: Model | F3: 2023-24 | G3: 2024-25 | H3: 2025-26 | I3: 2026-27 | J3: 2027-28 | K3: 2028-29 | L3: 2029-30 | M3: Constant
F4: Price Review 2024 | G4: Price Review 2024 | H4: Price Review 2024 | I4: Price Review 2024 | J4: Price Review 2024 | K4: Price Review 2024 | L4: Price Review 2024 | M4: Price Review 2024
F5: Run 11 - PR24 FD Data | G5: Run 11 - PR24 FD Data | H5: Run 11 - PR24 FD Data | I5: Run 11 - PR24 FD Data | J5: Run 11 - PR24 FD Data | K5: Run 11 - PR24 FD Data | L5: Run 11 - PR24 FD Data | M5: Run 11 - PR24 FD Data
F6: Latest | G6: Latest | H6: Latest | I6: Latest | J6: Latest | K6: Latest | L6: Latest | M6: Latest
A7: ANH | B7: CWW3_121TOT_PR24 | C7: EA/NRW environmental programme wastewater (WINEP/NEP) - Restoration management (marine conservation zones etc) (WINEP/NEP) wastewater capex - Total | D7: £m | E7: Price Review 2024 | F7: 0 | G7: 0 | H7: 0 | I7: 0 | J7: 0 | K7: 0 | L7: 0
A8: ANH | B8: CWW3_122TOT_PR24 | C8: EA/NRW environmental programme wastewater (WINEP/NEP) - Restoration management (marine conservation zones etc) (WINEP/NEP) wastewater opex - Total | D8: £m | E8: Price Review 2024 | F8: 0 | G8: 0 | H8: 0 | I8: 0 | J8: 0 | K8: 0 | L8: 0
A9: ANH | B9: CWW3_123TOT_PR24 | C9: EA/NRW environmental programme wastewater (WINEP/NEP) - Restoration management (marine conservation zones etc) (WINEP/NEP) wastewater totex - Total | D9: £m | E9: Price Review 2024 | F9: 0 | G9: 0 | H9: 0 | I9: 0 | J9: 0 | K9: 0 | L9: 0
A10: ANH | B10: CWW12_121TOT_PR24 | C10: EA/NRW environmental programme wastewater (WINEP/NEP) - Restoration management (marine conservation zones etc) (WINEP/NEP) wastewater capex - Total | D10: £m | E10: Price Review 2024 | F10: 0 | G10: 0
A11: ANH | B11: CWW12_122TOT_PR24 | C11: EA/NRW environmental programme wastewater (WINEP/NEP) - Restoration management (marine conservation zones etc) (WINEP/NEP) wastewater opex - Total | D11: £m | E11: Price Review 2024 | F11: 0 | G11: 0
A12: ANH | B12: CWW12_123TOT_PR24 | C12: EA/NRW environmental programme wastewater (WINEP/NEP) - Restoration management (marine conservation zones etc) (WINEP/NEP) wastewater totex - Total | D12: £m | E12: Price Review 2024 | F12: 0 | G12: 0
A13: ANH | B13: CWW17_121TOT_PR24 | C13: EA/NRW environmental programme wastewater (WINEP/NEP) - Restoration management (marine conservation zones etc) (WINEP/NEP) wastewater capex - Total | D13: £m | E13: Price Review 2024 | F13: 0 | G13: 0 | H13: 0 | I13: 0 | J13: 0 | K13: 0 | L13: 0
A14: ANH | B14: CWW17_122TOT_PR24 | C14: EA/NRW environmental programme wastewater (WINEP/NEP) - Restoration management (marine conservation zones etc) (WINEP/NEP) wastewater opex - Total | D14: £m | E14: Price Review 2024 | F14: 0 | G14: 0 | H14: 0 | I14: 0 | J14: 0 | K14: 0 | L14: 0
A15: ANH | B15: CWW17_123TOT_PR24 | C15: EA/NRW environmental programme wastewater (WINEP/NEP) - Restoration management (marine conservation zones etc) (WINEP/NEP) wastewater totex - Total | D15: £m | E15: Price Review 2024 | F15: 0 | G15: 0 | H15: 0 | I15: 0 | J15: 0 | K15: 0 | L15: 0
A16: ANH | B16: CWW20_070_PR24 | C16: Other data - Number of marine conservation zones (new and existing) | D16: nr | E16: Price Review 2024 | F16: 0 | G16: 0 | H16: 0 | I16: 0 | J16: 0 | K16: 0 | L16: 1
A17: ANH | B17: CWW20A_070_PR24 | C17: Other data - Number of marine conservation zones (new and existing) | D17: nr | E17: Price Review 2024
A18: ANH | B18: PR24_E_WW123_TOTAL | C18: PR24 BP EA/NRW environmental programme wastewater (WINEP/NEP) - Restoration management (marine conservation zones etc) (WINEP/NEP) wastewater totex - Total inc. accelerated & transition costs | D18: £m | E18: Price Review 2024 | M18: 0
A19: ANH | B19: PR24_NETTOTEX_WASTE | C19: PR24 BP Net totex - Total inc. accelerated & transition costs | D19: £m | E19: Price Review 2024 | M19: 6050.179102
A20: WSH | B20: CWW3_121TOT_PR24 | C20: EA/NRW environmental programme wastewater (WINEP/NEP) - Restoration management (marine conservation zones etc) (WINEP/NEP) wastewater capex - Total | D20: £m | E20: Price Review 2024 | F20: 0 | G20: 0 | H20: 0 | I20: 0 | J20: 0 | K20: 0 | L20: 0
A21: WSH | B21: CWW3_122TOT_PR24 | C21: EA/NRW environmental programme wastewater (WINEP/NEP) - Restoration management (marine conservation zones etc) (WINEP/NEP) wastewater opex - Total | D21: £m | E21: Price Review 2024 | F21: 0 | G21: 0 | H21: 0 | I21: 0 | J21: 0 | K21: 0 | L21: 0
A22: WSH | B22: CWW3_123TOT_PR24 | C22: EA/NRW environmental programme wastewater (WINEP/NEP) - Restoration management (marine conservation zones etc) (WINEP/NEP) wastewater totex - Total | D22: £m | E22: Price Review 2024 | F22: 0 | G22: 0 | H22: 0 | I22: 0 | J22: 0 | K22: 0 | L22: 0
A23: WSH | B23: CWW12_121TOT_PR24 | C23: EA/NRW environmental programme wastewater (WINEP/NEP) - Restoration management (marine conservation zones etc) (WINEP/NEP) wastewater capex - Total | D23: £m | E23: Price Review 2024 | F23: 0 | G23: 0
A24: WSH | B24: CWW12_122TOT_PR24 | C24: EA/NRW environmental programme wastewater (WINEP/NEP) - Restoration management (marine conservation zones etc) (WINEP/NEP) wastewater opex - Total | D24: £m | E24: Price Review 2024 | F24: 0 | G24: 0
A25: WSH | B25: CWW12_123TOT_PR24 | C25: EA/NRW environmental programme wastewater (WINEP/NEP) - Restoration management (marine conservation zones etc) (WINEP/NEP) wastewater totex - Total | D25: £m | E25: Price Review 2024 | F25: 0 | G25: 0
A26: WSH | B26: CWW17_121TOT_PR24 | C26: EA/NRW environmental programme wastewater (WINEP/NEP) - Restoration management (marine conservation zones etc) (WINEP/NEP) wastewater capex - Total | D26: £m | E26: Price Review 2024 | F26: 0 | G26: 0 | H26: 0 | I26: 0 | J26: 0 | K26: 0 | L26: 0
A27: WSH | B27: CWW17_122TOT_PR24 | C27: EA/NRW environmental programme wastewater (WINEP/NEP) - Restoration management (marine conservation zones etc) (WINEP/NEP) wastewater opex - Total | D27: £m | E27: Price Review 2024 | F27: 0 | G27: 0 | H27: 0 | I27: 0 | J27: 0 | K27: 0 | L27: 0
A28: WSH | B28: CWW17_123TOT_PR24 | C28: EA/NRW environmental programme wastewater (WINEP/NEP) - Restoration management (marine conservation zones etc) (WINEP/NEP) wastewater totex - Total | D28: £m | E28: Price Review 2024 | F28: 0 | G28: 0 | H28: 0 | I28: 0 | J28: 0 | K28: 0 | L28: 0
A29: WSH | B29: CWW20_070_PR24 | C29: Other data - Number of marine conservation zones (new and existing) | D29: nr | E29: Price Review 2024 | F29: 1 | G29: 1 | H29: 1 | I29: 1 | J29: 1 | K29: 1 | L29: 1
A30: WSH | B30: CWW20A_070_PR24 | C30: Other data - Number of marine conservation zones (new and existing) | D30: nr | E30: Price Review 2024
A31: WSH | B31: PR24_E_WW123_TOTAL | C31: PR24 BP EA/NRW environmental programme wastewater (WINEP/NEP) - Restoration management (marine conservation zones etc) (WINEP/NEP) wastewater totex - Total inc. accelerated & transition costs | D31: £m | E31: Price Review 2024 | M31: 0
A32: WSH | B32: PR24_NETTOTEX_WASTE | C32: PR24 BP Net totex - Total inc. accelerated & transition costs | D32: £m | E32: Price Review 2024 | M32: 3318.169
A33: HDD | B33: CWW3_121TOT_PR24 | C33: EA/NRW environmental programme wastewater (WINEP/NEP) - Restoration management (marine conservation zones etc) (WINEP/NEP) wastewater capex - Total | D33: £m | E33: Price Review 2024 | F33: 0 | G33: 0 | H33: 0 | I33: 0 | J33: 0 | K33: 0 | L33: 0
A34: HDD | B34: CWW3_122TOT_PR24 | C34: EA/NRW environmental programme wastewater (WINEP/NEP) - Restoration management (marine conservation zones etc) (WINEP/NEP) wastewater opex - Total | D34: £m | E34: Price Review 2024 | F34: 0 | G34: 0 | H34: 0 | I34: 0 | J34: 0 | K34: 0 | L34: 0
A35: HDD | B35: CWW3_123TOT_PR24 | C35: EA/NRW environmental programme wastewater (WINEP/NEP) - Restoration management (marine conservation zones etc) (WINEP/NEP) wastewater totex - Total | D35: £m | E35: Price Review 2024 | F35: 0 | G35: 0 | H35: 0 | I35: 0 | J35: 0 | K35: 0 | L35: 0
A36: HDD | B36: CWW12_121TOT_PR24 | C36: EA/NRW environmental programme wastewater (WINEP/NEP) - Restoration management (marine conservation zones etc) (WINEP/NEP) wastewater capex - Total | D36: £m | E36: Price Review 2024 | F36: 0 | G36: 0
A37: HDD | B37: CWW12_122TOT_PR24 | C37: EA/NRW environmental programme wastewater (WINEP/NEP) - Restoration management (marine conservation zones etc) (WINEP/NEP) wastewater opex - Total | D37: £m | E37: Price Review 2024 | F37: 0 | G37: 0
A38: HDD | B38: CWW12_123TOT_PR24 | C38: EA/NRW environmental programme wastewater (WINEP/NEP) - Restoration management (marine conservation zones etc) (WINEP/NEP) wastewater totex - Total | D38: £m | E38: Price Review 2024 | F38: 0 | G38: 0
A39: HDD | B39: CWW17_121TOT_PR24 | C39: EA/NRW environmental programme wastewater (WINEP/NEP) - Restoration management (marine conservation zones etc) (WINEP/NEP) wastewater capex - Total | D39: £m | E39: Price Review 2024 | F39: 0 | G39: 0 | H39: 0 | I39: 0 | J39: 0 | K39: 0 | L39: 0
A40: HDD | B40: CWW17_122TOT_PR24 | C40: EA/NRW environmental programme wastewater (WINEP/NEP) - Restoration management (marine conservation zones etc) (WINEP/NEP) wastewater opex - Total | D40: £m | E40: Price Review 2024 | F40: 0 | G40: 0 | H40: 0 | I40: 0 | J40: 0 | K40: 0 | L40: 0
A41: HDD | B41: CWW17_123TOT_PR24 | C41: EA/NRW environmental programme wastewater (WINEP/NEP) - Restoration management (marine conservation zones etc) (WINEP/NEP) wastewater totex - Total | D41: £m | E41: Price Review 2024 | F41: 0 | G41: 0 | H41: 0 | I41: 0 | J41: 0 | K41: 0 | L41: 0
A42: HDD | B42: CWW20_070_PR24 | C42: Other data - Number of marine conservation zones (new and existing) | D42: nr | E42: Price Review 2024 | F42: 0 | G42: 0 | H42: 0 | I42: 0 | J42: 0 | K42: 0 | L42: 0
A43: HDD | B43: CWW20A_070_PR24 | C43: Other data - Number of marine conservation zones (new and existing) | D43: nr | E43: Price Review 2024
A44: HDD | B44: PR24_E_WW123_TOTAL | C44: PR24 BP EA/NRW environmental programme wastewater (WINEP/NEP) - Restoration management (marine conservation zones etc) (WINEP/NEP) wastewater totex - Total inc. accelerated & transition costs | D44: £m | E44: Price Review 2024 | M44: 0
A45: HDD | B45: PR24_NETTOTEX_WASTE | C45: PR24 BP Net totex - Total inc. accelerated & transition costs | D45: £m | E45: Price Review 2024 | M45: 61.30281202
A46: NES | B46: CWW3_121TOT_PR24 | C46: EA/NRW environmental programme wastewater (WINEP/NEP) - Restoration management (marine conservation zones etc) (WINEP/NEP) wastewater capex - Total | D46: £m | E46: Price Review 2024 | F46: 0 | G46: 0.961 | H46: 0.813 | I46: 0.813 | J46: 0.813 | K46: 0.813 | L46: 0.813
A47: NES | B47: CWW3_122TOT_PR24 | C47: EA/NRW environmental programme wastewater (WINEP/NEP) - Restoration management (marine conservation zones etc) (WINEP/NEP) wastewater opex - Total | D47: £m | E47: Price Review 2024 | F47: 0 | G47: 0 | H47: 0.198 | I47: 0.198 | J47: 0.198 | K47: 0.198 | L47: 0.198
A48: NES | B48: CWW3_123TOT_PR24 | C48: EA/NRW environmental programme wastewater (WINEP/NEP) - Restoration management (marine conservation zones etc) (WINEP/NEP) wastewater totex - Total | D48: £m | E48: Price Review 2024 | F48: 0 | G48: 0.961 | H48: 1.011 | I48: 1.011 | J48: 1.011 | K48: 1.011 | L48: 1.011
A49: NES | B49: CWW12_121TOT_PR24 | C49: EA/NRW environmental programme wastewater (WINEP/NEP) - Restoration management (marine conservation zones etc) (WINEP/NEP) wastewater capex - Total | D49: £m | E49: Price Review 2024 | F49: 0.961 | G49: 0.961
A50: NES | B50: CWW12_122TOT_PR24 | C50: EA/NRW environmental programme wastewater (WINEP/NEP) - Restoration management (marine conservation zones etc) (WINEP/NEP) wastewater opex - Total | D50: £m | E50: Price Review 2024 | F50: 0.082 | G50: 0.082
A51: NES | B51: CWW12_123TOT_PR24 | C51: EA/NRW environmental programme wastewater (WINEP/NEP) - Restoration management (marine conservation zones etc) (WINEP/NEP) wastewater totex - Total | D51: £m | E51: Price Review 2024 | F51: 1.043 | G51: 1.043
A52: NES | B52: CWW17_121TOT_PR24 | C52: EA/NRW environmental programme wastewater (WINEP/NEP) - Restoration management (marine conservation zones etc) (WINEP/NEP) wastewater capex - Total | D52: £m | E52: Price Review 2024 | F52: 0 | G52: 0 | H52: 0 | I52: 0 | J52: 0 | K52: 0 | L52: 0
A53: NES | B53: CWW17_122TOT_PR24 | C53: EA/NRW environmental programme wastewater (WINEP/NEP) - Restoration management (marine conservation zones etc) (WINEP/NEP) wastewater opex - Total | D53: £m | E53: Price Review 2024 | F53: 0 | G53: 0 | H53: 0 | I53: 0 | J53: 0 | K53: 0 | L53: 0
A54: NES | B54: CWW17_123TOT_PR24 | C54: EA/NRW environmental programme wastewater (WINEP/NEP) - Restoration management (marine conservation zones etc) (WINEP/NEP) wastewater totex - Total | D54: £m | E54: Price Review 2024 | F54: 0 | G54: 0 | H54: 0 | I54: 0 | J54: 0 | K54: 0 | L54: 0
A55: NES | B55: CWW20_070_PR24 | C55: Other data - Number of marine conservation zones (new and existing) | D55: nr | E55: Price Review 2024 | F55: 0 | G55: 0 | H55: 0 | I55: 0 | J55: 0 | K55: 0 | L55: 0
A56: NES | B56: CWW20A_070_PR24 | C56: Other data - Number of marine conservation zones (new and existing) | D56: nr | E56: Price Review 2024
A57: NES | B57: PR24_E_WW123_TOTAL | C57: PR24 BP EA/NRW environmental programme wastewater (WINEP/NEP) - Restoration management (marine conservation zones etc) (WINEP/NEP) wastewater totex - Total inc. accelerated & transition costs | D57: £m | E57: Price Review 2024 | M57: 7.141
A58: NES | B58: PR24_NETTOTEX_WASTE | C58: PR24 BP Net totex - Total inc. accelerated & transition costs | D58: £m | E58: Price Review 2024 | M58: 3207.927402
A59: SVE | B59: CWW3_121TOT_PR24 | C59: EA/NRW environmental programme wastewater (WINEP/NEP) - Restoration management (marine conservation zones etc) (WINEP/NEP) wastewater capex - Total | D59: £m | E59: Price Review 2024 | F59: 0 | G59: 0 | H59: 0 | I59: 0 | J59: 0 | K59: 0 | L59: 0
A60: SVE | B60: CWW3_122TOT_PR24 | C60: EA/NRW environmental programme wastewater (WINEP/NEP) - Restoration management (marine conservation zones etc) (WINEP/NEP) wastewater opex - Total | D60: £m | E60: Price Review 2024 | F60: 0 | G60: 0 | H60: 0 | I60: 0 | J60: 0 | K60: 0 | L60: 0
A61: SVE | B61: CWW3_123TOT_PR24 | C61: EA/NRW environmental programme wastewater (WINEP/NEP) - Restoration management (marine conservation zones etc) (WINEP/NEP) wastewater totex - Total | D61: £m | E61: Price Review 2024 | F61: 0 | G61: 0 | H61: 0 | I61: 0 | J61: 0 | K61: 0 | L61: 0
A62: SVE | B62: CWW12_121TOT_PR24 | C62: EA/NRW environmental programme wastewater (WINEP/NEP) - Restoration management (marine conservation zones etc) (WINEP/NEP) wastewater capex - Total | D62: £m | E62: Price Review 2024 | F62: 0 | G62: 0
A63: SVE | B63: CWW12_122TOT_PR24 | C63: EA/NRW environmental programme wastewater (WINEP/NEP) - Restoration management (marine conservation zones etc) (WINEP/NEP) wastewater opex - Total | D63: £m | E63: Price Review 2024 | F63: 0 | G63: 0
A64: SVE | B64: CWW12_123TOT_PR24 | C64: EA/NRW environmental programme wastewater (WINEP/NEP) - Restoration management (marine conservation zones etc) (WINEP/NEP) wastewater totex - Total | D64: £m | E64: Price Review 2024 | F64: 0 | G64: 0
A65: SVE | B65: CWW17_121TOT_PR24 | C65: EA/NRW environmental programme wastewater (WINEP/NEP) - Restoration management (marine conservation zones etc) (WINEP/NEP) wastewater capex - Total | D65: £m | E65: Price Review 2024 | F65: 0 | G65: 0 | H65: 0 | I65: 0 | J65: 0 | K65: 0 | L65: 0
A66: SVE | B66: CWW17_122TOT_PR24 | C66: EA/NRW environmental programme wastewater (WINEP/NEP) - Restoration management (marine conservation zones etc) (WINEP/NEP) wastewater opex - Total | D66: £m | E66: Price Review 2024 | F66: 0 | G66: 0 | H66: 0 | I66: 0 | J66: 0 | K66: 0 | L66: 0
A67: SVE | B67: CWW17_123TOT_PR24 | C67: EA/NRW environmental programme wastewater (WINEP/NEP) - Restoration management (marine conservation zones etc) (WINEP/NEP) wastewater totex - Total | D67: £m | E67: Price Review 2024 | F67: 0 | G67: 0 | H67: 0 | I67: 0 | J67: 0 | K67: 0 | L67: 0
A68: SVE | B68: CWW20_070_PR24 | C68: Other data - Number of marine conservation zones (new and existing) | D68: nr | E68: Price Review 2024 | F68: 0 | G68: 0 | H68: 0 | I68: 0 | J68: 0 | K68: 0 | L68: 0
A69: SVE | B69: CWW20A_070_PR24 | C69: Other data - Number of marine conservation zones (new and existing) | D69: nr | E69: Price Review 2024
A70: SVE | B70: PR24_E_WW123_TOTAL | C70: PR24 BP EA/NRW environmental programme wastewater (WINEP/NEP) - Restoration management (marine conservation zones etc) (WINEP/NEP) wastewater totex - Total inc. accelerated & transition costs | D70: £m | E70: Price Review 2024 | M70: 0
A71: SVE | B71: PR24_NETTOTEX_WASTE | C71: PR24 BP Net totex - Total inc. accelerated & transition costs | D71: £m | E71: Price Review 2024 | M71: 8618.711997
A72: SWB | B72: CWW3_121TOT_PR24 | C72: EA/NRW environmental programme wastewater (WINEP/NEP) - Restoration management (marine conservation zones etc) (WINEP/NEP) wastewater capex - Total | D72: £m | E72: Price Review 2024 | F72: 0.03884529004 | G72: 0 | H72: 0 | I72: 0 | J72: 0 | K72: 0 | L72: 0
A73: SWB | B73: CWW3_122TOT_PR24 | C73: EA/NRW environmental programme wastewater (WINEP/NEP) - Restoration management (marine conservation zones etc) (WINEP/NEP) wastewater opex - Total | D73: £m | E73: Price Review 2024 | F73: 0 | G73: 0 | H73: 0 | I73: 0 | J73: 0 | K73: 0 | L73: 0
A74: SWB | B74: CWW3_123TOT_PR24 | C74: EA/NRW environmental programme wastewater (WINEP/NEP) - Restoration management (marine conservation zones etc) (WINEP/NEP) wastewater totex - Total | D74: £m | E74: Price Review 2024 | F74: 0.03884529004 | G74: 0 | H74: 0 | I74: 0 | J74: 0 | K74: 0 | L74: 0
A75: SWB | B75: CWW12_121TOT_PR24 | C75: EA/NRW environmental programme wastewater (WINEP/NEP) - Restoration management (marine conservation zones etc) (WINEP/NEP) wastewater capex - Total | D75: £m | E75: Price Review 2024 | F75: 0 | G75: 0
A76: SWB | B76: CWW12_122TOT_PR24 | C76: EA/NRW environmental programme wastewater (WINEP/NEP) - Restoration management (marine conservation zones etc) (WINEP/NEP) wastewater opex - Total | D76: £m | E76: Price Review 2024 | F76: 0 | G76: 0
A77: SWB | B77: CWW12_123TOT_PR24 | C77: EA/NRW environmental programme wastewater (WINEP/NEP) - Restoration management (marine conservation zones etc) (WINEP/NEP) wastewater totex - Total | D77: £m | E77: Price Review 2024 | F77: 0 | G77: 0
A78: SWB | B78: CWW17_121TOT_PR24 | C78: EA/NRW environmental programme wastewater (WINEP/NEP) - Restoration management (marine conservation zones etc) (WINEP/NEP) wastewater capex - Total | D78: £m | E78: Price Review 2024 | F78: 0 | G78: 0 | H78: 0 | I78: 0 | J78: 0 | K78: 0 | L78: 0
A79: SWB | B79: CWW17_122TOT_PR24 | C79: EA/NRW environmental programme wastewater (WINEP/NEP) - Restoration management (marine conservation zones etc) (WINEP/NEP) wastewater opex - Total | D79: £m | E79: Price Review 2024 | F79: 0 | G79: 0 | H79: 0 | I79: 0 | J79: 0 | K79: 0 | L79: 0
A80: SWB | B80: CWW17_123TOT_PR24 | C80: EA/NRW environmental programme wastewater (WINEP/NEP) - Restoration management (marine conservation zones etc) (WINEP/NEP) wastewater totex - Total | D80: £m | E80: Price Review 2024 | F80: 0 | G80: 0 | H80: 0 | I80: 0 | J80: 0 | K80: 0 | L80: 0
A81: SWB | B81: CWW20_070_PR24 | C81: Other data - Number of marine conservation zones (new and existing) | D81: nr | E81: Price Review 2024 | F81: 0 | G81: 0 | H81: 0 | I81: 0 | J81: 0 | K81: 0 | L81: 0
A82: SWB | B82: CWW20A_070_PR24 | C82: Other data - Number of marine conservation zones (new and existing) | D82: nr | E82: Price Review 2024 | F82: 0
A83: SWB | B83: PR24_E_WW123_TOTAL | C83: PR24 BP EA/NRW environmental programme wastewater (WINEP/NEP) - Restoration management (marine conservation zones etc) (WINEP/NEP) wastewater totex - Total inc. accelerated & transition costs | D83: £m | E83: Price Review 2024 | M83: 0
A84: SWB | B84: PR24_NETTOTEX_WASTE | C84: PR24 BP Net totex - Total inc. accelerated & transition costs | D84: £m | E84: Price Review 2024 | M84: 2220.37926
A85: SRN | B85: CWW3_121TOT_PR24 | C85: EA/NRW environmental programme wastewater (WINEP/NEP) - Restoration management (marine conservation zones etc) (WINEP/NEP) wastewater capex - Total | D85: £m | E85: Price Review 2024 | F85: 0 | G85: 0 | H85: 0 | I85: 0 | J85: 0 | K85: 0 | L85: 0
A86: SRN | B86: CWW3_122TOT_PR24 | C86: EA/NRW environmental programme wastewater (WINEP/NEP) - Restoration management (marine conservation zones etc) (WINEP/NEP) wastewater opex - Total | D86: £m | E86: Price Review 2024 | F86: 0 | G86: 0 | H86: 0 | I86: 0 | J86: 0 | K86: 0 | L86: 0
A87: SRN | B87: CWW3_123TOT_PR24 | C87: EA/NRW environmental programme wastewater (WINEP/NEP) - Restoration management (marine conservation zones etc) (WINEP/NEP) wastewater totex - Total | D87: £m | E87: Price Review 2024 | F87: 0 | G87: 0 | H87: 0 | I87: 0 | J87: 0 | K87: 0 | L87: 0
A88: SRN | B88: CWW12_121TOT_PR24 | C88: EA/NRW environmental programme wastewater (WINEP/NEP) - Restoration management (marine conservation zones etc) (WINEP/NEP) wastewater capex - Total | D88: £m | E88: Price Review 2024 | F88: 0 | G88: 0
A89: SRN | B89: CWW12_122TOT_PR24 | C89: EA/NRW environmental programme wastewater (WINEP/NEP) - Restoration management (marine conservation zones etc) (WINEP/NEP) wastewater opex - Total | D89: £m | E89: Price Review 2024 | F89: 0 | G89: 0
A90: SRN | B90: CWW12_123TOT_PR24 | C90: EA/NRW environmental programme wastewater (WINEP/NEP) - Restoration management (marine conservation zones etc) (WINEP/NEP) wastewater totex - Total | D90: £m | E90: Price Review 2024 | F90: 0 | G90: 0
A91: SRN | B91: CWW17_121TOT_PR24 | C91: EA/NRW environmental programme wastewater (WINEP/NEP) - Restoration management (marine conservation zones etc) (WINEP/NEP) wastewater capex - Total | D91: £m | E91: Price Review 2024 | F91: 0 | G91: 0 | H91: 0 | I91: 0 | J91: 0 | K91: 0 | L91: 0
A92: SRN | B92: CWW17_122TOT_PR24 | C92: EA/NRW environmental programme wastewater (WINEP/NEP) - Restoration management (marine conservation zones etc) (WINEP/NEP) wastewater opex - Total | D92: £m | E92: Price Review 2024 | F92: 0 | G92: 0 | H92: 0 | I92: 0 | J92: 0 | K92: 0 | L92: 0
A93: SRN | B93: CWW17_123TOT_PR24 | C93: EA/NRW environmental programme wastewater (WINEP/NEP) - Restoration management (marine conservation zones etc) (WINEP/NEP) wastewater totex - Total | D93: £m | E93: Price Review 2024 | F93: 0 | G93: 0 | H93: 0 | I93: 0 | J93: 0 | K93: 0 | L93: 0
A94: SRN | B94: CWW20_070_PR24 | C94: Other data - Number of marine conservation zones (new and existing) | D94: nr | E94: Price Review 2024 | F94: 20 | G94: 20 | H94: 20 | I94: 20 | J94: 20 | K94: 20 | L94: 20
A95: SRN | B95: CWW20A_070_PR24 | C95: Other data - Number of marine conservation zones (new and existing) | D95: nr | E95: Price Review 2024
A96: SRN | B96: PR24_E_WW123_TOTAL | C96: PR24 BP EA/NRW environmental programme wastewater (WINEP/NEP) - Restoration management (marine conservation zones etc) (WINEP/NEP) wastewater totex - Total inc. accelerated & transition costs | D96: £m | E96: Price Review 2024 | M96: 0
A97: SRN | B97: PR24_NETTOTEX_WASTE | C97: PR24 BP Net totex - Total inc. accelerated & transition costs | D97: £m | E97: Price Review 2024 | M97: 5114.195692
A98: TMS | B98: CWW3_121TOT_PR24 | C98: EA/NRW environmental programme wastewater (WINEP/NEP) - Restoration management (marine conservation zones etc) (WINEP/NEP) wastewater capex - Total | D98: £m | E98: Price Review 2024 | F98: 0 | G98: 0 | H98: 0 | I98: 0 | J98: 0 | K98: 0 | L98: 0
A99: TMS | B99: CWW3_122TOT_PR24 | C99: EA/NRW environmental programme wastewater (WINEP/NEP) - Restoration management (marine conservation zones etc) (WINEP/NEP) wastewater opex - Total | D99: £m | E99: Price Review 2024 | F99: 0 | G99: 0 | H99: 0 | I99: 0 | J99: 0 | K99: 0 | L99: 0
A100: TMS | B100: CWW3_123TOT_PR24 | C100: EA/NRW environmental programme wastewater (WINEP/NEP) - Restoration management (marine conservation zones etc) (WINEP/NEP) wastewater totex - Total | D100: £m | E100: Price Review 2024 | F100: 0 | G100: 0 | H100: 0 | I100: 0 | J100: 0 | K100: 0 | L100: 0
A101: TMS | B101: CWW12_121TOT_PR24 | C101: EA/NRW environmental programme wastewater (WINEP/NEP) - Restoration management (marine conservation zones etc) (WINEP/NEP) wastewater capex - Total | D101: £m | E101: Price Review 2024 | F101: 0 | G101: 0
A102: TMS | B102: CWW12_122TOT_PR24 | C102: EA/NRW environmental programme wastewater (WINEP/NEP) - Restoration management (marine conservation zones etc) (WINEP/NEP) wastewater opex - Total | D102: £m | E102: Price Review 2024 | F102: 0 | G102: 0
A103: TMS | B103: CWW12_123TOT_PR24 | C103: EA/NRW environmental programme wastewater (WINEP/NEP) - Restoration management (marine conservation zones etc) (WINEP/NEP) wastewater totex - Total | D103: £m | E103: Price Review 2024 | F103: 0 | G103: 0
A104: TMS | B104: CWW17_121TOT_PR24 | C104: EA/NRW environmental programme wastewater (WINEP/NEP) - Restoration management (marine conservation zones etc) (WINEP/NEP) wastewater capex - Total | D104: £m | E104: Price Review 2024 | F104: 0 | G104: 0 | H104: 0 | I104: 0 | J104: 0 | K104: 0 | L104: 0
A105: TMS | B105: CWW17_122TOT_PR24 | C105: EA/NRW environmental programme wastewater (WINEP/NEP) - Restoration management (marine conservation zones etc) (WINEP/NEP) wastewater opex - Total | D105: £m | E105: Price Review 2024 | F105: 0 | G105: 0 | H105: 0 | I105: 0 | J105: 0 | K105: 0 | L105: 0
A106: TMS | B106: CWW17_123TOT_PR24 | C106: EA/NRW environmental programme wastewater (WINEP/NEP) - Restoration management (marine conservation zones etc) (WINEP/NEP) wastewater totex - Total | D106: £m | E106: Price Review 2024 | F106: 0 | G106: 0 | H106: 0 | I106: 0 | J106: 0 | K106: 0 | L106: 0
A107: TMS | B107: CWW20_070_PR24 | C107: Other data - Number of marine conservation zones (new and existing) | D107: nr | E107: Price Review 2024 | F107: 0 | G107: 0 | H107: 0 | I107: 0 | J107: 0 | K107: 0 | L107: 0
A108: TMS | B108: CWW20A_070_PR24 | C108: Other data - Number of marine conservation zones (new and existing) | D108: nr | E108: Price Review 2024
A109: TMS | B109: PR24_E_WW123_TOTAL | C109: PR24 BP EA/NRW environmental programme wastewater (WINEP/NEP) - Restoration management (marine conservation zones etc) (WINEP/NEP) wastewater totex - Total inc. accelerated & transition costs | D109: £m | E109: Price Review 2024 | M109: 0
A110: TMS | B110: PR24_NETTOTEX_WASTE | C110: PR24 BP Net totex - Total inc. accelerated & transition costs | D110: £m | E110: Price Review 2024 | M110: 12775.4738
A111: NWT | B111: CWW3_121TOT_PR24 | C111: EA/NRW environmental programme wastewater (WINEP/NEP) - Restoration management (marine conservation zones etc) (WINEP/NEP) wastewater capex - Total | D111: £m | E111: Price Review 2024 | F111: 0.03251896505 | G111: 0 | H111: 0 | I111: 0 | J111: 0 | K111: 0 | L111: 0
A112: NWT | B112: CWW3_122TOT_PR24 | C112: EA/NRW environmental programme wastewater (WINEP/NEP) - Restoration management (marine conservation zones etc) (WINEP/NEP) wastewater opex - Total | D112: £m | E112: Price Review 2024 | F112: 0 | G112: 0 | H112: 0 | I112: 0 | J112: 0 | K112: 0 | L112: 0
A113: NWT | B113: CWW3_123TOT_PR24 | C113: EA/NRW environmental programme wastewater (WINEP/NEP) - Restoration management (marine conservation zones etc) (WINEP/NEP) wastewater totex - Total | D113: £m | E113: Price Review 2024 | F113: 0.03251896505 | G113: 0 | H113: 0 | I113: 0 | J113: 0 | K113: 0 | L113: 0
A114: NWT | B114: CWW12_121TOT_PR24 | C114: EA/NRW environmental programme wastewater (WINEP/NEP) - Restoration management (marine conservation zones etc) (WINEP/NEP) wastewater capex - Total | D114: £m | E114: Price Review 2024 | F114: 0 | G114: 0
A115: NWT | B115: CWW12_122TOT_PR24 | C115: EA/NRW environmental programme wastewater (WINEP/NEP) - Restoration management (marine conservation zones etc) (WINEP/NEP) wastewater opex - Total | D115: £m | E115: Price Review 2024 | F115: 0 | G115: 0
A116: NWT | B116: CWW12_123TOT_PR24 | C116: EA/NRW environmental programme wastewater (WINEP/NEP) - Restoration management (marine conservation zones etc) (WINEP/NEP) wastewater totex - Total | D116: £m | E116: Price Review 2024 | F116: 0 | G116: 0
A117: NWT | B117: CWW17_121TOT_PR24 | C117: EA/NRW environmental programme wastewater (WINEP/NEP) - Restoration management (marine conservation zones etc) (WINEP/NEP) wastewater capex - Total | D117: £m | E117: Price Review 2024 | F117: 0 | G117: 0 | H117: 0 | I117: 0 | J117: 0 | K117: 0 | L117: 0
A118: NWT | B118: CWW17_122TOT_PR24 | C118: EA/NRW environmental programme wastewater (WINEP/NEP) - Restoration management (marine conservation zones etc) (WINEP/NEP) wastewater opex - Total | D118: £m | E118: Price Review 2024 | F118: 0 | G118: 0 | H118: 0 | I118: 0 | J118: 0 | K118: 0 | L118: 0
A119: NWT | B119: CWW17_123TOT_PR24 | C119: EA/NRW environmental programme wastewater (WINEP/NEP) - Restoration management (marine conservation zones etc) (WINEP/NEP) wastewater totex - Total | D119: £m | E119: Price Review 2024 | F119: 0 | G119: 0 | H119: 0 | I119: 0 | J119: 0 | K119: 0 | L119: 0
A120: NWT | B120: CWW20_070_PR24 | C120: Other data - Number of marine conservation zones (new and existing) | D120: nr | E120: Price Review 2024 | F120: 0 | G120: 0 | H120: 0 | I120: 0 | J120: 0 | K120: 0 | L120: 0
A121: NWT | B121: CWW20A_070_PR24 | C121: Other data - Number of marine conservation zones (new and existing) | D121: nr | E121: Price Review 2024 | F121: 0 | G121: 0
A122: NWT | B122: PR24_E_WW123_TOTAL | C122: PR24 BP EA/NRW environmental programme wastewater (WINEP/NEP) - Restoration management (marine conservation zones etc) (WINEP/NEP) wastewater totex - Total inc. accelerated & transition costs | D122: £m | E122: Price Review 2024 | M122: 0
A123: NWT | B123: PR24_NETTOTEX_WASTE | C123: PR24 BP Net totex - Total inc. accelerated & transition costs | D123: £m | E123: Price Review 2024 | M123: 8993.179575
A124: WSX | B124: CWW3_121TOT_PR24 | C124: EA/NRW environmental programme wastewater (WINEP/NEP) - Restoration management (marine conservation zones etc) (WINEP/NEP) wastewater capex - Total | D124: £m | E124: Price Review 2024 | F124: 0 | G124: 0 | H124: 0 | I124: 0 | J124: 0.515247 | K124: 2.970812 | L124: 4.273284
A125: WSX | B125: CWW3_122TOT_PR24 | C125: EA/NRW environmental programme wastewater (WINEP/NEP) - Restoration management (marine conservation zones etc) (WINEP/NEP) wastewater opex - Total | D125: £m | E125: Price Review 2024 | F125: 0 | G125: 0 | H125: 0 | I125: 0 | J125: 0 | K125: 0 | L125: 0.108731
A126: WSX | B126: CWW3_123TOT_PR24 | C126: EA/NRW environmental programme wastewater (WINEP/NEP) - Restoration management (marine conservation zones etc) (WINEP/NEP) wastewater totex - Total | D126: £m | E126: Price Review 2024 | F126: 0 | G126: 0 | H126: 0 | I126: 0 | J126: 0.515247 | K126: 2.970812 | L126: 4.382015
A127: WSX | B127: CWW12_121TOT_PR24 | C127: EA/NRW environmental programme wastewater (WINEP/NEP) - Restoration management (marine conservation zones etc) (WINEP/NEP) wastewater capex - Total | D127: £m | E127: Price Review 2024 | F127: 0 | G127: 0
A128: WSX | B128: CWW12_122TOT_PR24 | C128: EA/NRW environmental programme wastewater (WINEP/NEP) - Restoration management (marine conservation zones etc) (WINEP/NEP) wastewater opex - Total | D128: £m | E128: Price Review 2024 | F128: 0 | G128: 0
A129: WSX | B129: CWW12_123TOT_PR24 | C129: EA/NRW environmental programme wastewater (WINEP/NEP) - Restoration management (marine conservation zones etc) (WINEP/NEP) wastewater totex - Total | D129: £m | E129: Price Review 2024 | F129: 0 | G129: 0
A130: WSX | B130: CWW17_121TOT_PR24 | C130: EA/NRW environmental programme wastewater (WINEP/NEP) - Restoration management (marine conservation zones etc) (WINEP/NEP) wastewater capex - Total | D130: £m | E130: Price Review 2024 | F130: 0 | G130: 0 | H130: 0 | I130: 0 | J130: 0 | K130: 0 | L130: 0
A131: WSX | B131: CWW17_122TOT_PR24 | C131: EA/NRW environmental programme wastewater (WINEP/NEP) - Restoration management (marine conservation zones etc) (WINEP/NEP) wastewater opex - Total | D131: £m | E131: Price Review 2024 | F131: 0 | G131: 0 | H131: 0 | I131: 0 | J131: 0 | K131: 0 | L131: 0
A132: WSX | B132: CWW17_123TOT_PR24 | C132: EA/NRW environmental programme wastewater (WINEP/NEP) - Restoration management (marine conservation zones etc) (WINEP/NEP) wastewater totex - Total | D132: £m | E132: Price Review 2024 | F132: 0 | G132: 0 | H132: 0 | I132: 0 | J132: 0 | K132: 0 | L132: 0
A133: WSX | B133: CWW20_070_PR24 | C133: Other data - Number of marine conservation zones (new and existing) | D133: nr | E133: Price Review 2024 | F133: 0 | G133: 0 | H133: 0 | I133: 0 | J133: 0 | K133: 0 | L133: 0
A134: WSX | B134: CWW20A_070_PR24 | C134: Other data - Number of marine conservation zones (new and existing) | D134: nr | E134: Price Review 2024
A135: WSX | B135: PR24_E_WW123_TOTAL | C135: PR24 BP EA/NRW environmental programme wastewater (WINEP/NEP) - Restoration management (marine conservation zones etc) (WINEP/NEP) wastewater totex - Total inc. accelerated & transition costs | D135: £m | E135: Price Review 2024 | M135: 7.868074
A136: WSX | B136: PR24_NETTOTEX_WASTE | C136: PR24 BP Net totex - Total inc. accelerated & transition costs | D136: £m | E136: Price Review 2024 | M136: 3717.880959
A137: YKY | B137: CWW3_121TOT_PR24 | C137: EA/NRW environmental programme wastewater (WINEP/NEP) - Restoration management (marine conservation zones etc) (WINEP/NEP) wastewater capex - Total | D137: £m | E137: Price Review 2024 | F137: 0 | G137: 0 | H137: 0 | I137: 0 | J137: 0 | K137: 0 | L137: 0
A138: YKY | B138: CWW3_122TOT_PR24 | C138: EA/NRW environmental programme wastewater (WINEP/NEP) - Restoration management (marine conservation zones etc) (WINEP/NEP) wastewater opex - Total | D138: £m | E138: Price Review 2024 | F138: 0 | G138: 0 | H138: 0 | I138: 0 | J138: 0 | K138: 0 | L138: 0
A139: YKY | B139: CWW3_123TOT_PR24 | C139: EA/NRW environmental programme wastewater (WINEP/NEP) - Restoration management (marine conservation zones etc) (WINEP/NEP) wastewater totex - Total | D139: £m | E139: Price Review 2024 | F139: 0 | G139: 0 | H139: 0 | I139: 0 | J139: 0 | K139: 0 | L139: 0
A140: YKY | B140: CWW12_121TOT_PR24 | C140: EA/NRW environmental programme wastewater (WINEP/NEP) - Restoration management (marine conservation zones etc) (WINEP/NEP) wastewater capex - Total | D140: £m | E140: Price Review 2024 | F140: 0 | G140: 0
A141: YKY | B141: CWW12_122TOT_PR24 | C141: EA/NRW environmental programme wastewater (WINEP/NEP) - Restoration management (marine conservation zones etc) (WINEP/NEP) wastewater opex - Total | D141: £m | E141: Price Review 2024 | F141: 0 | G141: 0
A142: YKY | B142: CWW12_123TOT_PR24 | C142: EA/NRW environmental programme wastewater (WINEP/NEP) - Restoration management (marine conservation zones etc) (WINEP/NEP) wastewater totex - Total | D142: £m | E142: Price Review 2024 | F142: 0 | G142: 0
A143: YKY | B143: CWW17_121TOT_PR24 | C143: EA/NRW environmental programme wastewater (WINEP/NEP) - Restoration management (marine conservation zones etc) (WINEP/NEP) wastewater capex - Total | D143: £m | E143: Price Review 2024 | F143: 0 | G143: 0 | H143: 0 | I143: 0 | J143: 0 | K143: 0 | L143: 0
A144: YKY | B144: CWW17_122TOT_PR24 | C144: EA/NRW environmental programme wastewater (WINEP/NEP) - Restoration management (marine conservation zones etc) (WINEP/NEP) wastewater opex - Total | D144: £m | E144: Price Review 2024 | F144: 0 | G144: 0 | H144: 0 | I144: 0 | J144: 0 | K144: 0 | L144: 0
A145: YKY | B145: CWW17_123TOT_PR24 | C145: EA/NRW environmental programme wastewater (WINEP/NEP) - Restoration management (marine conservation zones etc) (WINEP/NEP) wastewater totex - Total | D145: £m | E145: Price Review 2024 | F145: 0 | G145: 0 | H145: 0 | I145: 0 | J145: 0 | K145: 0 | L145: 0
A146: YKY | B146: CWW20_070_PR24 | C146: Other data - Number of marine conservation zones (new and existing) | D146: nr | E146: Price Review 2024 | F146: 0 | G146: 0 | H146: 0 | I146: 0 | J146: 0 | K146: 0 | L146: 0
A147: YKY | B147: CWW20A_070_PR24 | C147: Other data - Number of marine conservation zones (new and existing) | D147: nr | E147: Price Review 2024
A148: YKY | B148: PR24_E_WW123_TOTAL | C148: PR24 BP EA/NRW environmental programme wastewater (WINEP/NEP) - Restoration management (marine conservation zones etc) (WINEP/NEP) wastewater totex - Total inc. accelerated & transition costs | D148: £m | E148: Price Review 2024 | M148: 0
A149: YKY | B149: PR24_NETTOTEX_WASTE | C149: PR24 BP Net totex - Total inc. accelerated & transition costs | D149: £m | E149: Price Review 2024 | M149: 4605.568446

Sheet F_Inputs Merged
A1: =RIGHT(CELL("filename", $A$1), LEN(CELL("filename", $A$1)) - SEARCH("]", CELL("filename", $A$1))) -> F_Inputs Merged
C2: =F_Inputs!C2 -> Restoration mgmt f input | D2: =F_Inputs!D2 -> 0 | E2: =F_Inputs!E2 -> Run on 05 Sep 2024 10:10
A3: =F_Inputs!A3 -> Acronym | B3: =F_Inputs!B3 -> Reference | C3: =F_Inputs!C3 -> Item description | D3: =F_Inputs!D3 -> Unit | E3: =F_Inputs!E3 -> Model | F3: =F_Inputs!F3 -> 2023-24 | G3: =F_Inputs!G3 -> 2024-25 | H3: =F_Inputs!H3 -> 2025-26 | I3: =F_Inputs!I3 -> 2026-27 | J3: =F_Inputs!J3 -> 2027-28 | K3: =F_Inputs!K3 -> 2028-29 | L3: =F_Inputs!L3 -> 2029-30 | M3: =F_Inputs!M3 -> Constant | P3: 2023-24 | Q3: 2024-25 | R3: 2025-26 | S3: 2026-27 | T3: 2027-28 | U3: 2028-29 | V3: 2029-30
A4: =F_Inputs!A4 -> 0 | B4: =F_Inputs!B4 -> 0 | C4: =F_Inputs!C4 -> 0 | D4: =F_Inputs!D4 -> 0 | E4: =F_Inputs!E4 -> 0 | F4: =F_Inputs!F4 -> Price Review 2024 | G4: =F_Inputs!G4 -> Price Review 2024 | H4: =F_Inputs!H4 -> Price Review 2024 | I4: =F_Inputs!I4 -> Price Review 2024 | J4: =F_Inputs!J4 -> Price Review 2024 | K4: =F_Inputs!K4 -> Price Review 2024 | L4: =F_Inputs!L4 -> Price Review 2024 | M4: =F_Inputs!M4 -> Price Review 2024 | P4: Price Review 2024 | Q4: Price Review 2024 | R4: Price Review 2024 | S4: Price Review 2024 | T4: Price Review 2024 | U4: Price Review 2024 | V4: Price Review 2024
A5: =F_Inputs!A5 -> 0 | B5: =F_Inputs!B5 -> 0 | C5: =F_Inputs!C5 -> 0 | D5: =F_Inputs!D5 -> 0 | E5: =F_Inputs!E5 -> 0 | F5: =F_Inputs!F5 -> Run 11 - PR24 FD Data | G5: =F_Inputs!G5 -> Run 11 - PR24 FD Data | H5: =F_Inputs!H5 -> Run 11 - PR24 FD Data | I5: =F_Inputs!I5 -> Run 11 - PR24 FD Data | J5: =F_Inputs!J5 -> Run 11 - PR24 FD Data | K5: =F_Inputs!K5 -> Run 11 - PR24 FD Data | L5: =F_Inputs!L5 -> Run 11 - PR24 FD Data | M5: =F_Inputs!M5 -> Run 11 - PR24 FD Data | P5: Run 11 - PR24 FD Data | Q5: Run 11 - PR24 FD Data | R5: Run 11 - PR24 FD Data | S5: Run 11 - PR24 FD Data | T5: Run 11 - PR24 FD Data | U5: Run 11 - PR24 FD Data | V5: Run 11 - PR24 FD Data
A6: =F_Inputs!A6 -> 0 | B6: =F_Inputs!B6 -> 0 | C6: =F_Inputs!C6 -> 0 | D6: =F_Inputs!D6 -> 0 | E6: =F_Inputs!E6 -> 0 | F6: =F_Inputs!F6 -> Latest | G6: =F_Inputs!G6 -> Latest | H6: =F_Inputs!H6 -> Latest | I6: =F_Inputs!I6 -> Latest | J6: =F_Inputs!J6 -> Latest | K6: =F_Inputs!K6 -> Latest | L6: =F_Inputs!L6 -> Latest | M6: =F_Inputs!M6 -> Latest | P6: Latest | Q6: Latest | R6: Latest | S6: Latest | T6: Latest | U6: Latest | V6: Latest
A7: =F_Inputs!A7 -> ANH | B7: =F_Inputs!B7 -> CWW3_121TOT_PR24 | C7: =F_Inputs!C7 -> EA/NRW environmental programme wastewater (WINEP/NEP) - Restoration management (marine conservation zones etc) (WINEP/NEP) wastewater capex - Total | D7: =F_Inputs!D7 -> £m | E7: =F_Inputs!E7 -> Price Review 2024 | F7: =F_Inputs!F7 -> 0 | G7: =F_Inputs!G7 -> 0 | H7: =F_Inputs!H7 -> 0 | I7: =F_Inputs!I7 -> 0 | J7: =F_Inputs!J7 -> 0 | K7: =F_Inputs!K7 -> 0 | L7: =F_Inputs!L7 -> 0 | M7: =F_Inputs!M7 ->  | O7: =LEFT(B7,6) -> CWW3_1 | P7: =IF(OR($O7="CWW12_",$O7= "CWW17_",$O7= "CWW20A"),F7,0) -> 0 | Q7: =IF(OR($O7="CWW12_",$O7= "CWW17_",$O7= "CWW20A"),G7,0) -> 0 | R7: =IF(OR($O7="CWW3_0",$O7="CWW3_1", $O7= "CWW20_",$O7="CWW1A_"),H7,0) -> 0 | S7: =IF(OR($O7="CWW3_0",$O7="CWW3_1", $O7= "CWW20_",$O7="CWW1A_"),I7,0) -> 0 | T7: =IF(OR($O7="CWW3_0",$O7="CWW3_1", $O7= "CWW20_",$O7="CWW1A_"),J7,0) -> 0 | U7: =IF(OR($O7="CWW3_0",$O7="CWW3_1", $O7= "CWW20_",$O7="CWW1A_"),K7,0) -> 0 | V7: =IF(OR($O7="CWW3_0",$O7="CWW3_1", $O7= "CWW20_",$O7="CWW1A_"),L7,0) -> 0
A8: =F_Inputs!A8 -> ANH | B8: =F_Inputs!B8 -> CWW3_122TOT_PR24 | C8: =F_Inputs!C8 -> EA/NRW environmental programme wastewater (WINEP/NEP) - Restoration management (marine conservation zones etc) (WINEP/NEP) wastewater opex - Total | D8: =F_Inputs!D8 -> £m | E8: =F_Inputs!E8 -> Price Review 2024 | F8: =F_Inputs!F8 -> 0 | G8: =F_Inputs!G8 -> 0 | H8: =F_Inputs!H8 -> 0 | I8: =F_Inputs!I8 -> 0 | J8: =F_Inputs!J8 -> 0 | K8: =F_Inputs!K8 -> 0 | L8: =F_Inputs!L8 -> 0 | M8: =F_Inputs!M8 ->  | O8: CWW3_1 | P8: =IF(OR($O8="CWW12_",$O8= "CWW17_",$O8= "CWW20A"),F8,0) -> 0 | Q8: =IF(OR($O8="CWW12_",$O8= "CWW17_",$O8= "CWW20A"),G8,0) -> 0 | R8: =IF(OR($O8="CWW3_0",$O8="CWW3_1", $O8= "CWW20_",$O8="CWW1A_"),H8,0) -> 0 | S8: =IF(OR($O8="CWW3_0",$O8="CWW3_1", $O8= "CWW20_",$O8="CWW1A_"),I8,0) -> 0 | T8: =IF(OR($O8="CWW3_0",$O8="CWW3_1", $O8= "CWW20_",$O8="CWW1A_"),J8,0) -> 0 | U8: =IF(OR($O8="CWW3_0",$O8="CWW3_1", $O8= "CWW20_",$O8="CWW1A_"),K8,0) -> 0 | V8: =IF(OR($O8="CWW3_0",$O8="CWW3_1", $O8= "CWW20_",$O8="CWW1A_"),L8,0) -> 0
A9: =F_Inputs!A9 -> ANH | B9: =F_Inputs!B9 -> CWW3_123TOT_PR24 | C9: =F_Inputs!C9 -> EA/NRW environmental programme wastewater (WINEP/NEP) - Restoration management (marine conservation zones etc) (WINEP/NEP) wastewater totex - Total | D9: =F_Inputs!D9 -> £m | E9: =F_Inputs!E9 -> Price Review 2024 | F9: =F_Inputs!F9 -> 0 | G9: =F_Inputs!G9 -> 0 | H9: =F_Inputs!H9 -> 0 | I9: =F_Inputs!I9 -> 0 | J9: =F_Inputs!J9 -> 0 | K9: =F_Inputs!K9 -> 0 | L9: =F_Inputs!L9 -> 0 | M9: =F_Inputs!M9 ->  | O9: CWW3_1 | P9: 0 | Q9: 0 | R9: 0 | S9: 0 | T9: 0 | U9: 0 | V9: 0
A10: =F_Inputs!A10 -> ANH | B10: =F_Inputs!B10 -> CWW12_121TOT_PR24 | C10: =F_Inputs!C10 -> EA/NRW environmental programme wastewater (WINEP/NEP) - Restoration management (marine conservation zones etc) (WINEP/NEP) wastewater capex - Total | D10: =F_Inputs!D10 -> £m | E10: =F_Inputs!E10 -> Price Review 2024 | F10: =F_Inputs!F10 -> 0 | G10: =F_Inputs!G10 -> 0 | H10: =F_Inputs!H10 ->  | I10: =F_Inputs!I10 ->  | J10: =F_Inputs!J10 ->  | K10: =F_Inputs!K10 ->  | L10: =F_Inputs!L10 ->  | M10: =F_Inputs!M10 ->  | O10: CWW12_ | P10: 0 | Q10: 0 | R10: 0 | S10: 0 | T10: 0 | U10: 0 | V10: 0
A11: =F_Inputs!A11 -> ANH | B11: =F_Inputs!B11 -> CWW12_122TOT_PR24 | C11: =F_Inputs!C11 -> EA/NRW environmental programme wastewater (WINEP/NEP) - Restoration management (marine conservation zones etc) (WINEP/NEP) wastewater opex - Total | D11: =F_Inputs!D11 -> £m | E11: =F_Inputs!E11 -> Price Review 2024 | F11: =F_Inputs!F11 -> 0 | G11: =F_Inputs!G11 -> 0 | H11: =F_Inputs!H11 ->  | I11: =F_Inputs!I11 ->  | J11: =F_Inputs!J11 ->  | K11: =F_Inputs!K11 ->  | L11: =F_Inputs!L11 ->  | M11: =F_Inputs!M11 ->  | O11: CWW12_ | P11: 0 | Q11: 0 | R11: 0 | S11: 0 | T11: 0 | U11: 0 | V11: 0
A12: =F_Inputs!A12 -> ANH | B12: =F_Inputs!B12 -> CWW12_123TOT_PR24 | C12: =F_Inputs!C12 -> EA/NRW environmental programme wastewater (WINEP/NEP) - Restoration management (marine conservation zones etc) (WINEP/NEP) wastewater totex - Total | D12: =F_Inputs!D12 -> £m | E12: =F_Inputs!E12 -> Price Review 2024 | F12: =F_Inputs!F12 -> 0 | G12: =F_Inputs!G12 -> 0 | H12: =F_Inputs!H12 ->  | I12: =F_Inputs!I12 ->  | J12: =F_Inputs!J12 ->  | K12: =F_Inputs!K12 ->  | L12: =F_Inputs!L12 ->  | M12: =F_Inputs!M12 ->  | O12: CWW12_ | P12: 0 | Q12: 0 | R12: 0 | S12: 0 | T12: 0 | U12: 0 | V12: 0
A13: =F_Inputs!A13 -> ANH | B13: =F_Inputs!B13 -> CWW17_121TOT_PR24 | C13: =F_Inputs!C13 -> EA/NRW environmental programme wastewater (WINEP/NEP) - Restoration management (marine conservation zones etc) (WINEP/NEP) wastewater capex - Total | D13: =F_Inputs!D13 -> £m | E13: =F_Inputs!E13 -> Price Review 2024 | F13: =F_Inputs!F13 -> 0 | G13: =F_Inputs!G13 -> 0 | H13: =F_Inputs!H13 -> 0 | I13: =F_Inputs!I13 -> 0 | J13: =F_Inputs!J13 -> 0 | K13: =F_Inputs!K13 -> 0 | L13: =F_Inputs!L13 -> 0 | M13: =F_Inputs!M13 ->  | O13: CWW17_ | P13: 0 | Q13: 0 | R13: 0 | S13: 0 | T13: 0 | U13: 0 | V13: 0
A14: =F_Inputs!A14 -> ANH | B14: =F_Inputs!B14 -> CWW17_122TOT_PR24 | C14: =F_Inputs!C14 -> EA/NRW environmental programme wastewater (WINEP/NEP) - Restoration management (marine conservation zones etc) (WINEP/NEP) wastewater opex - Total | D14: =F_Inputs!D14 -> £m | E14: =F_Inputs!E14 -> Price Review 2024 | F14: =F_Inputs!F14 -> 0 | G14: =F_Inputs!G14 -> 0 | H14: =F_Inputs!H14 -> 0 | I14: =F_Inputs!I14 -> 0 | J14: =F_Inputs!J14 -> 0 | K14: =F_Inputs!K14 -> 0 | L14: =F_Inputs!L14 -> 0 | M14: =F_Inputs!M14 ->  | O14: CWW17_ | P14: 0 | Q14: 0 | R14: 0 | S14: 0 | T14: 0 | U14: 0 | V14: 0
A15: =F_Inputs!A15 -> ANH | B15: =F_Inputs!B15 -> CWW17_123TOT_PR24 | C15: =F_Inputs!C15 -> EA/NRW environmental programme wastewater (WINEP/NEP) - Restoration management (marine conservation zones etc) (WINEP/NEP) wastewater totex - Total | D15: =F_Inputs!D15 -> £m | E15: =F_Inputs!E15 -> Price Review 2024 | F15: =F_Inputs!F15 -> 0 | G15: =F_Inputs!G15 -> 0 | H15: =F_Inputs!H15 -> 0 | I15: =F_Inputs!I15 -> 0 | J15: =F_Inputs!J15 -> 0 | K15: =F_Inputs!K15 -> 0 | L15: =F_Inputs!L15 -> 0 | M15: =F_Inputs!M15 ->  | O15: CWW17_ | P15: 0 | Q15: 0 | R15: 0 | S15: 0 | T15: 0 | U15: 0 | V15: 0
A16: =F_Inputs!A16 -> ANH | B16: =F_Inputs!B16 -> CWW20_070_PR24 | C16: =F_Inputs!C16 -> Other data - Number of marine conservation zones (new and existing) | D16: =F_Inputs!D16 -> nr | E16: =F_Inputs!E16 -> Price Review 2024 | F16: =F_Inputs!F16 -> 0 | G16: =F_Inputs!G16 -> 0 | H16: =F_Inputs!H16 -> 0 | I16: =F_Inputs!I16 -> 0 | J16: =F_Inputs!J16 -> 0 | K16: =F_Inputs!K16 -> 0 | L16: =F_Inputs!L16 -> 1 | M16: =F_Inputs!M16 ->  | O16: CWW20_ | P16: 0 | Q16: 0 | R16: 0 | S16: 0 | T16: 0 | U16: 0 | V16: 1
A17: =F_Inputs!A17 -> ANH | B17: =F_Inputs!B17 -> CWW20A_070_PR24 | C17: =F_Inputs!C17 -> Other data - Number of marine conservation zones (new and existing) | D17: =F_Inputs!D17 -> nr | E17: =F_Inputs!E17 -> Price Review 2024 | F17: =F_Inputs!F17 ->  | G17: =F_Inputs!G17 ->  | H17: =F_Inputs!H17 ->  | I17: =F_Inputs!I17 ->  | J17: =F_Inputs!J17 ->  | K17: =F_Inputs!K17 ->  | L17: =F_Inputs!L17 ->  | M17: =F_Inputs!M17 ->  | O17: CWW20A | R17: 0 | S17: 0 | T17: 0 | U17: 0 | V17: 0
A18: =F_Inputs!A18 -> ANH | B18: =F_Inputs!B18 -> PR24_E_WW123_TOTAL | C18: =F_Inputs!C18 -> PR24 BP EA/NRW environmental programme wastewater (WINEP/NEP) - Restoration management (marine conservation zones etc) (WINEP/NEP) wastewater totex - Total inc. accelerated & transition costs | D18: =F_Inputs!D18 -> £m | E18: =F_Inputs!E18 -> Price Review 2024 | F18: =F_Inputs!F18 ->  | G18: =F_Inputs!G18 ->  | H18: =F_Inputs!H18 ->  | I18: =F_Inputs!I18 ->  | J18: =F_Inputs!J18 ->  | K18: =F_Inputs!K18 ->  | L18: =F_Inputs!L18 ->  | M18: =F_Inputs!M18 -> 0 | O18: PR24_E | P18: 0 | Q18: 0 | R18: 0 | S18: 0 | T18: 0 | U18: 0 | V18: 0
A19: =F_Inputs!A19 -> ANH | B19: =F_Inputs!B19 -> PR24_NETTOTEX_WASTE | C19: =F_Inputs!C19 -> PR24 BP Net totex - Total inc. accelerated & transition costs | D19: =F_Inputs!D19 -> £m | E19: =F_Inputs!E19 -> Price Review 2024 | F19: =F_Inputs!F19 ->  | G19: =F_Inputs!G19 ->  | H19: =F_Inputs!H19 ->  | I19: =F_Inputs!I19 ->  | J19: =F_Inputs!J19 ->  | K19: =F_Inputs!K19 ->  | L19: =F_Inputs!L19 ->  | M19: =F_Inputs!M19 -> 6050.179102 | O19: PR24_N | P19: 0 | Q19: 0 | R19: 0 | S19: 0 | T19: 0 | U19: 0 | V19: 0
A20: =F_Inputs!A20 -> WSH | B20: =F_Inputs!B20 -> CWW3_121TOT_PR24 | C20: =F_Inputs!C20 -> EA/NRW environmental programme wastewater (WINEP/NEP) - Restoration management (marine conservation zones etc) (WINEP/NEP) wastewater capex - Total | D20: =F_Inputs!D20 -> £m | E20: =F_Inputs!E20 -> Price Review 2024 | F20: =F_Inputs!F20 -> 0 | G20: =F_Inputs!G20 -> 0 | H20: =F_Inputs!H20 -> 0 | I20: =F_Inputs!I20 -> 0 | J20: =F_Inputs!J20 -> 0 | K20: =F_Inputs!K20 -> 0 | L20: =F_Inputs!L20 -> 0 | M20: =F_Inputs!M20 ->  | O20: CWW3_1 | P20: 0 | Q20: 0 | R20: 0 | S20: 0 | T20: 0 | U20: 0 | V20: 0
A21: =F_Inputs!A21 -> WSH | B21: =F_Inputs!B21 -> CWW3_122TOT_PR24 | C21: =F_Inputs!C21 -> EA/NRW environmental programme wastewater (WINEP/NEP) - Restoration management (marine conservation zones etc) (WINEP/NEP) wastewater opex - Total | D21: =F_Inputs!D21 -> £m | E21: =F_Inputs!E21 -> Price Review 2024 | F21: =F_Inputs!F21 -> 0 | G21: =F_Inputs!G21 -> 0 | H21: =F_Inputs!H21 -> 0 | I21: =F_Inputs!I21 -> 0 | J21: =F_Inputs!J21 -> 0 | K21: =F_Inputs!K21 -> 0 | L21: =F_Inputs!L21 -> 0 | M21: =F_Inputs!M21 ->  | O21: CWW3_1 | P21: 0 | Q21: 0 | R21: 0 | S21: 0 | T21: 0 | U21: 0 | V21: 0
A22: =F_Inputs!A22 -> WSH | B22: =F_Inputs!B22 -> CWW3_123TOT_PR24 | C22: =F_Inputs!C22 -> EA/NRW environmental programme wastewater (WINEP/NEP) - Restoration management (marine conservation zones etc) (WINEP/NEP) wastewater totex - Total | D22: =F_Inputs!D22 -> £m | E22: =F_Inputs!E22 -> Price Review 2024 | F22: =F_Inputs!F22 -> 0 | G22: =F_Inputs!G22 -> 0 | H22: =F_Inputs!H22 -> 0 | I22: =F_Inputs!I22 -> 0 | J22: =F_Inputs!J22 -> 0 | K22: =F_Inputs!K22 -> 0 | L22: =F_Inputs!L22 -> 0 | M22: =F_Inputs!M22 ->  | O22: CWW3_1 | P22: 0 | Q22: 0 | R22: 0 | S22: 0 | T22: 0 | U22: 0 | V22: 0
A23: =F_Inputs!A23 -> WSH | B23: =F_Inputs!B23 -> CWW12_121TOT_PR24 | C23: =F_Inputs!C23 -> EA/NRW environmental programme wastewater (WINEP/NEP) - Restoration management (marine conservation zones etc) (WINEP/NEP) wastewater capex - Total | D23: =F_Inputs!D23 -> £m | E23: =F_Inputs!E23 -> Price Review 2024 | F23: =F_Inputs!F23 -> 0 | G23: =F_Inputs!G23 -> 0 | H23: =F_Inputs!H23 ->  | I23: =F_Inputs!I23 ->  | J23: =F_Inputs!J23 ->  | K23: =F_Inputs!K23 ->  | L23: =F_Inputs!L23 ->  | M23: =F_Inputs!M23 ->  | O23: CWW12_ | P23: 0 | Q23: 0 | R23: 0 | S23: 0 | T23: 0 | U23: 0 | V23: 0
A24: =F_Inputs!A24 -> WSH | B24: =F_Inputs!B24 -> CWW12_122TOT_PR24 | C24: =F_Inputs!C24 -> EA/NRW environmental programme wastewater (WINEP/NEP) - Restoration management (marine conservation zones etc) (WINEP/NEP) wastewater opex - Total | D24: =F_Inputs!D24 -> £m | E24: =F_Inputs!E24 -> Price Review 2024 | F24: =F_Inputs!F24 -> 0 | G24: =F_Inputs!G24 -> 0 | H24: =F_Inputs!H24 ->  | I24: =F_Inputs!I24 ->  | J24: =F_Inputs!J24 ->  | K24: =F_Inputs!K24 ->  | L24: =F_Inputs!L24 ->  | M24: =F_Inputs!M24 ->  | O24: CWW12_ | P24: 0 | Q24: 0 | R24: 0 | S24: 0 | T24: 0 | U24: 0 | V24: 0
A25: =F_Inputs!A25 -> WSH | B25: =F_Inputs!B25 -> CWW12_123TOT_PR24 | C25: =F_Inputs!C25 -> EA/NRW environmental programme wastewater (WINEP/NEP) - Restoration management (marine conservation zones etc) (WINEP/NEP) wastewater totex - Total | D25: =F_Inputs!D25 -> £m | E25: =F_Inputs!E25 -> Price Review 2024 | F25: =F_Inputs!F25 -> 0 | G25: =F_Inputs!G25 -> 0 | H25: =F_Inputs!H25 ->  | I25: =F_Inputs!I25 ->  | J25: =F_Inputs!J25 ->  | K25: =F_Inputs!K25 ->  | L25: =F_Inputs!L25 ->  | M25: =F_Inputs!M25 ->  | O25: CWW12_ | P25: 0 | Q25: 0 | R25: 0 | S25: 0 | T25: 0 | U25: 0 | V25: 0
A26: =F_Inputs!A26 -> WSH | B26: =F_Inputs!B26 -> CWW17_121TOT_PR24 | C26: =F_Inputs!C26 -> EA/NRW environmental programme wastewater (WINEP/NEP) - Restoration management (marine conservation zones etc) (WINEP/NEP) wastewater capex - Total | D26: =F_Inputs!D26 -> £m | E26: =F_Inputs!E26 -> Price Review 2024 | F26: =F_Inputs!F26 -> 0 | G26: =F_Inputs!G26 -> 0 | H26: =F_Inputs!H26 -> 0 | I26: =F_Inputs!I26 -> 0 | J26: =F_Inputs!J26 -> 0 | K26: =F_Inputs!K26 -> 0 | L26: =F_Inputs!L26 -> 0 | M26: =F_Inputs!M26 ->  | O26: CWW17_ | P26: 0 | Q26: 0 | R26: 0 | S26: 0 | T26: 0 | U26: 0 | V26: 0
A27: =F_Inputs!A27 -> WSH | B27: =F_Inputs!B27 -> CWW17_122TOT_PR24 | C27: =F_Inputs!C27 -> EA/NRW environmental programme wastewater (WINEP/NEP) - Restoration management (marine conservation zones etc) (WINEP/NEP) wastewater opex - Total | D27: =F_Inputs!D27 -> £m | E27: =F_Inputs!E27 -> Price Review 2024 | F27: =F_Inputs!F27 -> 0 | G27: =F_Inputs!G27 -> 0 | H27: =F_Inputs!H27 -> 0 | I27: =F_Inputs!I27 -> 0 | J27: =F_Inputs!J27 -> 0 | K27: =F_Inputs!K27 -> 0 | L27: =F_Inputs!L27 -> 0 | M27: =F_Inputs!M27 ->  | O27: CWW17_ | P27: 0 | Q27: 0 | R27: 0 | S27: 0 | T27: 0 | U27: 0 | V27: 0
A28: =F_Inputs!A28 -> WSH | B28: =F_Inputs!B28 -> CWW17_123TOT_PR24 | C28: =F_Inputs!C28 -> EA/NRW environmental programme wastewater (WINEP/NEP) - Restoration management (marine conservation zones etc) (WINEP/NEP) wastewater totex - Total | D28: =F_Inputs!D28 -> £m | E28: =F_Inputs!E28 -> Price Review 2024 | F28: =F_Inputs!F28 -> 0 | G28: =F_Inputs!G28 -> 0 | H28: =F_Inputs!H28 -> 0 | I28: =F_Inputs!I28 -> 0 | J28: =F_Inputs!J28 -> 0 | K28: =F_Inputs!K28 -> 0 | L28: =F_Inputs!L28 -> 0 | M28: =F_Inputs!M28 ->  | O28: CWW17_ | P28: 0 | Q28: 0 | R28: 0 | S28: 0 | T28: 0 | U28: 0 | V28: 0
A29: =F_Inputs!A29 -> WSH | B29: =F_Inputs!B29 -> CWW20_070_PR24 | C29: =F_Inputs!C29 -> Other data - Number of marine conservation zones (new and existing) | D29: =F_Inputs!D29 -> nr | E29: =F_Inputs!E29 -> Price Review 2024 | F29: =F_Inputs!F29 -> 1 | G29: =F_Inputs!G29 -> 1 | H29: =F_Inputs!H29 -> 1 | I29: =F_Inputs!I29 -> 1 | J29: =F_Inputs!J29 -> 1 | K29: =F_Inputs!K29 -> 1 | L29: =F_Inputs!L29 -> 1 | M29: =F_Inputs!M29 ->  | O29: CWW20_ | P29: 0 | Q29: 0 | R29: 1 | S29: 1 | T29: 1 | U29: 1 | V29: 1
A30: =F_Inputs!A30 -> WSH | B30: =F_Inputs!B30 -> CWW20A_070_PR24 | C30: =F_Inputs!C30 -> Other data - Number of marine conservation zones (new and existing) | D30: =F_Inputs!D30 -> nr | E30: =F_Inputs!E30 -> Price Review 2024 | F30: =F_Inputs!F30 ->  | G30: =F_Inputs!G30 ->  | H30: =F_Inputs!H30 ->  | I30: =F_Inputs!I30 ->  | J30: =F_Inputs!J30 ->  | K30: =F_Inputs!K30 ->  | L30: =F_Inputs!L30 ->  | M30: =F_Inputs!M30 ->  | O30: CWW20A | R30: 0 | S30: 0 | T30: 0 | U30: 0 | V30: 0
A31: =F_Inputs!A31 -> WSH | B31: =F_Inputs!B31 -> PR24_E_WW123_TOTAL | C31: =F_Inputs!C31 -> PR24 BP EA/NRW environmental programme wastewater (WINEP/NEP) - Restoration management (marine conservation zones etc) (WINEP/NEP) wastewater totex - Total inc. accelerated & transition costs | D31: =F_Inputs!D31 -> £m | E31: =F_Inputs!E31 -> Price Review 2024 | F31: =F_Inputs!F31 ->  | G31: =F_Inputs!G31 ->  | H31: =F_Inputs!H31 ->  | I31: =F_Inputs!I31 ->  | J31: =F_Inputs!J31 ->  | K31: =F_Inputs!K31 ->  | L31: =F_Inputs!L31 ->  | M31: =F_Inputs!M31 -> 0 | O31: PR24_E | P31: 0 | Q31: 0 | R31: 0 | S31: 0 | T31: 0 | U31: 0 | V31: 0
A32: =F_Inputs!A32 -> WSH | B32: =F_Inputs!B32 -> PR24_NETTOTEX_WASTE | C32: =F_Inputs!C32 -> PR24 BP Net totex - Total inc. accelerated & transition costs | D32: =F_Inputs!D32 -> £m | E32: =F_Inputs!E32 -> Price Review 2024 | F32: =F_Inputs!F32 ->  | G32: =F_Inputs!G32 ->  | H32: =F_Inputs!H32 ->  | I32: =F_Inputs!I32 ->  | J32: =F_Inputs!J32 ->  | K32: =F_Inputs!K32 ->  | L32: =F_Inputs!L32 ->  | M32: =F_Inputs!M32 -> 3318.169 | O32: PR24_N | P32: 0 | Q32: 0 | R32: 0 | S32: 0 | T32: 0 | U32: 0 | V32: 0
A33: =F_Inputs!A33 -> HDD | B33: =F_Inputs!B33 -> CWW3_121TOT_PR24 | C33: =F_Inputs!C33 -> EA/NRW environmental programme wastewater (WINEP/NEP) - Restoration management (marine conservation zones etc) (WINEP/NEP) wastewater capex - Total | D33: =F_Inputs!D33 -> £m | E33: =F_Inputs!E33 -> Price Review 2024 | F33: =F_Inputs!F33 -> 0 | G33: =F_Inputs!G33 -> 0 | H33: =F_Inputs!H33 -> 0 | I33: =F_Inputs!I33 -> 0 | J33: =F_Inputs!J33 -> 0 | K33: =F_Inputs!K33 -> 0 | L33: =F_Inputs!L33 -> 0 | M33: =F_Inputs!M33 ->  | O33: CWW3_1 | P33: 0 | Q33: 0 | R33: 0 | S33: 0 | T33: 0 | U33: 0 | V33: 0
A34: =F_Inputs!A34 -> HDD | B34: =F_Inputs!B34 -> CWW3_122TOT_PR24 | C34: =F_Inputs!C34 -> EA/NRW environmental programme wastewater (WINEP/NEP) - Restoration management (marine conservation zones etc) (WINEP/NEP) wastewater opex - Total | D34: =F_Inputs!D34 -> £m | E34: =F_Inputs!E34 -> Price Review 2024 | F34: =F_Inputs!F34 -> 0 | G34: =F_Inputs!G34 -> 0 | H34: =F_Inputs!H34 -> 0 | I34: =F_Inputs!I34 -> 0 | J34: =F_Inputs!J34 -> 0 | K34: =F_Inputs!K34 -> 0 | L34: =F_Inputs!L34 -> 0 | M34: =F_Inputs!M34 ->  | O34: CWW3_1 | P34: 0 | Q34: 0 | R34: 0 | S34: 0 | T34: 0 | U34: 0 | V34: 0
A35: =F_Inputs!A35 -> HDD | B35: =F_Inputs!B35 -> CWW3_123TOT_PR24 | C35: =F_Inputs!C35 -> EA/NRW environmental programme wastewater (WINEP/NEP) - Restoration management (marine conservation zones etc) (WINEP/NEP) wastewater totex - Total | D35: =F_Inputs!D35 -> £m | E35: =F_Inputs!E35 -> Price Review 2024 | F35: =F_Inputs!F35 -> 0 | G35: =F_Inputs!G35 -> 0 | H35: =F_Inputs!H35 -> 0 | I35: =F_Inputs!I35 -> 0 | J35: =F_Inputs!J35 -> 0 | K35: =F_Inputs!K35 -> 0 | L35: =F_Inputs!L35 -> 0 | M35: =F_Inputs!M35 ->  | O35: CWW3_1 | P35: 0 | Q35: 0 | R35: 0 | S35: 0 | T35: 0 | U35: 0 | V35: 0
A36: =F_Inputs!A36 -> HDD | B36: =F_Inputs!B36 -> CWW12_121TOT_PR24 | C36: =F_Inputs!C36 -> EA/NRW environmental programme wastewater (WINEP/NEP) - Restoration management (marine conservation zones etc) (WINEP/NEP) wastewater capex - Total | D36: =F_Inputs!D36 -> £m | E36: =F_Inputs!E36 -> Price Review 2024 | F36: =F_Inputs!F36 -> 0 | G36: =F_Inputs!G36 -> 0 | H36: =F_Inputs!H36 ->  | I36: =F_Inputs!I36 ->  | J36: =F_Inputs!J36 ->  | K36: =F_Inputs!K36 ->  | L36: =F_Inputs!L36 ->  | M36: =F_Inputs!M36 ->  | O36: CWW12_ | P36: 0 | Q36: 0 | R36: 0 | S36: 0 | T36: 0 | U36: 0 | V36: 0
A37: =F_Inputs!A37 -> HDD | B37: =F_Inputs!B37 -> CWW12_122TOT_PR24 | C37: =F_Inputs!C37 -> EA/NRW environmental programme wastewater (WINEP/NEP) - Restoration management (marine conservation zones etc) (WINEP/NEP) wastewater opex - Total | D37: =F_Inputs!D37 -> £m | E37: =F_Inputs!E37 -> Price Review 2024 | F37: =F_Inputs!F37 -> 0 | G37: =F_Inputs!G37 -> 0 | H37: =F_Inputs!H37 ->  | I37: =F_Inputs!I37 ->  | J37: =F_Inputs!J37 ->  | K37: =F_Inputs!K37 ->  | L37: =F_Inputs!L37 ->  | M37: =F_Inputs!M37 ->  | O37: CWW12_ | P37: 0 | Q37: 0 | R37: 0 | S37: 0 | T37: 0 | U37: 0 | V37: 0
A38: =F_Inputs!A38 -> HDD | B38: =F_Inputs!B38 -> CWW12_123TOT_PR24 | C38: =F_Inputs!C38 -> EA/NRW environmental programme wastewater (WINEP/NEP) - Restoration management (marine conservation zones etc) (WINEP/NEP) wastewater totex - Total | D38: =F_Inputs!D38 -> £m | E38: =F_Inputs!E38 -> Price Review 2024 | F38: =F_Inputs!F38 -> 0 | G38: =F_Inputs!G38 -> 0 | H38: =F_Inputs!H38 ->  | I38: =F_Inputs!I38 ->  | J38: =F_Inputs!J38 ->  | K38: =F_Inputs!K38 ->  | L38: =F_Inputs!L38 ->  | M38: =F_Inputs!M38 ->  | O38: CWW12_ | P38: 0 | Q38: 0 | R38: 0 | S38: 0 | T38: 0 | U38: 0 | V38: 0
A39: =F_Inputs!A39 -> HDD | B39: =F_Inputs!B39 -> CWW17_121TOT_PR24 | C39: =F_Inputs!C39 -> EA/NRW environmental programme wastewater (WINEP/NEP) - Restoration management (marine conservation zones etc) (WINEP/NEP) wastewater capex - Total | D39: =F_Inputs!D39 -> £m | E39: =F_Inputs!E39 -> Price Review 2024 | F39: =F_Inputs!F39 -> 0 | G39: =F_Inputs!G39 -> 0 | H39: =F_Inputs!H39 -> 0 | I39: =F_Inputs!I39 -> 0 | J39: =F_Inputs!J39 -> 0 | K39: =F_Inputs!K39 -> 0 | L39: =F_Inputs!L39 -> 0 | M39: =F_Inputs!M39 ->  | O39: CWW17_ | P39: 0 | Q39: 0 | R39: 0 | S39: 0 | T39: 0 | U39: 0 | V39: 0
A40: =F_Inputs!A40 -> HDD | B40: =F_Inputs!B40 -> CWW17_122TOT_PR24 | C40: =F_Inputs!C40 -> EA/NRW environmental programme wastewater (WINEP/NEP) - Restoration management (marine conservation zones etc) (WINEP/NEP) wastewater opex - Total | D40: =F_Inputs!D40 -> £m | E40: =F_Inputs!E40 -> Price Review 2024 | F40: =F_Inputs!F40 -> 0 | G40: =F_Inputs!G40 -> 0 | H40: =F_Inputs!H40 -> 0 | I40: =F_Inputs!I40 -> 0 | J40: =F_Inputs!J40 -> 0 | K40: =F_Inputs!K40 -> 0 | L40: =F_Inputs!L40 -> 0 | M40: =F_Inputs!M40 ->  | O40: CWW17_ | P40: 0 | Q40: 0 | R40: 0 | S40: 0 | T40: 0 | U40: 0 | V40: 0
A41: =F_Inputs!A41 -> HDD | B41: =F_Inputs!B41 -> CWW17_123TOT_PR24 | C41: =F_Inputs!C41 -> EA/NRW environmental programme wastewater (WINEP/NEP) - Restoration management (marine conservation zones etc) (WINEP/NEP) wastewater totex - Total | D41: =F_Inputs!D41 -> £m | E41: =F_Inputs!E41 -> Price Review 2024 | F41: =F_Inputs!F41 -> 0 | G41: =F_Inputs!G41 -> 0 | H41: =F_Inputs!H41 -> 0 | I41: =F_Inputs!I41 -> 0 | J41: =F_Inputs!J41 -> 0 | K41: =F_Inputs!K41 -> 0 | L41: =F_Inputs!L41 -> 0 | M41: =F_Inputs!M41 ->  | O41: CWW17_ | P41: 0 | Q41: 0 | R41: 0 | S41: 0 | T41: 0 | U41: 0 | V41: 0
A42: =F_Inputs!A42 -> HDD | B42: =F_Inputs!B42 -> CWW20_070_PR24 | C42: =F_Inputs!C42 -> Other data - Number of marine conservation zones (new and existing) | D42: =F_Inputs!D42 -> nr | E42: =F_Inputs!E42 -> Price Review 2024 | F42: =F_Inputs!F42 -> 0 | G42: =F_Inputs!G42 -> 0 | H42: =F_Inputs!H42 -> 0 | I42: =F_Inputs!I42 -> 0 | J42: =F_Inputs!J42 -> 0 | K42: =F_Inputs!K42 -> 0 | L42: =F_Inputs!L42 -> 0 | M42: =F_Inputs!M42 ->  | O42: CWW20_ | P42: 0 | Q42: 0 | R42: 0 | S42: 0 | T42: 0 | U42: 0 | V42: 0
A43: =F_Inputs!A43 -> HDD | B43: =F_Inputs!B43 -> CWW20A_070_PR24 | C43: =F_Inputs!C43 -> Other data - Number of marine conservation zones (new and existing) | D43: =F_Inputs!D43 -> nr | E43: =F_Inputs!E43 -> Price Review 2024 | F43: =F_Inputs!F43 ->  | G43: =F_Inputs!G43 ->  | H43: =F_Inputs!H43 ->  | I43: =F_Inputs!I43 ->  | J43: =F_Inputs!J43 ->  | K43: =F_Inputs!K43 ->  | L43: =F_Inputs!L43 ->  | M43: =F_Inputs!M43 ->  | O43: CWW20A | R43: 0 | S43: 0 | T43: 0 | U43: 0 | V43: 0
A44: =F_Inputs!A44 -> HDD | B44: =F_Inputs!B44 -> PR24_E_WW123_TOTAL | C44: =F_Inputs!C44 -> PR24 BP EA/NRW environmental programme wastewater (WINEP/NEP) - Restoration management (marine conservation zones etc) (WINEP/NEP) wastewater totex - Total inc. accelerated & transition costs | D44: =F_Inputs!D44 -> £m | E44: =F_Inputs!E44 -> Price Review 2024 | F44: =F_Inputs!F44 ->  | G44: =F_Inputs!G44 ->  | H44: =F_Inputs!H44 ->  | I44: =F_Inputs!I44 ->  | J44: =F_Inputs!J44 ->  | K44: =F_Inputs!K44 ->  | L44: =F_Inputs!L44 ->  | M44: =F_Inputs!M44 -> 0 | O44: PR24_E | P44: 0 | Q44: 0 | R44: 0 | S44: 0 | T44: 0 | U44: 0 | V44: 0
A45: =F_Inputs!A45 -> HDD | B45: =F_Inputs!B45 -> PR24_NETTOTEX_WASTE | C45: =F_Inputs!C45 -> PR24 BP Net totex - Total inc. accelerated & transition costs | D45: =F_Inputs!D45 -> £m | E45: =F_Inputs!E45 -> Price Review 2024 | F45: =F_Inputs!F45 ->  | G45: =F_Inputs!G45 ->  | H45: =F_Inputs!H45 ->  | I45: =F_Inputs!I45 ->  | J45: =F_Inputs!J45 ->  | K45: =F_Inputs!K45 ->  | L45: =F_Inputs!L45 ->  | M45: =F_Inputs!M45 -> 61.30281202 | O45: PR24_N | P45: 0 | Q45: 0 | R45: 0 | S45: 0 | T45: 0 | U45: 0 | V45: 0
A46: =F_Inputs!A46 -> NES | B46: =F_Inputs!B46 -> CWW3_121TOT_PR24 | C46: =F_Inputs!C46 -> EA/NRW environmental programme wastewater (WINEP/NEP) - Restoration management (marine conservation zones etc) (WINEP/NEP) wastewater capex - Total | D46: =F_Inputs!D46 -> £m | E46: =F_Inputs!E46 -> Price Review 2024 | F46: =F_Inputs!F46 -> 0 | G46: =F_Inputs!G46 -> 0.961 | H46: =F_Inputs!H46 -> 0.813 | I46: =F_Inputs!I46 -> 0.813 | J46: =F_Inputs!J46 -> 0.813 | K46: =F_Inputs!K46 -> 0.813 | L46: =F_Inputs!L46 -> 0.813 | M46: =F_Inputs!M46 ->  | O46: CWW3_1 | P46: 0 | Q46: 0 | R46: 0.813 | S46: 0.813 | T46: 0.813 | U46: 0.813 | V46: 0.813
A47: =F_Inputs!A47 -> NES | B47: =F_Inputs!B47 -> CWW3_122TOT_PR24 | C47: =F_Inputs!C47 -> EA/NRW environmental programme wastewater (WINEP/NEP) - Restoration management (marine conservation zones etc) (WINEP/NEP) wastewater opex - Total | D47: =F_Inputs!D47 -> £m | E47: =F_Inputs!E47 -> Price Review 2024 | F47: =F_Inputs!F47 -> 0 | G47: =F_Inputs!G47 -> 0 | H47: =F_Inputs!H47 -> 0.198 | I47: =F_Inputs!I47 -> 0.198 | J47: =F_Inputs!J47 -> 0.198 | K47: =F_Inputs!K47 -> 0.198 | L47: =F_Inputs!L47 -> 0.198 | M47: =F_Inputs!M47 ->  | O47: CWW3_1 | P47: 0 | Q47: 0 | R47: 0.198 | S47: 0.198 | T47: 0.198 | U47: 0.198 | V47: 0.198
A48: =F_Inputs!A48 -> NES | B48: =F_Inputs!B48 -> CWW3_123TOT_PR24 | C48: =F_Inputs!C48 -> EA/NRW environmental programme wastewater (WINEP/NEP) - Restoration management (marine conservation zones etc) (WINEP/NEP) wastewater totex - Total | D48: =F_Inputs!D48 -> £m | E48: =F_Inputs!E48 -> Price Review 2024 | F48: =F_Inputs!F48 -> 0 | G48: =F_Inputs!G48 -> 0.961 | H48: =F_Inputs!H48 -> 1.011 | I48: =F_Inputs!I48 -> 1.011 | J48: =F_Inputs!J48 -> 1.011 | K48: =F_Inputs!K48 -> 1.011 | L48: =F_Inputs!L48 -> 1.011 | M48: =F_Inputs!M48 ->  | O48: CWW3_1 | P48: 0 | Q48: 0 | R48: 1.011 | S48: 1.011 | T48: 1.011 | U48: 1.011 | V48: 1.011
A49: =F_Inputs!A49 -> NES | B49: =F_Inputs!B49 -> CWW12_121TOT_PR24 | C49: =F_Inputs!C49 -> EA/NRW environmental programme wastewater (WINEP/NEP) - Restoration management (marine conservation zones etc) (WINEP/NEP) wastewater capex - Total | D49: =F_Inputs!D49 -> £m | E49: =F_Inputs!E49 -> Price Review 2024 | F49: =F_Inputs!F49 -> 0.961 | G49: =F_Inputs!G49 -> 0.961 | H49: =F_Inputs!H49 ->  | I49: =F_Inputs!I49 ->  | J49: =F_Inputs!J49 ->  | K49: =F_Inputs!K49 ->  | L49: =F_Inputs!L49 ->  | M49: =F_Inputs!M49 ->  | O49: CWW12_ | P49: 0.961 | Q49: 0.961 | R49: 0 | S49: 0 | T49: 0 | U49: 0 | V49: 0
A50: =F_Inputs!A50 -> NES | B50: =F_Inputs!B50 -> CWW12_122TOT_PR24 | C50: =F_Inputs!C50 -> EA/NRW environmental programme wastewater (WINEP/NEP) - Restoration management (marine conservation zones etc) (WINEP/NEP) wastewater opex - Total | D50: =F_Inputs!D50 -> £m | E50: =F_Inputs!E50 -> Price Review 2024 | F50: =F_Inputs!F50 -> 0.082 | G50: =F_Inputs!G50 -> 0.082 | H50: =F_Inputs!H50 ->  | I50: =F_Inputs!I50 ->  | J50: =F_Inputs!J50 ->  | K50: =F_Inputs!K50 ->  | L50: =F_Inputs!L50 ->  | M50: =F_Inputs!M50 ->  | O50: CWW12_ | P50: 0.082 | Q50: 0.082 | R50: 0 | S50: 0 | T50: 0 | U50: 0 | V50: 0
A51: =F_Inputs!A51 -> NES | B51: =F_Inputs!B51 -> CWW12_123TOT_PR24 | C51: =F_Inputs!C51 -> EA/NRW environmental programme wastewater (WINEP/NEP) - Restoration management (marine conservation zones etc) (WINEP/NEP) wastewater totex - Total | D51: =F_Inputs!D51 -> £m | E51: =F_Inputs!E51 -> Price Review 2024 | F51: =F_Inputs!F51 -> 1.043 | G51: =F_Inputs!G51 -> 1.043 | H51: =F_Inputs!H51 ->  | I51: =F_Inputs!I51 ->  | J51: =F_Inputs!J51 ->  | K51: =F_Inputs!K51 ->  | L51: =F_Inputs!L51 ->  | M51: =F_Inputs!M51 ->  | O51: CWW12_ | P51: 1.043 | Q51: 1.043 | R51: 0 | S51: 0 | T51: 0 | U51: 0 | V51: 0
A52: =F_Inputs!A52 -> NES | B52: =F_Inputs!B52 -> CWW17_121TOT_PR24 | C52: =F_Inputs!C52 -> EA/NRW environmental programme wastewater (WINEP/NEP) - Restoration management (marine conservation zones etc) (WINEP/NEP) wastewater capex - Total | D52: =F_Inputs!D52 -> £m | E52: =F_Inputs!E52 -> Price Review 2024 | F52: =F_Inputs!F52 -> 0 | G52: =F_Inputs!G52 -> 0 | H52: =F_Inputs!H52 -> 0 | I52: =F_Inputs!I52 -> 0 | J52: =F_Inputs!J52 -> 0 | K52: =F_Inputs!K52 -> 0 | L52: =F_Inputs!L52 -> 0 | M52: =F_Inputs!M52 ->  | O52: CWW17_ | P52: 0 | Q52: 0 | R52: 0 | S52: 0 | T52: 0 | U52: 0 | V52: 0
A53: =F_Inputs!A53 -> NES | B53: =F_Inputs!B53 -> CWW17_122TOT_PR24 | C53: =F_Inputs!C53 -> EA/NRW environmental programme wastewater (WINEP/NEP) - Restoration management (marine conservation zones etc) (WINEP/NEP) wastewater opex - Total | D53: =F_Inputs!D53 -> £m | E53: =F_Inputs!E53 -> Price Review 2024 | F53: =F_Inputs!F53 -> 0 | G53: =F_Inputs!G53 -> 0 | H53: =F_Inputs!H53 -> 0 | I53: =F_Inputs!I53 -> 0 | J53: =F_Inputs!J53 -> 0 | K53: =F_Inputs!K53 -> 0 | L53: =F_Inputs!L53 -> 0 | M53: =F_Inputs!M53 ->  | O53: CWW17_ | P53: 0 | Q53: 0 | R53: 0 | S53: 0 | T53: 0 | U53: 0 | V53: 0
A54: =F_Inputs!A54 -> NES | B54: =F_Inputs!B54 -> CWW17_123TOT_PR24 | C54: =F_Inputs!C54 -> EA/NRW environmental programme wastewater (WINEP/NEP) - Restoration management (marine conservation zones etc) (WINEP/NEP) wastewater totex - Total | D54: =F_Inputs!D54 -> £m | E54: =F_Inputs!E54 -> Price Review 2024 | F54: =F_Inputs!F54 -> 0 | G54: =F_Inputs!G54 -> 0 | H54: =F_Inputs!H54 -> 0 | I54: =F_Inputs!I54 -> 0 | J54: =F_Inputs!J54 -> 0 | K54: =F_Inputs!K54 -> 0 | L54: =F_Inputs!L54 -> 0 | M54: =F_Inputs!M54 ->  | O54: CWW17_ | P54: 0 | Q54: 0 | R54: 0 | S54: 0 | T54: 0 | U54: 0 | V54: 0
A55: =F_Inputs!A55 -> NES | B55: =F_Inputs!B55 -> CWW20_070_PR24 | C55: =F_Inputs!C55 -> Other data - Number of marine conservation zones (new and existing) | D55: =F_Inputs!D55 -> nr | E55: =F_Inputs!E55 -> Price Review 2024 | F55: =F_Inputs!F55 -> 0 | G55: =F_Inputs!G55 -> 0 | H55: =F_Inputs!H55 -> 0 | I55: =F_Inputs!I55 -> 0 | J55: =F_Inputs!J55 -> 0 | K55: =F_Inputs!K55 -> 0 | L55: =F_Inputs!L55 -> 0 | M55: =F_Inputs!M55 ->  | O55: CWW20_ | P55: 0 | Q55: 0 | R55: 0 | S55: 0 | T55: 0 | U55: 0 | V55: 0
A56: =F_Inputs!A56 -> NES | B56: =F_Inputs!B56 -> CWW20A_070_PR24 | C56: =F_Inputs!C56 -> Other data - Number of marine conservation zones (new and existing) | D56: =F_Inputs!D56 -> nr | E56: =F_Inputs!E56 -> Price Review 2024 | F56: =F_Inputs!F56 ->  | G56: =F_Inputs!G56 ->  | H56: =F_Inputs!H56 ->  | I56: =F_Inputs!I56 ->  | J56: =F_Inputs!J56 ->  | K56: =F_Inputs!K56 ->  | L56: =F_Inputs!L56 ->  | M56: =F_Inputs!M56 ->  | O56: CWW20A | R56: 0 | S56: 0 | T56: 0 | U56: 0 | V56: 0
A57: =F_Inputs!A57 -> NES | B57: =F_Inputs!B57 -> PR24_E_WW123_TOTAL | C57: =F_Inputs!C57 -> PR24 BP EA/NRW environmental programme wastewater (WINEP/NEP) - Restoration management (marine conservation zones etc) (WINEP/NEP) wastewater totex - Total inc. accelerated & transition costs | D57: =F_Inputs!D57 -> £m | E57: =F_Inputs!E57 -> Price Review 2024 | F57: =F_Inputs!F57 ->  | G57: =F_Inputs!G57 ->  | H57: =F_Inputs!H57 ->  | I57: =F_Inputs!I57 ->  | J57: =F_Inputs!J57 ->  | K57: =F_Inputs!K57 ->  | L57: =F_Inputs!L57 ->  | M57: =F_Inputs!M57 -> 7.141 | O57: PR24_E | P57: 0 | Q57: 0 | R57: 0 | S57: 0 | T57: 0 | U57: 0 | V57: 0
A58: =F_Inputs!A58 -> NES | B58: =F_Inputs!B58 -> PR24_NETTOTEX_WASTE | C58: =F_Inputs!C58 -> PR24 BP Net totex - Total inc. accelerated & transition costs | D58: =F_Inputs!D58 -> £m | E58: =F_Inputs!E58 -> Price Review 2024 | F58: =F_Inputs!F58 ->  | G58: =F_Inputs!G58 ->  | H58: =F_Inputs!H58 ->  | I58: =F_Inputs!I58 ->  | J58: =F_Inputs!J58 ->  | K58: =F_Inputs!K58 ->  | L58: =F_Inputs!L58 ->  | M58: =F_Inputs!M58 -> 3207.927402 | O58: PR24_N | P58: 0 | Q58: 0 | R58: 0 | S58: 0 | T58: 0 | U58: 0 | V58: 0
A59: =F_Inputs!A59 -> SVE | B59: =F_Inputs!B59 -> CWW3_121TOT_PR24 | C59: =F_Inputs!C59 -> EA/NRW environmental programme wastewater (WINEP/NEP) - Restoration management (marine conservation zones etc) (WINEP/NEP) wastewater capex - Total | D59: =F_Inputs!D59 -> £m | E59: =F_Inputs!E59 -> Price Review 2024 | F59: =F_Inputs!F59 -> 0 | G59: =F_Inputs!G59 -> 0 | H59: =F_Inputs!H59 -> 0 | I59: =F_Inputs!I59 -> 0 | J59: =F_Inputs!J59 -> 0 | K59: =F_Inputs!K59 -> 0 | L59: =F_Inputs!L59 -> 0 | M59: =F_Inputs!M59 ->  | O59: CWW3_1 | P59: 0 | Q59: 0 | R59: 0 | S59: 0 | T59: 0 | U59: 0 | V59: 0
A60: =F_Inputs!A60 -> SVE | B60: =F_Inputs!B60 -> CWW3_122TOT_PR24 | C60: =F_Inputs!C60 -> EA/NRW environmental programme wastewater (WINEP/NEP) - Restoration management (marine conservation zones etc) (WINEP/NEP) wastewater opex - Total | D60: =F_Inputs!D60 -> £m | E60: =F_Inputs!E60 -> Price Review 2024 | F60: =F_Inputs!F60 -> 0 | G60: =F_Inputs!G60 -> 0 | H60: =F_Inputs!H60 -> 0 | I60: =F_Inputs!I60 -> 0 | J60: =F_Inputs!J60 -> 0 | K60: =F_Inputs!K60 -> 0 | L60: =F_Inputs!L60 -> 0 | M60: =F_Inputs!M60 ->  | O60: CWW3_1 | P60: 0 | Q60: 0 | R60: 0 | S60: 0 | T60: 0 | U60: 0 | V60: 0
A61: =F_Inputs!A61 -> SVE | B61: =F_Inputs!B61 -> CWW3_123TOT_PR24 | C61: =F_Inputs!C61 -> EA/NRW environmental programme wastewater (WINEP/NEP) - Restoration management (marine conservation zones etc) (WINEP/NEP) wastewater totex - Total | D61: =F_Inputs!D61 -> £m | E61: =F_Inputs!E61 -> Price Review 2024 | F61: =F_Inputs!F61 -> 0 | G61: =F_Inputs!G61 -> 0 | H61: =F_Inputs!H61 -> 0 | I61: =F_Inputs!I61 -> 0 | J61: =F_Inputs!J61 -> 0 | K61: =F_Inputs!K61 -> 0 | L61: =F_Inputs!L61 -> 0 | M61: =F_Inputs!M61 ->  | O61: CWW3_1 | P61: 0 | Q61: 0 | R61: 0 | S61: 0 | T61: 0 | U61: 0 | V61: 0
A62: =F_Inputs!A62 -> SVE | B62: =F_Inputs!B62 -> CWW12_121TOT_PR24 | C62: =F_Inputs!C62 -> EA/NRW environmental programme wastewater (WINEP/NEP) - Restoration management (marine conservation zones etc) (WINEP/NEP) wastewater capex - Total | D62: =F_Inputs!D62 -> £m | E62: =F_Inputs!E62 -> Price Review 2024 | F62: =F_Inputs!F62 -> 0 | G62: =F_Inputs!G62 -> 0 | H62: =F_Inputs!H62 ->  | I62: =F_Inputs!I62 ->  | J62: =F_Inputs!J62 ->  | K62: =F_Inputs!K62 ->  | L62: =F_Inputs!L62 ->  | M62: =F_Inputs!M62 ->  | O62: CWW12_ | P62: 0 | Q62: 0 | R62: 0 | S62: 0 | T62: 0 | U62: 0 | V62: 0
A63: =F_Inputs!A63 -> SVE | B63: =F_Inputs!B63 -> CWW12_122TOT_PR24 | C63: =F_Inputs!C63 -> EA/NRW environmental programme wastewater (WINEP/NEP) - Restoration management (marine conservation zones etc) (WINEP/NEP) wastewater opex - Total | D63: =F_Inputs!D63 -> £m | E63: =F_Inputs!E63 -> Price Review 2024 | F63: =F_Inputs!F63 -> 0 | G63: =F_Inputs!G63 -> 0 | H63: =F_Inputs!H63 ->  | I63: =F_Inputs!I63 ->  | J63: =F_Inputs!J63 ->  | K63: =F_Inputs!K63 ->  | L63: =F_Inputs!L63 ->  | M63: =F_Inputs!M63 ->  | O63: CWW12_ | P63: 0 | Q63: 0 | R63: 0 | S63: 0 | T63: 0 | U63: 0 | V63: 0
A64: =F_Inputs!A64 -> SVE | B64: =F_Inputs!B64 -> CWW12_123TOT_PR24 | C64: =F_Inputs!C64 -> EA/NRW environmental programme wastewater (WINEP/NEP) - Restoration management (marine conservation zones etc) (WINEP/NEP) wastewater totex - Total | D64: =F_Inputs!D64 -> £m | E64: =F_Inputs!E64 -> Price Review 2024 | F64: =F_Inputs!F64 -> 0 | G64: =F_Inputs!G64 -> 0 | H64: =F_Inputs!H64 ->  | I64: =F_Inputs!I64 ->  | J64: =F_Inputs!J64 ->  | K64: =F_Inputs!K64 ->  | L64: =F_Inputs!L64 ->  | M64: =F_Inputs!M64 ->  | O64: CWW12_ | P64: 0 | Q64: 0 | R64: 0 | S64: 0 | T64: 0 | U64: 0 | V64: 0
A65: =F_Inputs!A65 -> SVE | B65: =F_Inputs!B65 -> CWW17_121TOT_PR24 | C65: =F_Inputs!C65 -> EA/NRW environmental programme wastewater (WINEP/NEP) - Restoration management (marine conservation zones etc) (WINEP/NEP) wastewater capex - Total | D65: =F_Inputs!D65 -> £m | E65: =F_Inputs!E65 -> Price Review 2024 | F65: =F_Inputs!F65 -> 0 | G65: =F_Inputs!G65 -> 0 | H65: =F_Inputs!H65 -> 0 | I65: =F_Inputs!I65 -> 0 | J65: =F_Inputs!J65 -> 0 | K65: =F_Inputs!K65 -> 0 | L65: =F_Inputs!L65 -> 0 | M65: =F_Inputs!M65 ->  | O65: CWW17_ | P65: 0 | Q65: 0 | R65: 0 | S65: 0 | T65: 0 | U65: 0 | V65: 0
A66: =F_Inputs!A66 -> SVE | B66: =F_Inputs!B66 -> CWW17_122TOT_PR24 | C66: =F_Inputs!C66 -> EA/NRW environmental programme wastewater (WINEP/NEP) - Restoration management (marine conservation zones etc) (WINEP/NEP) wastewater opex - Total | D66: =F_Inputs!D66 -> £m | E66: =F_Inputs!E66 -> Price Review 2024 | F66: =F_Inputs!F66 -> 0 | G66: =F_Inputs!G66 -> 0 | H66: =F_Inputs!H66 -> 0 | I66: =F_Inputs!I66 -> 0 | J66: =F_Inputs!J66 -> 0 | K66: =F_Inputs!K66 -> 0 | L66: =F_Inputs!L66 -> 0 | M66: =F_Inputs!M66 ->  | O66: CWW17_ | P66: 0 | Q66: 0 | R66: 0 | S66: 0 | T66: 0 | U66: 0 | V66: 0
A67: =F_Inputs!A67 -> SVE | B67: =F_Inputs!B67 -> CWW17_123TOT_PR24 | C67: =F_Inputs!C67 -> EA/NRW environmental programme wastewater (WINEP/NEP) - Restoration management (marine conservation zones etc) (WINEP/NEP) wastewater totex - Total | D67: =F_Inputs!D67 -> £m | E67: =F_Inputs!E67 -> Price Review 2024 | F67: =F_Inputs!F67 -> 0 | G67: =F_Inputs!G67 -> 0 | H67: =F_Inputs!H67 -> 0 | I67: =F_Inputs!I67 -> 0 | J67: =F_Inputs!J67 -> 0 | K67: =F_Inputs!K67 -> 0 | L67: =F_Inputs!L67 -> 0 | M67: =F_Inputs!M67 ->  | O67: CWW17_ | P67: 0 | Q67: 0 | R67: 0 | S67: 0 | T67: 0 | U67: 0 | V67: 0
A68: =F_Inputs!A68 -> SVE | B68: =F_Inputs!B68 -> CWW20_070_PR24 | C68: =F_Inputs!C68 -> Other data - Number of marine conservation zones (new and existing) | D68: =F_Inputs!D68 -> nr | E68: =F_Inputs!E68 -> Price Review 2024 | F68: =F_Inputs!F68 -> 0 | G68: =F_Inputs!G68 -> 0 | H68: =F_Inputs!H68 -> 0 | I68: =F_Inputs!I68 -> 0 | J68: =F_Inputs!J68 -> 0 | K68: =F_Inputs!K68 -> 0 | L68: =F_Inputs!L68 -> 0 | M68: =F_Inputs!M68 ->  | O68: CWW20_ | P68: 0 | Q68: 0 | R68: 0 | S68: 0 | T68: 0 | U68: 0 | V68: 0
A69: =F_Inputs!A69 -> SVE | B69: =F_Inputs!B69 -> CWW20A_070_PR24 | C69: =F_Inputs!C69 -> Other data - Number of marine conservation zones (new and existing) | D69: =F_Inputs!D69 -> nr | E69: =F_Inputs!E69 -> Price Review 2024 | F69: =F_Inputs!F69 ->  | G69: =F_Inputs!G69 ->  | H69: =F_Inputs!H69 ->  | I69: =F_Inputs!I69 ->  | J69: =F_Inputs!J69 ->  | K69: =F_Inputs!K69 ->  | L69: =F_Inputs!L69 ->  | M69: =F_Inputs!M69 ->  | O69: CWW20A | R69: 0 | S69: 0 | T69: 0 | U69: 0 | V69: 0
A70: =F_Inputs!A70 -> SVE | B70: =F_Inputs!B70 -> PR24_E_WW123_TOTAL | C70: =F_Inputs!C70 -> PR24 BP EA/NRW environmental programme wastewater (WINEP/NEP) - Restoration management (marine conservation zones etc) (WINEP/NEP) wastewater totex - Total inc. accelerated & transition costs | D70: =F_Inputs!D70 -> £m | E70: =F_Inputs!E70 -> Price Review 2024 | F70: =F_Inputs!F70 ->  | G70: =F_Inputs!G70 ->  | H70: =F_Inputs!H70 ->  | I70: =F_Inputs!I70 ->  | J70: =F_Inputs!J70 ->  | K70: =F_Inputs!K70 ->  | L70: =F_Inputs!L70 ->  | M70: =F_Inputs!M70 -> 0 | O70: PR24_E | P70: 0 | Q70: 0 | R70: 0 | S70: 0 | T70: 0 | U70: 0 | V70: 0
A71: =F_Inputs!A71 -> SVE | B71: =F_Inputs!B71 -> PR24_NETTOTEX_WASTE | C71: =F_Inputs!C71 -> PR24 BP Net totex - Total inc. accelerated & transition costs | D71: =F_Inputs!D71 -> £m | E71: =F_Inputs!E71 -> Price Review 2024 | F71: =F_Inputs!F71 ->  | G71: =F_Inputs!G71 ->  | H71: =F_Inputs!H71 ->  | I71: =F_Inputs!I71 ->  | J71: =F_Inputs!J71 ->  | K71: =F_Inputs!K71 ->  | L71: =F_Inputs!L71 ->  | M71: =F_Inputs!M71 -> 8618.711997 | O71: =LEFT(B71,6) -> PR24_N | P71: 0 | Q71: 0 | R71: 0 | S71: 0 | T71: 0 | U71: 0 | V71: 0
A72: =F_Inputs!A72 -> SWB | B72: =F_Inputs!B72 -> CWW3_121TOT_PR24 | C72: =F_Inputs!C72 -> EA/NRW environmental programme wastewater (WINEP/NEP) - Restoration management (marine conservation zones etc) (WINEP/NEP) wastewater capex - Total | D72: =F_Inputs!D72 -> £m | E72: =F_Inputs!E72 -> Price Review 2024 | F72: =F_Inputs!F72 -> 0.03884529004 | G72: =F_Inputs!G72 -> 0 | H72: =F_Inputs!H72 -> 0 | I72: =F_Inputs!I72 -> 0 | J72: =F_Inputs!J72 -> 0 | K72: =F_Inputs!K72 -> 0 | L72: =F_Inputs!L72 -> 0 | M72: =F_Inputs!M72 ->  | O72: CWW3_1 | P72: =IF(OR($O72="CWW12_",$O72= "CWW17_",$O72= "CWW20A"),F72,0) -> 0 | Q72: =IF(OR($O72="CWW12_",$O72= "CWW17_",$O72= "CWW20A"),G72,0) -> 0 | R72: =IF(OR($O72="CWW3_0",$O72="CWW3_1", $O72= "CWW20_",$O72="CWW1A_"),H72,0) -> 0 | S72: =IF(OR($O72="CWW3_0",$O72="CWW3_1", $O72= "CWW20_",$O72="CWW1A_"),I72,0) -> 0 | T72: =IF(OR($O72="CWW3_0",$O72="CWW3_1", $O72= "CWW20_",$O72="CWW1A_"),J72,0) -> 0 | U72: =IF(OR($O72="CWW3_0",$O72="CWW3_1", $O72= "CWW20_",$O72="CWW1A_"),K72,0) -> 0 | V72: =IF(OR($O72="CWW3_0",$O72="CWW3_1", $O72= "CWW20_",$O72="CWW1A_"),L72,0) -> 0
A73: =F_Inputs!A73 -> SWB | B73: =F_Inputs!B73 -> CWW3_122TOT_PR24 | C73: =F_Inputs!C73 -> EA/NRW environmental programme wastewater (WINEP/NEP) - Restoration management (marine conservation zones etc) (WINEP/NEP) wastewater opex - Total | D73: =F_Inputs!D73 -> £m | E73: =F_Inputs!E73 -> Price Review 2024 | F73: =F_Inputs!F73 -> 0 | G73: =F_Inputs!G73 -> 0 | H73: =F_Inputs!H73 -> 0 | I73: =F_Inputs!I73 -> 0 | J73: =F_Inputs!J73 -> 0 | K73: =F_Inputs!K73 -> 0 | L73: =F_Inputs!L73 -> 0 | M73: =F_Inputs!M73 ->  | O73: CWW3_1 | P73: 0 | Q73: 0 | R73: 0 | S73: 0 | T73: 0 | U73: 0 | V73: 0
A74: =F_Inputs!A74 -> SWB | B74: =F_Inputs!B74 -> CWW3_123TOT_PR24 | C74: =F_Inputs!C74 -> EA/NRW environmental programme wastewater (WINEP/NEP) - Restoration management (marine conservation zones etc) (WINEP/NEP) wastewater totex - Total | D74: =F_Inputs!D74 -> £m | E74: =F_Inputs!E74 -> Price Review 2024 | F74: =F_Inputs!F74 -> 0.03884529004 | G74: =F_Inputs!G74 -> 0 | H74: =F_Inputs!H74 -> 0 | I74: =F_Inputs!I74 -> 0 | J74: =F_Inputs!J74 -> 0 | K74: =F_Inputs!K74 -> 0 | L74: =F_Inputs!L74 -> 0 | M74: =F_Inputs!M74 ->  | O74: CWW3_1 | P74: 0 | Q74: 0 | R74: 0 | S74: 0 | T74: 0 | U74: 0 | V74: 0
A75: =F_Inputs!A75 -> SWB | B75: =F_Inputs!B75 -> CWW12_121TOT_PR24 | C75: =F_Inputs!C75 -> EA/NRW environmental programme wastewater (WINEP/NEP) - Restoration management (marine conservation zones etc) (WINEP/NEP) wastewater capex - Total | D75: =F_Inputs!D75 -> £m | E75: =F_Inputs!E75 -> Price Review 2024 | F75: =F_Inputs!F75 -> 0 | G75: =F_Inputs!G75 -> 0 | H75: =F_Inputs!H75 ->  | I75: =F_Inputs!I75 ->  | J75: =F_Inputs!J75 ->  | K75: =F_Inputs!K75 ->  | L75: =F_Inputs!L75 ->  | M75: =F_Inputs!M75 ->  | O75: CWW12_ | P75: 0 | Q75: 0 | R75: 0 | S75: 0 | T75: 0 | U75: 0 | V75: 0
A76: =F_Inputs!A76 -> SWB | B76: =F_Inputs!B76 -> CWW12_122TOT_PR24 | C76: =F_Inputs!C76 -> EA/NRW environmental programme wastewater (WINEP/NEP) - Restoration management (marine conservation zones etc) (WINEP/NEP) wastewater opex - Total | D76: =F_Inputs!D76 -> £m | E76: =F_Inputs!E76 -> Price Review 2024 | F76: =F_Inputs!F76 -> 0 | G76: =F_Inputs!G76 -> 0 | H76: =F_Inputs!H76 ->  | I76: =F_Inputs!I76 ->  | J76: =F_Inputs!J76 ->  | K76: =F_Inputs!K76 ->  | L76: =F_Inputs!L76 ->  | M76: =F_Inputs!M76 ->  | O76: CWW12_ | P76: 0 | Q76: 0 | R76: 0 | S76: 0 | T76: 0 | U76: 0 | V76: 0
A77: =F_Inputs!A77 -> SWB | B77: =F_Inputs!B77 -> CWW12_123TOT_PR24 | C77: =F_Inputs!C77 -> EA/NRW environmental programme wastewater (WINEP/NEP) - Restoration management (marine conservation zones etc) (WINEP/NEP) wastewater totex - Total | D77: =F_Inputs!D77 -> £m | E77: =F_Inputs!E77 -> Price Review 2024 | F77: =F_Inputs!F77 -> 0 | G77: =F_Inputs!G77 -> 0 | H77: =F_Inputs!H77 ->  | I77: =F_Inputs!I77 ->  | J77: =F_Inputs!J77 ->  | K77: =F_Inputs!K77 ->  | L77: =F_Inputs!L77 ->  | M77: =F_Inputs!M77 ->  | O77: CWW12_ | P77: 0 | Q77: 0 | R77: 0 | S77: 0 | T77: 0 | U77: 0 | V77: 0
A78: =F_Inputs!A78 -> SWB | B78: =F_Inputs!B78 -> CWW17_121TOT_PR24 | C78: =F_Inputs!C78 -> EA/NRW environmental programme wastewater (WINEP/NEP) - Restoration management (marine conservation zones etc) (WINEP/NEP) wastewater capex - Total | D78: =F_Inputs!D78 -> £m | E78: =F_Inputs!E78 -> Price Review 2024 | F78: =F_Inputs!F78 -> 0 | G78: =F_Inputs!G78 -> 0 | H78: =F_Inputs!H78 -> 0 | I78: =F_Inputs!I78 -> 0 | J78: =F_Inputs!J78 -> 0 | K78: =F_Inputs!K78 -> 0 | L78: =F_Inputs!L78 -> 0 | M78: =F_Inputs!M78 ->  | O78: CWW17_ | P78: 0 | Q78: 0 | R78: 0 | S78: 0 | T78: 0 | U78: 0 | V78: 0
A79: =F_Inputs!A79 -> SWB | B79: =F_Inputs!B79 -> CWW17_122TOT_PR24 | C79: =F_Inputs!C79 -> EA/NRW environmental programme wastewater (WINEP/NEP) - Restoration management (marine conservation zones etc) (WINEP/NEP) wastewater opex - Total | D79: =F_Inputs!D79 -> £m | E79: =F_Inputs!E79 -> Price Review 2024 | F79: =F_Inputs!F79 -> 0 | G79: =F_Inputs!G79 -> 0 | H79: =F_Inputs!H79 -> 0 | I79: =F_Inputs!I79 -> 0 | J79: =F_Inputs!J79 -> 0 | K79: =F_Inputs!K79 -> 0 | L79: =F_Inputs!L79 -> 0 | M79: =F_Inputs!M79 ->  | O79: CWW17_ | P79: 0 | Q79: 0 | R79: 0 | S79: 0 | T79: 0 | U79: 0 | V79: 0
A80: =F_Inputs!A80 -> SWB | B80: =F_Inputs!B80 -> CWW17_123TOT_PR24 | C80: =F_Inputs!C80 -> EA/NRW environmental programme wastewater (WINEP/NEP) - Restoration management (marine conservation zones etc) (WINEP/NEP) wastewater totex - Total | D80: =F_Inputs!D80 -> £m | E80: =F_Inputs!E80 -> Price Review 2024 | F80: =F_Inputs!F80 -> 0 | G80: =F_Inputs!G80 -> 0 | H80: =F_Inputs!H80 -> 0 | I80: =F_Inputs!I80 -> 0 | J80: =F_Inputs!J80 -> 0 | K80: =F_Inputs!K80 -> 0 | L80: =F_Inputs!L80 -> 0 | M80: =F_Inputs!M80 ->  | O80: CWW17_ | P80: 0 | Q80: 0 | R80: 0 | S80: 0 | T80: 0 | U80: 0 | V80: 0
A81: =F_Inputs!A81 -> SWB | B81: =F_Inputs!B81 -> CWW20_070_PR24 | C81: =F_Inputs!C81 -> Other data - Number of marine conservation zones (new and existing) | D81: =F_Inputs!D81 -> nr | E81: =F_Inputs!E81 -> Price Review 2024 | F81: =F_Inputs!F81 -> 0 | G81: =F_Inputs!G81 -> 0 | H81: =F_Inputs!H81 -> 0 | I81: =F_Inputs!I81 -> 0 | J81: =F_Inputs!J81 -> 0 | K81: =F_Inputs!K81 -> 0 | L81: =F_Inputs!L81 -> 0 | M81: =F_Inputs!M81 ->  | O81: CWW20_ | P81: 0 | Q81: 0 | R81: 0 | S81: 0 | T81: 0 | U81: 0 | V81: 0
A82: =F_Inputs!A82 -> SWB | B82: =F_Inputs!B82 -> CWW20A_070_PR24 | C82: =F_Inputs!C82 -> Other data - Number of marine conservation zones (new and existing) | D82: =F_Inputs!D82 -> nr | E82: =F_Inputs!E82 -> Price Review 2024 | F82: =F_Inputs!F82 -> 0 | G82: =F_Inputs!G82 ->  | H82: =F_Inputs!H82 ->  | I82: =F_Inputs!I82 ->  | J82: =F_Inputs!J82 ->  | K82: =F_Inputs!K82 ->  | L82: =F_Inputs!L82 ->  | M82: =F_Inputs!M82 ->  | O82: CWW20A | P82: 0 | R82: 0 | S82: 0 | T82: 0 | U82: 0 | V82: 0
A83: =F_Inputs!A83 -> SWB | B83: =F_Inputs!B83 -> PR24_E_WW123_TOTAL | C83: =F_Inputs!C83 -> PR24 BP EA/NRW environmental programme wastewater (WINEP/NEP) - Restoration management (marine conservation zones etc) (WINEP/NEP) wastewater totex - Total inc. accelerated & transition costs | D83: =F_Inputs!D83 -> £m | E83: =F_Inputs!E83 -> Price Review 2024 | F83: =F_Inputs!F83 ->  | G83: =F_Inputs!G83 ->  | H83: =F_Inputs!H83 ->  | I83: =F_Inputs!I83 ->  | J83: =F_Inputs!J83 ->  | K83: =F_Inputs!K83 ->  | L83: =F_Inputs!L83 ->  | M83: =F_Inputs!M83 -> 0 | O83: PR24_E | P83: 0 | Q83: 0 | R83: 0 | S83: 0 | T83: 0 | U83: 0 | V83: 0
A84: =F_Inputs!A84 -> SWB | B84: =F_Inputs!B84 -> PR24_NETTOTEX_WASTE | C84: =F_Inputs!C84 -> PR24 BP Net totex - Total inc. accelerated & transition costs | D84: =F_Inputs!D84 -> £m | E84: =F_Inputs!E84 -> Price Review 2024 | F84: =F_Inputs!F84 ->  | G84: =F_Inputs!G84 ->  | H84: =F_Inputs!H84 ->  | I84: =F_Inputs!I84 ->  | J84: =F_Inputs!J84 ->  | K84: =F_Inputs!K84 ->  | L84: =F_Inputs!L84 ->  | M84: =F_Inputs!M84 -> 2220.37926 | O84: PR24_N | P84: 0 | Q84: 0 | R84: 0 | S84: 0 | T84: 0 | U84: 0 | V84: 0
A85: =F_Inputs!A85 -> SRN | B85: =F_Inputs!B85 -> CWW3_121TOT_PR24 | C85: =F_Inputs!C85 -> EA/NRW environmental programme wastewater (WINEP/NEP) - Restoration management (marine conservation zones etc) (WINEP/NEP) wastewater capex - Total | D85: =F_Inputs!D85 -> £m | E85: =F_Inputs!E85 -> Price Review 2024 | F85: =F_Inputs!F85 -> 0 | G85: =F_Inputs!G85 -> 0 | H85: =F_Inputs!H85 -> 0 | I85: =F_Inputs!I85 -> 0 | J85: =F_Inputs!J85 -> 0 | K85: =F_Inputs!K85 -> 0 | L85: =F_Inputs!L85 -> 0 | M85: =F_Inputs!M85 ->  | O85: CWW3_1 | P85: 0 | Q85: 0 | R85: 0 | S85: 0 | T85: 0 | U85: 0 | V85: 0
A86: =F_Inputs!A86 -> SRN | B86: =F_Inputs!B86 -> CWW3_122TOT_PR24 | C86: =F_Inputs!C86 -> EA/NRW environmental programme wastewater (WINEP/NEP) - Restoration management (marine conservation zones etc) (WINEP/NEP) wastewater opex - Total | D86: =F_Inputs!D86 -> £m | E86: =F_Inputs!E86 -> Price Review 2024 | F86: =F_Inputs!F86 -> 0 | G86: =F_Inputs!G86 -> 0 | H86: =F_Inputs!H86 -> 0 | I86: =F_Inputs!I86 -> 0 | J86: =F_Inputs!J86 -> 0 | K86: =F_Inputs!K86 -> 0 | L86: =F_Inputs!L86 -> 0 | M86: =F_Inputs!M86 ->  | O86: CWW3_1 | P86: 0 | Q86: 0 | R86: 0 | S86: 0 | T86: 0 | U86: 0 | V86: 0
A87: =F_Inputs!A87 -> SRN | B87: =F_Inputs!B87 -> CWW3_123TOT_PR24 | C87: =F_Inputs!C87 -> EA/NRW environmental programme wastewater (WINEP/NEP) - Restoration management (marine conservation zones etc) (WINEP/NEP) wastewater totex - Total | D87: =F_Inputs!D87 -> £m | E87: =F_Inputs!E87 -> Price Review 2024 | F87: =F_Inputs!F87 -> 0 | G87: =F_Inputs!G87 -> 0 | H87: =F_Inputs!H87 -> 0 | I87: =F_Inputs!I87 -> 0 | J87: =F_Inputs!J87 -> 0 | K87: =F_Inputs!K87 -> 0 | L87: =F_Inputs!L87 -> 0 | M87: =F_Inputs!M87 ->  | O87: CWW3_1 | P87: 0 | Q87: 0 | R87: 0 | S87: 0 | T87: 0 | U87: 0 | V87: 0
A88: =F_Inputs!A88 -> SRN | B88: =F_Inputs!B88 -> CWW12_121TOT_PR24 | C88: =F_Inputs!C88 -> EA/NRW environmental programme wastewater (WINEP/NEP) - Restoration management (marine conservation zones etc) (WINEP/NEP) wastewater capex - Total | D88: =F_Inputs!D88 -> £m | E88: =F_Inputs!E88 -> Price Review 2024 | F88: =F_Inputs!F88 -> 0 | G88: =F_Inputs!G88 -> 0 | H88: =F_Inputs!H88 ->  | I88: =F_Inputs!I88 ->  | J88: =F_Inputs!J88 ->  | K88: =F_Inputs!K88 ->  | L88: =F_Inputs!L88 ->  | M88: =F_Inputs!M88 ->  | O88: CWW12_ | P88: 0 | Q88: 0 | R88: 0 | S88: 0 | T88: 0 | U88: 0 | V88: 0
A89: =F_Inputs!A89 -> SRN | B89: =F_Inputs!B89 -> CWW12_122TOT_PR24 | C89: =F_Inputs!C89 -> EA/NRW environmental programme wastewater (WINEP/NEP) - Restoration management (marine conservation zones etc) (WINEP/NEP) wastewater opex - Total | D89: =F_Inputs!D89 -> £m | E89: =F_Inputs!E89 -> Price Review 2024 | F89: =F_Inputs!F89 -> 0 | G89: =F_Inputs!G89 -> 0 | H89: =F_Inputs!H89 ->  | I89: =F_Inputs!I89 ->  | J89: =F_Inputs!J89 ->  | K89: =F_Inputs!K89 ->  | L89: =F_Inputs!L89 ->  | M89: =F_Inputs!M89 ->  | O89: CWW12_ | P89: 0 | Q89: 0 | R89: 0 | S89: 0 | T89: 0 | U89: 0 | V89: 0
A90: =F_Inputs!A90 -> SRN | B90: =F_Inputs!B90 -> CWW12_123TOT_PR24 | C90: =F_Inputs!C90 -> EA/NRW environmental programme wastewater (WINEP/NEP) - Restoration management (marine conservation zones etc) (WINEP/NEP) wastewater totex - Total | D90: =F_Inputs!D90 -> £m | E90: =F_Inputs!E90 -> Price Review 2024 | F90: =F_Inputs!F90 -> 0 | G90: =F_Inputs!G90 -> 0 | H90: =F_Inputs!H90 ->  | I90: =F_Inputs!I90 ->  | J90: =F_Inputs!J90 ->  | K90: =F_Inputs!K90 ->  | L90: =F_Inputs!L90 ->  | M90: =F_Inputs!M90 ->  | O90: CWW12_ | P90: 0 | Q90: 0 | R90: 0 | S90: 0 | T90: 0 | U90: 0 | V90: 0
A91: =F_Inputs!A91 -> SRN | B91: =F_Inputs!B91 -> CWW17_121TOT_PR24 | C91: =F_Inputs!C91 -> EA/NRW environmental programme wastewater (WINEP/NEP) - Restoration management (marine conservation zones etc) (WINEP/NEP) wastewater capex - Total | D91: =F_Inputs!D91 -> £m | E91: =F_Inputs!E91 -> Price Review 2024 | F91: =F_Inputs!F91 -> 0 | G91: =F_Inputs!G91 -> 0 | H91: =F_Inputs!H91 -> 0 | I91: =F_Inputs!I91 -> 0 | J91: =F_Inputs!J91 -> 0 | K91: =F_Inputs!K91 -> 0 | L91: =F_Inputs!L91 -> 0 | M91: =F_Inputs!M91 ->  | O91: CWW17_ | P91: 0 | Q91: 0 | R91: 0 | S91: 0 | T91: 0 | U91: 0 | V91: 0
A92: =F_Inputs!A92 -> SRN | B92: =F_Inputs!B92 -> CWW17_122TOT_PR24 | C92: =F_Inputs!C92 -> EA/NRW environmental programme wastewater (WINEP/NEP) - Restoration management (marine conservation zones etc) (WINEP/NEP) wastewater opex - Total | D92: =F_Inputs!D92 -> £m | E92: =F_Inputs!E92 -> Price Review 2024 | F92: =F_Inputs!F92 -> 0 | G92: =F_Inputs!G92 -> 0 | H92: =F_Inputs!H92 -> 0 | I92: =F_Inputs!I92 -> 0 | J92: =F_Inputs!J92 -> 0 | K92: =F_Inputs!K92 -> 0 | L92: =F_Inputs!L92 -> 0 | M92: =F_Inputs!M92 ->  | O92: CWW17_ | P92: 0 | Q92: 0 | R92: 0 | S92: 0 | T92: 0 | U92: 0 | V92: 0
A93: =F_Inputs!A93 -> SRN | B93: =F_Inputs!B93 -> CWW17_123TOT_PR24 | C93: =F_Inputs!C93 -> EA/NRW environmental programme wastewater (WINEP/NEP) - Restoration management (marine conservation zones etc) (WINEP/NEP) wastewater totex - Total | D93: =F_Inputs!D93 -> £m | E93: =F_Inputs!E93 -> Price Review 2024 | F93: =F_Inputs!F93 -> 0 | G93: =F_Inputs!G93 -> 0 | H93: =F_Inputs!H93 -> 0 | I93: =F_Inputs!I93 -> 0 | J93: =F_Inputs!J93 -> 0 | K93: =F_Inputs!K93 -> 0 | L93: =F_Inputs!L93 -> 0 | M93: =F_Inputs!M93 ->  | O93: CWW17_ | P93: 0 | Q93: 0 | R93: 0 | S93: 0 | T93: 0 | U93: 0 | V93: 0
A94: =F_Inputs!A94 -> SRN | B94: =F_Inputs!B94 -> CWW20_070_PR24 | C94: =F_Inputs!C94 -> Other data - Number of marine conservation zones (new and existing) | D94: =F_Inputs!D94 -> nr | E94: =F_Inputs!E94 -> Price Review 2024 | F94: =F_Inputs!F94 -> 20 | G94: =F_Inputs!G94 -> 20 | H94: =F_Inputs!H94 -> 20 | I94: =F_Inputs!I94 -> 20 | J94: =F_Inputs!J94 -> 20 | K94: =F_Inputs!K94 -> 20 | L94: =F_Inputs!L94 -> 20 | M94: =F_Inputs!M94 ->  | O94: CWW20_ | P94: 0 | Q94: 0 | R94: 20 | S94: 20 | T94: 20 | U94: 20 | V94: 20
A95: =F_Inputs!A95 -> SRN | B95: =F_Inputs!B95 -> CWW20A_070_PR24 | C95: =F_Inputs!C95 -> Other data - Number of marine conservation zones (new and existing) | D95: =F_Inputs!D95 -> nr | E95: =F_Inputs!E95 -> Price Review 2024 | F95: =F_Inputs!F95 ->  | G95: =F_Inputs!G95 ->  | H95: =F_Inputs!H95 ->  | I95: =F_Inputs!I95 ->  | J95: =F_Inputs!J95 ->  | K95: =F_Inputs!K95 ->  | L95: =F_Inputs!L95 ->  | M95: =F_Inputs!M95 ->  | O95: CWW20A | R95: 0 | S95: 0 | T95: 0 | U95: 0 | V95: 0
A96: =F_Inputs!A96 -> SRN | B96: =F_Inputs!B96 -> PR24_E_WW123_TOTAL | C96: =F_Inputs!C96 -> PR24 BP EA/NRW environmental programme wastewater (WINEP/NEP) - Restoration management (marine conservation zones etc) (WINEP/NEP) wastewater totex - Total inc. accelerated & transition costs | D96: =F_Inputs!D96 -> £m | E96: =F_Inputs!E96 -> Price Review 2024 | F96: =F_Inputs!F96 ->  | G96: =F_Inputs!G96 ->  | H96: =F_Inputs!H96 ->  | I96: =F_Inputs!I96 ->  | J96: =F_Inputs!J96 ->  | K96: =F_Inputs!K96 ->  | L96: =F_Inputs!L96 ->  | M96: =F_Inputs!M96 -> 0 | O96: PR24_E | P96: 0 | Q96: 0 | R96: 0 | S96: 0 | T96: 0 | U96: 0 | V96: 0
A97: =F_Inputs!A97 -> SRN | B97: =F_Inputs!B97 -> PR24_NETTOTEX_WASTE | C97: =F_Inputs!C97 -> PR24 BP Net totex - Total inc. accelerated & transition costs | D97: =F_Inputs!D97 -> £m | E97: =F_Inputs!E97 -> Price Review 2024 | F97: =F_Inputs!F97 ->  | G97: =F_Inputs!G97 ->  | H97: =F_Inputs!H97 ->  | I97: =F_Inputs!I97 ->  | J97: =F_Inputs!J97 ->  | K97: =F_Inputs!K97 ->  | L97: =F_Inputs!L97 ->  | M97: =F_Inputs!M97 -> 5114.195692 | O97: PR24_N | P97: 0 | Q97: 0 | R97: 0 | S97: 0 | T97: 0 | U97: 0 | V97: 0
A98: =F_Inputs!A98 -> TMS | B98: =F_Inputs!B98 -> CWW3_121TOT_PR24 | C98: =F_Inputs!C98 -> EA/NRW environmental programme wastewater (WINEP/NEP) - Restoration management (marine conservation zones etc) (WINEP/NEP) wastewater capex - Total | D98: =F_Inputs!D98 -> £m | E98: =F_Inputs!E98 -> Price Review 2024 | F98: =F_Inputs!F98 -> 0 | G98: =F_Inputs!G98 -> 0 | H98: =F_Inputs!H98 -> 0 | I98: =F_Inputs!I98 -> 0 | J98: =F_Inputs!J98 -> 0 | K98: =F_Inputs!K98 -> 0 | L98: =F_Inputs!L98 -> 0 | M98: =F_Inputs!M98 ->  | O98: CWW3_1 | P98: 0 | Q98: 0 | R98: 0 | S98: 0 | T98: 0 | U98: 0 | V98: 0
A99: =F_Inputs!A99 -> TMS | B99: =F_Inputs!B99 -> CWW3_122TOT_PR24 | C99: =F_Inputs!C99 -> EA/NRW environmental programme wastewater (WINEP/NEP) - Restoration management (marine conservation zones etc) (WINEP/NEP) wastewater opex - Total | D99: =F_Inputs!D99 -> £m | E99: =F_Inputs!E99 -> Price Review 2024 | F99: =F_Inputs!F99 -> 0 | G99: =F_Inputs!G99 -> 0 | H99: =F_Inputs!H99 -> 0 | I99: =F_Inputs!I99 -> 0 | J99: =F_Inputs!J99 -> 0 | K99: =F_Inputs!K99 -> 0 | L99: =F_Inputs!L99 -> 0 | M99: =F_Inputs!M99 ->  | O99: CWW3_1 | P99: 0 | Q99: 0 | R99: 0 | S99: 0 | T99: 0 | U99: 0 | V99: 0
A100: =F_Inputs!A100 -> TMS | B100: =F_Inputs!B100 -> CWW3_123TOT_PR24 | C100: =F_Inputs!C100 -> EA/NRW environmental programme wastewater (WINEP/NEP) - Restoration management (marine conservation zones etc) (WINEP/NEP) wastewater totex - Total | D100: =F_Inputs!D100 -> £m | E100: =F_Inputs!E100 -> Price Review 2024 | F100: =F_Inputs!F100 -> 0 | G100: =F_Inputs!G100 -> 0 | H100: =F_Inputs!H100 -> 0 | I100: =F_Inputs!I100 -> 0 | J100: =F_Inputs!J100 -> 0 | K100: =F_Inputs!K100 -> 0 | L100: =F_Inputs!L100 -> 0 | M100: =F_Inputs!M100 ->  | O100: CWW3_1 | P100: 0 | Q100: 0 | R100: 0 | S100: 0 | T100: 0 | U100: 0 | V100: 0
A101: =F_Inputs!A101 -> TMS | B101: =F_Inputs!B101 -> CWW12_121TOT_PR24 | C101: =F_Inputs!C101 -> EA/NRW environmental programme wastewater (WINEP/NEP) - Restoration management (marine conservation zones etc) (WINEP/NEP) wastewater capex - Total | D101: =F_Inputs!D101 -> £m | E101: =F_Inputs!E101 -> Price Review 2024 | F101: =F_Inputs!F101 -> 0 | G101: =F_Inputs!G101 -> 0 | H101: =F_Inputs!H101 ->  | I101: =F_Inputs!I101 ->  | J101: =F_Inputs!J101 ->  | K101: =F_Inputs!K101 ->  | L101: =F_Inputs!L101 ->  | M101: =F_Inputs!M101 ->  | O101: CWW12_ | P101: 0 | Q101: 0 | R101: 0 | S101: 0 | T101: 0 | U101: 0 | V101: 0
A102: =F_Inputs!A102 -> TMS | B102: =F_Inputs!B102 -> CWW12_122TOT_PR24 | C102: =F_Inputs!C102 -> EA/NRW environmental programme wastewater (WINEP/NEP) - Restoration management (marine conservation zones etc) (WINEP/NEP) wastewater opex - Total | D102: =F_Inputs!D102 -> £m | E102: =F_Inputs!E102 -> Price Review 2024 | F102: =F_Inputs!F102 -> 0 | G102: =F_Inputs!G102 -> 0 | H102: =F_Inputs!H102 ->  | I102: =F_Inputs!I102 ->  | J102: =F_Inputs!J102 ->  | K102: =F_Inputs!K102 ->  | L102: =F_Inputs!L102 ->  | M102: =F_Inputs!M102 ->  | O102: CWW12_ | P102: 0 | Q102: 0 | R102: 0 | S102: 0 | T102: 0 | U102: 0 | V102: 0
A103: =F_Inputs!A103 -> TMS | B103: =F_Inputs!B103 -> CWW12_123TOT_PR24 | C103: =F_Inputs!C103 -> EA/NRW environmental programme wastewater (WINEP/NEP) - Restoration management (marine conservation zones etc) (WINEP/NEP) wastewater totex - Total | D103: =F_Inputs!D103 -> £m | E103: =F_Inputs!E103 -> Price Review 2024 | F103: =F_Inputs!F103 -> 0 | G103: =F_Inputs!G103 -> 0 | H103: =F_Inputs!H103 ->  | I103: =F_Inputs!I103 ->  | J103: =F_Inputs!J103 ->  | K103: =F_Inputs!K103 ->  | L103: =F_Inputs!L103 ->  | M103: =F_Inputs!M103 ->  | O103: CWW12_ | P103: 0 | Q103: 0 | R103: 0 | S103: 0 | T103: 0 | U103: 0 | V103: 0
A104: =F_Inputs!A104 -> TMS | B104: =F_Inputs!B104 -> CWW17_121TOT_PR24 | C104: =F_Inputs!C104 -> EA/NRW environmental programme wastewater (WINEP/NEP) - Restoration management (marine conservation zones etc) (WINEP/NEP) wastewater capex - Total | D104: =F_Inputs!D104 -> £m | E104: =F_Inputs!E104 -> Price Review 2024 | F104: =F_Inputs!F104 -> 0 | G104: =F_Inputs!G104 -> 0 | H104: =F_Inputs!H104 -> 0 | I104: =F_Inputs!I104 -> 0 | J104: =F_Inputs!J104 -> 0 | K104: =F_Inputs!K104 -> 0 | L104: =F_Inputs!L104 -> 0 | M104: =F_Inputs!M104 ->  | O104: CWW17_ | P104: 0 | Q104: 0 | R104: 0 | S104: 0 | T104: 0 | U104: 0 | V104: 0
A105: =F_Inputs!A105 -> TMS | B105: =F_Inputs!B105 -> CWW17_122TOT_PR24 | C105: =F_Inputs!C105 -> EA/NRW environmental programme wastewater (WINEP/NEP) - Restoration management (marine conservation zones etc) (WINEP/NEP) wastewater opex - Total | D105: =F_Inputs!D105 -> £m | E105: =F_Inputs!E105 -> Price Review 2024 | F105: =F_Inputs!F105 -> 0 | G105: =F_Inputs!G105 -> 0 | H105: =F_Inputs!H105 -> 0 | I105: =F_Inputs!I105 -> 0 | J105: =F_Inputs!J105 -> 0 | K105: =F_Inputs!K105 -> 0 | L105: =F_Inputs!L105 -> 0 | M105: =F_Inputs!M105 ->  | O105: CWW17_ | P105: 0 | Q105: 0 | R105: 0 | S105: 0 | T105: 0 | U105: 0 | V105: 0
A106: =F_Inputs!A106 -> TMS | B106: =F_Inputs!B106 -> CWW17_123TOT_PR24 | C106: =F_Inputs!C106 -> EA/NRW environmental programme wastewater (WINEP/NEP) - Restoration management (marine conservation zones etc) (WINEP/NEP) wastewater totex - Total | D106: =F_Inputs!D106 -> £m | E106: =F_Inputs!E106 -> Price Review 2024 | F106: =F_Inputs!F106 -> 0 | G106: =F_Inputs!G106 -> 0 | H106: =F_Inputs!H106 -> 0 | I106: =F_Inputs!I106 -> 0 | J106: =F_Inputs!J106 -> 0 | K106: =F_Inputs!K106 -> 0 | L106: =F_Inputs!L106 -> 0 | M106: =F_Inputs!M106 ->  | O106: CWW17_ | P106: 0 | Q106: 0 | R106: 0 | S106: 0 | T106: 0 | U106: 0 | V106: 0
A107: =F_Inputs!A107 -> TMS | B107: =F_Inputs!B107 -> CWW20_070_PR24 | C107: =F_Inputs!C107 -> Other data - Number of marine conservation zones (new and existing) | D107: =F_Inputs!D107 -> nr | E107: =F_Inputs!E107 -> Price Review 2024 | F107: =F_Inputs!F107 -> 0 | G107: =F_Inputs!G107 -> 0 | H107: =F_Inputs!H107 -> 0 | I107: =F_Inputs!I107 -> 0 | J107: =F_Inputs!J107 -> 0 | K107: =F_Inputs!K107 -> 0 | L107: =F_Inputs!L107 -> 0 | M107: =F_Inputs!M107 ->  | O107: CWW20_ | P107: 0 | Q107: 0 | R107: 0 | S107: 0 | T107: 0 | U107: 0 | V107: 0
A108: =F_Inputs!A108 -> TMS | B108: =F_Inputs!B108 -> CWW20A_070_PR24 | C108: =F_Inputs!C108 -> Other data - Number of marine conservation zones (new and existing) | D108: =F_Inputs!D108 -> nr | E108: =F_Inputs!E108 -> Price Review 2024 | F108: =F_Inputs!F108 ->  | G108: =F_Inputs!G108 ->  | H108: =F_Inputs!H108 ->  | I108: =F_Inputs!I108 ->  | J108: =F_Inputs!J108 ->  | K108: =F_Inputs!K108 ->  | L108: =F_Inputs!L108 ->  | M108: =F_Inputs!M108 ->  | O108: CWW20A | R108: 0 | S108: 0 | T108: 0 | U108: 0 | V108: 0
A109: =F_Inputs!A109 -> TMS | B109: =F_Inputs!B109 -> PR24_E_WW123_TOTAL | C109: =F_Inputs!C109 -> PR24 BP EA/NRW environmental programme wastewater (WINEP/NEP) - Restoration management (marine conservation zones etc) (WINEP/NEP) wastewater totex - Total inc. accelerated & transition costs | D109: =F_Inputs!D109 -> £m | E109: =F_Inputs!E109 -> Price Review 2024 | F109: =F_Inputs!F109 ->  | G109: =F_Inputs!G109 ->  | H109: =F_Inputs!H109 ->  | I109: =F_Inputs!I109 ->  | J109: =F_Inputs!J109 ->  | K109: =F_Inputs!K109 ->  | L109: =F_Inputs!L109 ->  | M109: =F_Inputs!M109 -> 0 | O109: PR24_E | P109: 0 | Q109: 0 | R109: 0 | S109: 0 | T109: 0 | U109: 0 | V109: 0
A110: =F_Inputs!A110 -> TMS | B110: =F_Inputs!B110 -> PR24_NETTOTEX_WASTE | C110: =F_Inputs!C110 -> PR24 BP Net totex - Total inc. accelerated & transition costs | D110: =F_Inputs!D110 -> £m | E110: =F_Inputs!E110 -> Price Review 2024 | F110: =F_Inputs!F110 ->  | G110: =F_Inputs!G110 ->  | H110: =F_Inputs!H110 ->  | I110: =F_Inputs!I110 ->  | J110: =F_Inputs!J110 ->  | K110: =F_Inputs!K110 ->  | L110: =F_Inputs!L110 ->  | M110: =F_Inputs!M110 -> 12775.4738 | O110: PR24_N | P110: 0 | Q110: 0 | R110: 0 | S110: 0 | T110: 0 | U110: 0 | V110: 0
A111: =F_Inputs!A111 -> NWT | B111: =F_Inputs!B111 -> CWW3_121TOT_PR24 | C111: =F_Inputs!C111 -> EA/NRW environmental programme wastewater (WINEP/NEP) - Restoration management (marine conservation zones etc) (WINEP/NEP) wastewater capex - Total | D111: =F_Inputs!D111 -> £m | E111: =F_Inputs!E111 -> Price Review 2024 | F111: =F_Inputs!F111 -> 0.03251896505 | G111: =F_Inputs!G111 -> 0 | H111: =F_Inputs!H111 -> 0 | I111: =F_Inputs!I111 -> 0 | J111: =F_Inputs!J111 -> 0 | K111: =F_Inputs!K111 -> 0 | L111: =F_Inputs!L111 -> 0 | M111: =F_Inputs!M111 ->  | O111: CWW3_1 | P111: 0 | Q111: 0 | R111: 0 | S111: 0 | T111: 0 | U111: 0 | V111: 0
A112: =F_Inputs!A112 -> NWT | B112: =F_Inputs!B112 -> CWW3_122TOT_PR24 | C112: =F_Inputs!C112 -> EA/NRW environmental programme wastewater (WINEP/NEP) - Restoration management (marine conservation zones etc) (WINEP/NEP) wastewater opex - Total | D112: =F_Inputs!D112 -> £m | E112: =F_Inputs!E112 -> Price Review 2024 | F112: =F_Inputs!F112 -> 0 | G112: =F_Inputs!G112 -> 0 | H112: =F_Inputs!H112 -> 0 | I112: =F_Inputs!I112 -> 0 | J112: =F_Inputs!J112 -> 0 | K112: =F_Inputs!K112 -> 0 | L112: =F_Inputs!L112 -> 0 | M112: =F_Inputs!M112 ->  | O112: CWW3_1 | P112: 0 | Q112: 0 | R112: 0 | S112: 0 | T112: 0 | U112: 0 | V112: 0
A113: =F_Inputs!A113 -> NWT | B113: =F_Inputs!B113 -> CWW3_123TOT_PR24 | C113: =F_Inputs!C113 -> EA/NRW environmental programme wastewater (WINEP/NEP) - Restoration management (marine conservation zones etc) (WINEP/NEP) wastewater totex - Total | D113: =F_Inputs!D113 -> £m | E113: =F_Inputs!E113 -> Price Review 2024 | F113: =F_Inputs!F113 -> 0.03251896505 | G113: =F_Inputs!G113 -> 0 | H113: =F_Inputs!H113 -> 0 | I113: =F_Inputs!I113 -> 0 | J113: =F_Inputs!J113 -> 0 | K113: =F_Inputs!K113 -> 0 | L113: =F_Inputs!L113 -> 0 | M113: =F_Inputs!M113 ->  | O113: CWW3_1 | P113: 0 | Q113: 0 | R113: 0 | S113: 0 | T113: 0 | U113: 0 | V113: 0
A114: =F_Inputs!A114 -> NWT | B114: =F_Inputs!B114 -> CWW12_121TOT_PR24 | C114: =F_Inputs!C114 -> EA/NRW environmental programme wastewater (WINEP/NEP) - Restoration management (marine conservation zones etc) (WINEP/NEP) wastewater capex - Total | D114: =F_Inputs!D114 -> £m | E114: =F_Inputs!E114 -> Price Review 2024 | F114: =F_Inputs!F114 -> 0 | G114: =F_Inputs!G114 -> 0 | H114: =F_Inputs!H114 ->  | I114: =F_Inputs!I114 ->  | J114: =F_Inputs!J114 ->  | K114: =F_Inputs!K114 ->  | L114: =F_Inputs!L114 ->  | M114: =F_Inputs!M114 ->  | O114: CWW12_ | P114: 0 | Q114: 0 | R114: 0 | S114: 0 | T114: 0 | U114: 0 | V114: 0
A115: =F_Inputs!A115 -> NWT | B115: =F_Inputs!B115 -> CWW12_122TOT_PR24 | C115: =F_Inputs!C115 -> EA/NRW environmental programme wastewater (WINEP/NEP) - Restoration management (marine conservation zones etc) (WINEP/NEP) wastewater opex - Total | D115: =F_Inputs!D115 -> £m | E115: =F_Inputs!E115 -> Price Review 2024 | F115: =F_Inputs!F115 -> 0 | G115: =F_Inputs!G115 -> 0 | H115: =F_Inputs!H115 ->  | I115: =F_Inputs!I115 ->  | J115: =F_Inputs!J115 ->  | K115: =F_Inputs!K115 ->  | L115: =F_Inputs!L115 ->  | M115: =F_Inputs!M115 ->  | O115: CWW12_ | P115: 0 | Q115: 0 | R115: 0 | S115: 0 | T115: 0 | U115: 0 | V115: 0
A116: =F_Inputs!A116 -> NWT | B116: =F_Inputs!B116 -> CWW12_123TOT_PR24 | C116: =F_Inputs!C116 -> EA/NRW environmental programme wastewater (WINEP/NEP) - Restoration management (marine conservation zones etc) (WINEP/NEP) wastewater totex - Total | D116: =F_Inputs!D116 -> £m | E116: =F_Inputs!E116 -> Price Review 2024 | F116: =F_Inputs!F116 -> 0 | G116: =F_Inputs!G116 -> 0 | H116: =F_Inputs!H116 ->  | I116: =F_Inputs!I116 ->  | J116: =F_Inputs!J116 ->  | K116: =F_Inputs!K116 ->  | L116: =F_Inputs!L116 ->  | M116: =F_Inputs!M116 ->  | O116: CWW12_ | P116: 0 | Q116: 0 | R116: 0 | S116: 0 | T116: 0 | U116: 0 | V116: 0
A117: =F_Inputs!A117 -> NWT | B117: =F_Inputs!B117 -> CWW17_121TOT_PR24 | C117: =F_Inputs!C117 -> EA/NRW environmental programme wastewater (WINEP/NEP) - Restoration management (marine conservation zones etc) (WINEP/NEP) wastewater capex - Total | D117: =F_Inputs!D117 -> £m | E117: =F_Inputs!E117 -> Price Review 2024 | F117: =F_Inputs!F117 -> 0 | G117: =F_Inputs!G117 -> 0 | H117: =F_Inputs!H117 -> 0 | I117: =F_Inputs!I117 -> 0 | J117: =F_Inputs!J117 -> 0 | K117: =F_Inputs!K117 -> 0 | L117: =F_Inputs!L117 -> 0 | M117: =F_Inputs!M117 ->  | O117: CWW17_ | P117: 0 | Q117: 0 | R117: 0 | S117: 0 | T117: 0 | U117: 0 | V117: 0
A118: =F_Inputs!A118 -> NWT | B118: =F_Inputs!B118 -> CWW17_122TOT_PR24 | C118: =F_Inputs!C118 -> EA/NRW environmental programme wastewater (WINEP/NEP) - Restoration management (marine conservation zones etc) (WINEP/NEP) wastewater opex - Total | D118: =F_Inputs!D118 -> £m | E118: =F_Inputs!E118 -> Price Review 2024 | F118: =F_Inputs!F118 -> 0 | G118: =F_Inputs!G118 -> 0 | H118: =F_Inputs!H118 -> 0 | I118: =F_Inputs!I118 -> 0 | J118: =F_Inputs!J118 -> 0 | K118: =F_Inputs!K118 -> 0 | L118: =F_Inputs!L118 -> 0 | M118: =F_Inputs!M118 ->  | O118: CWW17_ | P118: 0 | Q118: 0 | R118: 0 | S118: 0 | T118: 0 | U118: 0 | V118: 0
A119: =F_Inputs!A119 -> NWT | B119: =F_Inputs!B119 -> CWW17_123TOT_PR24 | C119: =F_Inputs!C119 -> EA/NRW environmental programme wastewater (WINEP/NEP) - Restoration management (marine conservation zones etc) (WINEP/NEP) wastewater totex - Total | D119: =F_Inputs!D119 -> £m | E119: =F_Inputs!E119 -> Price Review 2024 | F119: =F_Inputs!F119 -> 0 | G119: =F_Inputs!G119 -> 0 | H119: =F_Inputs!H119 -> 0 | I119: =F_Inputs!I119 -> 0 | J119: =F_Inputs!J119 -> 0 | K119: =F_Inputs!K119 -> 0 | L119: =F_Inputs!L119 -> 0 | M119: =F_Inputs!M119 ->  | O119: CWW17_ | P119: 0 | Q119: 0 | R119: 0 | S119: 0 | T119: 0 | U119: 0 | V119: 0
A120: =F_Inputs!A120 -> NWT | B120: =F_Inputs!B120 -> CWW20_070_PR24 | C120: =F_Inputs!C120 -> Other data - Number of marine conservation zones (new and existing) | D120: =F_Inputs!D120 -> nr | E120: =F_Inputs!E120 -> Price Review 2024 | F120: =F_Inputs!F120 -> 0 | G120: =F_Inputs!G120 -> 0 | H120: =F_Inputs!H120 -> 0 | I120: =F_Inputs!I120 -> 0 | J120: =F_Inputs!J120 -> 0 | K120: =F_Inputs!K120 -> 0 | L120: =F_Inputs!L120 -> 0 | M120: =F_Inputs!M120 ->  | O120: CWW20_ | P120: 0 | Q120: 0 | R120: 0 | S120: 0 | T120: 0 | U120: 0 | V120: 0
A121: =F_Inputs!A121 -> NWT | B121: =F_Inputs!B121 -> CWW20A_070_PR24 | C121: =F_Inputs!C121 -> Other data - Number of marine conservation zones (new and existing) | D121: =F_Inputs!D121 -> nr | E121: =F_Inputs!E121 -> Price Review 2024 | F121: =F_Inputs!F121 -> 0 | G121: =F_Inputs!G121 -> 0 | H121: =F_Inputs!H121 ->  | I121: =F_Inputs!I121 ->  | J121: =F_Inputs!J121 ->  | K121: =F_Inputs!K121 ->  | L121: =F_Inputs!L121 ->  | M121: =F_Inputs!M121 ->  | O121: CWW20A | P121: 0 | Q121: 0 | R121: 0 | S121: 0 | T121: 0 | U121: 0 | V121: 0
A122: =F_Inputs!A122 -> NWT | B122: =F_Inputs!B122 -> PR24_E_WW123_TOTAL | C122: =F_Inputs!C122 -> PR24 BP EA/NRW environmental programme wastewater (WINEP/NEP) - Restoration management (marine conservation zones etc) (WINEP/NEP) wastewater totex - Total inc. accelerated & transition costs | D122: =F_Inputs!D122 -> £m | E122: =F_Inputs!E122 -> Price Review 2024 | F122: =F_Inputs!F122 ->  | G122: =F_Inputs!G122 ->  | H122: =F_Inputs!H122 ->  | I122: =F_Inputs!I122 ->  | J122: =F_Inputs!J122 ->  | K122: =F_Inputs!K122 ->  | L122: =F_Inputs!L122 ->  | M122: =F_Inputs!M122 -> 0 | O122: PR24_E | P122: 0 | Q122: 0 | R122: 0 | S122: 0 | T122: 0 | U122: 0 | V122: 0
A123: =F_Inputs!A123 -> NWT | B123: =F_Inputs!B123 -> PR24_NETTOTEX_WASTE | C123: =F_Inputs!C123 -> PR24 BP Net totex - Total inc. accelerated & transition costs | D123: =F_Inputs!D123 -> £m | E123: =F_Inputs!E123 -> Price Review 2024 | F123: =F_Inputs!F123 ->  | G123: =F_Inputs!G123 ->  | H123: =F_Inputs!H123 ->  | I123: =F_Inputs!I123 ->  | J123: =F_Inputs!J123 ->  | K123: =F_Inputs!K123 ->  | L123: =F_Inputs!L123 ->  | M123: =F_Inputs!M123 -> 8993.179575 | O123: PR24_N | P123: 0 | Q123: 0 | R123: 0 | S123: 0 | T123: 0 | U123: 0 | V123: 0
A124: =F_Inputs!A124 -> WSX | B124: =F_Inputs!B124 -> CWW3_121TOT_PR24 | C124: =F_Inputs!C124 -> EA/NRW environmental programme wastewater (WINEP/NEP) - Restoration management (marine conservation zones etc) (WINEP/NEP) wastewater capex - Total | D124: =F_Inputs!D124 -> £m | E124: =F_Inputs!E124 -> Price Review 2024 | F124: =F_Inputs!F124 -> 0 | G124: =F_Inputs!G124 -> 0 | H124: =F_Inputs!H124 -> 0 | I124: =F_Inputs!I124 -> 0 | J124: =F_Inputs!J124 -> 0.515247 | K124: =F_Inputs!K124 -> 2.970812 | L124: =F_Inputs!L124 -> 4.273284 | M124: =F_Inputs!M124 ->  | O124: CWW3_1 | P124: 0 | Q124: 0 | R124: 0 | S124: 0 | T124: 0.515247 | U124: 2.970812 | V124: 4.273284
A125: =F_Inputs!A125 -> WSX | B125: =F_Inputs!B125 -> CWW3_122TOT_PR24 | C125: =F_Inputs!C125 -> EA/NRW environmental programme wastewater (WINEP/NEP) - Restoration management (marine conservation zones etc) (WINEP/NEP) wastewater opex - Total | D125: =F_Inputs!D125 -> £m | E125: =F_Inputs!E125 -> Price Review 2024 | F125: =F_Inputs!F125 -> 0 | G125: =F_Inputs!G125 -> 0 | H125: =F_Inputs!H125 -> 0 | I125: =F_Inputs!I125 -> 0 | J125: =F_Inputs!J125 -> 0 | K125: =F_Inputs!K125 -> 0 | L125: =F_Inputs!L125 -> 0.108731 | M125: =F_Inputs!M125 ->  | O125: CWW3_1 | P125: 0 | Q125: 0 | R125: 0 | S125: 0 | T125: 0 | U125: 0 | V125: 0.108731
A126: =F_Inputs!A126 -> WSX | B126: =F_Inputs!B126 -> CWW3_123TOT_PR24 | C126: =F_Inputs!C126 -> EA/NRW environmental programme wastewater (WINEP/NEP) - Restoration management (marine conservation zones etc) (WINEP/NEP) wastewater totex - Total | D126: =F_Inputs!D126 -> £m | E126: =F_Inputs!E126 -> Price Review 2024 | F126: =F_Inputs!F126 -> 0 | G126: =F_Inputs!G126 -> 0 | H126: =F_Inputs!H126 -> 0 | I126: =F_Inputs!I126 -> 0 | J126: =F_Inputs!J126 -> 0.515247 | K126: =F_Inputs!K126 -> 2.970812 | L126: =F_Inputs!L126 -> 4.382015 | M126: =F_Inputs!M126 ->  | O126: CWW3_1 | P126: 0 | Q126: 0 | R126: 0 | S126: 0 | T126: 0.515247 | U126: 2.970812 | V126: 4.382015
A127: =F_Inputs!A127 -> WSX | B127: =F_Inputs!B127 -> CWW12_121TOT_PR24 | C127: =F_Inputs!C127 -> EA/NRW environmental programme wastewater (WINEP/NEP) - Restoration management (marine conservation zones etc) (WINEP/NEP) wastewater capex - Total | D127: =F_Inputs!D127 -> £m | E127: =F_Inputs!E127 -> Price Review 2024 | F127: =F_Inputs!F127 -> 0 | G127: =F_Inputs!G127 -> 0 | H127: =F_Inputs!H127 ->  | I127: =F_Inputs!I127 ->  | J127: =F_Inputs!J127 ->  | K127: =F_Inputs!K127 ->  | L127: =F_Inputs!L127 ->  | M127: =F_Inputs!M127 ->  | O127: CWW12_ | P127: 0 | Q127: 0 | R127: 0 | S127: 0 | T127: 0 | U127: 0 | V127: 0
A128: =F_Inputs!A128 -> WSX | B128: =F_Inputs!B128 -> CWW12_122TOT_PR24 | C128: =F_Inputs!C128 -> EA/NRW environmental programme wastewater (WINEP/NEP) - Restoration management (marine conservation zones etc) (WINEP/NEP) wastewater opex - Total | D128: =F_Inputs!D128 -> £m | E128: =F_Inputs!E128 -> Price Review 2024 | F128: =F_Inputs!F128 -> 0 | G128: =F_Inputs!G128 -> 0 | H128: =F_Inputs!H128 ->  | I128: =F_Inputs!I128 ->  | J128: =F_Inputs!J128 ->  | K128: =F_Inputs!K128 ->  | L128: =F_Inputs!L128 ->  | M128: =F_Inputs!M128 ->  | O128: CWW12_ | P128: 0 | Q128: 0 | R128: 0 | S128: 0 | T128: 0 | U128: 0 | V128: 0
A129: =F_Inputs!A129 -> WSX | B129: =F_Inputs!B129 -> CWW12_123TOT_PR24 | C129: =F_Inputs!C129 -> EA/NRW environmental programme wastewater (WINEP/NEP) - Restoration management (marine conservation zones etc) (WINEP/NEP) wastewater totex - Total | D129: =F_Inputs!D129 -> £m | E129: =F_Inputs!E129 -> Price Review 2024 | F129: =F_Inputs!F129 -> 0 | G129: =F_Inputs!G129 -> 0 | H129: =F_Inputs!H129 ->  | I129: =F_Inputs!I129 ->  | J129: =F_Inputs!J129 ->  | K129: =F_Inputs!K129 ->  | L129: =F_Inputs!L129 ->  | M129: =F_Inputs!M129 ->  | O129: CWW12_ | P129: 0 | Q129: 0 | R129: 0 | S129: 0 | T129: 0 | U129: 0 | V129: 0
A130: =F_Inputs!A130 -> WSX | B130: =F_Inputs!B130 -> CWW17_121TOT_PR24 | C130: =F_Inputs!C130 -> EA/NRW environmental programme wastewater (WINEP/NEP) - Restoration management (marine conservation zones etc) (WINEP/NEP) wastewater capex - Total | D130: =F_Inputs!D130 -> £m | E130: =F_Inputs!E130 -> Price Review 2024 | F130: =F_Inputs!F130 -> 0 | G130: =F_Inputs!G130 -> 0 | H130: =F_Inputs!H130 -> 0 | I130: =F_Inputs!I130 -> 0 | J130: =F_Inputs!J130 -> 0 | K130: =F_Inputs!K130 -> 0 | L130: =F_Inputs!L130 -> 0 | M130: =F_Inputs!M130 ->  | O130: CWW17_ | P130: 0 | Q130: 0 | R130: 0 | S130: 0 | T130: 0 | U130: 0 | V130: 0
A131: =F_Inputs!A131 -> WSX | B131: =F_Inputs!B131 -> CWW17_122TOT_PR24 | C131: =F_Inputs!C131 -> EA/NRW environmental programme wastewater (WINEP/NEP) - Restoration management (marine conservation zones etc) (WINEP/NEP) wastewater opex - Total | D131: =F_Inputs!D131 -> £m | E131: =F_Inputs!E131 -> Price Review 2024 | F131: =F_Inputs!F131 -> 0 | G131: =F_Inputs!G131 -> 0 | H131: =F_Inputs!H131 -> 0 | I131: =F_Inputs!I131 -> 0 | J131: =F_Inputs!J131 -> 0 | K131: =F_Inputs!K131 -> 0 | L131: =F_Inputs!L131 -> 0 | M131: =F_Inputs!M131 ->  | O131: CWW17_ | P131: 0 | Q131: 0 | R131: 0 | S131: 0 | T131: 0 | U131: 0 | V131: 0
A132: =F_Inputs!A132 -> WSX | B132: =F_Inputs!B132 -> CWW17_123TOT_PR24 | C132: =F_Inputs!C132 -> EA/NRW environmental programme wastewater (WINEP/NEP) - Restoration management (marine conservation zones etc) (WINEP/NEP) wastewater totex - Total | D132: =F_Inputs!D132 -> £m | E132: =F_Inputs!E132 -> Price Review 2024 | F132: =F_Inputs!F132 -> 0 | G132: =F_Inputs!G132 -> 0 | H132: =F_Inputs!H132 -> 0 | I132: =F_Inputs!I132 -> 0 | J132: =F_Inputs!J132 -> 0 | K132: =F_Inputs!K132 -> 0 | L132: =F_Inputs!L132 -> 0 | M132: =F_Inputs!M132 ->  | O132: CWW17_ | P132: 0 | Q132: 0 | R132: 0 | S132: 0 | T132: 0 | U132: 0 | V132: 0
A133: =F_Inputs!A133 -> WSX | B133: =F_Inputs!B133 -> CWW20_070_PR24 | C133: =F_Inputs!C133 -> Other data - Number of marine conservation zones (new and existing) | D133: =F_Inputs!D133 -> nr | E133: =F_Inputs!E133 -> Price Review 2024 | F133: =F_Inputs!F133 -> 0 | G133: =F_Inputs!G133 -> 0 | H133: =F_Inputs!H133 -> 0 | I133: =F_Inputs!I133 -> 0 | J133: =F_Inputs!J133 -> 0 | K133: =F_Inputs!K133 -> 0 | L133: =F_Inputs!L133 -> 0 | M133: =F_Inputs!M133 ->  | O133: CWW20_ | P133: 0 | Q133: 0 | R133: 0 | S133: 0 | T133: 0 | U133: 0 | V133: 0
A134: =F_Inputs!A134 -> WSX | B134: =F_Inputs!B134 -> CWW20A_070_PR24 | C134: =F_Inputs!C134 -> Other data - Number of marine conservation zones (new and existing) | D134: =F_Inputs!D134 -> nr | E134: =F_Inputs!E134 -> Price Review 2024 | F134: =F_Inputs!F134 ->  | G134: =F_Inputs!G134 ->  | H134: =F_Inputs!H134 ->  | I134: =F_Inputs!I134 ->  | J134: =F_Inputs!J134 ->  | K134: =F_Inputs!K134 ->  | L134: =F_Inputs!L134 ->  | M134: =F_Inputs!M134 ->  | O134: CWW20A | R134: 0 | S134: 0 | T134: 0 | U134: 0 | V134: 0
A135: =F_Inputs!A135 -> WSX | B135: =F_Inputs!B135 -> PR24_E_WW123_TOTAL | C135: =F_Inputs!C135 -> PR24 BP EA/NRW environmental programme wastewater (WINEP/NEP) - Restoration management (marine conservation zones etc) (WINEP/NEP) wastewater totex - Total inc. accelerated & transition costs | D135: =F_Inputs!D135 -> £m | E135: =F_Inputs!E135 -> Price Review 2024 | F135: =F_Inputs!F135 ->  | G135: =F_Inputs!G135 ->  | H135: =F_Inputs!H135 ->  | I135: =F_Inputs!I135 ->  | J135: =F_Inputs!J135 ->  | K135: =F_Inputs!K135 ->  | L135: =F_Inputs!L135 ->  | M135: =F_Inputs!M135 -> 7.868074 | O135: =LEFT(B135,6) -> PR24_E | P135: 0 | Q135: 0 | R135: 0 | S135: 0 | T135: 0 | U135: 0 | V135: 0
A136: =F_Inputs!A136 -> WSX | B136: =F_Inputs!B136 -> PR24_NETTOTEX_WASTE | C136: =F_Inputs!C136 -> PR24 BP Net totex - Total inc. accelerated & transition costs | D136: =F_Inputs!D136 -> £m | E136: =F_Inputs!E136 -> Price Review 2024 | F136: =F_Inputs!F136 ->  | G136: =F_Inputs!G136 ->  | H136: =F_Inputs!H136 ->  | I136: =F_Inputs!I136 ->  | J136: =F_Inputs!J136 ->  | K136: =F_Inputs!K136 ->  | L136: =F_Inputs!L136 ->  | M136: =F_Inputs!M136 -> 3717.880959 | O136: PR24_N | P136: =IF(OR($O136="CWW12_",$O136= "CWW17_",$O136= "CWW20A"),F136,0) -> 0 | Q136: =IF(OR($O136="CWW12_",$O136= "CWW17_",$O136= "CWW20A"),G136,0) -> 0 | R136: =IF(OR($O136="CWW3_0",$O136="CWW3_1", $O136= "CWW20_",$O136="CWW1A_"),H136,0) -> 0 | S136: =IF(OR($O136="CWW3_0",$O136="CWW3_1", $O136= "CWW20_",$O136="CWW1A_"),I136,0) -> 0 | T136: =IF(OR($O136="CWW3_0",$O136="CWW3_1", $O136= "CWW20_",$O136="CWW1A_"),J136,0) -> 0 | U136: =IF(OR($O136="CWW3_0",$O136="CWW3_1", $O136= "CWW20_",$O136="CWW1A_"),K136,0) -> 0 | V136: =IF(OR($O136="CWW3_0",$O136="CWW3_1", $O136= "CWW20_",$O136="CWW1A_"),L136,0) -> 0
A137: =F_Inputs!A137 -> YKY | B137: =F_Inputs!B137 -> CWW3_121TOT_PR24 | C137: =F_Inputs!C137 -> EA/NRW environmental programme wastewater (WINEP/NEP) - Restoration management (marine conservation zones etc) (WINEP/NEP) wastewater capex - Total | D137: =F_Inputs!D137 -> £m | E137: =F_Inputs!E137 -> Price Review 2024 | F137: =F_Inputs!F137 -> 0 | G137: =F_Inputs!G137 -> 0 | H137: =F_Inputs!H137 -> 0 | I137: =F_Inputs!I137 -> 0 | J137: =F_Inputs!J137 -> 0 | K137: =F_Inputs!K137 -> 0 | L137: =F_Inputs!L137 -> 0 | M137: =F_Inputs!M137 ->  | O137: CWW3_1 | P137: 0 | Q137: 0 | R137: 0 | S137: 0 | T137: 0 | U137: 0 | V137: 0
A138: =F_Inputs!A138 -> YKY | B138: =F_Inputs!B138 -> CWW3_122TOT_PR24 | C138: =F_Inputs!C138 -> EA/NRW environmental programme wastewater (WINEP/NEP) - Restoration management (marine conservation zones etc) (WINEP/NEP) wastewater opex - Total | D138: =F_Inputs!D138 -> £m | E138: =F_Inputs!E138 -> Price Review 2024 | F138: =F_Inputs!F138 -> 0 | G138: =F_Inputs!G138 -> 0 | H138: =F_Inputs!H138 -> 0 | I138: =F_Inputs!I138 -> 0 | J138: =F_Inputs!J138 -> 0 | K138: =F_Inputs!K138 -> 0 | L138: =F_Inputs!L138 -> 0 | M138: =F_Inputs!M138 ->  | O138: CWW3_1 | P138: 0 | Q138: 0 | R138: 0 | S138: 0 | T138: 0 | U138: 0 | V138: 0
A139: =F_Inputs!A139 -> YKY | B139: =F_Inputs!B139 -> CWW3_123TOT_PR24 | C139: =F_Inputs!C139 -> EA/NRW environmental programme wastewater (WINEP/NEP) - Restoration management (marine conservation zones etc) (WINEP/NEP) wastewater totex - Total | D139: =F_Inputs!D139 -> £m | E139: =F_Inputs!E139 -> Price Review 2024 | F139: =F_Inputs!F139 -> 0 | G139: =F_Inputs!G139 -> 0 | H139: =F_Inputs!H139 -> 0 | I139: =F_Inputs!I139 -> 0 | J139: =F_Inputs!J139 -> 0 | K139: =F_Inputs!K139 -> 0 | L139: =F_Inputs!L139 -> 0 | M139: =F_Inputs!M139 ->  | O139: CWW3_1 | P139: 0 | Q139: 0 | R139: 0 | S139: 0 | T139: 0 | U139: 0 | V139: 0
A140: =F_Inputs!A140 -> YKY | B140: =F_Inputs!B140 -> CWW12_121TOT_PR24 | C140: =F_Inputs!C140 -> EA/NRW environmental programme wastewater (WINEP/NEP) - Restoration management (marine conservation zones etc) (WINEP/NEP) wastewater capex - Total | D140: =F_Inputs!D140 -> £m | E140: =F_Inputs!E140 -> Price Review 2024 | F140: =F_Inputs!F140 -> 0 | G140: =F_Inputs!G140 -> 0 | H140: =F_Inputs!H140 ->  | I140: =F_Inputs!I140 ->  | J140: =F_Inputs!J140 ->  | K140: =F_Inputs!K140 ->  | L140: =F_Inputs!L140 ->  | M140: =F_Inputs!M140 ->  | O140: CWW12_ | P140: 0 | Q140: 0 | R140: 0 | S140: 0 | T140: 0 | U140: 0 | V140: 0
A141: =F_Inputs!A141 -> YKY | B141: =F_Inputs!B141 -> CWW12_122TOT_PR24 | C141: =F_Inputs!C141 -> EA/NRW environmental programme wastewater (WINEP/NEP) - Restoration management (marine conservation zones etc) (WINEP/NEP) wastewater opex - Total | D141: =F_Inputs!D141 -> £m | E141: =F_Inputs!E141 -> Price Review 2024 | F141: =F_Inputs!F141 -> 0 | G141: =F_Inputs!G141 -> 0 | H141: =F_Inputs!H141 ->  | I141: =F_Inputs!I141 ->  | J141: =F_Inputs!J141 ->  | K141: =F_Inputs!K141 ->  | L141: =F_Inputs!L141 ->  | M141: =F_Inputs!M141 ->  | O141: CWW12_ | P141: 0 | Q141: 0 | R141: 0 | S141: 0 | T141: 0 | U141: 0 | V141: 0
A142: =F_Inputs!A142 -> YKY | B142: =F_Inputs!B142 -> CWW12_123TOT_PR24 | C142: =F_Inputs!C142 -> EA/NRW environmental programme wastewater (WINEP/NEP) - Restoration management (marine conservation zones etc) (WINEP/NEP) wastewater totex - Total | D142: =F_Inputs!D142 -> £m | E142: =F_Inputs!E142 -> Price Review 2024 | F142: =F_Inputs!F142 -> 0 | G142: =F_Inputs!G142 -> 0 | H142: =F_Inputs!H142 ->  | I142: =F_Inputs!I142 ->  | J142: =F_Inputs!J142 ->  | K142: =F_Inputs!K142 ->  | L142: =F_Inputs!L142 ->  | M142: =F_Inputs!M142 ->  | O142: CWW12_ | P142: 0 | Q142: 0 | R142: 0 | S142: 0 | T142: 0 | U142: 0 | V142: 0
A143: =F_Inputs!A143 -> YKY | B143: =F_Inputs!B143 -> CWW17_121TOT_PR24 | C143: =F_Inputs!C143 -> EA/NRW environmental programme wastewater (WINEP/NEP) - Restoration management (marine conservation zones etc) (WINEP/NEP) wastewater capex - Total | D143: =F_Inputs!D143 -> £m | E143: =F_Inputs!E143 -> Price Review 2024 | F143: =F_Inputs!F143 -> 0 | G143: =F_Inputs!G143 -> 0 | H143: =F_Inputs!H143 -> 0 | I143: =F_Inputs!I143 -> 0 | J143: =F_Inputs!J143 -> 0 | K143: =F_Inputs!K143 -> 0 | L143: =F_Inputs!L143 -> 0 | M143: =F_Inputs!M143 ->  | O143: CWW17_ | P143: 0 | Q143: 0 | R143: 0 | S143: 0 | T143: 0 | U143: 0 | V143: 0
A144: =F_Inputs!A144 -> YKY | B144: =F_Inputs!B144 -> CWW17_122TOT_PR24 | C144: =F_Inputs!C144 -> EA/NRW environmental programme wastewater (WINEP/NEP) - Restoration management (marine conservation zones etc) (WINEP/NEP) wastewater opex - Total | D144: =F_Inputs!D144 -> £m | E144: =F_Inputs!E144 -> Price Review 2024 | F144: =F_Inputs!F144 -> 0 | G144: =F_Inputs!G144 -> 0 | H144: =F_Inputs!H144 -> 0 | I144: =F_Inputs!I144 -> 0 | J144: =F_Inputs!J144 -> 0 | K144: =F_Inputs!K144 -> 0 | L144: =F_Inputs!L144 -> 0 | M144: =F_Inputs!M144 ->  | O144: CWW17_ | P144: 0 | Q144: 0 | R144: 0 | S144: 0 | T144: 0 | U144: 0 | V144: 0
A145: =F_Inputs!A145 -> YKY | B145: =F_Inputs!B145 -> CWW17_123TOT_PR24 | C145: =F_Inputs!C145 -> EA/NRW environmental programme wastewater (WINEP/NEP) - Restoration management (marine conservation zones etc) (WINEP/NEP) wastewater totex - Total | D145: =F_Inputs!D145 -> £m | E145: =F_Inputs!E145 -> Price Review 2024 | F145: =F_Inputs!F145 -> 0 | G145: =F_Inputs!G145 -> 0 | H145: =F_Inputs!H145 -> 0 | I145: =F_Inputs!I145 -> 0 | J145: =F_Inputs!J145 -> 0 | K145: =F_Inputs!K145 -> 0 | L145: =F_Inputs!L145 -> 0 | M145: =F_Inputs!M145 ->  | O145: CWW17_ | P145: 0 | Q145: 0 | R145: 0 | S145: 0 | T145: 0 | U145: 0 | V145: 0
A146: =F_Inputs!A146 -> YKY | B146: =F_Inputs!B146 -> CWW20_070_PR24 | C146: =F_Inputs!C146 -> Other data - Number of marine conservation zones (new and existing) | D146: =F_Inputs!D146 -> nr | E146: =F_Inputs!E146 -> Price Review 2024 | F146: =F_Inputs!F146 -> 0 | G146: =F_Inputs!G146 -> 0 | H146: =F_Inputs!H146 -> 0 | I146: =F_Inputs!I146 -> 0 | J146: =F_Inputs!J146 -> 0 | K146: =F_Inputs!K146 -> 0 | L146: =F_Inputs!L146 -> 0 | M146: =F_Inputs!M146 ->  | O146: CWW20_ | P146: 0 | Q146: 0 | R146: 0 | S146: 0 | T146: 0 | U146: 0 | V146: 0
A147: =F_Inputs!A147 -> YKY | B147: =F_Inputs!B147 -> CWW20A_070_PR24 | C147: =F_Inputs!C147 -> Other data - Number of marine conservation zones (new and existing) | D147: =F_Inputs!D147 -> nr | E147: =F_Inputs!E147 -> Price Review 2024 | F147: =F_Inputs!F147 ->  | G147: =F_Inputs!G147 ->  | H147: =F_Inputs!H147 ->  | I147: =F_Inputs!I147 ->  | J147: =F_Inputs!J147 ->  | K147: =F_Inputs!K147 ->  | L147: =F_Inputs!L147 ->  | M147: =F_Inputs!M147 ->  | O147: CWW20A | R147: 0 | S147: 0 | T147: 0 | U147: 0 | V147: 0
A148: =F_Inputs!A148 -> YKY | B148: =F_Inputs!B148 -> PR24_E_WW123_TOTAL | C148: =F_Inputs!C148 -> PR24 BP EA/NRW environmental programme wastewater (WINEP/NEP) - Restoration management (marine conservation zones etc) (WINEP/NEP) wastewater totex - Total inc. accelerated & transition costs | D148: =F_Inputs!D148 -> £m | E148: =F_Inputs!E148 -> Price Review 2024 | F148: =F_Inputs!F148 ->  | G148: =F_Inputs!G148 ->  | H148: =F_Inputs!H148 ->  | I148: =F_Inputs!I148 ->  | J148: =F_Inputs!J148 ->  | K148: =F_Inputs!K148 ->  | L148: =F_Inputs!L148 ->  | M148: =F_Inputs!M148 -> 0 | O148: PR24_E | P148: 0 | Q148: 0 | R148: 0 | S148: 0 | T148: 0 | U148: 0 | V148: 0
A149: =F_Inputs!A149 -> YKY | B149: =F_Inputs!B149 -> PR24_NETTOTEX_WASTE | C149: =F_Inputs!C149 -> PR24 BP Net totex - Total inc. accelerated & transition costs | D149: =F_Inputs!D149 -> £m | E149: =F_Inputs!E149 -> Price Review 2024 | F149: =F_Inputs!F149 ->  | G149: =F_Inputs!G149 ->  | H149: =F_Inputs!H149 ->  | I149: =F_Inputs!I149 ->  | J149: =F_Inputs!J149 ->  | K149: =F_Inputs!K149 ->  | L149: =F_Inputs!L149 ->  | M149: =F_Inputs!M149 -> 4605.568446 | O149: PR24_N | P149: 0 | Q149: 0 | R149: 0 | S149: 0 | T149: 0 | U149: 0 | V149: 0

Sheet Consolidated Input
A1: =RIGHT(CELL("filename", $A$1), LEN(CELL("filename", $A$1)) - SEARCH("]", CELL("filename", $A$1))) -> Consolidated Input
A4: Acronym | B4: BON code | C4: Item Description | D4: Unit | E4: 2023-24 | F4: 2024-25 | G4: 2025-26 | H4: 2026-27 | I4: 2027-28 | J4: 2028-29 | K4: 2029-30 | L4: Total
A5: ='F_Inputs Merged'!A7 -> ANH | B5: ='F_Inputs Merged'!B7 -> CWW3_121TOT_PR24 | C5: ='F_Inputs Merged'!C7 -> EA/NRW environmental programme wastewater (WINEP/NEP) - Restoration management (marine conservation zones etc) (WINEP/NEP) wastewater capex - Total | D5: ='F_Inputs Merged'!D7 -> £m | E5: ='F_Inputs Merged'!P7 -> 0 | F5: ='F_Inputs Merged'!Q7 -> 0 | G5: ='F_Inputs Merged'!R7 -> 0 | H5: ='F_Inputs Merged'!S7 -> 0 | I5: ='F_Inputs Merged'!T7 -> 0 | J5: ='F_Inputs Merged'!U7 -> 0 | K5: ='F_Inputs Merged'!V7 -> 0 | L5: =SUM(Table1[[#This Row],[2023-24]:[2029-30]]) -> 0
A6: ='F_Inputs Merged'!A8 -> ANH | B6: ='F_Inputs Merged'!B8 -> CWW3_122TOT_PR24 | C6: ='F_Inputs Merged'!C8 -> EA/NRW environmental programme wastewater (WINEP/NEP) - Restoration management (marine conservation zones etc) (WINEP/NEP) wastewater opex - Total | D6: ='F_Inputs Merged'!D8 -> £m | E6: ='F_Inputs Merged'!P8 -> 0 | F6: ='F_Inputs Merged'!Q8 -> 0 | G6: ='F_Inputs Merged'!R8 -> 0 | H6: ='F_Inputs Merged'!S8 -> 0 | I6: ='F_Inputs Merged'!T8 -> 0 | J6: ='F_Inputs Merged'!U8 -> 0 | K6: ='F_Inputs Merged'!V8 -> 0 | L6: =SUM(Table1[[#This Row],[2023-24]:[2029-30]]) -> 0
A7: ='F_Inputs Merged'!A9 -> ANH | B7: ='F_Inputs Merged'!B9 -> CWW3_123TOT_PR24 | C7: ='F_Inputs Merged'!C9 -> EA/NRW environmental programme wastewater (WINEP/NEP) - Restoration management (marine conservation zones etc) (WINEP/NEP) wastewater totex - Total | D7: ='F_Inputs Merged'!D9 -> £m | E7: ='F_Inputs Merged'!P9 -> 0 | F7: ='F_Inputs Merged'!Q9 -> 0 | G7: ='F_Inputs Merged'!R9 -> 0 | H7: ='F_Inputs Merged'!S9 -> 0 | I7: ='F_Inputs Merged'!T9 -> 0 | J7: ='F_Inputs Merged'!U9 -> 0 | K7: ='F_Inputs Merged'!V9 -> 0 | L7: =SUM(Table1[[#This Row],[2023-24]:[2029-30]]) -> 0
A8: ='F_Inputs Merged'!A10 -> ANH | B8: ='F_Inputs Merged'!B10 -> CWW12_121TOT_PR24 | C8: ='F_Inputs Merged'!C10 -> EA/NRW environmental programme wastewater (WINEP/NEP) - Restoration management (marine conservation zones etc) (WINEP/NEP) wastewater capex - Total | D8: ='F_Inputs Merged'!D10 -> £m | E8: ='F_Inputs Merged'!P10 -> 0 | F8: ='F_Inputs Merged'!Q10 -> 0 | G8: ='F_Inputs Merged'!R10 -> 0 | H8: ='F_Inputs Merged'!S10 -> 0 | I8: ='F_Inputs Merged'!T10 -> 0 | J8: ='F_Inputs Merged'!U10 -> 0 | K8: ='F_Inputs Merged'!V10 -> 0 | L8: =SUM(Table1[[#This Row],[2023-24]:[2029-30]]) -> 0
A9: ='F_Inputs Merged'!A11 -> ANH | B9: ='F_Inputs Merged'!B11 -> CWW12_122TOT_PR24 | C9: ='F_Inputs Merged'!C11 -> EA/NRW environmental programme wastewater (WINEP/NEP) - Restoration management (marine conservation zones etc) (WINEP/NEP) wastewater opex - Total | D9: ='F_Inputs Merged'!D11 -> £m | E9: ='F_Inputs Merged'!P11 -> 0 | F9: ='F_Inputs Merged'!Q11 -> 0 | G9: ='F_Inputs Merged'!R11 -> 0 | H9: ='F_Inputs Merged'!S11 -> 0 | I9: ='F_Inputs Merged'!T11 -> 0 | J9: ='F_Inputs Merged'!U11 -> 0 | K9: ='F_Inputs Merged'!V11 -> 0 | L9: =SUM(Table1[[#This Row],[2023-24]:[2029-30]]) -> 0
A10: ='F_Inputs Merged'!A12 -> ANH | B10: ='F_Inputs Merged'!B12 -> CWW12_123TOT_PR24 | C10: ='F_Inputs Merged'!C12 -> EA/NRW environmental programme wastewater (WINEP/NEP) - Restoration management (marine conservation zones etc) (WINEP/NEP) wastewater totex - Total | D10: ='F_Inputs Merged'!D12 -> £m | E10: ='F_Inputs Merged'!P12 -> 0 | F10: ='F_Inputs Merged'!Q12 -> 0 | G10: ='F_Inputs Merged'!R12 -> 0 | H10: ='F_Inputs Merged'!S12 -> 0 | I10: ='F_Inputs Merged'!T12 -> 0 | J10: ='F_Inputs Merged'!U12 -> 0 | K10: ='F_Inputs Merged'!V12 -> 0 | L10: =SUM(Table1[[#This Row],[2023-24]:[2029-30]]) -> 0
A11: ='F_Inputs Merged'!A13 -> ANH | B11: ='F_Inputs Merged'!B13 -> CWW17_121TOT_PR24 | C11: ='F_Inputs Merged'!C13 -> EA/NRW environmental programme wastewater (WINEP/NEP) - Restoration management (marine conservation zones etc) (WINEP/NEP) wastewater capex - Total | D11: ='F_Inputs Merged'!D13 -> £m | E11: ='F_Inputs Merged'!P13 -> 0 | F11: ='F_Inputs Merged'!Q13 -> 0 | G11: ='F_Inputs Merged'!R13 -> 0 | H11: ='F_Inputs Merged'!S13 -> 0 | I11: ='F_Inputs Merged'!T13 -> 0 | J11: ='F_Inputs Merged'!U13 -> 0 | K11: ='F_Inputs Merged'!V13 -> 0 | L11: =SUM(Table1[[#This Row],[2023-24]:[2029-30]]) -> 0
A12: ='F_Inputs Merged'!A14 -> ANH | B12: ='F_Inputs Merged'!B14 -> CWW17_122TOT_PR24 | C12: ='F_Inputs Merged'!C14 -> EA/NRW environmental programme wastewater (WINEP/NEP) - Restoration management (marine conservation zones etc) (WINEP/NEP) wastewater opex - Total | D12: ='F_Inputs Merged'!D14 -> £m | E12: ='F_Inputs Merged'!P14 -> 0 | F12: ='F_Inputs Merged'!Q14 -> 0 | G12: ='F_Inputs Merged'!R14 -> 0 | H12: ='F_Inputs Merged'!S14 -> 0 | I12: ='F_Inputs Merged'!T14 -> 0 | J12: ='F_Inputs Merged'!U14 -> 0 | K12: ='F_Inputs Merged'!V14 -> 0 | L12: =SUM(Table1[[#This Row],[2023-24]:[2029-30]]) -> 0
A13: ='F_Inputs Merged'!A15 -> ANH | B13: ='F_Inputs Merged'!B15 -> CWW17_123TOT_PR24 | C13: ='F_Inputs Merged'!C15 -> EA/NRW environmental programme wastewater (WINEP/NEP) - Restoration management (marine conservation zones etc) (WINEP/NEP) wastewater totex - Total | D13: ='F_Inputs Merged'!D15 -> £m | E13: ='F_Inputs Merged'!P15 -> 0 | F13: ='F_Inputs Merged'!Q15 -> 0 | G13: ='F_Inputs Merged'!R15 -> 0 | H13: ='F_Inputs Merged'!S15 -> 0 | I13: ='F_Inputs Merged'!T15 -> 0 | J13: ='F_Inputs Merged'!U15 -> 0 | K13: ='F_Inputs Merged'!V15 -> 0 | L13: =SUM(Table1[[#This Row],[2023-24]:[2029-30]]) -> 0
A14: ='F_Inputs Merged'!A16 -> ANH | B14: ='F_Inputs Merged'!B16 -> CWW20_070_PR24 | C14: ='F_Inputs Merged'!C16 -> Other data - Number of marine conservation zones (new and existing) | D14: ='F_Inputs Merged'!D16 -> nr | E14: ='F_Inputs Merged'!P16 -> 0 | F14: ='F_Inputs Merged'!Q16 -> 0 | G14: ='F_Inputs Merged'!R16 -> 0 | H14: ='F_Inputs Merged'!S16 -> 0 | I14: ='F_Inputs Merged'!T16 -> 0 | J14: ='F_Inputs Merged'!U16 -> 0 | K14: ='F_Inputs Merged'!V16 -> 1 | L14: =SUM(Table1[[#This Row],[2023-24]:[2029-30]]) -> 1
A15: ='F_Inputs Merged'!A17 -> ANH | B15: ='F_Inputs Merged'!B17 -> CWW20A_070_PR24 | C15: ='F_Inputs Merged'!C17 -> Other data - Number of marine conservation zones (new and existing) | D15: ='F_Inputs Merged'!D17 -> nr | E15: ='F_Inputs Merged'!P17 ->  | F15: ='F_Inputs Merged'!Q17 ->  | G15: ='F_Inputs Merged'!R17 -> 0 | H15: ='F_Inputs Merged'!S17 -> 0 | I15: ='F_Inputs Merged'!T17 -> 0 | J15: ='F_Inputs Merged'!U17 -> 0 | K15: ='F_Inputs Merged'!V17 -> 0 | L15: =SUM(Table1[[#This Row],[2023-24]:[2029-30]]) -> 0
A16: ='F_Inputs Merged'!A18 -> ANH | B16: ='F_Inputs Merged'!B18 -> PR24_E_WW123_TOTAL | C16: ='F_Inputs Merged'!C18 -> PR24 BP EA/NRW environmental programme wastewater (WINEP/NEP) - Restoration management (marine conservation zones etc) (WINEP/NEP) wastewater totex - Total inc. accelerated & transition costs | D16: ='F_Inputs Merged'!D18 -> £m | E16: ='F_Inputs Merged'!P18 -> 0 | F16: ='F_Inputs Merged'!Q18 -> 0 | G16: ='F_Inputs Merged'!R18 -> 0 | H16: ='F_Inputs Merged'!S18 -> 0 | I16: ='F_Inputs Merged'!T18 -> 0 | J16: ='F_Inputs Merged'!U18 -> 0 | K16: ='F_Inputs Merged'!V18 -> 0 | L16: =SUM(Table1[[#This Row],[2023-24]:[2029-30]]) -> 0
A17: ='F_Inputs Merged'!A19 -> ANH | B17: ='F_Inputs Merged'!B19 -> PR24_NETTOTEX_WASTE | C17: ='F_Inputs Merged'!C19 -> PR24 BP Net totex - Total inc. accelerated & transition costs | D17: ='F_Inputs Merged'!D19 -> £m | E17: ='F_Inputs Merged'!P19 -> 0 | F17: ='F_Inputs Merged'!Q19 -> 0 | G17: ='F_Inputs Merged'!R19 -> 0 | H17: ='F_Inputs Merged'!S19 -> 0 | I17: ='F_Inputs Merged'!T19 -> 0 | J17: ='F_Inputs Merged'!U19 -> 0 | K17: ='F_Inputs Merged'!V19 -> 0 | L17: =SUM(Table1[[#This Row],[2023-24]:[2029-30]]) -> 0
A18: ='F_Inputs Merged'!A20 -> WSH | B18: ='F_Inputs Merged'!B20 -> CWW3_121TOT_PR24 | C18: ='F_Inputs Merged'!C20 -> EA/NRW environmental programme wastewater (WINEP/NEP) - Restoration management (marine conservation zones etc) (WINEP/NEP) wastewater capex - Total | D18: ='F_Inputs Merged'!D20 -> £m | E18: ='F_Inputs Merged'!P20 -> 0 | F18: ='F_Inputs Merged'!Q20 -> 0 | G18: ='F_Inputs Merged'!R20 -> 0 | H18: ='F_Inputs Merged'!S20 -> 0 | I18: ='F_Inputs Merged'!T20 -> 0 | J18: ='F_Inputs Merged'!U20 -> 0 | K18: ='F_Inputs Merged'!V20 -> 0 | L18: =SUM(Table1[[#This Row],[2023-24]:[2029-30]]) -> 0
A19: ='F_Inputs Merged'!A21 -> WSH | B19: ='F_Inputs Merged'!B21 -> CWW3_122TOT_PR24 | C19: ='F_Inputs Merged'!C21 -> EA/NRW environmental programme wastewater (WINEP/NEP) - Restoration management (marine conservation zones etc) (WINEP/NEP) wastewater opex - Total | D19: ='F_Inputs Merged'!D21 -> £m | E19: ='F_Inputs Merged'!P21 -> 0 | F19: ='F_Inputs Merged'!Q21 -> 0 | G19: ='F_Inputs Merged'!R21 -> 0 | H19: ='F_Inputs Merged'!S21 -> 0 | I19: ='F_Inputs Merged'!T21 -> 0 | J19: ='F_Inputs Merged'!U21 -> 0 | K19: ='F_Inputs Merged'!V21 -> 0 | L19: =SUM(Table1[[#This Row],[2023-24]:[2029-30]]) -> 0
A20: ='F_Inputs Merged'!A22 -> WSH | B20: ='F_Inputs Merged'!B22 -> CWW3_123TOT_PR24 | C20: ='F_Inputs Merged'!C22 -> EA/NRW environmental programme wastewater (WINEP/NEP) - Restoration management (marine conservation zones etc) (WINEP/NEP) wastewater totex - Total | D20: ='F_Inputs Merged'!D22 -> £m | E20: ='F_Inputs Merged'!P22 -> 0 | F20: ='F_Inputs Merged'!Q22 -> 0 | G20: ='F_Inputs Merged'!R22 -> 0 | H20: ='F_Inputs Merged'!S22 -> 0 | I20: ='F_Inputs Merged'!T22 -> 0 | J20: ='F_Inputs Merged'!U22 -> 0 | K20: ='F_Inputs Merged'!V22 -> 0 | L20: =SUM(Table1[[#This Row],[2023-24]:[2029-30]]) -> 0
A21: ='F_Inputs Merged'!A23 -> WSH | B21: ='F_Inputs Merged'!B23 -> CWW12_121TOT_PR24 | C21: ='F_Inputs Merged'!C23 -> EA/NRW environmental programme wastewater (WINEP/NEP) - Restoration management (marine conservation zones etc) (WINEP/NEP) wastewater capex - Total | D21: ='F_Inputs Merged'!D23 -> £m | E21: ='F_Inputs Merged'!P23 -> 0 | F21: ='F_Inputs Merged'!Q23 -> 0 | G21: ='F_Inputs Merged'!R23 -> 0 | H21: ='F_Inputs Merged'!S23 -> 0 | I21: ='F_Inputs Merged'!T23 -> 0 | J21: ='F_Inputs Merged'!U23 -> 0 | K21: ='F_Inputs Merged'!V23 -> 0 | L21: =SUM(Table1[[#This Row],[2023-24]:[2029-30]]) -> 0
A22: ='F_Inputs Merged'!A24 -> WSH | B22: ='F_Inputs Merged'!B24 -> CWW12_122TOT_PR24 | C22: ='F_Inputs Merged'!C24 -> EA/NRW environmental programme wastewater (WINEP/NEP) - Restoration management (marine conservation zones etc) (WINEP/NEP) wastewater opex - Total | D22: ='F_Inputs Merged'!D24 -> £m | E22: ='F_Inputs Merged'!P24 -> 0 | F22: ='F_Inputs Merged'!Q24 -> 0 | G22: ='F_Inputs Merged'!R24 -> 0 | H22: ='F_Inputs Merged'!S24 -> 0 | I22: ='F_Inputs Merged'!T24 -> 0 | J22: ='F_Inputs Merged'!U24 -> 0 | K22: ='F_Inputs Merged'!V24 -> 0 | L22: =SUM(Table1[[#This Row],[2023-24]:[2029-30]]) -> 0
A23: ='F_Inputs Merged'!A25 -> WSH | B23: ='F_Inputs Merged'!B25 -> CWW12_123TOT_PR24 | C23: ='F_Inputs Merged'!C25 -> EA/NRW environmental programme wastewater (WINEP/NEP) - Restoration management (marine conservation zones etc) (WINEP/NEP) wastewater totex - Total | D23: ='F_Inputs Merged'!D25 -> £m | E23: ='F_Inputs Merged'!P25 -> 0 | F23: ='F_Inputs Merged'!Q25 -> 0 | G23: ='F_Inputs Merged'!R25 -> 0 | H23: ='F_Inputs Merged'!S25 -> 0 | I23: ='F_Inputs Merged'!T25 -> 0 | J23: ='F_Inputs Merged'!U25 -> 0 | K23: ='F_Inputs Merged'!V25 -> 0 | L23: =SUM(Table1[[#This Row],[2023-24]:[2029-30]]) -> 0
A24: ='F_Inputs Merged'!A26 -> WSH | B24: ='F_Inputs Merged'!B26 -> CWW17_121TOT_PR24 | C24: ='F_Inputs Merged'!C26 -> EA/NRW environmental programme wastewater (WINEP/NEP) - Restoration management (marine conservation zones etc) (WINEP/NEP) wastewater capex - Total | D24: ='F_Inputs Merged'!D26 -> £m | E24: ='F_Inputs Merged'!P26 -> 0 | F24: ='F_Inputs Merged'!Q26 -> 0 | G24: ='F_Inputs Merged'!R26 -> 0 | H24: ='F_Inputs Merged'!S26 -> 0 | I24: ='F_Inputs Merged'!T26 -> 0 | J24: ='F_Inputs Merged'!U26 -> 0 | K24: ='F_Inputs Merged'!V26 -> 0 | L24: =SUM(Table1[[#This Row],[2023-24]:[2029-30]]) -> 0
A25: ='F_Inputs Merged'!A27 -> WSH | B25: ='F_Inputs Merged'!B27 -> CWW17_122TOT_PR24 | C25: ='F_Inputs Merged'!C27 -> EA/NRW environmental programme wastewater (WINEP/NEP) - Restoration management (marine conservation zones etc) (WINEP/NEP) wastewater opex - Total | D25: ='F_Inputs Merged'!D27 -> £m | E25: ='F_Inputs Merged'!P27 -> 0 | F25: ='F_Inputs Merged'!Q27 -> 0 | G25: ='F_Inputs Merged'!R27 -> 0 | H25: ='F_Inputs Merged'!S27 -> 0 | I25: ='F_Inputs Merged'!T27 -> 0 | J25: ='F_Inputs Merged'!U27 -> 0 | K25: ='F_Inputs Merged'!V27 -> 0 | L25: =SUM(Table1[[#This Row],[2023-24]:[2029-30]]) -> 0
A26: ='F_Inputs Merged'!A28 -> WSH | B26: ='F_Inputs Merged'!B28 -> CWW17_123TOT_PR24 | C26: ='F_Inputs Merged'!C28 -> EA/NRW environmental programme wastewater (WINEP/NEP) - Restoration management (marine conservation zones etc) (WINEP/NEP) wastewater totex - Total | D26: ='F_Inputs Merged'!D28 -> £m | E26: ='F_Inputs Merged'!P28 -> 0 | F26: ='F_Inputs Merged'!Q28 -> 0 | G26: ='F_Inputs Merged'!R28 -> 0 | H26: ='F_Inputs Merged'!S28 -> 0 | I26: ='F_Inputs Merged'!T28 -> 0 | J26: ='F_Inputs Merged'!U28 -> 0 | K26: ='F_Inputs Merged'!V28 -> 0 | L26: =SUM(Table1[[#This Row],[2023-24]:[2029-30]]) -> 0
A27: ='F_Inputs Merged'!A29 -> WSH | B27: ='F_Inputs Merged'!B29 -> CWW20_070_PR24 | C27: ='F_Inputs Merged'!C29 -> Other data - Number of marine conservation zones (new and existing) | D27: ='F_Inputs Merged'!D29 -> nr | E27: ='F_Inputs Merged'!P29 -> 0 | F27: ='F_Inputs Merged'!Q29 -> 0 | G27: ='F_Inputs Merged'!R29 -> 1 | H27: ='F_Inputs Merged'!S29 -> 1 | I27: ='F_Inputs Merged'!T29 -> 1 | J27: ='F_Inputs Merged'!U29 -> 1 | K27: ='F_Inputs Merged'!V29 -> 1 | L27: =SUM(Table1[[#This Row],[2023-24]:[2029-30]]) -> 5
A28: ='F_Inputs Merged'!A30 -> WSH | B28: ='F_Inputs Merged'!B30 -> CWW20A_070_PR24 | C28: ='F_Inputs Merged'!C30 -> Other data - Number of marine conservation zones (new and existing) | D28: ='F_Inputs Merged'!D30 -> nr | E28: ='F_Inputs Merged'!P30 ->  | F28: ='F_Inputs Merged'!Q30 ->  | G28: ='F_Inputs Merged'!R30 -> 0 | H28: ='F_Inputs Merged'!S30 -> 0 | I28: ='F_Inputs Merged'!T30 -> 0 | J28: ='F_Inputs Merged'!U30 -> 0 | K28: ='F_Inputs Merged'!V30 -> 0 | L28: =SUM(Table1[[#This Row],[2023-24]:[2029-30]]) -> 0
A29: ='F_Inputs Merged'!A31 -> WSH | B29: ='F_Inputs Merged'!B31 -> PR24_E_WW123_TOTAL | C29: ='F_Inputs Merged'!C31 -> PR24 BP EA/NRW environmental programme wastewater (WINEP/NEP) - Restoration management (marine conservation zones etc) (WINEP/NEP) wastewater totex - Total inc. accelerated & transition costs | D29: ='F_Inputs Merged'!D31 -> £m | E29: ='F_Inputs Merged'!P31 -> 0 | F29: ='F_Inputs Merged'!Q31 -> 0 | G29: ='F_Inputs Merged'!R31 -> 0 | H29: ='F_Inputs Merged'!S31 -> 0 | I29: ='F_Inputs Merged'!T31 -> 0 | J29: ='F_Inputs Merged'!U31 -> 0 | K29: ='F_Inputs Merged'!V31 -> 0 | L29: =SUM(Table1[[#This Row],[2023-24]:[2029-30]]) -> 0
A30: ='F_Inputs Merged'!A32 -> WSH | B30: ='F_Inputs Merged'!B32 -> PR24_NETTOTEX_WASTE | C30: ='F_Inputs Merged'!C32 -> PR24 BP Net totex - Total inc. accelerated & transition costs | D30: ='F_Inputs Merged'!D32 -> £m | E30: ='F_Inputs Merged'!P32 -> 0 | F30: ='F_Inputs Merged'!Q32 -> 0 | G30: ='F_Inputs Merged'!R32 -> 0 | H30: ='F_Inputs Merged'!S32 -> 0 | I30: ='F_Inputs Merged'!T32 -> 0 | J30: ='F_Inputs Merged'!U32 -> 0 | K30: ='F_Inputs Merged'!V32 -> 0 | L30: =SUM(Table1[[#This Row],[2023-24]:[2029-30]]) -> 0
A31: ='F_Inputs Merged'!A33 -> HDD | B31: ='F_Inputs Merged'!B33 -> CWW3_121TOT_PR24 | C31: ='F_Inputs Merged'!C33 -> EA/NRW environmental programme wastewater (WINEP/NEP) - Restoration management (marine conservation zones etc) (WINEP/NEP) wastewater capex - Total | D31: ='F_Inputs Merged'!D33 -> £m | E31: ='F_Inputs Merged'!P33 -> 0 | F31: ='F_Inputs Merged'!Q33 -> 0 | G31: ='F_Inputs Merged'!R33 -> 0 | H31: ='F_Inputs Merged'!S33 -> 0 | I31: ='F_Inputs Merged'!T33 -> 0 | J31: ='F_Inputs Merged'!U33 -> 0 | K31: ='F_Inputs Merged'!V33 -> 0 | L31: =SUM(Table1[[#This Row],[2023-24]:[2029-30]]) -> 0
A32: ='F_Inputs Merged'!A34 -> HDD | B32: ='F_Inputs Merged'!B34 -> CWW3_122TOT_PR24 | C32: ='F_Inputs Merged'!C34 -> EA/NRW environmental programme wastewater (WINEP/NEP) - Restoration management (marine conservation zones etc) (WINEP/NEP) wastewater opex - Total | D32: ='F_Inputs Merged'!D34 -> £m | E32: ='F_Inputs Merged'!P34 -> 0 | F32: ='F_Inputs Merged'!Q34 -> 0 | G32: ='F_Inputs Merged'!R34 -> 0 | H32: ='F_Inputs Merged'!S34 -> 0 | I32: ='F_Inputs Merged'!T34 -> 0 | J32: ='F_Inputs Merged'!U34 -> 0 | K32: ='F_Inputs Merged'!V34 -> 0 | L32: =SUM(Table1[[#This Row],[2023-24]:[2029-30]]) -> 0
A33: ='F_Inputs Merged'!A35 -> HDD | B33: ='F_Inputs Merged'!B35 -> CWW3_123TOT_PR24 | C33: ='F_Inputs Merged'!C35 -> EA/NRW environmental programme wastewater (WINEP/NEP) - Restoration management (marine conservation zones etc) (WINEP/NEP) wastewater totex - Total | D33: ='F_Inputs Merged'!D35 -> £m | E33: ='F_Inputs Merged'!P35 -> 0 | F33: ='F_Inputs Merged'!Q35 -> 0 | G33: ='F_Inputs Merged'!R35 -> 0 | H33: ='F_Inputs Merged'!S35 -> 0 | I33: ='F_Inputs Merged'!T35 -> 0 | J33: ='F_Inputs Merged'!U35 -> 0 | K33: ='F_Inputs Merged'!V35 -> 0 | L33: =SUM(Table1[[#This Row],[2023-24]:[2029-30]]) -> 0
A34: ='F_Inputs Merged'!A36 -> HDD | B34: ='F_Inputs Merged'!B36 -> CWW12_121TOT_PR24 | C34: ='F_Inputs Merged'!C36 -> EA/NRW environmental programme wastewater (WINEP/NEP) - Restoration management (marine conservation zones etc) (WINEP/NEP) wastewater capex - Total | D34: ='F_Inputs Merged'!D36 -> £m | E34: ='F_Inputs Merged'!P36 -> 0 | F34: ='F_Inputs Merged'!Q36 -> 0 | G34: ='F_Inputs Merged'!R36 -> 0 | H34: ='F_Inputs Merged'!S36 -> 0 | I34: ='F_Inputs Merged'!T36 -> 0 | J34: ='F_Inputs Merged'!U36 -> 0 | K34: ='F_Inputs Merged'!V36 -> 0 | L34: =SUM(Table1[[#This Row],[2023-24]:[2029-30]]) -> 0
A35: ='F_Inputs Merged'!A37 -> HDD | B35: ='F_Inputs Merged'!B37 -> CWW12_122TOT_PR24 | C35: ='F_Inputs Merged'!C37 -> EA/NRW environmental programme wastewater (WINEP/NEP) - Restoration management (marine conservation zones etc) (WINEP/NEP) wastewater opex - Total | D35: ='F_Inputs Merged'!D37 -> £m | E35: ='F_Inputs Merged'!P37 -> 0 | F35: ='F_Inputs Merged'!Q37 -> 0 | G35: ='F_Inputs Merged'!R37 -> 0 | H35: ='F_Inputs Merged'!S37 -> 0 | I35: ='F_Inputs Merged'!T37 -> 0 | J35: ='F_Inputs Merged'!U37 -> 0 | K35: ='F_Inputs Merged'!V37 -> 0 | L35: =SUM(Table1[[#This Row],[2023-24]:[2029-30]]) -> 0
A36: ='F_Inputs Merged'!A38 -> HDD | B36: ='F_Inputs Merged'!B38 -> CWW12_123TOT_PR24 | C36: ='F_Inputs Merged'!C38 -> EA/NRW environmental programme wastewater (WINEP/NEP) - Restoration management (marine conservation zones etc) (WINEP/NEP) wastewater totex - Total | D36: ='F_Inputs Merged'!D38 -> £m | E36: ='F_Inputs Merged'!P38 -> 0 | F36: ='F_Inputs Merged'!Q38 -> 0 | G36: ='F_Inputs Merged'!R38 -> 0 | H36: ='F_Inputs Merged'!S38 -> 0 | I36: ='F_Inputs Merged'!T38 -> 0 | J36: ='F_Inputs Merged'!U38 -> 0 | K36: ='F_Inputs Merged'!V38 -> 0 | L36: =SUM(Table1[[#This Row],[2023-24]:[2029-30]]) -> 0
A37: ='F_Inputs Merged'!A39 -> HDD | B37: ='F_Inputs Merged'!B39 -> CWW17_121TOT_PR24 | C37: ='F_Inputs Merged'!C39 -> EA/NRW environmental programme wastewater (WINEP/NEP) - Restoration management (marine conservation zones etc) (WINEP/NEP) wastewater capex - Total | D37: ='F_Inputs Merged'!D39 -> £m | E37: ='F_Inputs Merged'!P39 -> 0 | F37: ='F_Inputs Merged'!Q39 -> 0 | G37: ='F_Inputs Merged'!R39 -> 0 | H37: ='F_Inputs Merged'!S39 -> 0 | I37: ='F_Inputs Merged'!T39 -> 0 | J37: ='F_Inputs Merged'!U39 -> 0 | K37: ='F_Inputs Merged'!V39 -> 0 | L37: =SUM(Table1[[#This Row],[2023-24]:[2029-30]]) -> 0
A38: ='F_Inputs Merged'!A40 -> HDD | B38: ='F_Inputs Merged'!B40 -> CWW17_122TOT_PR24 | C38: ='F_Inputs Merged'!C40 -> EA/NRW environmental programme wastewater (WINEP/NEP) - Restoration management (marine conservation zones etc) (WINEP/NEP) wastewater opex - Total | D38: ='F_Inputs Merged'!D40 -> £m | E38: ='F_Inputs Merged'!P40 -> 0 | F38: ='F_Inputs Merged'!Q40 -> 0 | G38: ='F_Inputs Merged'!R40 -> 0 | H38: ='F_Inputs Merged'!S40 -> 0 | I38: ='F_Inputs Merged'!T40 -> 0 | J38: ='F_Inputs Merged'!U40 -> 0 | K38: ='F_Inputs Merged'!V40 -> 0 | L38: =SUM(Table1[[#This Row],[2023-24]:[2029-30]]) -> 0
A39: ='F_Inputs Merged'!A41 -> HDD | B39: ='F_Inputs Merged'!B41 -> CWW17_123TOT_PR24 | C39: ='F_Inputs Merged'!C41 -> EA/NRW environmental programme wastewater (WINEP/NEP) - Restoration management (marine conservation zones etc) (WINEP/NEP) wastewater totex - Total | D39: ='F_Inputs Merged'!D41 -> £m | E39: ='F_Inputs Merged'!P41 -> 0 | F39: ='F_Inputs Merged'!Q41 -> 0 | G39: ='F_Inputs Merged'!R41 -> 0 | H39: ='F_Inputs Merged'!S41 -> 0 | I39: ='F_Inputs Merged'!T41 -> 0 | J39: ='F_Inputs Merged'!U41 -> 0 | K39: ='F_Inputs Merged'!V41 -> 0 | L39: =SUM(Table1[[#This Row],[2023-24]:[2029-30]]) -> 0
A40: ='F_Inputs Merged'!A42 -> HDD | B40: ='F_Inputs Merged'!B42 -> CWW20_070_PR24 | C40: ='F_Inputs Merged'!C42 -> Other data - Number of marine conservation zones (new and existing) | D40: ='F_Inputs Merged'!D42 -> nr | E40: ='F_Inputs Merged'!P42 -> 0 | F40: ='F_Inputs Merged'!Q42 -> 0 | G40: ='F_Inputs Merged'!R42 -> 0 | H40: ='F_Inputs Merged'!S42 -> 0 | I40: ='F_Inputs Merged'!T42 -> 0 | J40: ='F_Inputs Merged'!U42 -> 0 | K40: ='F_Inputs Merged'!V42 -> 0 | L40: =SUM(Table1[[#This Row],[2023-24]:[2029-30]]) -> 0
A41: ='F_Inputs Merged'!A43 -> HDD | B41: ='F_Inputs Merged'!B43 -> CWW20A_070_PR24 | C41: ='F_Inputs Merged'!C43 -> Other data - Number of marine conservation zones (new and existing) | D41: ='F_Inputs Merged'!D43 -> nr | E41: ='F_Inputs Merged'!P43 ->  | F41: ='F_Inputs Merged'!Q43 ->  | G41: ='F_Inputs Merged'!R43 -> 0 | H41: ='F_Inputs Merged'!S43 -> 0 | I41: ='F_Inputs Merged'!T43 -> 0 | J41: ='F_Inputs Merged'!U43 -> 0 | K41: ='F_Inputs Merged'!V43 -> 0 | L41: =SUM(Table1[[#This Row],[2023-24]:[2029-30]]) -> 0
A42: ='F_Inputs Merged'!A44 -> HDD | B42: ='F_Inputs Merged'!B44 -> PR24_E_WW123_TOTAL | C42: ='F_Inputs Merged'!C44 -> PR24 BP EA/NRW environmental programme wastewater (WINEP/NEP) - Restoration management (marine conservation zones etc) (WINEP/NEP) wastewater totex - Total inc. accelerated & transition costs | D42: ='F_Inputs Merged'!D44 -> £m | E42: ='F_Inputs Merged'!P44 -> 0 | F42: ='F_Inputs Merged'!Q44 -> 0 | G42: ='F_Inputs Merged'!R44 -> 0 | H42: ='F_Inputs Merged'!S44 -> 0 | I42: ='F_Inputs Merged'!T44 -> 0 | J42: ='F_Inputs Merged'!U44 -> 0 | K42: ='F_Inputs Merged'!V44 -> 0 | L42: =SUM(Table1[[#This Row],[2023-24]:[2029-30]]) -> 0
A43: ='F_Inputs Merged'!A45 -> HDD | B43: ='F_Inputs Merged'!B45 -> PR24_NETTOTEX_WASTE | C43: ='F_Inputs Merged'!C45 -> PR24 BP Net totex - Total inc. accelerated & transition costs | D43: ='F_Inputs Merged'!D45 -> £m | E43: ='F_Inputs Merged'!P45 -> 0 | F43: ='F_Inputs Merged'!Q45 -> 0 | G43: ='F_Inputs Merged'!R45 -> 0 | H43: ='F_Inputs Merged'!S45 -> 0 | I43: ='F_Inputs Merged'!T45 -> 0 | J43: ='F_Inputs Merged'!U45 -> 0 | K43: ='F_Inputs Merged'!V45 -> 0 | L43: =SUM(Table1[[#This Row],[2023-24]:[2029-30]]) -> 0
A44: ='F_Inputs Merged'!A46 -> NES | B44: ='F_Inputs Merged'!B46 -> CWW3_121TOT_PR24 | C44: ='F_Inputs Merged'!C46 -> EA/NRW environmental programme wastewater (WINEP/NEP) - Restoration management (marine conservation zones etc) (WINEP/NEP) wastewater capex - Total | D44: ='F_Inputs Merged'!D46 -> £m | E44: ='F_Inputs Merged'!P46 -> 0 | F44: ='F_Inputs Merged'!Q46 -> 0 | G44: ='F_Inputs Merged'!R46 -> 0.813 | H44: ='F_Inputs Merged'!S46 -> 0.813 | I44: ='F_Inputs Merged'!T46 -> 0.813 | J44: ='F_Inputs Merged'!U46 -> 0.813 | K44: ='F_Inputs Merged'!V46 -> 0.813 | L44: =SUM(Table1[[#This Row],[2023-24]:[2029-30]]) -> 4.065
A45: ='F_Inputs Merged'!A47 -> NES | B45: ='F_Inputs Merged'!B47 -> CWW3_122TOT_PR24 | C45: ='F_Inputs Merged'!C47 -> EA/NRW environmental programme wastewater (WINEP/NEP) - Restoration management (marine conservation zones etc) (WINEP/NEP) wastewater opex - Total | D45: ='F_Inputs Merged'!D47 -> £m | E45: ='F_Inputs Merged'!P47 -> 0 | F45: ='F_Inputs Merged'!Q47 -> 0 | G45: ='F_Inputs Merged'!R47 -> 0.198 | H45: ='F_Inputs Merged'!S47 -> 0.198 | I45: ='F_Inputs Merged'!T47 -> 0.198 | J45: ='F_Inputs Merged'!U47 -> 0.198 | K45: ='F_Inputs Merged'!V47 -> 0.198 | L45: =SUM(Table1[[#This Row],[2023-24]:[2029-30]]) -> 0.99
A46: ='F_Inputs Merged'!A48 -> NES | B46: ='F_Inputs Merged'!B48 -> CWW3_123TOT_PR24 | C46: ='F_Inputs Merged'!C48 -> EA/NRW environmental programme wastewater (WINEP/NEP) - Restoration management (marine conservation zones etc) (WINEP/NEP) wastewater totex - Total | D46: ='F_Inputs Merged'!D48 -> £m | E46: ='F_Inputs Merged'!P48 -> 0 | F46: ='F_Inputs Merged'!Q48 -> 0 | G46: ='F_Inputs Merged'!R48 -> 1.011 | H46: ='F_Inputs Merged'!S48 -> 1.011 | I46: ='F_Inputs Merged'!T48 -> 1.011 | J46: ='F_Inputs Merged'!U48 -> 1.011 | K46: ='F_Inputs Merged'!V48 -> 1.011 | L46: =SUM(Table1[[#This Row],[2023-24]:[2029-30]]) -> 5.055
A47: ='F_Inputs Merged'!A49 -> NES | B47: ='F_Inputs Merged'!B49 -> CWW12_121TOT_PR24 | C47: ='F_Inputs Merged'!C49 -> EA/NRW environmental programme wastewater (WINEP/NEP) - Restoration management (marine conservation zones etc) (WINEP/NEP) wastewater capex - Total | D47: ='F_Inputs Merged'!D49 -> £m | E47: ='F_Inputs Merged'!P49 -> 0.961 | F47: ='F_Inputs Merged'!Q49 -> 0.961 | G47: ='F_Inputs Merged'!R49 -> 0 | H47: ='F_Inputs Merged'!S49 -> 0 | I47: ='F_Inputs Merged'!T49 -> 0 | J47: ='F_Inputs Merged'!U49 -> 0 | K47: ='F_Inputs Merged'!V49 -> 0 | L47: =SUM(Table1[[#This Row],[2023-24]:[2029-30]]) -> 1.922
A48: ='F_Inputs Merged'!A50 -> NES | B48: ='F_Inputs Merged'!B50 -> CWW12_122TOT_PR24 | C48: ='F_Inputs Merged'!C50 -> EA/NRW environmental programme wastewater (WINEP/NEP) - Restoration management (marine conservation zones etc) (WINEP/NEP) wastewater opex - Total | D48: ='F_Inputs Merged'!D50 -> £m | E48: ='F_Inputs Merged'!P50 -> 0.082 | F48: ='F_Inputs Merged'!Q50 -> 0.082 | G48: ='F_Inputs Merged'!R50 -> 0 | H48: ='F_Inputs Merged'!S50 -> 0 | I48: ='F_Inputs Merged'!T50 -> 0 | J48: ='F_Inputs Merged'!U50 -> 0 | K48: ='F_Inputs Merged'!V50 -> 0 | L48: =SUM(Table1[[#This Row],[2023-24]:[2029-30]]) -> 0.164
A49: ='F_Inputs Merged'!A51 -> NES | B49: ='F_Inputs Merged'!B51 -> CWW12_123TOT_PR24 | C49: ='F_Inputs Merged'!C51 -> EA/NRW environmental programme wastewater (WINEP/NEP) - Restoration management (marine conservation zones etc) (WINEP/NEP) wastewater totex - Total | D49: ='F_Inputs Merged'!D51 -> £m | E49: ='F_Inputs Merged'!P51 -> 1.043 | F49: ='F_Inputs Merged'!Q51 -> 1.043 | G49: ='F_Inputs Merged'!R51 -> 0 | H49: ='F_Inputs Merged'!S51 -> 0 | I49: ='F_Inputs Merged'!T51 -> 0 | J49: ='F_Inputs Merged'!U51 -> 0 | K49: ='F_Inputs Merged'!V51 -> 0 | L49: =SUM(Table1[[#This Row],[2023-24]:[2029-30]]) -> 2.086
A50: ='F_Inputs Merged'!A52 -> NES | B50: ='F_Inputs Merged'!B52 -> CWW17_121TOT_PR24 | C50: ='F_Inputs Merged'!C52 -> EA/NRW environmental programme wastewater (WINEP/NEP) - Restoration management (marine conservation zones etc) (WINEP/NEP) wastewater capex - Total | D50: ='F_Inputs Merged'!D52 -> £m | E50: ='F_Inputs Merged'!P52 -> 0 | F50: ='F_Inputs Merged'!Q52 -> 0 | G50: ='F_Inputs Merged'!R52 -> 0 | H50: ='F_Inputs Merged'!S52 -> 0 | I50: ='F_Inputs Merged'!T52 -> 0 | J50: ='F_Inputs Merged'!U52 -> 0 | K50: ='F_Inputs Merged'!V52 -> 0 | L50: =SUM(Table1[[#This Row],[2023-24]:[2029-30]]) -> 0
A51: ='F_Inputs Merged'!A53 -> NES | B51: ='F_Inputs Merged'!B53 -> CWW17_122TOT_PR24 | C51: ='F_Inputs Merged'!C53 -> EA/NRW environmental programme wastewater (WINEP/NEP) - Restoration management (marine conservation zones etc) (WINEP/NEP) wastewater opex - Total | D51: ='F_Inputs Merged'!D53 -> £m | E51: ='F_Inputs Merged'!P53 -> 0 | F51: ='F_Inputs Merged'!Q53 -> 0 | G51: ='F_Inputs Merged'!R53 -> 0 | H51: ='F_Inputs Merged'!S53 -> 0 | I51: ='F_Inputs Merged'!T53 -> 0 | J51: ='F_Inputs Merged'!U53 -> 0 | K51: ='F_Inputs Merged'!V53 -> 0 | L51: =SUM(Table1[[#This Row],[2023-24]:[2029-30]]) -> 0
A52: ='F_Inputs Merged'!A54 -> NES | B52: ='F_Inputs Merged'!B54 -> CWW17_123TOT_PR24 | C52: ='F_Inputs Merged'!C54 -> EA/NRW environmental programme wastewater (WINEP/NEP) - Restoration management (marine conservation zones etc) (WINEP/NEP) wastewater totex - Total | D52: ='F_Inputs Merged'!D54 -> £m | E52: ='F_Inputs Merged'!P54 -> 0 | F52: ='F_Inputs Merged'!Q54 -> 0 | G52: ='F_Inputs Merged'!R54 -> 0 | H52: ='F_Inputs Merged'!S54 -> 0 | I52: ='F_Inputs Merged'!T54 -> 0 | J52: ='F_Inputs Merged'!U54 -> 0 | K52: ='F_Inputs Merged'!V54 -> 0 | L52: =SUM(Table1[[#This Row],[2023-24]:[2029-30]]) -> 0
A53: ='F_Inputs Merged'!A55 -> NES | B53: ='F_Inputs Merged'!B55 -> CWW20_070_PR24 | C53: ='F_Inputs Merged'!C55 -> Other data - Number of marine conservation zones (new and existing) | D53: ='F_Inputs Merged'!D55 -> nr | E53: ='F_Inputs Merged'!P55 -> 0 | F53: ='F_Inputs Merged'!Q55 -> 0 | G53: ='F_Inputs Merged'!R55 -> 0 | H53: ='F_Inputs Merged'!S55 -> 0 | I53: ='F_Inputs Merged'!T55 -> 0 | J53: ='F_Inputs Merged'!U55 -> 0 | K53: ='F_Inputs Merged'!V55 -> 0 | L53: =SUM(Table1[[#This Row],[2023-24]:[2029-30]]) -> 0
A54: ='F_Inputs Merged'!A56 -> NES | B54: ='F_Inputs Merged'!B56 -> CWW20A_070_PR24 | C54: ='F_Inputs Merged'!C56 -> Other data - Number of marine conservation zones (new and existing) | D54: ='F_Inputs Merged'!D56 -> nr | E54: ='F_Inputs Merged'!P56 ->  | F54: ='F_Inputs Merged'!Q56 ->  | G54: ='F_Inputs Merged'!R56 -> 0 | H54: ='F_Inputs Merged'!S56 -> 0 | I54: ='F_Inputs Merged'!T56 -> 0 | J54: ='F_Inputs Merged'!U56 -> 0 | K54: ='F_Inputs Merged'!V56 -> 0 | L54: =SUM(Table1[[#This Row],[2023-24]:[2029-30]]) -> 0
A55: ='F_Inputs Merged'!A57 -> NES | B55: ='F_Inputs Merged'!B57 -> PR24_E_WW123_TOTAL | C55: ='F_Inputs Merged'!C57 -> PR24 BP EA/NRW environmental programme wastewater (WINEP/NEP) - Restoration management (marine conservation zones etc) (WINEP/NEP) wastewater totex - Total inc. accelerated & transition costs | D55: ='F_Inputs Merged'!D57 -> £m | E55: ='F_Inputs Merged'!P57 -> 0 | F55: ='F_Inputs Merged'!Q57 -> 0 | G55: ='F_Inputs Merged'!R57 -> 0 | H55: ='F_Inputs Merged'!S57 -> 0 | I55: ='F_Inputs Merged'!T57 -> 0 | J55: ='F_Inputs Merged'!U57 -> 0 | K55: ='F_Inputs Merged'!V57 -> 0 | L55: =SUM(Table1[[#This Row],[2023-24]:[2029-30]]) -> 0
A56: ='F_Inputs Merged'!A58 -> NES | B56: ='F_Inputs Merged'!B58 -> PR24_NETTOTEX_WASTE | C56: ='F_Inputs Merged'!C58 -> PR24 BP Net totex - Total inc. accelerated & transition costs | D56: ='F_Inputs Merged'!D58 -> £m | E56: ='F_Inputs Merged'!P58 -> 0 | F56: ='F_Inputs Merged'!Q58 -> 0 | G56: ='F_Inputs Merged'!R58 -> 0 | H56: ='F_Inputs Merged'!S58 -> 0 | I56: ='F_Inputs Merged'!T58 -> 0 | J56: ='F_Inputs Merged'!U58 -> 0 | K56: ='F_Inputs Merged'!V58 -> 0 | L56: =SUM(Table1[[#This Row],[2023-24]:[2029-30]]) -> 0
A57: ='F_Inputs Merged'!A59 -> SVE | B57: ='F_Inputs Merged'!B59 -> CWW3_121TOT_PR24 | C57: ='F_Inputs Merged'!C59 -> EA/NRW environmental programme wastewater (WINEP/NEP) - Restoration management (marine conservation zones etc) (WINEP/NEP) wastewater capex - Total | D57: ='F_Inputs Merged'!D59 -> £m | E57: ='F_Inputs Merged'!P59 -> 0 | F57: ='F_Inputs Merged'!Q59 -> 0 | G57: ='F_Inputs Merged'!R59 -> 0 | H57: ='F_Inputs Merged'!S59 -> 0 | I57: ='F_Inputs Merged'!T59 -> 0 | J57: ='F_Inputs Merged'!U59 -> 0 | K57: ='F_Inputs Merged'!V59 -> 0 | L57: =SUM(Table1[[#This Row],[2023-24]:[2029-30]]) -> 0
A58: ='F_Inputs Merged'!A60 -> SVE | B58: ='F_Inputs Merged'!B60 -> CWW3_122TOT_PR24 | C58: ='F_Inputs Merged'!C60 -> EA/NRW environmental programme wastewater (WINEP/NEP) - Restoration management (marine conservation zones etc) (WINEP/NEP) wastewater opex - Total | D58: ='F_Inputs Merged'!D60 -> £m | E58: ='F_Inputs Merged'!P60 -> 0 | F58: ='F_Inputs Merged'!Q60 -> 0 | G58: ='F_Inputs Merged'!R60 -> 0 | H58: ='F_Inputs Merged'!S60 -> 0 | I58: ='F_Inputs Merged'!T60 -> 0 | J58: ='F_Inputs Merged'!U60 -> 0 | K58: ='F_Inputs Merged'!V60 -> 0 | L58: =SUM(Table1[[#This Row],[2023-24]:[2029-30]]) -> 0
A59: ='F_Inputs Merged'!A61 -> SVE | B59: ='F_Inputs Merged'!B61 -> CWW3_123TOT_PR24 | C59: ='F_Inputs Merged'!C61 -> EA/NRW environmental programme wastewater (WINEP/NEP) - Restoration management (marine conservation zones etc) (WINEP/NEP) wastewater totex - Total | D59: ='F_Inputs Merged'!D61 -> £m | E59: ='F_Inputs Merged'!P61 -> 0 | F59: ='F_Inputs Merged'!Q61 -> 0 | G59: ='F_Inputs Merged'!R61 -> 0 | H59: ='F_Inputs Merged'!S61 -> 0 | I59: ='F_Inputs Merged'!T61 -> 0 | J59: ='F_Inputs Merged'!U61 -> 0 | K59: ='F_Inputs Merged'!V61 -> 0 | L59: =SUM(Table1[[#This Row],[2023-24]:[2029-30]]) -> 0
A60: ='F_Inputs Merged'!A62 -> SVE | B60: ='F_Inputs Merged'!B62 -> CWW12_121TOT_PR24 | C60: ='F_Inputs Merged'!C62 -> EA/NRW environmental programme wastewater (WINEP/NEP) - Restoration management (marine conservation zones etc) (WINEP/NEP) wastewater capex - Total | D60: ='F_Inputs Merged'!D62 -> £m | E60: ='F_Inputs Merged'!P62 -> 0 | F60: ='F_Inputs Merged'!Q62 -> 0 | G60: ='F_Inputs Merged'!R62 -> 0 | H60: ='F_Inputs Merged'!S62 -> 0 | I60: ='F_Inputs Merged'!T62 -> 0 | J60: ='F_Inputs Merged'!U62 -> 0 | K60: ='F_Inputs Merged'!V62 -> 0 | L60: =SUM(Table1[[#This Row],[2023-24]:[2029-30]]) -> 0
A61: ='F_Inputs Merged'!A63 -> SVE | B61: ='F_Inputs Merged'!B63 -> CWW12_122TOT_PR24 | C61: ='F_Inputs Merged'!C63 -> EA/NRW environmental programme wastewater (WINEP/NEP) - Restoration management (marine conservation zones etc) (WINEP/NEP) wastewater opex - Total | D61: ='F_Inputs Merged'!D63 -> £m | E61: ='F_Inputs Merged'!P63 -> 0 | F61: ='F_Inputs Merged'!Q63 -> 0 | G61: ='F_Inputs Merged'!R63 -> 0 | H61: ='F_Inputs Merged'!S63 -> 0 | I61: ='F_Inputs Merged'!T63 -> 0 | J61: ='F_Inputs Merged'!U63 -> 0 | K61: ='F_Inputs Merged'!V63 -> 0 | L61: =SUM(Table1[[#This Row],[2023-24]:[2029-30]]) -> 0
A62: ='F_Inputs Merged'!A64 -> SVE | B62: ='F_Inputs Merged'!B64 -> CWW12_123TOT_PR24 | C62: ='F_Inputs Merged'!C64 -> EA/NRW environmental programme wastewater (WINEP/NEP) - Restoration management (marine conservation zones etc) (WINEP/NEP) wastewater totex - Total | D62: ='F_Inputs Merged'!D64 -> £m | E62: ='F_Inputs Merged'!P64 -> 0 | F62: ='F_Inputs Merged'!Q64 -> 0 | G62: ='F_Inputs Merged'!R64 -> 0 | H62: ='F_Inputs Merged'!S64 -> 0 | I62: ='F_Inputs Merged'!T64 -> 0 | J62: ='F_Inputs Merged'!U64 -> 0 | K62: ='F_Inputs Merged'!V64 -> 0 | L62: =SUM(Table1[[#This Row],[2023-24]:[2029-30]]) -> 0
A63: ='F_Inputs Merged'!A65 -> SVE | B63: ='F_Inputs Merged'!B65 -> CWW17_121TOT_PR24 | C63: ='F_Inputs Merged'!C65 -> EA/NRW environmental programme wastewater (WINEP/NEP) - Restoration management (marine conservation zones etc) (WINEP/NEP) wastewater capex - Total | D63: ='F_Inputs Merged'!D65 -> £m | E63: ='F_Inputs Merged'!P65 -> 0 | F63: ='F_Inputs Merged'!Q65 -> 0 | G63: ='F_Inputs Merged'!R65 -> 0 | H63: ='F_Inputs Merged'!S65 -> 0 | I63: ='F_Inputs Merged'!T65 -> 0 | J63: ='F_Inputs Merged'!U65 -> 0 | K63: ='F_Inputs Merged'!V65 -> 0 | L63: =SUM(Table1[[#This Row],[2023-24]:[2029-30]]) -> 0
A64: ='F_Inputs Merged'!A66 -> SVE | B64: ='F_Inputs Merged'!B66 -> CWW17_122TOT_PR24 | C64: ='F_Inputs Merged'!C66 -> EA/NRW environmental programme wastewater (WINEP/NEP) - Restoration management (marine conservation zones etc) (WINEP/NEP) wastewater opex - Total | D64: ='F_Inputs Merged'!D66 -> £m | E64: ='F_Inputs Merged'!P66 -> 0 | F64: ='F_Inputs Merged'!Q66 -> 0 | G64: ='F_Inputs Merged'!R66 -> 0 | H64: ='F_Inputs Merged'!S66 -> 0 | I64: ='F_Inputs Merged'!T66 -> 0 | J64: ='F_Inputs Merged'!U66 -> 0 | K64: ='F_Inputs Merged'!V66 -> 0 | L64: =SUM(Table1[[#This Row],[2023-24]:[2029-30]]) -> 0
A65: ='F_Inputs Merged'!A67 -> SVE | B65: ='F_Inputs Merged'!B67 -> CWW17_123TOT_PR24 | C65: ='F_Inputs Merged'!C67 -> EA/NRW environmental programme wastewater (WINEP/NEP) - Restoration management (marine conservation zones etc) (WINEP/NEP) wastewater totex - Total | D65: ='F_Inputs Merged'!D67 -> £m | E65: ='F_Inputs Merged'!P67 -> 0 | F65: ='F_Inputs Merged'!Q67 -> 0 | G65: ='F_Inputs Merged'!R67 -> 0 | H65: ='F_Inputs Merged'!S67 -> 0 | I65: ='F_Inputs Merged'!T67 -> 0 | J65: ='F_Inputs Merged'!U67 -> 0 | K65: ='F_Inputs Merged'!V67 -> 0 | L65: =SUM(Table1[[#This Row],[2023-24]:[2029-30]]) -> 0
A66: ='F_Inputs Merged'!A68 -> SVE | B66: ='F_Inputs Merged'!B68 -> CWW20_070_PR24 | C66: ='F_Inputs Merged'!C68 -> Other data - Number of marine conservation zones (new and existing) | D66: ='F_Inputs Merged'!D68 -> nr | E66: ='F_Inputs Merged'!P68 -> 0 | F66: ='F_Inputs Merged'!Q68 -> 0 | G66: ='F_Inputs Merged'!R68 -> 0 | H66: ='F_Inputs Merged'!S68 -> 0 | I66: ='F_Inputs Merged'!T68 -> 0 | J66: ='F_Inputs Merged'!U68 -> 0 | K66: ='F_Inputs Merged'!V68 -> 0 | L66: =SUM(Table1[[#This Row],[2023-24]:[2029-30]]) -> 0
A67: ='F_Inputs Merged'!A69 -> SVE | B67: ='F_Inputs Merged'!B69 -> CWW20A_070_PR24 | C67: ='F_Inputs Merged'!C69 -> Other data - Number of marine conservation zones (new and existing) | D67: ='F_Inputs Merged'!D69 -> nr | E67: ='F_Inputs Merged'!P69 ->  | F67: ='F_Inputs Merged'!Q69 ->  | G67: ='F_Inputs Merged'!R69 -> 0 | H67: ='F_Inputs Merged'!S69 -> 0 | I67: ='F_Inputs Merged'!T69 -> 0 | J67: ='F_Inputs Merged'!U69 -> 0 | K67: ='F_Inputs Merged'!V69 -> 0 | L67: =SUM(Table1[[#This Row],[2023-24]:[2029-30]]) -> 0
A68: ='F_Inputs Merged'!A70 -> SVE | B68: ='F_Inputs Merged'!B70 -> PR24_E_WW123_TOTAL | C68: ='F_Inputs Merged'!C70 -> PR24 BP EA/NRW environmental programme wastewater (WINEP/NEP) - Restoration management (marine conservation zones etc) (WINEP/NEP) wastewater totex - Total inc. accelerated & transition costs | D68: ='F_Inputs Merged'!D70 -> £m | E68: ='F_Inputs Merged'!P70 -> 0 | F68: ='F_Inputs Merged'!Q70 -> 0 | G68: ='F_Inputs Merged'!R70 -> 0 | H68: ='F_Inputs Merged'!S70 -> 0 | I68: ='F_Inputs Merged'!T70 -> 0 | J68: ='F_Inputs Merged'!U70 -> 0 | K68: ='F_Inputs Merged'!V70 -> 0 | L68: =SUM(Table1[[#This Row],[2023-24]:[2029-30]]) -> 0
A69: ='F_Inputs Merged'!A71 -> SVE | B69: ='F_Inputs Merged'!B71 -> PR24_NETTOTEX_WASTE | C69: ='F_Inputs Merged'!C71 -> PR24 BP Net totex - Total inc. accelerated & transition costs | D69: ='F_Inputs Merged'!D71 -> £m | E69: ='F_Inputs Merged'!P71 -> 0 | F69: ='F_Inputs Merged'!Q71 -> 0 | G69: ='F_Inputs Merged'!R71 -> 0 | H69: ='F_Inputs Merged'!S71 -> 0 | I69: ='F_Inputs Merged'!T71 -> 0 | J69: ='F_Inputs Merged'!U71 -> 0 | K69: ='F_Inputs Merged'!V71 -> 0 | L69: =SUM(Table1[[#This Row],[2023-24]:[2029-30]]) -> 0
A70: ='F_Inputs Merged'!A72 -> SWB | B70: ='F_Inputs Merged'!B72 -> CWW3_121TOT_PR24 | C70: ='F_Inputs Merged'!C72 -> EA/NRW environmental programme wastewater (WINEP/NEP) - Restoration management (marine conservation zones etc) (WINEP/NEP) wastewater capex - Total | D70: ='F_Inputs Merged'!D72 -> £m | E70: ='F_Inputs Merged'!P72 -> 0 | F70: ='F_Inputs Merged'!Q72 -> 0 | G70: ='F_Inputs Merged'!R72 -> 0 | H70: ='F_Inputs Merged'!S72 -> 0 | I70: ='F_Inputs Merged'!T72 -> 0 | J70: ='F_Inputs Merged'!U72 -> 0 | K70: ='F_Inputs Merged'!V72 -> 0 | L70: =SUM(Table1[[#This Row],[2023-24]:[2029-30]]) -> 0
A71: ='F_Inputs Merged'!A73 -> SWB | B71: ='F_Inputs Merged'!B73 -> CWW3_122TOT_PR24 | C71: ='F_Inputs Merged'!C73 -> EA/NRW environmental programme wastewater (WINEP/NEP) - Restoration management (marine conservation zones etc) (WINEP/NEP) wastewater opex - Total | D71: ='F_Inputs Merged'!D73 -> £m | E71: ='F_Inputs Merged'!P73 -> 0 | F71: ='F_Inputs Merged'!Q73 -> 0 | G71: ='F_Inputs Merged'!R73 -> 0 | H71: ='F_Inputs Merged'!S73 -> 0 | I71: ='F_Inputs Merged'!T73 -> 0 | J71: ='F_Inputs Merged'!U73 -> 0 | K71: ='F_Inputs Merged'!V73 -> 0 | L71: =SUM(Table1[[#This Row],[2023-24]:[2029-30]]) -> 0
A72: ='F_Inputs Merged'!A74 -> SWB | B72: ='F_Inputs Merged'!B74 -> CWW3_123TOT_PR24 | C72: ='F_Inputs Merged'!C74 -> EA/NRW environmental programme wastewater (WINEP/NEP) - Restoration management (marine conservation zones etc) (WINEP/NEP) wastewater totex - Total | D72: ='F_Inputs Merged'!D74 -> £m | E72: ='F_Inputs Merged'!P74 -> 0 | F72: ='F_Inputs Merged'!Q74 -> 0 | G72: ='F_Inputs Merged'!R74 -> 0 | H72: ='F_Inputs Merged'!S74 -> 0 | I72: ='F_Inputs Merged'!T74 -> 0 | J72: ='F_Inputs Merged'!U74 -> 0 | K72: ='F_Inputs Merged'!V74 -> 0 | L72: =SUM(Table1[[#This Row],[2023-24]:[2029-30]]) -> 0
A73: ='F_Inputs Merged'!A75 -> SWB | B73: ='F_Inputs Merged'!B75 -> CWW12_121TOT_PR24 | C73: ='F_Inputs Merged'!C75 -> EA/NRW environmental programme wastewater (WINEP/NEP) - Restoration management (marine conservation zones etc) (WINEP/NEP) wastewater capex - Total | D73: ='F_Inputs Merged'!D75 -> £m | E73: ='F_Inputs Merged'!P75 -> 0 | F73: ='F_Inputs Merged'!Q75 -> 0 | G73: ='F_Inputs Merged'!R75 -> 0 | H73: ='F_Inputs Merged'!S75 -> 0 | I73: ='F_Inputs Merged'!T75 -> 0 | J73: ='F_Inputs Merged'!U75 -> 0 | K73: ='F_Inputs Merged'!V75 -> 0 | L73: =SUM(Table1[[#This Row],[2023-24]:[2029-30]]) -> 0
A74: ='F_Inputs Merged'!A76 -> SWB | B74: ='F_Inputs Merged'!B76 -> CWW12_122TOT_PR24 | C74: ='F_Inputs Merged'!C76 -> EA/NRW environmental programme wastewater (WINEP/NEP) - Restoration management (marine conservation zones etc) (WINEP/NEP) wastewater opex - Total | D74: ='F_Inputs Merged'!D76 -> £m | E74: ='F_Inputs Merged'!P76 -> 0 | F74: ='F_Inputs Merged'!Q76 -> 0 | G74: ='F_Inputs Merged'!R76 -> 0 | H74: ='F_Inputs Merged'!S76 -> 0 | I74: ='F_Inputs Merged'!T76 -> 0 | J74: ='F_Inputs Merged'!U76 -> 0 | K74: ='F_Inputs Merged'!V76 -> 0 | L74: =SUM(Table1[[#This Row],[2023-24]:[2029-30]]) -> 0
A75: ='F_Inputs Merged'!A77 -> SWB | B75: ='F_Inputs Merged'!B77 -> CWW12_123TOT_PR24 | C75: ='F_Inputs Merged'!C77 -> EA/NRW environmental programme wastewater (WINEP/NEP) - Restoration management (marine conservation zones etc) (WINEP/NEP) wastewater totex - Total | D75: ='F_Inputs Merged'!D77 -> £m | E75: ='F_Inputs Merged'!P77 -> 0 | F75: ='F_Inputs Merged'!Q77 -> 0 | G75: ='F_Inputs Merged'!R77 -> 0 | H75: ='F_Inputs Merged'!S77 -> 0 | I75: ='F_Inputs Merged'!T77 -> 0 | J75: ='F_Inputs Merged'!U77 -> 0 | K75: ='F_Inputs Merged'!V77 -> 0 | L75: =SUM(Table1[[#This Row],[2023-24]:[2029-30]]) -> 0
A76: ='F_Inputs Merged'!A78 -> SWB | B76: ='F_Inputs Merged'!B78 -> CWW17_121TOT_PR24 | C76: ='F_Inputs Merged'!C78 -> EA/NRW environmental programme wastewater (WINEP/NEP) - Restoration management (marine conservation zones etc) (WINEP/NEP) wastewater capex - Total | D76: ='F_Inputs Merged'!D78 -> £m | E76: ='F_Inputs Merged'!P78 -> 0 | F76: ='F_Inputs Merged'!Q78 -> 0 | G76: ='F_Inputs Merged'!R78 -> 0 | H76: ='F_Inputs Merged'!S78 -> 0 | I76: ='F_Inputs Merged'!T78 -> 0 | J76: ='F_Inputs Merged'!U78 -> 0 | K76: ='F_Inputs Merged'!V78 -> 0 | L76: =SUM(Table1[[#This Row],[2023-24]:[2029-30]]) -> 0
A77: ='F_Inputs Merged'!A79 -> SWB | B77: ='F_Inputs Merged'!B79 -> CWW17_122TOT_PR24 | C77: ='F_Inputs Merged'!C79 -> EA/NRW environmental programme wastewater (WINEP/NEP) - Restoration management (marine conservation zones etc) (WINEP/NEP) wastewater opex - Total | D77: ='F_Inputs Merged'!D79 -> £m | E77: ='F_Inputs Merged'!P79 -> 0 | F77: ='F_Inputs Merged'!Q79 -> 0 | G77: ='F_Inputs Merged'!R79 -> 0 | H77: ='F_Inputs Merged'!S79 -> 0 | I77: ='F_Inputs Merged'!T79 -> 0 | J77: ='F_Inputs Merged'!U79 -> 0 | K77: ='F_Inputs Merged'!V79 -> 0 | L77: =SUM(Table1[[#This Row],[2023-24]:[2029-30]]) -> 0
A78: ='F_Inputs Merged'!A80 -> SWB | B78: ='F_Inputs Merged'!B80 -> CWW17_123TOT_PR24 | C78: ='F_Inputs Merged'!C80 -> EA/NRW environmental programme wastewater (WINEP/NEP) - Restoration management (marine conservation zones etc) (WINEP/NEP) wastewater totex - Total | D78: ='F_Inputs Merged'!D80 -> £m | E78: ='F_Inputs Merged'!P80 -> 0 | F78: ='F_Inputs Merged'!Q80 -> 0 | G78: ='F_Inputs Merged'!R80 -> 0 | H78: ='F_Inputs Merged'!S80 -> 0 | I78: ='F_Inputs Merged'!T80 -> 0 | J78: ='F_Inputs Merged'!U80 -> 0 | K78: ='F_Inputs Merged'!V80 -> 0 | L78: =SUM(Table1[[#This Row],[2023-24]:[2029-30]]) -> 0
A79: ='F_Inputs Merged'!A81 -> SWB | B79: ='F_Inputs Merged'!B81 -> CWW20_070_PR24 | C79: ='F_Inputs Merged'!C81 -> Other data - Number of marine conservation zones (new and existing) | D79: ='F_Inputs Merged'!D81 -> nr | E79: ='F_Inputs Merged'!P81 -> 0 | F79: ='F_Inputs Merged'!Q81 -> 0 | G79: ='F_Inputs Merged'!R81 -> 0 | H79: ='F_Inputs Merged'!S81 -> 0 | I79: ='F_Inputs Merged'!T81 -> 0 | J79: ='F_Inputs Merged'!U81 -> 0 | K79: ='F_Inputs Merged'!V81 -> 0 | L79: =SUM(Table1[[#This Row],[2023-24]:[2029-30]]) -> 0
A80: ='F_Inputs Merged'!A82 -> SWB | B80: ='F_Inputs Merged'!B82 -> CWW20A_070_PR24 | C80: ='F_Inputs Merged'!C82 -> Other data - Number of marine conservation zones (new and existing) | D80: ='F_Inputs Merged'!D82 -> nr | E80: ='F_Inputs Merged'!P82 -> 0 | F80: ='F_Inputs Merged'!Q82 ->  | G80: ='F_Inputs Merged'!R82 -> 0 | H80: ='F_Inputs Merged'!S82 -> 0 | I80: ='F_Inputs Merged'!T82 -> 0 | J80: ='F_Inputs Merged'!U82 -> 0 | K80: ='F_Inputs Merged'!V82 -> 0 | L80: =SUM(Table1[[#This Row],[2023-24]:[2029-30]]) -> 0
A81: ='F_Inputs Merged'!A83 -> SWB | B81: ='F_Inputs Merged'!B83 -> PR24_E_WW123_TOTAL | C81: ='F_Inputs Merged'!C83 -> PR24 BP EA/NRW environmental programme wastewater (WINEP/NEP) - Restoration management (marine conservation zones etc) (WINEP/NEP) wastewater totex - Total inc. accelerated & transition costs | D81: ='F_Inputs Merged'!D83 -> £m | E81: ='F_Inputs Merged'!P83 -> 0 | F81: ='F_Inputs Merged'!Q83 -> 0 | G81: ='F_Inputs Merged'!R83 -> 0 | H81: ='F_Inputs Merged'!S83 -> 0 | I81: ='F_Inputs Merged'!T83 -> 0 | J81: ='F_Inputs Merged'!U83 -> 0 | K81: ='F_Inputs Merged'!V83 -> 0 | L81: =SUM(Table1[[#This Row],[2023-24]:[2029-30]]) -> 0
A82: ='F_Inputs Merged'!A84 -> SWB | B82: ='F_Inputs Merged'!B84 -> PR24_NETTOTEX_WASTE | C82: ='F_Inputs Merged'!C84 -> PR24 BP Net totex - Total inc. accelerated & transition costs | D82: ='F_Inputs Merged'!D84 -> £m | E82: ='F_Inputs Merged'!P84 -> 0 | F82: ='F_Inputs Merged'!Q84 -> 0 | G82: ='F_Inputs Merged'!R84 -> 0 | H82: ='F_Inputs Merged'!S84 -> 0 | I82: ='F_Inputs Merged'!T84 -> 0 | J82: ='F_Inputs Merged'!U84 -> 0 | K82: ='F_Inputs Merged'!V84 -> 0 | L82: =SUM(Table1[[#This Row],[2023-24]:[2029-30]]) -> 0
A83: ='F_Inputs Merged'!A85 -> SRN | B83: ='F_Inputs Merged'!B85 -> CWW3_121TOT_PR24 | C83: ='F_Inputs Merged'!C85 -> EA/NRW environmental programme wastewater (WINEP/NEP) - Restoration management (marine conservation zones etc) (WINEP/NEP) wastewater capex - Total | D83: ='F_Inputs Merged'!D85 -> £m | E83: ='F_Inputs Merged'!P85 -> 0 | F83: ='F_Inputs Merged'!Q85 -> 0 | G83: ='F_Inputs Merged'!R85 -> 0 | H83: ='F_Inputs Merged'!S85 -> 0 | I83: ='F_Inputs Merged'!T85 -> 0 | J83: ='F_Inputs Merged'!U85 -> 0 | K83: ='F_Inputs Merged'!V85 -> 0 | L83: =SUM(Table1[[#This Row],[2023-24]:[2029-30]]) -> 0
A84: ='F_Inputs Merged'!A86 -> SRN | B84: ='F_Inputs Merged'!B86 -> CWW3_122TOT_PR24 | C84: ='F_Inputs Merged'!C86 -> EA/NRW environmental programme wastewater (WINEP/NEP) - Restoration management (marine conservation zones etc) (WINEP/NEP) wastewater opex - Total | D84: ='F_Inputs Merged'!D86 -> £m | E84: ='F_Inputs Merged'!P86 -> 0 | F84: ='F_Inputs Merged'!Q86 -> 0 | G84: ='F_Inputs Merged'!R86 -> 0 | H84: ='F_Inputs Merged'!S86 -> 0 | I84: ='F_Inputs Merged'!T86 -> 0 | J84: ='F_Inputs Merged'!U86 -> 0 | K84: ='F_Inputs Merged'!V86 -> 0 | L84: =SUM(Table1[[#This Row],[2023-24]:[2029-30]]) -> 0
A85: ='F_Inputs Merged'!A87 -> SRN | B85: ='F_Inputs Merged'!B87 -> CWW3_123TOT_PR24 | C85: ='F_Inputs Merged'!C87 -> EA/NRW environmental programme wastewater (WINEP/NEP) - Restoration management (marine conservation zones etc) (WINEP/NEP) wastewater totex - Total | D85: ='F_Inputs Merged'!D87 -> £m | E85: ='F_Inputs Merged'!P87 -> 0 | F85: ='F_Inputs Merged'!Q87 -> 0 | G85: ='F_Inputs Merged'!R87 -> 0 | H85: ='F_Inputs Merged'!S87 -> 0 | I85: ='F_Inputs Merged'!T87 -> 0 | J85: ='F_Inputs Merged'!U87 -> 0 | K85: ='F_Inputs Merged'!V87 -> 0 | L85: =SUM(Table1[[#This Row],[2023-24]:[2029-30]]) -> 0
A86: ='F_Inputs Merged'!A88 -> SRN | B86: ='F_Inputs Merged'!B88 -> CWW12_121TOT_PR24 | C86: ='F_Inputs Merged'!C88 -> EA/NRW environmental programme wastewater (WINEP/NEP) - Restoration management (marine conservation zones etc) (WINEP/NEP) wastewater capex - Total | D86: ='F_Inputs Merged'!D88 -> £m | E86: ='F_Inputs Merged'!P88 -> 0 | F86: ='F_Inputs Merged'!Q88 -> 0 | G86: ='F_Inputs Merged'!R88 -> 0 | H86: ='F_Inputs Merged'!S88 -> 0 | I86: ='F_Inputs Merged'!T88 -> 0 | J86: ='F_Inputs Merged'!U88 -> 0 | K86: ='F_Inputs Merged'!V88 -> 0 | L86: =SUM(Table1[[#This Row],[2023-24]:[2029-30]]) -> 0
A87: ='F_Inputs Merged'!A89 -> SRN | B87: ='F_Inputs Merged'!B89 -> CWW12_122TOT_PR24 | C87: ='F_Inputs Merged'!C89 -> EA/NRW environmental programme wastewater (WINEP/NEP) - Restoration management (marine conservation zones etc) (WINEP/NEP) wastewater opex - Total | D87: ='F_Inputs Merged'!D89 -> £m | E87: ='F_Inputs Merged'!P89 -> 0 | F87: ='F_Inputs Merged'!Q89 -> 0 | G87: ='F_Inputs Merged'!R89 -> 0 | H87: ='F_Inputs Merged'!S89 -> 0 | I87: ='F_Inputs Merged'!T89 -> 0 | J87: ='F_Inputs Merged'!U89 -> 0 | K87: ='F_Inputs Merged'!V89 -> 0 | L87: =SUM(Table1[[#This Row],[2023-24]:[2029-30]]) -> 0
A88: ='F_Inputs Merged'!A90 -> SRN | B88: ='F_Inputs Merged'!B90 -> CWW12_123TOT_PR24 | C88: ='F_Inputs Merged'!C90 -> EA/NRW environmental programme wastewater (WINEP/NEP) - Restoration management (marine conservation zones etc) (WINEP/NEP) wastewater totex - Total | D88: ='F_Inputs Merged'!D90 -> £m | E88: ='F_Inputs Merged'!P90 -> 0 | F88: ='F_Inputs Merged'!Q90 -> 0 | G88: ='F_Inputs Merged'!R90 -> 0 | H88: ='F_Inputs Merged'!S90 -> 0 | I88: ='F_Inputs Merged'!T90 -> 0 | J88: ='F_Inputs Merged'!U90 -> 0 | K88: ='F_Inputs Merged'!V90 -> 0 | L88: =SUM(Table1[[#This Row],[2023-24]:[2029-30]]) -> 0
A89: ='F_Inputs Merged'!A91 -> SRN | B89: ='F_Inputs Merged'!B91 -> CWW17_121TOT_PR24 | C89: ='F_Inputs Merged'!C91 -> EA/NRW environmental programme wastewater (WINEP/NEP) - Restoration management (marine conservation zones etc) (WINEP/NEP) wastewater capex - Total | D89: ='F_Inputs Merged'!D91 -> £m | E89: ='F_Inputs Merged'!P91 -> 0 | F89: ='F_Inputs Merged'!Q91 -> 0 | G89: ='F_Inputs Merged'!R91 -> 0 | H89: ='F_Inputs Merged'!S91 -> 0 | I89: ='F_Inputs Merged'!T91 -> 0 | J89: ='F_Inputs Merged'!U91 -> 0 | K89: ='F_Inputs Merged'!V91 -> 0 | L89: =SUM(Table1[[#This Row],[2023-24]:[2029-30]]) -> 0
A90: ='F_Inputs Merged'!A92 -> SRN | B90: ='F_Inputs Merged'!B92 -> CWW17_122TOT_PR24 | C90: ='F_Inputs Merged'!C92 -> EA/NRW environmental programme wastewater (WINEP/NEP) - Restoration management (marine conservation zones etc) (WINEP/NEP) wastewater opex - Total | D90: ='F_Inputs Merged'!D92 -> £m | E90: ='F_Inputs Merged'!P92 -> 0 | F90: ='F_Inputs Merged'!Q92 -> 0 | G90: ='F_Inputs Merged'!R92 -> 0 | H90: ='F_Inputs Merged'!S92 -> 0 | I90: ='F_Inputs Merged'!T92 -> 0 | J90: ='F_Inputs Merged'!U92 -> 0 | K90: ='F_Inputs Merged'!V92 -> 0 | L90: =SUM(Table1[[#This Row],[2023-24]:[2029-30]]) -> 0
A91: ='F_Inputs Merged'!A93 -> SRN | B91: ='F_Inputs Merged'!B93 -> CWW17_123TOT_PR24 | C91: ='F_Inputs Merged'!C93 -> EA/NRW environmental programme wastewater (WINEP/NEP) - Restoration management (marine conservation zones etc) (WINEP/NEP) wastewater totex - Total | D91: ='F_Inputs Merged'!D93 -> £m | E91: ='F_Inputs Merged'!P93 -> 0 | F91: ='F_Inputs Merged'!Q93 -> 0 | G91: ='F_Inputs Merged'!R93 -> 0 | H91: ='F_Inputs Merged'!S93 -> 0 | I91: ='F_Inputs Merged'!T93 -> 0 | J91: ='F_Inputs Merged'!U93 -> 0 | K91: ='F_Inputs Merged'!V93 -> 0 | L91: =SUM(Table1[[#This Row],[2023-24]:[2029-30]]) -> 0
A92: ='F_Inputs Merged'!A94 -> SRN | B92: ='F_Inputs Merged'!B94 -> CWW20_070_PR24 | C92: ='F_Inputs Merged'!C94 -> Other data - Number of marine conservation zones (new and existing) | D92: ='F_Inputs Merged'!D94 -> nr | E92: ='F_Inputs Merged'!P94 -> 0 | F92: ='F_Inputs Merged'!Q94 -> 0 | G92: ='F_Inputs Merged'!R94 -> 20 | H92: ='F_Inputs Merged'!S94 -> 20 | I92: ='F_Inputs Merged'!T94 -> 20 | J92: ='F_Inputs Merged'!U94 -> 20 | K92: ='F_Inputs Merged'!V94 -> 20 | L92: =SUM(Table1[[#This Row],[2023-24]:[2029-30]]) -> 100
A93: ='F_Inputs Merged'!A95 -> SRN | B93: ='F_Inputs Merged'!B95 -> CWW20A_070_PR24 | C93: ='F_Inputs Merged'!C95 -> Other data - Number of marine conservation zones (new and existing) | D93: ='F_Inputs Merged'!D95 -> nr | E93: ='F_Inputs Merged'!P95 ->  | F93: ='F_Inputs Merged'!Q95 ->  | G93: ='F_Inputs Merged'!R95 -> 0 | H93: ='F_Inputs Merged'!S95 -> 0 | I93: ='F_Inputs Merged'!T95 -> 0 | J93: ='F_Inputs Merged'!U95 -> 0 | K93: ='F_Inputs Merged'!V95 -> 0 | L93: =SUM(Table1[[#This Row],[2023-24]:[2029-30]]) -> 0
A94: ='F_Inputs Merged'!A96 -> SRN | B94: ='F_Inputs Merged'!B96 -> PR24_E_WW123_TOTAL | C94: ='F_Inputs Merged'!C96 -> PR24 BP EA/NRW environmental programme wastewater (WINEP/NEP) - Restoration management (marine conservation zones etc) (WINEP/NEP) wastewater totex - Total inc. accelerated & transition costs | D94: ='F_Inputs Merged'!D96 -> £m | E94: ='F_Inputs Merged'!P96 -> 0 | F94: ='F_Inputs Merged'!Q96 -> 0 | G94: ='F_Inputs Merged'!R96 -> 0 | H94: ='F_Inputs Merged'!S96 -> 0 | I94: ='F_Inputs Merged'!T96 -> 0 | J94: ='F_Inputs Merged'!U96 -> 0 | K94: ='F_Inputs Merged'!V96 -> 0 | L94: =SUM(Table1[[#This Row],[2023-24]:[2029-30]]) -> 0
A95: ='F_Inputs Merged'!A97 -> SRN | B95: ='F_Inputs Merged'!B97 -> PR24_NETTOTEX_WASTE | C95: ='F_Inputs Merged'!C97 -> PR24 BP Net totex - Total inc. accelerated & transition costs | D95: ='F_Inputs Merged'!D97 -> £m | E95: ='F_Inputs Merged'!P97 -> 0 | F95: ='F_Inputs Merged'!Q97 -> 0 | G95: ='F_Inputs Merged'!R97 -> 0 | H95: ='F_Inputs Merged'!S97 -> 0 | I95: ='F_Inputs Merged'!T97 -> 0 | J95: ='F_Inputs Merged'!U97 -> 0 | K95: ='F_Inputs Merged'!V97 -> 0 | L95: =SUM(Table1[[#This Row],[2023-24]:[2029-30]]) -> 0
A96: ='F_Inputs Merged'!A98 -> TMS | B96: ='F_Inputs Merged'!B98 -> CWW3_121TOT_PR24 | C96: ='F_Inputs Merged'!C98 -> EA/NRW environmental programme wastewater (WINEP/NEP) - Restoration management (marine conservation zones etc) (WINEP/NEP) wastewater capex - Total | D96: ='F_Inputs Merged'!D98 -> £m | E96: ='F_Inputs Merged'!P98 -> 0 | F96: ='F_Inputs Merged'!Q98 -> 0 | G96: ='F_Inputs Merged'!R98 -> 0 | H96: ='F_Inputs Merged'!S98 -> 0 | I96: ='F_Inputs Merged'!T98 -> 0 | J96: ='F_Inputs Merged'!U98 -> 0 | K96: ='F_Inputs Merged'!V98 -> 0 | L96: =SUM(Table1[[#This Row],[2023-24]:[2029-30]]) -> 0
A97: ='F_Inputs Merged'!A99 -> TMS | B97: ='F_Inputs Merged'!B99 -> CWW3_122TOT_PR24 | C97: ='F_Inputs Merged'!C99 -> EA/NRW environmental programme wastewater (WINEP/NEP) - Restoration management (marine conservation zones etc) (WINEP/NEP) wastewater opex - Total | D97: ='F_Inputs Merged'!D99 -> £m | E97: ='F_Inputs Merged'!P99 -> 0 | F97: ='F_Inputs Merged'!Q99 -> 0 | G97: ='F_Inputs Merged'!R99 -> 0 | H97: ='F_Inputs Merged'!S99 -> 0 | I97: ='F_Inputs Merged'!T99 -> 0 | J97: ='F_Inputs Merged'!U99 -> 0 | K97: ='F_Inputs Merged'!V99 -> 0 | L97: =SUM(Table1[[#This Row],[2023-24]:[2029-30]]) -> 0
A98: ='F_Inputs Merged'!A100 -> TMS | B98: ='F_Inputs Merged'!B100 -> CWW3_123TOT_PR24 | C98: ='F_Inputs Merged'!C100 -> EA/NRW environmental programme wastewater (WINEP/NEP) - Restoration management (marine conservation zones etc) (WINEP/NEP) wastewater totex - Total | D98: ='F_Inputs Merged'!D100 -> £m | E98: ='F_Inputs Merged'!P100 -> 0 | F98: ='F_Inputs Merged'!Q100 -> 0 | G98: ='F_Inputs Merged'!R100 -> 0 | H98: ='F_Inputs Merged'!S100 -> 0 | I98: ='F_Inputs Merged'!T100 -> 0 | J98: ='F_Inputs Merged'!U100 -> 0 | K98: ='F_Inputs Merged'!V100 -> 0 | L98: =SUM(Table1[[#This Row],[2023-24]:[2029-30]]) -> 0
A99: ='F_Inputs Merged'!A101 -> TMS | B99: ='F_Inputs Merged'!B101 -> CWW12_121TOT_PR24 | C99: ='F_Inputs Merged'!C101 -> EA/NRW environmental programme wastewater (WINEP/NEP) - Restoration management (marine conservation zones etc) (WINEP/NEP) wastewater capex - Total | D99: ='F_Inputs Merged'!D101 -> £m | E99: ='F_Inputs Merged'!P101 -> 0 | F99: ='F_Inputs Merged'!Q101 -> 0 | G99: ='F_Inputs Merged'!R101 -> 0 | H99: ='F_Inputs Merged'!S101 -> 0 | I99: ='F_Inputs Merged'!T101 -> 0 | J99: ='F_Inputs Merged'!U101 -> 0 | K99: ='F_Inputs Merged'!V101 -> 0 | L99: =SUM(Table1[[#This Row],[2023-24]:[2029-30]]) -> 0
A100: ='F_Inputs Merged'!A102 -> TMS | B100: ='F_Inputs Merged'!B102 -> CWW12_122TOT_PR24 | C100: ='F_Inputs Merged'!C102 -> EA/NRW environmental programme wastewater (WINEP/NEP) - Restoration management (marine conservation zones etc) (WINEP/NEP) wastewater opex - Total | D100: ='F_Inputs Merged'!D102 -> £m | E100: ='F_Inputs Merged'!P102 -> 0 | F100: ='F_Inputs Merged'!Q102 -> 0 | G100: ='F_Inputs Merged'!R102 -> 0 | H100: ='F_Inputs Merged'!S102 -> 0 | I100: ='F_Inputs Merged'!T102 -> 0 | J100: ='F_Inputs Merged'!U102 -> 0 | K100: ='F_Inputs Merged'!V102 -> 0 | L100: =SUM(Table1[[#This Row],[2023-24]:[2029-30]]) -> 0
A101: ='F_Inputs Merged'!A103 -> TMS | B101: ='F_Inputs Merged'!B103 -> CWW12_123TOT_PR24 | C101: ='F_Inputs Merged'!C103 -> EA/NRW environmental programme wastewater (WINEP/NEP) - Restoration management (marine conservation zones etc) (WINEP/NEP) wastewater totex - Total | D101: ='F_Inputs Merged'!D103 -> £m | E101: ='F_Inputs Merged'!P103 -> 0 | F101: ='F_Inputs Merged'!Q103 -> 0 | G101: ='F_Inputs Merged'!R103 -> 0 | H101: ='F_Inputs Merged'!S103 -> 0 | I101: ='F_Inputs Merged'!T103 -> 0 | J101: ='F_Inputs Merged'!U103 -> 0 | K101: ='F_Inputs Merged'!V103 -> 0 | L101: =SUM(Table1[[#This Row],[2023-24]:[2029-30]]) -> 0
A102: ='F_Inputs Merged'!A104 -> TMS | B102: ='F_Inputs Merged'!B104 -> CWW17_121TOT_PR24 | C102: ='F_Inputs Merged'!C104 -> EA/NRW environmental programme wastewater (WINEP/NEP) - Restoration management (marine conservation zones etc) (WINEP/NEP) wastewater capex - Total | D102: ='F_Inputs Merged'!D104 -> £m | E102: ='F_Inputs Merged'!P104 -> 0 | F102: ='F_Inputs Merged'!Q104 -> 0 | G102: ='F_Inputs Merged'!R104 -> 0 | H102: ='F_Inputs Merged'!S104 -> 0 | I102: ='F_Inputs Merged'!T104 -> 0 | J102: ='F_Inputs Merged'!U104 -> 0 | K102: ='F_Inputs Merged'!V104 -> 0 | L102: =SUM(Table1[[#This Row],[2023-24]:[2029-30]]) -> 0
A103: ='F_Inputs Merged'!A105 -> TMS | B103: ='F_Inputs Merged'!B105 -> CWW17_122TOT_PR24 | C103: ='F_Inputs Merged'!C105 -> EA/NRW environmental programme wastewater (WINEP/NEP) - Restoration management (marine conservation zones etc) (WINEP/NEP) wastewater opex - Total | D103: ='F_Inputs Merged'!D105 -> £m | E103: ='F_Inputs Merged'!P105 -> 0 | F103: ='F_Inputs Merged'!Q105 -> 0 | G103: ='F_Inputs Merged'!R105 -> 0 | H103: ='F_Inputs Merged'!S105 -> 0 | I103: ='F_Inputs Merged'!T105 -> 0 | J103: ='F_Inputs Merged'!U105 -> 0 | K103: ='F_Inputs Merged'!V105 -> 0 | L103: =SUM(Table1[[#This Row],[2023-24]:[2029-30]]) -> 0
A104: ='F_Inputs Merged'!A106 -> TMS | B104: ='F_Inputs Merged'!B106 -> CWW17_123TOT_PR24 | C104: ='F_Inputs Merged'!C106 -> EA/NRW environmental programme wastewater (WINEP/NEP) - Restoration management (marine conservation zones etc) (WINEP/NEP) wastewater totex - Total | D104: ='F_Inputs Merged'!D106 -> £m | E104: ='F_Inputs Merged'!P106 -> 0 | F104: ='F_Inputs Merged'!Q106 -> 0 | G104: ='F_Inputs Merged'!R106 -> 0 | H104: ='F_Inputs Merged'!S106 -> 0 | I104: ='F_Inputs Merged'!T106 -> 0 | J104: ='F_Inputs Merged'!U106 -> 0 | K104: ='F_Inputs Merged'!V106 -> 0 | L104: =SUM(Table1[[#This Row],[2023-24]:[2029-30]]) -> 0
A105: ='F_Inputs Merged'!A107 -> TMS | B105: ='F_Inputs Merged'!B107 -> CWW20_070_PR24 | C105: ='F_Inputs Merged'!C107 -> Other data - Number of marine conservation zones (new and existing) | D105: ='F_Inputs Merged'!D107 -> nr | E105: ='F_Inputs Merged'!P107 -> 0 | F105: ='F_Inputs Merged'!Q107 -> 0 | G105: ='F_Inputs Merged'!R107 -> 0 | H105: ='F_Inputs Merged'!S107 -> 0 | I105: ='F_Inputs Merged'!T107 -> 0 | J105: ='F_Inputs Merged'!U107 -> 0 | K105: ='F_Inputs Merged'!V107 -> 0 | L105: =SUM(Table1[[#This Row],[2023-24]:[2029-30]]) -> 0
A106: ='F_Inputs Merged'!A108 -> TMS | B106: ='F_Inputs Merged'!B108 -> CWW20A_070_PR24 | C106: ='F_Inputs Merged'!C108 -> Other data - Number of marine conservation zones (new and existing) | D106: ='F_Inputs Merged'!D108 -> nr | E106: ='F_Inputs Merged'!P108 ->  | F106: ='F_Inputs Merged'!Q108 ->  | G106: ='F_Inputs Merged'!R108 -> 0 | H106: ='F_Inputs Merged'!S108 -> 0 | I106: ='F_Inputs Merged'!T108 -> 0 | J106: ='F_Inputs Merged'!U108 -> 0 | K106: ='F_Inputs Merged'!V108 -> 0 | L106: =SUM(Table1[[#This Row],[2023-24]:[2029-30]]) -> 0
A107: ='F_Inputs Merged'!A109 -> TMS | B107: ='F_Inputs Merged'!B109 -> PR24_E_WW123_TOTAL | C107: ='F_Inputs Merged'!C109 -> PR24 BP EA/NRW environmental programme wastewater (WINEP/NEP) - Restoration management (marine conservation zones etc) (WINEP/NEP) wastewater totex - Total inc. accelerated & transition costs | D107: ='F_Inputs Merged'!D109 -> £m | E107: ='F_Inputs Merged'!P109 -> 0 | F107: ='F_Inputs Merged'!Q109 -> 0 | G107: ='F_Inputs Merged'!R109 -> 0 | H107: ='F_Inputs Merged'!S109 -> 0 | I107: ='F_Inputs Merged'!T109 -> 0 | J107: ='F_Inputs Merged'!U109 -> 0 | K107: ='F_Inputs Merged'!V109 -> 0 | L107: =SUM(Table1[[#This Row],[2023-24]:[2029-30]]) -> 0
A108: ='F_Inputs Merged'!A110 -> TMS | B108: ='F_Inputs Merged'!B110 -> PR24_NETTOTEX_WASTE | C108: ='F_Inputs Merged'!C110 -> PR24 BP Net totex - Total inc. accelerated & transition costs | D108: ='F_Inputs Merged'!D110 -> £m | E108: ='F_Inputs Merged'!P110 -> 0 | F108: ='F_Inputs Merged'!Q110 -> 0 | G108: ='F_Inputs Merged'!R110 -> 0 | H108: ='F_Inputs Merged'!S110 -> 0 | I108: ='F_Inputs Merged'!T110 -> 0 | J108: ='F_Inputs Merged'!U110 -> 0 | K108: ='F_Inputs Merged'!V110 -> 0 | L108: =SUM(Table1[[#This Row],[2023-24]:[2029-30]]) -> 0
A109: ='F_Inputs Merged'!A111 -> NWT | B109: ='F_Inputs Merged'!B111 -> CWW3_121TOT_PR24 | C109: ='F_Inputs Merged'!C111 -> EA/NRW environmental programme wastewater (WINEP/NEP) - Restoration management (marine conservation zones etc) (WINEP/NEP) wastewater capex - Total | D109: ='F_Inputs Merged'!D111 -> £m | E109: ='F_Inputs Merged'!P111 -> 0 | F109: ='F_Inputs Merged'!Q111 -> 0 | G109: ='F_Inputs Merged'!R111 -> 0 | H109: ='F_Inputs Merged'!S111 -> 0 | I109: ='F_Inputs Merged'!T111 -> 0 | J109: ='F_Inputs Merged'!U111 -> 0 | K109: ='F_Inputs Merged'!V111 -> 0 | L109: =SUM(Table1[[#This Row],[2023-24]:[2029-30]]) -> 0
A110: ='F_Inputs Merged'!A112 -> NWT | B110: ='F_Inputs Merged'!B112 -> CWW3_122TOT_PR24 | C110: ='F_Inputs Merged'!C112 -> EA/NRW environmental programme wastewater (WINEP/NEP) - Restoration management (marine conservation zones etc) (WINEP/NEP) wastewater opex - Total | D110: ='F_Inputs Merged'!D112 -> £m | E110: ='F_Inputs Merged'!P112 -> 0 | F110: ='F_Inputs Merged'!Q112 -> 0 | G110: ='F_Inputs Merged'!R112 -> 0 | H110: ='F_Inputs Merged'!S112 -> 0 | I110: ='F_Inputs Merged'!T112 -> 0 | J110: ='F_Inputs Merged'!U112 -> 0 | K110: ='F_Inputs Merged'!V112 -> 0 | L110: =SUM(Table1[[#This Row],[2023-24]:[2029-30]]) -> 0
A111: ='F_Inputs Merged'!A113 -> NWT | B111: ='F_Inputs Merged'!B113 -> CWW3_123TOT_PR24 | C111: ='F_Inputs Merged'!C113 -> EA/NRW environmental programme wastewater (WINEP/NEP) - Restoration management (marine conservation zones etc) (WINEP/NEP) wastewater totex - Total | D111: ='F_Inputs Merged'!D113 -> £m | E111: ='F_Inputs Merged'!P113 -> 0 | F111: ='F_Inputs Merged'!Q113 -> 0 | G111: ='F_Inputs Merged'!R113 -> 0 | H111: ='F_Inputs Merged'!S113 -> 0 | I111: ='F_Inputs Merged'!T113 -> 0 | J111: ='F_Inputs Merged'!U113 -> 0 | K111: ='F_Inputs Merged'!V113 -> 0 | L111: =SUM(Table1[[#This Row],[2023-24]:[2029-30]]) -> 0
A112: ='F_Inputs Merged'!A114 -> NWT | B112: ='F_Inputs Merged'!B114 -> CWW12_121TOT_PR24 | C112: ='F_Inputs Merged'!C114 -> EA/NRW environmental programme wastewater (WINEP/NEP) - Restoration management (marine conservation zones etc) (WINEP/NEP) wastewater capex - Total | D112: ='F_Inputs Merged'!D114 -> £m | E112: ='F_Inputs Merged'!P114 -> 0 | F112: ='F_Inputs Merged'!Q114 -> 0 | G112: ='F_Inputs Merged'!R114 -> 0 | H112: ='F_Inputs Merged'!S114 -> 0 | I112: ='F_Inputs Merged'!T114 -> 0 | J112: ='F_Inputs Merged'!U114 -> 0 | K112: ='F_Inputs Merged'!V114 -> 0 | L112: =SUM(Table1[[#This Row],[2023-24]:[2029-30]]) -> 0
A113: ='F_Inputs Merged'!A115 -> NWT | B113: ='F_Inputs Merged'!B115 -> CWW12_122TOT_PR24 | C113: ='F_Inputs Merged'!C115 -> EA/NRW environmental programme wastewater (WINEP/NEP) - Restoration management (marine conservation zones etc) (WINEP/NEP) wastewater opex - Total | D113: ='F_Inputs Merged'!D115 -> £m | E113: ='F_Inputs Merged'!P115 -> 0 | F113: ='F_Inputs Merged'!Q115 -> 0 | G113: ='F_Inputs Merged'!R115 -> 0 | H113: ='F_Inputs Merged'!S115 -> 0 | I113: ='F_Inputs Merged'!T115 -> 0 | J113: ='F_Inputs Merged'!U115 -> 0 | K113: ='F_Inputs Merged'!V115 -> 0 | L113: =SUM(Table1[[#This Row],[2023-24]:[2029-30]]) -> 0
A114: ='F_Inputs Merged'!A116 -> NWT | B114: ='F_Inputs Merged'!B116 -> CWW12_123TOT_PR24 | C114: ='F_Inputs Merged'!C116 -> EA/NRW environmental programme wastewater (WINEP/NEP) - Restoration management (marine conservation zones etc) (WINEP/NEP) wastewater totex - Total | D114: ='F_Inputs Merged'!D116 -> £m | E114: ='F_Inputs Merged'!P116 -> 0 | F114: ='F_Inputs Merged'!Q116 -> 0 | G114: ='F_Inputs Merged'!R116 -> 0 | H114: ='F_Inputs Merged'!S116 -> 0 | I114: ='F_Inputs Merged'!T116 -> 0 | J114: ='F_Inputs Merged'!U116 -> 0 | K114: ='F_Inputs Merged'!V116 -> 0 | L114: =SUM(Table1[[#This Row],[2023-24]:[2029-30]]) -> 0
A115: ='F_Inputs Merged'!A117 -> NWT | B115: ='F_Inputs Merged'!B117 -> CWW17_121TOT_PR24 | C115: ='F_Inputs Merged'!C117 -> EA/NRW environmental programme wastewater (WINEP/NEP) - Restoration management (marine conservation zones etc) (WINEP/NEP) wastewater capex - Total | D115: ='F_Inputs Merged'!D117 -> £m | E115: ='F_Inputs Merged'!P117 -> 0 | F115: ='F_Inputs Merged'!Q117 -> 0 | G115: ='F_Inputs Merged'!R117 -> 0 | H115: ='F_Inputs Merged'!S117 -> 0 | I115: ='F_Inputs Merged'!T117 -> 0 | J115: ='F_Inputs Merged'!U117 -> 0 | K115: ='F_Inputs Merged'!V117 -> 0 | L115: =SUM(Table1[[#This Row],[2023-24]:[2029-30]]) -> 0
A116: ='F_Inputs Merged'!A118 -> NWT | B116: ='F_Inputs Merged'!B118 -> CWW17_122TOT_PR24 | C116: ='F_Inputs Merged'!C118 -> EA/NRW environmental programme wastewater (WINEP/NEP) - Restoration management (marine conservation zones etc) (WINEP/NEP) wastewater opex - Total | D116: ='F_Inputs Merged'!D118 -> £m | E116: ='F_Inputs Merged'!P118 -> 0 | F116: ='F_Inputs Merged'!Q118 -> 0 | G116: ='F_Inputs Merged'!R118 -> 0 | H116: ='F_Inputs Merged'!S118 -> 0 | I116: ='F_Inputs Merged'!T118 -> 0 | J116: ='F_Inputs Merged'!U118 -> 0 | K116: ='F_Inputs Merged'!V118 -> 0 | L116: =SUM(Table1[[#This Row],[2023-24]:[2029-30]]) -> 0
A117: ='F_Inputs Merged'!A119 -> NWT | B117: ='F_Inputs Merged'!B119 -> CWW17_123TOT_PR24 | C117: ='F_Inputs Merged'!C119 -> EA/NRW environmental programme wastewater (WINEP/NEP) - Restoration management (marine conservation zones etc) (WINEP/NEP) wastewater totex - Total | D117: ='F_Inputs Merged'!D119 -> £m | E117: ='F_Inputs Merged'!P119 -> 0 | F117: ='F_Inputs Merged'!Q119 -> 0 | G117: ='F_Inputs Merged'!R119 -> 0 | H117: ='F_Inputs Merged'!S119 -> 0 | I117: ='F_Inputs Merged'!T119 -> 0 | J117: ='F_Inputs Merged'!U119 -> 0 | K117: ='F_Inputs Merged'!V119 -> 0 | L117: =SUM(Table1[[#This Row],[2023-24]:[2029-30]]) -> 0
A118: ='F_Inputs Merged'!A120 -> NWT | B118: ='F_Inputs Merged'!B120 -> CWW20_070_PR24 | C118: ='F_Inputs Merged'!C120 -> Other data - Number of marine conservation zones (new and existing) | D118: ='F_Inputs Merged'!D120 -> nr | E118: ='F_Inputs Merged'!P120 -> 0 | F118: ='F_Inputs Merged'!Q120 -> 0 | G118: ='F_Inputs Merged'!R120 -> 0 | H118: ='F_Inputs Merged'!S120 -> 0 | I118: ='F_Inputs Merged'!T120 -> 0 | J118: ='F_Inputs Merged'!U120 -> 0 | K118: ='F_Inputs Merged'!V120 -> 0 | L118: =SUM(Table1[[#This Row],[2023-24]:[2029-30]]) -> 0
A119: ='F_Inputs Merged'!A121 -> NWT | B119: ='F_Inputs Merged'!B121 -> CWW20A_070_PR24 | C119: ='F_Inputs Merged'!C121 -> Other data - Number of marine conservation zones (new and existing) | D119: ='F_Inputs Merged'!D121 -> nr | E119: ='F_Inputs Merged'!P121 -> 0 | F119: ='F_Inputs Merged'!Q121 -> 0 | G119: ='F_Inputs Merged'!R121 -> 0 | H119: ='F_Inputs Merged'!S121 -> 0 | I119: ='F_Inputs Merged'!T121 -> 0 | J119: ='F_Inputs Merged'!U121 -> 0 | K119: ='F_Inputs Merged'!V121 -> 0 | L119: =SUM(Table1[[#This Row],[2023-24]:[2029-30]]) -> 0
A120: ='F_Inputs Merged'!A122 -> NWT | B120: ='F_Inputs Merged'!B122 -> PR24_E_WW123_TOTAL | C120: ='F_Inputs Merged'!C122 -> PR24 BP EA/NRW environmental programme wastewater (WINEP/NEP) - Restoration management (marine conservation zones etc) (WINEP/NEP) wastewater totex - Total inc. accelerated & transition costs | D120: ='F_Inputs Merged'!D122 -> £m | E120: ='F_Inputs Merged'!P122 -> 0 | F120: ='F_Inputs Merged'!Q122 -> 0 | G120: ='F_Inputs Merged'!R122 -> 0 | H120: ='F_Inputs Merged'!S122 -> 0 | I120: ='F_Inputs Merged'!T122 -> 0 | J120: ='F_Inputs Merged'!U122 -> 0 | K120: ='F_Inputs Merged'!V122 -> 0 | L120: =SUM(Table1[[#This Row],[2023-24]:[2029-30]]) -> 0
A121: ='F_Inputs Merged'!A123 -> NWT | B121: ='F_Inputs Merged'!B123 -> PR24_NETTOTEX_WASTE | C121: ='F_Inputs Merged'!C123 -> PR24 BP Net totex - Total inc. accelerated & transition costs | D121: ='F_Inputs Merged'!D123 -> £m | E121: ='F_Inputs Merged'!P123 -> 0 | F121: ='F_Inputs Merged'!Q123 -> 0 | G121: ='F_Inputs Merged'!R123 -> 0 | H121: ='F_Inputs Merged'!S123 -> 0 | I121: ='F_Inputs Merged'!T123 -> 0 | J121: ='F_Inputs Merged'!U123 -> 0 | K121: ='F_Inputs Merged'!V123 -> 0 | L121: =SUM(Table1[[#This Row],[2023-24]:[2029-30]]) -> 0
A122: ='F_Inputs Merged'!A124 -> WSX | B122: ='F_Inputs Merged'!B124 -> CWW3_121TOT_PR24 | C122: ='F_Inputs Merged'!C124 -> EA/NRW environmental programme wastewater (WINEP/NEP) - Restoration management (marine conservation zones etc) (WINEP/NEP) wastewater capex - Total | D122: ='F_Inputs Merged'!D124 -> £m | E122: ='F_Inputs Merged'!P124 -> 0 | F122: ='F_Inputs Merged'!Q124 -> 0 | G122: ='F_Inputs Merged'!R124 -> 0 | H122: ='F_Inputs Merged'!S124 -> 0 | I122: ='F_Inputs Merged'!T124 -> 0.515247 | J122: ='F_Inputs Merged'!U124 -> 2.970812 | K122: ='F_Inputs Merged'!V124 -> 4.273284 | L122: =SUM(Table1[[#This Row],[2023-24]:[2029-30]]) -> 7.759343
A123: ='F_Inputs Merged'!A125 -> WSX | B123: ='F_Inputs Merged'!B125 -> CWW3_122TOT_PR24 | C123: ='F_Inputs Merged'!C125 -> EA/NRW environmental programme wastewater (WINEP/NEP) - Restoration management (marine conservation zones etc) (WINEP/NEP) wastewater opex - Total | D123: ='F_Inputs Merged'!D125 -> £m | E123: ='F_Inputs Merged'!P125 -> 0 | F123: ='F_Inputs Merged'!Q125 -> 0 | G123: ='F_Inputs Merged'!R125 -> 0 | H123: ='F_Inputs Merged'!S125 -> 0 | I123: ='F_Inputs Merged'!T125 -> 0 | J123: ='F_Inputs Merged'!U125 -> 0 | K123: ='F_Inputs Merged'!V125 -> 0.108731 | L123: =SUM(Table1[[#This Row],[2023-24]:[2029-30]]) -> 0.108731
A124: ='F_Inputs Merged'!A126 -> WSX | B124: ='F_Inputs Merged'!B126 -> CWW3_123TOT_PR24 | C124: ='F_Inputs Merged'!C126 -> EA/NRW environmental programme wastewater (WINEP/NEP) - Restoration management (marine conservation zones etc) (WINEP/NEP) wastewater totex - Total | D124: ='F_Inputs Merged'!D126 -> £m | E124: ='F_Inputs Merged'!P126 -> 0 | F124: ='F_Inputs Merged'!Q126 -> 0 | G124: ='F_Inputs Merged'!R126 -> 0 | H124: ='F_Inputs Merged'!S126 -> 0 | I124: ='F_Inputs Merged'!T126 -> 0.515247 | J124: ='F_Inputs Merged'!U126 -> 2.970812 | K124: ='F_Inputs Merged'!V126 -> 4.382015 | L124: =SUM(Table1[[#This Row],[2023-24]:[2029-30]]) -> 7.868074
A125: ='F_Inputs Merged'!A127 -> WSX | B125: ='F_Inputs Merged'!B127 -> CWW12_121TOT_PR24 | C125: ='F_Inputs Merged'!C127 -> EA/NRW environmental programme wastewater (WINEP/NEP) - Restoration management (marine conservation zones etc) (WINEP/NEP) wastewater capex - Total | D125: ='F_Inputs Merged'!D127 -> £m | E125: ='F_Inputs Merged'!P127 -> 0 | F125: ='F_Inputs Merged'!Q127 -> 0 | G125: ='F_Inputs Merged'!R127 -> 0 | H125: ='F_Inputs Merged'!S127 -> 0 | I125: ='F_Inputs Merged'!T127 -> 0 | J125: ='F_Inputs Merged'!U127 -> 0 | K125: ='F_Inputs Merged'!V127 -> 0 | L125: =SUM(Table1[[#This Row],[2023-24]:[2029-30]]) -> 0
A126: ='F_Inputs Merged'!A128 -> WSX | B126: ='F_Inputs Merged'!B128 -> CWW12_122TOT_PR24 | C126: ='F_Inputs Merged'!C128 -> EA/NRW environmental programme wastewater (WINEP/NEP) - Restoration management (marine conservation zones etc) (WINEP/NEP) wastewater opex - Total | D126: ='F_Inputs Merged'!D128 -> £m | E126: ='F_Inputs Merged'!P128 -> 0 | F126: ='F_Inputs Merged'!Q128 -> 0 | G126: ='F_Inputs Merged'!R128 -> 0 | H126: ='F_Inputs Merged'!S128 -> 0 | I126: ='F_Inputs Merged'!T128 -> 0 | J126: ='F_Inputs Merged'!U128 -> 0 | K126: ='F_Inputs Merged'!V128 -> 0 | L126: =SUM(Table1[[#This Row],[2023-24]:[2029-30]]) -> 0
A127: ='F_Inputs Merged'!A129 -> WSX | B127: ='F_Inputs Merged'!B129 -> CWW12_123TOT_PR24 | C127: ='F_Inputs Merged'!C129 -> EA/NRW environmental programme wastewater (WINEP/NEP) - Restoration management (marine conservation zones etc) (WINEP/NEP) wastewater totex - Total | D127: ='F_Inputs Merged'!D129 -> £m | E127: ='F_Inputs Merged'!P129 -> 0 | F127: ='F_Inputs Merged'!Q129 -> 0 | G127: ='F_Inputs Merged'!R129 -> 0 | H127: ='F_Inputs Merged'!S129 -> 0 | I127: ='F_Inputs Merged'!T129 -> 0 | J127: ='F_Inputs Merged'!U129 -> 0 | K127: ='F_Inputs Merged'!V129 -> 0 | L127: =SUM(Table1[[#This Row],[2023-24]:[2029-30]]) -> 0
A128: ='F_Inputs Merged'!A130 -> WSX | B128: ='F_Inputs Merged'!B130 -> CWW17_121TOT_PR24 | C128: ='F_Inputs Merged'!C130 -> EA/NRW environmental programme wastewater (WINEP/NEP) - Restoration management (marine conservation zones etc) (WINEP/NEP) wastewater capex - Total | D128: ='F_Inputs Merged'!D130 -> £m | E128: ='F_Inputs Merged'!P130 -> 0 | F128: ='F_Inputs Merged'!Q130 -> 0 | G128: ='F_Inputs Merged'!R130 -> 0 | H128: ='F_Inputs Merged'!S130 -> 0 | I128: ='F_Inputs Merged'!T130 -> 0 | J128: ='F_Inputs Merged'!U130 -> 0 | K128: ='F_Inputs Merged'!V130 -> 0 | L128: =SUM(Table1[[#This Row],[2023-24]:[2029-30]]) -> 0
A129: ='F_Inputs Merged'!A131 -> WSX | B129: ='F_Inputs Merged'!B131 -> CWW17_122TOT_PR24 | C129: ='F_Inputs Merged'!C131 -> EA/NRW environmental programme wastewater (WINEP/NEP) - Restoration management (marine conservation zones etc) (WINEP/NEP) wastewater opex - Total | D129: ='F_Inputs Merged'!D131 -> £m | E129: ='F_Inputs Merged'!P131 -> 0 | F129: ='F_Inputs Merged'!Q131 -> 0 | G129: ='F_Inputs Merged'!R131 -> 0 | H129: ='F_Inputs Merged'!S131 -> 0 | I129: ='F_Inputs Merged'!T131 -> 0 | J129: ='F_Inputs Merged'!U131 -> 0 | K129: ='F_Inputs Merged'!V131 -> 0 | L129: =SUM(Table1[[#This Row],[2023-24]:[2029-30]]) -> 0
A130: ='F_Inputs Merged'!A132 -> WSX | B130: ='F_Inputs Merged'!B132 -> CWW17_123TOT_PR24 | C130: ='F_Inputs Merged'!C132 -> EA/NRW environmental programme wastewater (WINEP/NEP) - Restoration management (marine conservation zones etc) (WINEP/NEP) wastewater totex - Total | D130: ='F_Inputs Merged'!D132 -> £m | E130: ='F_Inputs Merged'!P132 -> 0 | F130: ='F_Inputs Merged'!Q132 -> 0 | G130: ='F_Inputs Merged'!R132 -> 0 | H130: ='F_Inputs Merged'!S132 -> 0 | I130: ='F_Inputs Merged'!T132 -> 0 | J130: ='F_Inputs Merged'!U132 -> 0 | K130: ='F_Inputs Merged'!V132 -> 0 | L130: =SUM(Table1[[#This Row],[2023-24]:[2029-30]]) -> 0
A131: ='F_Inputs Merged'!A133 -> WSX | B131: ='F_Inputs Merged'!B133 -> CWW20_070_PR24 | C131: ='F_Inputs Merged'!C133 -> Other data - Number of marine conservation zones (new and existing) | D131: ='F_Inputs Merged'!D133 -> nr | E131: ='F_Inputs Merged'!P133 -> 0 | F131: ='F_Inputs Merged'!Q133 -> 0 | G131: ='F_Inputs Merged'!R133 -> 0 | H131: ='F_Inputs Merged'!S133 -> 0 | I131: ='F_Inputs Merged'!T133 -> 0 | J131: ='F_Inputs Merged'!U133 -> 0 | K131: ='F_Inputs Merged'!V133 -> 0 | L131: =SUM(Table1[[#This Row],[2023-24]:[2029-30]]) -> 0
A132: ='F_Inputs Merged'!A134 -> WSX | B132: ='F_Inputs Merged'!B134 -> CWW20A_070_PR24 | C132: ='F_Inputs Merged'!C134 -> Other data - Number of marine conservation zones (new and existing) | D132: ='F_Inputs Merged'!D134 -> nr | E132: ='F_Inputs Merged'!P134 ->  | F132: ='F_Inputs Merged'!Q134 ->  | G132: ='F_Inputs Merged'!R134 -> 0 | H132: ='F_Inputs Merged'!S134 -> 0 | I132: ='F_Inputs Merged'!T134 -> 0 | J132: ='F_Inputs Merged'!U134 -> 0 | K132: ='F_Inputs Merged'!V134 -> 0 | L132: =SUM(Table1[[#This Row],[2023-24]:[2029-30]]) -> 0
A133: ='F_Inputs Merged'!A135 -> WSX | B133: ='F_Inputs Merged'!B135 -> PR24_E_WW123_TOTAL | C133: ='F_Inputs Merged'!C135 -> PR24 BP EA/NRW environmental programme wastewater (WINEP/NEP) - Restoration management (marine conservation zones etc) (WINEP/NEP) wastewater totex - Total inc. accelerated & transition costs | D133: ='F_Inputs Merged'!D135 -> £m | E133: ='F_Inputs Merged'!P135 -> 0 | F133: ='F_Inputs Merged'!Q135 -> 0 | G133: ='F_Inputs Merged'!R135 -> 0 | H133: ='F_Inputs Merged'!S135 -> 0 | I133: ='F_Inputs Merged'!T135 -> 0 | J133: ='F_Inputs Merged'!U135 -> 0 | K133: ='F_Inputs Merged'!V135 -> 0 | L133: =SUM(Table1[[#This Row],[2023-24]:[2029-30]]) -> 0
A134: ='F_Inputs Merged'!A136 -> WSX | B134: ='F_Inputs Merged'!B136 -> PR24_NETTOTEX_WASTE | C134: ='F_Inputs Merged'!C136 -> PR24 BP Net totex - Total inc. accelerated & transition costs | D134: ='F_Inputs Merged'!D136 -> £m | E134: ='F_Inputs Merged'!P136 -> 0 | F134: ='F_Inputs Merged'!Q136 -> 0 | G134: ='F_Inputs Merged'!R136 -> 0 | H134: ='F_Inputs Merged'!S136 -> 0 | I134: ='F_Inputs Merged'!T136 -> 0 | J134: ='F_Inputs Merged'!U136 -> 0 | K134: ='F_Inputs Merged'!V136 -> 0 | L134: =SUM(Table1[[#This Row],[2023-24]:[2029-30]]) -> 0
A135: ='F_Inputs Merged'!A137 -> YKY | B135: ='F_Inputs Merged'!B137 -> CWW3_121TOT_PR24 | C135: ='F_Inputs Merged'!C137 -> EA/NRW environmental programme wastewater (WINEP/NEP) - Restoration management (marine conservation zones etc) (WINEP/NEP) wastewater capex - Total | D135: ='F_Inputs Merged'!D137 -> £m | E135: ='F_Inputs Merged'!P137 -> 0 | F135: ='F_Inputs Merged'!Q137 -> 0 | G135: ='F_Inputs Merged'!R137 -> 0 | H135: ='F_Inputs Merged'!S137 -> 0 | I135: ='F_Inputs Merged'!T137 -> 0 | J135: ='F_Inputs Merged'!U137 -> 0 | K135: ='F_Inputs Merged'!V137 -> 0 | L135: =SUM(Table1[[#This Row],[2023-24]:[2029-30]]) -> 0
A136: ='F_Inputs Merged'!A138 -> YKY | B136: ='F_Inputs Merged'!B138 -> CWW3_122TOT_PR24 | C136: ='F_Inputs Merged'!C138 -> EA/NRW environmental programme wastewater (WINEP/NEP) - Restoration management (marine conservation zones etc) (WINEP/NEP) wastewater opex - Total | D136: ='F_Inputs Merged'!D138 -> £m | E136: ='F_Inputs Merged'!P138 -> 0 | F136: ='F_Inputs Merged'!Q138 -> 0 | G136: ='F_Inputs Merged'!R138 -> 0 | H136: ='F_Inputs Merged'!S138 -> 0 | I136: ='F_Inputs Merged'!T138 -> 0 | J136: ='F_Inputs Merged'!U138 -> 0 | K136: ='F_Inputs Merged'!V138 -> 0 | L136: =SUM(Table1[[#This Row],[2023-24]:[2029-30]]) -> 0
A137: ='F_Inputs Merged'!A139 -> YKY | B137: ='F_Inputs Merged'!B139 -> CWW3_123TOT_PR24 | C137: ='F_Inputs Merged'!C139 -> EA/NRW environmental programme wastewater (WINEP/NEP) - Restoration management (marine conservation zones etc) (WINEP/NEP) wastewater totex - Total | D137: £m | E137: ='F_Inputs Merged'!P139 -> 0 | F137: ='F_Inputs Merged'!Q139 -> 0 | G137: ='F_Inputs Merged'!R139 -> 0 | H137: ='F_Inputs Merged'!S139 -> 0 | I137: ='F_Inputs Merged'!T139 -> 0 | J137: ='F_Inputs Merged'!U139 -> 0 | K137: ='F_Inputs Merged'!V139 -> 0 | L137: =SUM(Table1[[#This Row],[2023-24]:[2029-30]]) -> 0
A138: ='F_Inputs Merged'!A140 -> YKY | B138: ='F_Inputs Merged'!B140 -> CWW12_121TOT_PR24 | C138: ='F_Inputs Merged'!C140 -> EA/NRW environmental programme wastewater (WINEP/NEP) - Restoration management (marine conservation zones etc) (WINEP/NEP) wastewater capex - Total | D138: £m | E138: ='F_Inputs Merged'!P140 -> 0 | F138: ='F_Inputs Merged'!Q140 -> 0 | G138: ='F_Inputs Merged'!R140 -> 0 | H138: ='F_Inputs Merged'!S140 -> 0 | I138: ='F_Inputs Merged'!T140 -> 0 | J138: ='F_Inputs Merged'!U140 -> 0 | K138: ='F_Inputs Merged'!V140 -> 0 | L138: =SUM(Table1[[#This Row],[2023-24]:[2029-30]]) -> 0
A139: ='F_Inputs Merged'!A141 -> YKY | B139: ='F_Inputs Merged'!B141 -> CWW12_122TOT_PR24 | C139: ='F_Inputs Merged'!C141 -> EA/NRW environmental programme wastewater (WINEP/NEP) - Restoration management (marine conservation zones etc) (WINEP/NEP) wastewater opex - Total | D139: £m | E139: ='F_Inputs Merged'!P141 -> 0 | F139: ='F_Inputs Merged'!Q141 -> 0 | G139: ='F_Inputs Merged'!R141 -> 0 | H139: ='F_Inputs Merged'!S141 -> 0 | I139: ='F_Inputs Merged'!T141 -> 0 | J139: ='F_Inputs Merged'!U141 -> 0 | K139: ='F_Inputs Merged'!V141 -> 0 | L139: =SUM(Table1[[#This Row],[2023-24]:[2029-30]]) -> 0
A140: ='F_Inputs Merged'!A142 -> YKY | B140: ='F_Inputs Merged'!B142 -> CWW12_123TOT_PR24 | C140: ='F_Inputs Merged'!C142 -> EA/NRW environmental programme wastewater (WINEP/NEP) - Restoration management (marine conservation zones etc) (WINEP/NEP) wastewater totex - Total | D140: £m | E140: ='F_Inputs Merged'!P142 -> 0 | F140: ='F_Inputs Merged'!Q142 -> 0 | G140: ='F_Inputs Merged'!R142 -> 0 | H140: ='F_Inputs Merged'!S142 -> 0 | I140: ='F_Inputs Merged'!T142 -> 0 | J140: ='F_Inputs Merged'!U142 -> 0 | K140: ='F_Inputs Merged'!V142 -> 0 | L140: =SUM(Table1[[#This Row],[2023-24]:[2029-30]]) -> 0
A141: ='F_Inputs Merged'!A143 -> YKY | B141: ='F_Inputs Merged'!B143 -> CWW17_121TOT_PR24 | C141: ='F_Inputs Merged'!C143 -> EA/NRW environmental programme wastewater (WINEP/NEP) - Restoration management (marine conservation zones etc) (WINEP/NEP) wastewater capex - Total | D141: £m | E141: ='F_Inputs Merged'!P143 -> 0 | F141: ='F_Inputs Merged'!Q143 -> 0 | G141: ='F_Inputs Merged'!R143 -> 0 | H141: ='F_Inputs Merged'!S143 -> 0 | I141: ='F_Inputs Merged'!T143 -> 0 | J141: ='F_Inputs Merged'!U143 -> 0 | K141: ='F_Inputs Merged'!V143 -> 0 | L141: =SUM(Table1[[#This Row],[2023-24]:[2029-30]]) -> 0
A142: ='F_Inputs Merged'!A144 -> YKY | B142: ='F_Inputs Merged'!B144 -> CWW17_122TOT_PR24 | C142: ='F_Inputs Merged'!C144 -> EA/NRW environmental programme wastewater (WINEP/NEP) - Restoration management (marine conservation zones etc) (WINEP/NEP) wastewater opex - Total | D142: £m | E142: ='F_Inputs Merged'!P144 -> 0 | F142: ='F_Inputs Merged'!Q144 -> 0 | G142: ='F_Inputs Merged'!R144 -> 0 | H142: ='F_Inputs Merged'!S144 -> 0 | I142: ='F_Inputs Merged'!T144 -> 0 | J142: ='F_Inputs Merged'!U144 -> 0 | K142: ='F_Inputs Merged'!V144 -> 0 | L142: =SUM(Table1[[#This Row],[2023-24]:[2029-30]]) -> 0
A143: ='F_Inputs Merged'!A145 -> YKY | B143: ='F_Inputs Merged'!B145 -> CWW17_123TOT_PR24 | C143: ='F_Inputs Merged'!C145 -> EA/NRW environmental programme wastewater (WINEP/NEP) - Restoration management (marine conservation zones etc) (WINEP/NEP) wastewater totex - Total | D143: £m | E143: ='F_Inputs Merged'!P145 -> 0 | F143: ='F_Inputs Merged'!Q145 -> 0 | G143: ='F_Inputs Merged'!R145 -> 0 | H143: ='F_Inputs Merged'!S145 -> 0 | I143: ='F_Inputs Merged'!T145 -> 0 | J143: ='F_Inputs Merged'!U145 -> 0 | K143: ='F_Inputs Merged'!V145 -> 0 | L143: =SUM(Table1[[#This Row],[2023-24]:[2029-30]]) -> 0
A144: ='F_Inputs Merged'!A146 -> YKY | B144: ='F_Inputs Merged'!B146 -> CWW20_070_PR24 | C144: ='F_Inputs Merged'!C146 -> Other data - Number of marine conservation zones (new and existing) | D144: £m | E144: ='F_Inputs Merged'!P146 -> 0 | F144: ='F_Inputs Merged'!Q146 -> 0 | G144: ='F_Inputs Merged'!R146 -> 0 | H144: ='F_Inputs Merged'!S146 -> 0 | I144: ='F_Inputs Merged'!T146 -> 0 | J144: ='F_Inputs Merged'!U146 -> 0 | K144: ='F_Inputs Merged'!V146 -> 0 | L144: =SUM(Table1[[#This Row],[2023-24]:[2029-30]]) -> 0
A145: ='F_Inputs Merged'!A147 -> YKY | B145: ='F_Inputs Merged'!B147 -> CWW20A_070_PR24 | C145: ='F_Inputs Merged'!C147 -> Other data - Number of marine conservation zones (new and existing) | D145: £m | E145: ='F_Inputs Merged'!P147 ->  | F145: ='F_Inputs Merged'!Q147 ->  | G145: ='F_Inputs Merged'!R147 -> 0 | H145: ='F_Inputs Merged'!S147 -> 0 | I145: ='F_Inputs Merged'!T147 -> 0 | J145: ='F_Inputs Merged'!U147 -> 0 | K145: ='F_Inputs Merged'!V147 -> 0 | L145: =SUM(Table1[[#This Row],[2023-24]:[2029-30]]) -> 0
A146: ='F_Inputs Merged'!A148 -> YKY | B146: ='F_Inputs Merged'!B148 -> PR24_E_WW123_TOTAL | C146: ='F_Inputs Merged'!C148 -> PR24 BP EA/NRW environmental programme wastewater (WINEP/NEP) - Restoration management (marine conservation zones etc) (WINEP/NEP) wastewater totex - Total inc. accelerated & transition costs | D146: 000s | E146: ='F_Inputs Merged'!P148 -> 0 | F146: ='F_Inputs Merged'!Q148 -> 0 | G146: ='F_Inputs Merged'!R148 -> 0 | H146: ='F_Inputs Merged'!S148 -> 0 | I146: ='F_Inputs Merged'!T148 -> 0 | J146: ='F_Inputs Merged'!U148 -> 0 | K146: ='F_Inputs Merged'!V148 -> 0 | L146: =SUM(Table1[[#This Row],[2023-24]:[2029-30]]) -> 0
A147: ='F_Inputs Merged'!A149 -> YKY | B147: ='F_Inputs Merged'!B149 -> PR24_NETTOTEX_WASTE | C147: ='F_Inputs Merged'!C149 -> PR24 BP Net totex - Total inc. accelerated & transition costs | D147: 000s | E147: ='F_Inputs Merged'!P149 -> 0 | F147: ='F_Inputs Merged'!Q149 -> 0 | G147: ='F_Inputs Merged'!R149 -> 0 | H147: ='F_Inputs Merged'!S149 -> 0 | I147: ='F_Inputs Merged'!T149 -> 0 | J147: ='F_Inputs Merged'!U149 -> 0 | K147: ='F_Inputs Merged'!V149 -> 0 | L147: =SUM(Table1[[#This Row],[2023-24]:[2029-30]]) -> 0

Sheet F_Input Override
A1: =RIGHT(CELL("filename", $A$1), LEN(CELL("filename", $A$1)) - SEARCH("]", CELL("filename", $A$1))) -> F_Input Override
A4: Acronym | B4: Item Description | C4: Unit | D4: 2023-24 | E4: 2024-25 | F4: 2025-26 | G4: 2026-27 | H4: 2027-28 | I4: 2028-29 | J4: 2029-30
A5: ='Consolidated Input'!A5 -> ANH | B5: ='Consolidated Input'!C5 -> EA/NRW environmental programme wastewater (WINEP/NEP) - Restoration management (marine conservation zones etc) (WINEP/NEP) wastewater capex - Total | C5: ='Consolidated Input'!D5 -> £m
A6: ='Consolidated Input'!A6 -> ANH | B6: ='Consolidated Input'!C6 -> EA/NRW environmental programme wastewater (WINEP/NEP) - Restoration management (marine conservation zones etc) (WINEP/NEP) wastewater opex - Total | C6: ='Consolidated Input'!D6 -> £m
A7: ='Consolidated Input'!A7 -> ANH | B7: ='Consolidated Input'!C7 -> EA/NRW environmental programme wastewater (WINEP/NEP) - Restoration management (marine conservation zones etc) (WINEP/NEP) wastewater totex - Total | C7: ='Consolidated Input'!D7 -> £m
A8: ='Consolidated Input'!A8 -> ANH | B8: ='Consolidated Input'!C8 -> EA/NRW environmental programme wastewater (WINEP/NEP) - Restoration management (marine conservation zones etc) (WINEP/NEP) wastewater capex - Total | C8: ='Consolidated Input'!D8 -> £m
A9: ='Consolidated Input'!A9 -> ANH | B9: ='Consolidated Input'!C9 -> EA/NRW environmental programme wastewater (WINEP/NEP) - Restoration management (marine conservation zones etc) (WINEP/NEP) wastewater opex - Total | C9: ='Consolidated Input'!D9 -> £m
A10: ='Consolidated Input'!A10 -> ANH | B10: ='Consolidated Input'!C10 -> EA/NRW environmental programme wastewater (WINEP/NEP) - Restoration management (marine conservation zones etc) (WINEP/NEP) wastewater totex - Total | C10: ='Consolidated Input'!D10 -> £m
A11: ='Consolidated Input'!A11 -> ANH | B11: ='Consolidated Input'!C11 -> EA/NRW environmental programme wastewater (WINEP/NEP) - Restoration management (marine conservation zones etc) (WINEP/NEP) wastewater capex - Total | C11: ='Consolidated Input'!D11 -> £m
A12: ='Consolidated Input'!A12 -> ANH | B12: ='Consolidated Input'!C12 -> EA/NRW environmental programme wastewater (WINEP/NEP) - Restoration management (marine conservation zones etc) (WINEP/NEP) wastewater opex - Total | C12: ='Consolidated Input'!D12 -> £m
A13: ='Consolidated Input'!A13 -> ANH | B13: ='Consolidated Input'!C13 -> EA/NRW environmental programme wastewater (WINEP/NEP) - Restoration management (marine conservation zones etc) (WINEP/NEP) wastewater totex - Total | C13: ='Consolidated Input'!D13 -> £m
A14: ='Consolidated Input'!A14 -> ANH | B14: ='Consolidated Input'!C14 -> Other data - Number of marine conservation zones (new and existing) | C14: ='Consolidated Input'!D14 -> nr
A15: ='Consolidated Input'!A15 -> ANH | B15: ='Consolidated Input'!C15 -> Other data - Number of marine conservation zones (new and existing) | C15: ='Consolidated Input'!D15 -> nr
A16: ='Consolidated Input'!A16 -> ANH | B16: ='Consolidated Input'!C16 -> PR24 BP EA/NRW environmental programme wastewater (WINEP/NEP) - Restoration management (marine conservation zones etc) (WINEP/NEP) wastewater totex - Total inc. accelerated & transition costs | C16: ='Consolidated Input'!D16 -> £m
A17: ='Consolidated Input'!A17 -> ANH | B17: ='Consolidated Input'!C17 -> PR24 BP Net totex - Total inc. accelerated & transition costs | C17: ='Consolidated Input'!D17 -> £m
A18: ='Consolidated Input'!A18 -> WSH | B18: ='Consolidated Input'!C18 -> EA/NRW environmental programme wastewater (WINEP/NEP) - Restoration management (marine conservation zones etc) (WINEP/NEP) wastewater capex - Total | C18: ='Consolidated Input'!D18 -> £m
A19: ='Consolidated Input'!A19 -> WSH | B19: ='Consolidated Input'!C19 -> EA/NRW environmental programme wastewater (WINEP/NEP) - Restoration management (marine conservation zones etc) (WINEP/NEP) wastewater opex - Total | C19: ='Consolidated Input'!D19 -> £m
A20: ='Consolidated Input'!A20 -> WSH | B20: ='Consolidated Input'!C20 -> EA/NRW environmental programme wastewater (WINEP/NEP) - Restoration management (marine conservation zones etc) (WINEP/NEP) wastewater totex - Total | C20: ='Consolidated Input'!D20 -> £m
A21: ='Consolidated Input'!A21 -> WSH | B21: ='Consolidated Input'!C21 -> EA/NRW environmental programme wastewater (WINEP/NEP) - Restoration management (marine conservation zones etc) (WINEP/NEP) wastewater capex - Total | C21: ='Consolidated Input'!D21 -> £m
A22: ='Consolidated Input'!A22 -> WSH | B22: ='Consolidated Input'!C22 -> EA/NRW environmental programme wastewater (WINEP/NEP) - Restoration management (marine conservation zones etc) (WINEP/NEP) wastewater opex - Total | C22: ='Consolidated Input'!D22 -> £m
A23: ='Consolidated Input'!A23 -> WSH | B23: ='Consolidated Input'!C23 -> EA/NRW environmental programme wastewater (WINEP/NEP) - Restoration management (marine conservation zones etc) (WINEP/NEP) wastewater totex - Total | C23: ='Consolidated Input'!D23 -> £m
A24: ='Consolidated Input'!A24 -> WSH | B24: ='Consolidated Input'!C24 -> EA/NRW environmental programme wastewater (WINEP/NEP) - Restoration management (marine conservation zones etc) (WINEP/NEP) wastewater capex - Total | C24: ='Consolidated Input'!D24 -> £m
A25: ='Consolidated Input'!A25 -> WSH | B25: ='Consolidated Input'!C25 -> EA/NRW environmental programme wastewater (WINEP/NEP) - Restoration management (marine conservation zones etc) (WINEP/NEP) wastewater opex - Total | C25: ='Consolidated Input'!D25 -> £m
A26: ='Consolidated Input'!A26 -> WSH | B26: ='Consolidated Input'!C26 -> EA/NRW environmental programme wastewater (WINEP/NEP) - Restoration management (marine conservation zones etc) (WINEP/NEP) wastewater totex - Total | C26: ='Consolidated Input'!D26 -> £m
A27: ='Consolidated Input'!A27 -> WSH | B27: ='Consolidated Input'!C27 -> Other data - Number of marine conservation zones (new and existing) | C27: ='Consolidated Input'!D27 -> nr
A28: ='Consolidated Input'!A28 -> WSH | B28: ='Consolidated Input'!C28 -> Other data - Number of marine conservation zones (new and existing) | C28: ='Consolidated Input'!D28 -> nr
A29: ='Consolidated Input'!A29 -> WSH | B29: ='Consolidated Input'!C29 -> PR24 BP EA/NRW environmental programme wastewater (WINEP/NEP) - Restoration management (marine conservation zones etc) (WINEP/NEP) wastewater totex - Total inc. accelerated & transition costs | C29: ='Consolidated Input'!D29 -> £m
A30: ='Consolidated Input'!A30 -> WSH | B30: ='Consolidated Input'!C30 -> PR24 BP Net totex - Total inc. accelerated & transition costs | C30: ='Consolidated Input'!D30 -> £m
A31: ='Consolidated Input'!A31 -> HDD | B31: ='Consolidated Input'!C31 -> EA/NRW environmental programme wastewater (WINEP/NEP) - Restoration management (marine conservation zones etc) (WINEP/NEP) wastewater capex - Total | C31: ='Consolidated Input'!D31 -> £m
A32: ='Consolidated Input'!A32 -> HDD | B32: ='Consolidated Input'!C32 -> EA/NRW environmental programme wastewater (WINEP/NEP) - Restoration management (marine conservation zones etc) (WINEP/NEP) wastewater opex - Total | C32: ='Consolidated Input'!D32 -> £m
A33: ='Consolidated Input'!A33 -> HDD | B33: ='Consolidated Input'!C33 -> EA/NRW environmental programme wastewater (WINEP/NEP) - Restoration management (marine conservation zones etc) (WINEP/NEP) wastewater totex - Total | C33: ='Consolidated Input'!D33 -> £m
A34: ='Consolidated Input'!A34 -> HDD | B34: ='Consolidated Input'!C34 -> EA/NRW environmental programme wastewater (WINEP/NEP) - Restoration management (marine conservation zones etc) (WINEP/NEP) wastewater capex - Total | C34: ='Consolidated Input'!D34 -> £m
A35: ='Consolidated Input'!A35 -> HDD | B35: ='Consolidated Input'!C35 -> EA/NRW environmental programme wastewater (WINEP/NEP) - Restoration management (marine conservation zones etc) (WINEP/NEP) wastewater opex - Total | C35: ='Consolidated Input'!D35 -> £m
A36: ='Consolidated Input'!A36 -> HDD | B36: ='Consolidated Input'!C36 -> EA/NRW environmental programme wastewater (WINEP/NEP) - Restoration management (marine conservation zones etc) (WINEP/NEP) wastewater totex - Total | C36: ='Consolidated Input'!D36 -> £m
A37: ='Consolidated Input'!A37 -> HDD | B37: ='Consolidated Input'!C37 -> EA/NRW environmental programme wastewater (WINEP/NEP) - Restoration management (marine conservation zones etc) (WINEP/NEP) wastewater capex - Total | C37: ='Consolidated Input'!D37 -> £m
A38: ='Consolidated Input'!A38 -> HDD | B38: ='Consolidated Input'!C38 -> EA/NRW environmental programme wastewater (WINEP/NEP) - Restoration management (marine conservation zones etc) (WINEP/NEP) wastewater opex - Total | C38: ='Consolidated Input'!D38 -> £m
A39: ='Consolidated Input'!A39 -> HDD | B39: ='Consolidated Input'!C39 -> EA/NRW environmental programme wastewater (WINEP/NEP) - Restoration management (marine conservation zones etc) (WINEP/NEP) wastewater totex - Total | C39: ='Consolidated Input'!D39 -> £m
A40: ='Consolidated Input'!A40 -> HDD | B40: ='Consolidated Input'!C40 -> Other data - Number of marine conservation zones (new and existing) | C40: ='Consolidated Input'!D40 -> nr
A41: ='Consolidated Input'!A41 -> HDD | B41: ='Consolidated Input'!C41 -> Other data - Number of marine conservation zones (new and existing) | C41: ='Consolidated Input'!D41 -> nr
A42: ='Consolidated Input'!A42 -> HDD | B42: ='Consolidated Input'!C42 -> PR24 BP EA/NRW environmental programme wastewater (WINEP/NEP) - Restoration management (marine conservation zones etc) (WINEP/NEP) wastewater totex - Total inc. accelerated & transition costs | C42: ='Consolidated Input'!D42 -> £m
A43: ='Consolidated Input'!A43 -> HDD | B43: ='Consolidated Input'!C43 -> PR24 BP Net totex - Total inc. accelerated & transition costs | C43: ='Consolidated Input'!D43 -> £m
A44: ='Consolidated Input'!A44 -> NES | B44: ='Consolidated Input'!C44 -> EA/NRW environmental programme wastewater (WINEP/NEP) - Restoration management (marine conservation zones etc) (WINEP/NEP) wastewater capex - Total | C44: ='Consolidated Input'!D44 -> £m
A45: ='Consolidated Input'!A45 -> NES | B45: ='Consolidated Input'!C45 -> EA/NRW environmental programme wastewater (WINEP/NEP) - Restoration management (marine conservation zones etc) (WINEP/NEP) wastewater opex - Total | C45: ='Consolidated Input'!D45 -> £m
A46: ='Consolidated Input'!A46 -> NES | B46: ='Consolidated Input'!C46 -> EA/NRW environmental programme wastewater (WINEP/NEP) - Restoration management (marine conservation zones etc) (WINEP/NEP) wastewater totex - Total | C46: ='Consolidated Input'!D46 -> £m
A47: ='Consolidated Input'!A47 -> NES | B47: ='Consolidated Input'!C47 -> EA/NRW environmental programme wastewater (WINEP/NEP) - Restoration management (marine conservation zones etc) (WINEP/NEP) wastewater capex - Total | C47: ='Consolidated Input'!D47 -> £m
A48: ='Consolidated Input'!A48 -> NES | B48: ='Consolidated Input'!C48 -> EA/NRW environmental programme wastewater (WINEP/NEP) - Restoration management (marine conservation zones etc) (WINEP/NEP) wastewater opex - Total | C48: ='Consolidated Input'!D48 -> £m
A49: ='Consolidated Input'!A49 -> NES | B49: ='Consolidated Input'!C49 -> EA/NRW environmental programme wastewater (WINEP/NEP) - Restoration management (marine conservation zones etc) (WINEP/NEP) wastewater totex - Total | C49: ='Consolidated Input'!D49 -> £m
A50: ='Consolidated Input'!A50 -> NES | B50: ='Consolidated Input'!C50 -> EA/NRW environmental programme wastewater (WINEP/NEP) - Restoration management (marine conservation zones etc) (WINEP/NEP) wastewater capex - Total | C50: ='Consolidated Input'!D50 -> £m
A51: ='Consolidated Input'!A51 -> NES | B51: ='Consolidated Input'!C51 -> EA/NRW environmental programme wastewater (WINEP/NEP) - Restoration management (marine conservation zones etc) (WINEP/NEP) wastewater opex - Total | C51: ='Consolidated Input'!D51 -> £m
A52: ='Consolidated Input'!A52 -> NES | B52: ='Consolidated Input'!C52 -> EA/NRW environmental programme wastewater (WINEP/NEP) - Restoration management (marine conservation zones etc) (WINEP/NEP) wastewater totex - Total | C52: ='Consolidated Input'!D52 -> £m
A53: ='Consolidated Input'!A53 -> NES | B53: ='Consolidated Input'!C53 -> Other data - Number of marine conservation zones (new and existing) | C53: ='Consolidated Input'!D53 -> nr
A54: ='Consolidated Input'!A54 -> NES | B54: ='Consolidated Input'!C54 -> Other data - Number of marine conservation zones (new and existing) | C54: ='Consolidated Input'!D54 -> nr
A55: ='Consolidated Input'!A55 -> NES | B55: ='Consolidated Input'!C55 -> PR24 BP EA/NRW environmental programme wastewater (WINEP/NEP) - Restoration management (marine conservation zones etc) (WINEP/NEP) wastewater totex - Total inc. accelerated & transition costs | C55: ='Consolidated Input'!D55 -> £m
A56: ='Consolidated Input'!A56 -> NES | B56: ='Consolidated Input'!C56 -> PR24 BP Net totex - Total inc. accelerated & transition costs | C56: ='Consolidated Input'!D56 -> £m
A57: ='Consolidated Input'!A57 -> SVE | B57: ='Consolidated Input'!C57 -> EA/NRW environmental programme wastewater (WINEP/NEP) - Restoration management (marine conservation zones etc) (WINEP/NEP) wastewater capex - Total | C57: ='Consolidated Input'!D57 -> £m
A58: ='Consolidated Input'!A58 -> SVE | B58: ='Consolidated Input'!C58 -> EA/NRW environmental programme wastewater (WINEP/NEP) - Restoration management (marine conservation zones etc) (WINEP/NEP) wastewater opex - Total | C58: ='Consolidated Input'!D58 -> £m
A59: ='Consolidated Input'!A59 -> SVE | B59: ='Consolidated Input'!C59 -> EA/NRW environmental programme wastewater (WINEP/NEP) - Restoration management (marine conservation zones etc) (WINEP/NEP) wastewater totex - Total | C59: ='Consolidated Input'!D59 -> £m
A60: ='Consolidated Input'!A60 -> SVE | B60: ='Consolidated Input'!C60 -> EA/NRW environmental programme wastewater (WINEP/NEP) - Restoration management (marine conservation zones etc) (WINEP/NEP) wastewater capex - Total | C60: ='Consolidated Input'!D60 -> £m
A61: ='Consolidated Input'!A61 -> SVE | B61: ='Consolidated Input'!C61 -> EA/NRW environmental programme wastewater (WINEP/NEP) - Restoration management (marine conservation zones etc) (WINEP/NEP) wastewater opex - Total | C61: ='Consolidated Input'!D61 -> £m
A62: ='Consolidated Input'!A62 -> SVE | B62: ='Consolidated Input'!C62 -> EA/NRW environmental programme wastewater (WINEP/NEP) - Restoration management (marine conservation zones etc) (WINEP/NEP) wastewater totex - Total | C62: ='Consolidated Input'!D62 -> £m
A63: ='Consolidated Input'!A63 -> SVE | B63: ='Consolidated Input'!C63 -> EA/NRW environmental programme wastewater (WINEP/NEP) - Restoration management (marine conservation zones etc) (WINEP/NEP) wastewater capex - Total | C63: ='Consolidated Input'!D63 -> £m
A64: ='Consolidated Input'!A64 -> SVE | B64: ='Consolidated Input'!C64 -> EA/NRW environmental programme wastewater (WINEP/NEP) - Restoration management (marine conservation zones etc) (WINEP/NEP) wastewater opex - Total | C64: ='Consolidated Input'!D64 -> £m
A65: ='Consolidated Input'!A65 -> SVE | B65: ='Consolidated Input'!C65 -> EA/NRW environmental programme wastewater (WINEP/NEP) - Restoration management (marine conservation zones etc) (WINEP/NEP) wastewater totex - Total | C65: ='Consolidated Input'!D65 -> £m
A66: ='Consolidated Input'!A66 -> SVE | B66: ='Consolidated Input'!C66 -> Other data - Number of marine conservation zones (new and existing) | C66: ='Consolidated Input'!D66 -> nr
A67: ='Consolidated Input'!A67 -> SVE | B67: ='Consolidated Input'!C67 -> Other data - Number of marine conservation zones (new and existing) | C67: ='Consolidated Input'!D67 -> nr
A68: ='Consolidated Input'!A68 -> SVE | B68: ='Consolidated Input'!C68 -> PR24 BP EA/NRW environmental programme wastewater (WINEP/NEP) - Restoration management (marine conservation zones etc) (WINEP/NEP) wastewater totex - Total inc. accelerated & transition costs | C68: ='Consolidated Input'!D68 -> £m
A69: ='Consolidated Input'!A69 -> SVE | B69: ='Consolidated Input'!C69 -> PR24 BP Net totex - Total inc. accelerated & transition costs | C69: ='Consolidated Input'!D69 -> £m
A70: ='Consolidated Input'!A70 -> SWB | B70: ='Consolidated Input'!C70 -> EA/NRW environmental programme wastewater (WINEP/NEP) - Restoration management (marine conservation zones etc) (WINEP/NEP) wastewater capex - Total | C70: ='Consolidated Input'!D70 -> £m
A71: ='Consolidated Input'!A71 -> SWB | B71: ='Consolidated Input'!C71 -> EA/NRW environmental programme wastewater (WINEP/NEP) - Restoration management (marine conservation zones etc) (WINEP/NEP) wastewater opex - Total | C71: ='Consolidated Input'!D71 -> £m
A72: ='Consolidated Input'!A72 -> SWB | B72: ='Consolidated Input'!C72 -> EA/NRW environmental programme wastewater (WINEP/NEP) - Restoration management (marine conservation zones etc) (WINEP/NEP) wastewater totex - Total | C72: ='Consolidated Input'!D72 -> £m
A73: ='Consolidated Input'!A73 -> SWB | B73: ='Consolidated Input'!C73 -> EA/NRW environmental programme wastewater (WINEP/NEP) - Restoration management (marine conservation zones etc) (WINEP/NEP) wastewater capex - Total | C73: ='Consolidated Input'!D73 -> £m
A74: ='Consolidated Input'!A74 -> SWB | B74: ='Consolidated Input'!C74 -> EA/NRW environmental programme wastewater (WINEP/NEP) - Restoration management (marine conservation zones etc) (WINEP/NEP) wastewater opex - Total | C74: ='Consolidated Input'!D74 -> £m
A75: ='Consolidated Input'!A75 -> SWB | B75: ='Consolidated Input'!C75 -> EA/NRW environmental programme wastewater (WINEP/NEP) - Restoration management (marine conservation zones etc) (WINEP/NEP) wastewater totex - Total | C75: ='Consolidated Input'!D75 -> £m
A76: ='Consolidated Input'!A76 -> SWB | B76: ='Consolidated Input'!C76 -> EA/NRW environmental programme wastewater (WINEP/NEP) - Restoration management (marine conservation zones etc) (WINEP/NEP) wastewater capex - Total | C76: ='Consolidated Input'!D76 -> £m
A77: ='Consolidated Input'!A77 -> SWB | B77: ='Consolidated Input'!C77 -> EA/NRW environmental programme wastewater (WINEP/NEP) - Restoration management (marine conservation zones etc) (WINEP/NEP) wastewater opex - Total | C77: ='Consolidated Input'!D77 -> £m
A78: ='Consolidated Input'!A78 -> SWB | B78: ='Consolidated Input'!C78 -> EA/NRW environmental programme wastewater (WINEP/NEP) - Restoration management (marine conservation zones etc) (WINEP/NEP) wastewater totex - Total | C78: ='Consolidated Input'!D78 -> £m
A79: ='Consolidated Input'!A79 -> SWB | B79: ='Consolidated Input'!C79 -> Other data - Number of marine conservation zones (new and existing) | C79: ='Consolidated Input'!D79 -> nr
A80: ='Consolidated Input'!A80 -> SWB | B80: ='Consolidated Input'!C80 -> Other data - Number of marine conservation zones (new and existing) | C80: ='Consolidated Input'!D80 -> nr
A81: ='Consolidated Input'!A81 -> SWB | B81: ='Consolidated Input'!C81 -> PR24 BP EA/NRW environmental programme wastewater (WINEP/NEP) - Restoration management (marine conservation zones etc) (WINEP/NEP) wastewater totex - Total inc. accelerated & transition costs | C81: ='Consolidated Input'!D81 -> £m
A82: ='Consolidated Input'!A82 -> SWB | B82: ='Consolidated Input'!C82 -> PR24 BP Net totex - Total inc. accelerated & transition costs | C82: ='Consolidated Input'!D82 -> £m
A83: ='Consolidated Input'!A83 -> SRN | B83: ='Consolidated Input'!C83 -> EA/NRW environmental programme wastewater (WINEP/NEP) - Restoration management (marine conservation zones etc) (WINEP/NEP) wastewater capex - Total | C83: ='Consolidated Input'!D83 -> £m
A84: ='Consolidated Input'!A84 -> SRN | B84: ='Consolidated Input'!C84 -> EA/NRW environmental programme wastewater (WINEP/NEP) - Restoration management (marine conservation zones etc) (WINEP/NEP) wastewater opex - Total | C84: ='Consolidated Input'!D84 -> £m
A85: ='Consolidated Input'!A85 -> SRN | B85: ='Consolidated Input'!C85 -> EA/NRW environmental programme wastewater (WINEP/NEP) - Restoration management (marine conservation zones etc) (WINEP/NEP) wastewater totex - Total | C85: ='Consolidated Input'!D85 -> £m
A86: ='Consolidated Input'!A86 -> SRN | B86: ='Consolidated Input'!C86 -> EA/NRW environmental programme wastewater (WINEP/NEP) - Restoration management (marine conservation zones etc) (WINEP/NEP) wastewater capex - Total | C86: ='Consolidated Input'!D86 -> £m
A87: ='Consolidated Input'!A87 -> SRN | B87: ='Consolidated Input'!C87 -> EA/NRW environmental programme wastewater (WINEP/NEP) - Restoration management (marine conservation zones etc) (WINEP/NEP) wastewater opex - Total | C87: ='Consolidated Input'!D87 -> £m
A88: ='Consolidated Input'!A88 -> SRN | B88: ='Consolidated Input'!C88 -> EA/NRW environmental programme wastewater (WINEP/NEP) - Restoration management (marine conservation zones etc) (WINEP/NEP) wastewater totex - Total | C88: ='Consolidated Input'!D88 -> £m
A89: ='Consolidated Input'!A89 -> SRN | B89: ='Consolidated Input'!C89 -> EA/NRW environmental programme wastewater (WINEP/NEP) - Restoration management (marine conservation zones etc) (WINEP/NEP) wastewater capex - Total | C89: ='Consolidated Input'!D89 -> £m
A90: ='Consolidated Input'!A90 -> SRN | B90: ='Consolidated Input'!C90 -> EA/NRW environmental programme wastewater (WINEP/NEP) - Restoration management (marine conservation zones etc) (WINEP/NEP) wastewater opex - Total | C90: ='Consolidated Input'!D90 -> £m
A91: ='Consolidated Input'!A91 -> SRN | B91: ='Consolidated Input'!C91 -> EA/NRW environmental programme wastewater (WINEP/NEP) - Restoration management (marine conservation zones etc) (WINEP/NEP) wastewater totex - Total | C91: ='Consolidated Input'!D91 -> £m
A92: ='Consolidated Input'!A92 -> SRN | B92: ='Consolidated Input'!C92 -> Other data - Number of marine conservation zones (new and existing) | C92: ='Consolidated Input'!D92 -> nr
A93: ='Consolidated Input'!A93 -> SRN | B93: ='Consolidated Input'!C93 -> Other data - Number of marine conservation zones (new and existing) | C93: ='Consolidated Input'!D93 -> nr
A94: ='Consolidated Input'!A94 -> SRN | B94: ='Consolidated Input'!C94 -> PR24 BP EA/NRW environmental programme wastewater (WINEP/NEP) - Restoration management (marine conservation zones etc) (WINEP/NEP) wastewater totex - Total inc. accelerated & transition costs | C94: ='Consolidated Input'!D94 -> £m
A95: ='Consolidated Input'!A95 -> SRN | B95: ='Consolidated Input'!C95 -> PR24 BP Net totex - Total inc. accelerated & transition costs | C95: ='Consolidated Input'!D95 -> £m
A96: ='Consolidated Input'!A96 -> TMS | B96: ='Consolidated Input'!C96 -> EA/NRW environmental programme wastewater (WINEP/NEP) - Restoration management (marine conservation zones etc) (WINEP/NEP) wastewater capex - Total | C96: ='Consolidated Input'!D96 -> £m
A97: ='Consolidated Input'!A97 -> TMS | B97: ='Consolidated Input'!C97 -> EA/NRW environmental programme wastewater (WINEP/NEP) - Restoration management (marine conservation zones etc) (WINEP/NEP) wastewater opex - Total | C97: ='Consolidated Input'!D97 -> £m
A98: ='Consolidated Input'!A98 -> TMS | B98: ='Consolidated Input'!C98 -> EA/NRW environmental programme wastewater (WINEP/NEP) - Restoration management (marine conservation zones etc) (WINEP/NEP) wastewater totex - Total | C98: ='Consolidated Input'!D98 -> £m
A99: ='Consolidated Input'!A99 -> TMS | B99: ='Consolidated Input'!C99 -> EA/NRW environmental programme wastewater (WINEP/NEP) - Restoration management (marine conservation zones etc) (WINEP/NEP) wastewater capex - Total | C99: ='Consolidated Input'!D99 -> £m
A100: ='Consolidated Input'!A100 -> TMS | B100: ='Consolidated Input'!C100 -> EA/NRW environmental programme wastewater (WINEP/NEP) - Restoration management (marine conservation zones etc) (WINEP/NEP) wastewater opex - Total | C100: ='Consolidated Input'!D100 -> £m
A101: ='Consolidated Input'!A101 -> TMS | B101: ='Consolidated Input'!C101 -> EA/NRW environmental programme wastewater (WINEP/NEP) - Restoration management (marine conservation zones etc) (WINEP/NEP) wastewater totex - Total | C101: ='Consolidated Input'!D101 -> £m
A102: ='Consolidated Input'!A102 -> TMS | B102: ='Consolidated Input'!C102 -> EA/NRW environmental programme wastewater (WINEP/NEP) - Restoration management (marine conservation zones etc) (WINEP/NEP) wastewater capex - Total | C102: ='Consolidated Input'!D102 -> £m
A103: ='Consolidated Input'!A103 -> TMS | B103: ='Consolidated Input'!C103 -> EA/NRW environmental programme wastewater (WINEP/NEP) - Restoration management (marine conservation zones etc) (WINEP/NEP) wastewater opex - Total | C103: ='Consolidated Input'!D103 -> £m
A104: ='Consolidated Input'!A104 -> TMS | B104: ='Consolidated Input'!C104 -> EA/NRW environmental programme wastewater (WINEP/NEP) - Restoration management (marine conservation zones etc) (WINEP/NEP) wastewater totex - Total | C104: ='Consolidated Input'!D104 -> £m
A105: ='Consolidated Input'!A105 -> TMS | B105: ='Consolidated Input'!C105 -> Other data - Number of marine conservation zones (new and existing) | C105: ='Consolidated Input'!D105 -> nr
A106: ='Consolidated Input'!A106 -> TMS | B106: ='Consolidated Input'!C106 -> Other data - Number of marine conservation zones (new and existing) | C106: ='Consolidated Input'!D106 -> nr
A107: ='Consolidated Input'!A107 -> TMS | B107: ='Consolidated Input'!C107 -> PR24 BP EA/NRW environmental programme wastewater (WINEP/NEP) - Restoration management (marine conservation zones etc) (WINEP/NEP) wastewater totex - Total inc. accelerated & transition costs | C107: ='Consolidated Input'!D107 -> £m
A108: ='Consolidated Input'!A108 -> TMS | B108: ='Consolidated Input'!C108 -> PR24 BP Net totex - Total inc. accelerated & transition costs | C108: ='Consolidated Input'!D108 -> £m
A109: ='Consolidated Input'!A109 -> NWT | B109: ='Consolidated Input'!C109 -> EA/NRW environmental programme wastewater (WINEP/NEP) - Restoration management (marine conservation zones etc) (WINEP/NEP) wastewater capex - Total | C109: ='Consolidated Input'!D109 -> £m
A110: ='Consolidated Input'!A110 -> NWT | B110: ='Consolidated Input'!C110 -> EA/NRW environmental programme wastewater (WINEP/NEP) - Restoration management (marine conservation zones etc) (WINEP/NEP) wastewater opex - Total | C110: ='Consolidated Input'!D110 -> £m
A111: ='Consolidated Input'!A111 -> NWT | B111: ='Consolidated Input'!C111 -> EA/NRW environmental programme wastewater (WINEP/NEP) - Restoration management (marine conservation zones etc) (WINEP/NEP) wastewater totex - Total | C111: ='Consolidated Input'!D111 -> £m
A112: ='Consolidated Input'!A112 -> NWT | B112: ='Consolidated Input'!C112 -> EA/NRW environmental programme wastewater (WINEP/NEP) - Restoration management (marine conservation zones etc) (WINEP/NEP) wastewater capex - Total | C112: ='Consolidated Input'!D112 -> £m
A113: ='Consolidated Input'!A113 -> NWT | B113: ='Consolidated Input'!C113 -> EA/NRW environmental programme wastewater (WINEP/NEP) - Restoration management (marine conservation zones etc) (WINEP/NEP) wastewater opex - Total | C113: ='Consolidated Input'!D113 -> £m
A114: ='Consolidated Input'!A114 -> NWT | B114: ='Consolidated Input'!C114 -> EA/NRW environmental programme wastewater (WINEP/NEP) - Restoration management (marine conservation zones etc) (WINEP/NEP) wastewater totex - Total | C114: ='Consolidated Input'!D114 -> £m
A115: ='Consolidated Input'!A115 -> NWT | B115: ='Consolidated Input'!C115 -> EA/NRW environmental programme wastewater (WINEP/NEP) - Restoration management (marine conservation zones etc) (WINEP/NEP) wastewater capex - Total | C115: ='Consolidated Input'!D115 -> £m
A116: ='Consolidated Input'!A116 -> NWT | B116: ='Consolidated Input'!C116 -> EA/NRW environmental programme wastewater (WINEP/NEP) - Restoration management (marine conservation zones etc) (WINEP/NEP) wastewater opex - Total | C116: ='Consolidated Input'!D116 -> £m
A117: ='Consolidated Input'!A117 -> NWT | B117: ='Consolidated Input'!C117 -> EA/NRW environmental programme wastewater (WINEP/NEP) - Restoration management (marine conservation zones etc) (WINEP/NEP) wastewater totex - Total | C117: ='Consolidated Input'!D117 -> £m
A118: ='Consolidated Input'!A118 -> NWT | B118: ='Consolidated Input'!C118 -> Other data - Number of marine conservation zones (new and existing) | C118: ='Consolidated Input'!D118 -> nr
A119: ='Consolidated Input'!A119 -> NWT | B119: ='Consolidated Input'!C119 -> Other data - Number of marine conservation zones (new and existing) | C119: ='Consolidated Input'!D119 -> nr
A120: ='Consolidated Input'!A120 -> NWT | B120: ='Consolidated Input'!C120 -> PR24 BP EA/NRW environmental programme wastewater (WINEP/NEP) - Restoration management (marine conservation zones etc) (WINEP/NEP) wastewater totex - Total inc. accelerated & transition costs | C120: ='Consolidated Input'!D120 -> £m
A121: ='Consolidated Input'!A121 -> NWT | B121: ='Consolidated Input'!C121 -> PR24 BP Net totex - Total inc. accelerated & transition costs | C121: ='Consolidated Input'!D121 -> £m
A122: ='Consolidated Input'!A122 -> WSX | B122: ='Consolidated Input'!C122 -> EA/NRW environmental programme wastewater (WINEP/NEP) - Restoration management (marine conservation zones etc) (WINEP/NEP) wastewater capex - Total | C122: ='Consolidated Input'!D122 -> £m
A123: ='Consolidated Input'!A123 -> WSX | B123: ='Consolidated Input'!C123 -> EA/NRW environmental programme wastewater (WINEP/NEP) - Restoration management (marine conservation zones etc) (WINEP/NEP) wastewater opex - Total | C123: ='Consolidated Input'!D123 -> £m
A124: ='Consolidated Input'!A124 -> WSX | B124: ='Consolidated Input'!C124 -> EA/NRW environmental programme wastewater (WINEP/NEP) - Restoration management (marine conservation zones etc) (WINEP/NEP) wastewater totex - Total | C124: ='Consolidated Input'!D124 -> £m
A125: ='Consolidated Input'!A125 -> WSX | B125: ='Consolidated Input'!C125 -> EA/NRW environmental programme wastewater (WINEP/NEP) - Restoration management (marine conservation zones etc) (WINEP/NEP) wastewater capex - Total | C125: ='Consolidated Input'!D125 -> £m
A126: ='Consolidated Input'!A126 -> WSX | B126: ='Consolidated Input'!C126 -> EA/NRW environmental programme wastewater (WINEP/NEP) - Restoration management (marine conservation zones etc) (WINEP/NEP) wastewater opex - Total | C126: ='Consolidated Input'!D126 -> £m
A127: ='Consolidated Input'!A127 -> WSX | B127: ='Consolidated Input'!C127 -> EA/NRW environmental programme wastewater (WINEP/NEP) - Restoration management (marine conservation zones etc) (WINEP/NEP) wastewater totex - Total | C127: ='Consolidated Input'!D127 -> £m
A128: ='Consolidated Input'!A128 -> WSX | B128: ='Consolidated Input'!C128 -> EA/NRW environmental programme wastewater (WINEP/NEP) - Restoration management (marine conservation zones etc) (WINEP/NEP) wastewater capex - Total | C128: ='Consolidated Input'!D128 -> £m
A129: ='Consolidated Input'!A129 -> WSX | B129: ='Consolidated Input'!C129 -> EA/NRW environmental programme wastewater (WINEP/NEP) - Restoration management (marine conservation zones etc) (WINEP/NEP) wastewater opex - Total | C129: ='Consolidated Input'!D129 -> £m
A130: ='Consolidated Input'!A130 -> WSX | B130: ='Consolidated Input'!C130 -> EA/NRW environmental programme wastewater (WINEP/NEP) - Restoration management (marine conservation zones etc) (WINEP/NEP) wastewater totex - Total | C130: ='Consolidated Input'!D130 -> £m
A131: ='Consolidated Input'!A131 -> WSX | B131: ='Consolidated Input'!C131 -> Other data - Number of marine conservation zones (new and existing) | C131: ='Consolidated Input'!D131 -> nr
A132: ='Consolidated Input'!A132 -> WSX | B132: ='Consolidated Input'!C132 -> Other data - Number of marine conservation zones (new and existing) | C132: ='Consolidated Input'!D132 -> nr
A133: ='Consolidated Input'!A133 -> WSX | B133: ='Consolidated Input'!C133 -> PR24 BP EA/NRW environmental programme wastewater (WINEP/NEP) - Restoration management (marine conservation zones etc) (WINEP/NEP) wastewater totex - Total inc. accelerated & transition costs | C133: ='Consolidated Input'!D133 -> £m
A134: ='Consolidated Input'!A134 -> WSX | B134: ='Consolidated Input'!C134 -> PR24 BP Net totex - Total inc. accelerated & transition costs | C134: ='Consolidated Input'!D134 -> £m
A135: ='Consolidated Input'!A135 -> YKY | B135: ='Consolidated Input'!C135 -> EA/NRW environmental programme wastewater (WINEP/NEP) - Restoration management (marine conservation zones etc) (WINEP/NEP) wastewater capex - Total | C135: ='Consolidated Input'!D135 -> £m
A136: ='Consolidated Input'!A136 -> YKY | B136: ='Consolidated Input'!C136 -> EA/NRW environmental programme wastewater (WINEP/NEP) - Restoration management (marine conservation zones etc) (WINEP/NEP) wastewater opex - Total | C136: ='Consolidated Input'!D136 -> £m
A137: ='Consolidated Input'!A137 -> YKY | B137: ='Consolidated Input'!C137 -> EA/NRW environmental programme wastewater (WINEP/NEP) - Restoration management (marine conservation zones etc) (WINEP/NEP) wastewater totex - Total | C137: ='Consolidated Input'!D137 -> £m
A138: ='Consolidated Input'!A138 -> YKY | B138: ='Consolidated Input'!C138 -> EA/NRW environmental programme wastewater (WINEP/NEP) - Restoration management (marine conservation zones etc) (WINEP/NEP) wastewater capex - Total | C138: ='Consolidated Input'!D138 -> £m
A139: ='Consolidated Input'!A139 -> YKY | B139: ='Consolidated Input'!C139 -> EA/NRW environmental programme wastewater (WINEP/NEP) - Restoration management (marine conservation zones etc) (WINEP/NEP) wastewater opex - Total | C139: ='Consolidated Input'!D139 -> £m
A140: ='Consolidated Input'!A140 -> YKY | B140: ='Consolidated Input'!C140 -> EA/NRW environmental programme wastewater (WINEP/NEP) - Restoration management (marine conservation zones etc) (WINEP/NEP) wastewater totex - Total | C140: ='Consolidated Input'!D140 -> £m
A141: ='Consolidated Input'!A141 -> YKY | B141: ='Consolidated Input'!C141 -> EA/NRW environmental programme wastewater (WINEP/NEP) - Restoration management (marine conservation zones etc) (WINEP/NEP) wastewater capex - Total | C141: ='Consolidated Input'!D141 -> £m
A142: ='Consolidated Input'!A142 -> YKY | B142: ='Consolidated Input'!C142 -> EA/NRW environmental programme wastewater (WINEP/NEP) - Restoration management (marine conservation zones etc) (WINEP/NEP) wastewater opex - Total | C142: ='Consolidated Input'!D142 -> £m
A143: ='Consolidated Input'!A143 -> YKY | B143: ='Consolidated Input'!C143 -> EA/NRW environmental programme wastewater (WINEP/NEP) - Restoration management (marine conservation zones etc) (WINEP/NEP) wastewater totex - Total | C143: ='Consolidated Input'!D143 -> £m
A144: ='Consolidated Input'!A144 -> YKY | B144: ='Consolidated Input'!C144 -> Other data - Number of marine conservation zones (new and existing) | C144: ='Consolidated Input'!D144 -> £m
A145: ='Consolidated Input'!A145 -> YKY | B145: ='Consolidated Input'!C145 -> Other data - Number of marine conservation zones (new and existing) | C145: ='Consolidated Input'!D145 -> £m
A146: ='Consolidated Input'!A146 -> YKY | B146: ='Consolidated Input'!C146 -> PR24 BP EA/NRW environmental programme wastewater (WINEP/NEP) - Restoration management (marine conservation zones etc) (WINEP/NEP) wastewater totex - Total inc. accelerated & transition costs | C146: ='Consolidated Input'!D146 -> 000s
A147: ='Consolidated Input'!A147 -> YKY | B147: ='Consolidated Input'!C147 -> PR24 BP Net totex - Total inc. accelerated & transition costs | C147: ='Consolidated Input'!D147 -> 000s

Sheet Final Input
A1: =RIGHT(CELL("filename", $A$1), LEN(CELL("filename", $A$1)) - SEARCH("]", CELL("filename", $A$1))) -> Final Input
A4: Acronym | B4: BON code | C4: Item Description | D4: Unit | E4: 2023-24 | F4: 2024-25 | G4: 2025-26 | H4: 2026-27 | I4: 2027-28 | J4: 2028-29 | K4: 2029-30 | L4: Total
A5: =Table1[[#This Row],[Acronym]] -> ANH | B5: =Table1[[#This Row],[BON code]] -> CWW3_121TOT_PR24 | C5: =Table1[[#This Row],[Item Description]] -> EA/NRW environmental programme wastewater (WINEP/NEP) - Restoration management (marine conservation zones etc) (WINEP/NEP) wastewater capex - Total | D5: =Table1[[#This Row],[Unit]] -> £m | E5: =IF('F_Input Override'!D5="",'Consolidated Input'!E5,'F_Input Override'!#REF!) -> 0 | F5: =IF('F_Input Override'!D5="",'Consolidated Input'!F5,'F_Input Override'!D5) -> 0 | G5: =IF('F_Input Override'!E5="",'Consolidated Input'!G5,'F_Input Override'!E5) -> 0 | H5: =IF('F_Input Override'!F5="",'Consolidated Input'!H5,'F_Input Override'!F5) -> 0 | I5: =IF('F_Input Override'!G5="",'Consolidated Input'!I5,'F_Input Override'!G5) -> 0 | J5: =IF('F_Input Override'!H5="",'Consolidated Input'!J5,'F_Input Override'!H5) -> 0 | K5: =IF('F_Input Override'!I5="",'Consolidated Input'!K5,'F_Input Override'!I5) -> 0 | L5: =SUM(Table3[[#This Row],[2023-24]:[2029-30]]) -> 0
A6: =Table1[[#This Row],[Acronym]] -> ANH | B6: =Table1[[#This Row],[BON code]] -> CWW3_122TOT_PR24 | C6: =Table1[[#This Row],[Item Description]] -> EA/NRW environmental programme wastewater (WINEP/NEP) - Restoration management (marine conservation zones etc) (WINEP/NEP) wastewater opex - Total | D6: =Table1[[#This Row],[Unit]] -> £m | E6: =IF('F_Input Override'!D6="",'Consolidated Input'!E6,'F_Input Override'!#REF!) -> 0 | F6: =IF('F_Input Override'!D6="",'Consolidated Input'!F6,'F_Input Override'!D6) -> 0 | G6: =IF('F_Input Override'!E6="",'Consolidated Input'!G6,'F_Input Override'!E6) -> 0 | H6: =IF('F_Input Override'!F6="",'Consolidated Input'!H6,'F_Input Override'!F6) -> 0 | I6: =IF('F_Input Override'!G6="",'Consolidated Input'!I6,'F_Input Override'!G6) -> 0 | J6: =IF('F_Input Override'!H6="",'Consolidated Input'!J6,'F_Input Override'!H6) -> 0 | K6: =IF('F_Input Override'!I6="",'Consolidated Input'!K6,'F_Input Override'!I6) -> 0 | L6: =SUM(Table3[[#This Row],[2023-24]:[2029-30]]) -> 0
A7: =Table1[[#This Row],[Acronym]] -> ANH | B7: =Table1[[#This Row],[BON code]] -> CWW3_123TOT_PR24 | C7: =Table1[[#This Row],[Item Description]] -> EA/NRW environmental programme wastewater (WINEP/NEP) - Restoration management (marine conservation zones etc) (WINEP/NEP) wastewater totex - Total | D7: =Table1[[#This Row],[Unit]] -> £m | E7: =IF('F_Input Override'!D7="",'Consolidated Input'!E7,'F_Input Override'!#REF!) -> 0 | F7: =IF('F_Input Override'!D7="",'Consolidated Input'!F7,'F_Input Override'!D7) -> 0 | G7: =IF('F_Input Override'!E7="",'Consolidated Input'!G7,'F_Input Override'!E7) -> 0 | H7: =IF('F_Input Override'!F7="",'Consolidated Input'!H7,'F_Input Override'!F7) -> 0 | I7: =IF('F_Input Override'!G7="",'Consolidated Input'!I7,'F_Input Override'!G7) -> 0 | J7: =IF('F_Input Override'!H7="",'Consolidated Input'!J7,'F_Input Override'!H7) -> 0 | K7: =IF('F_Input Override'!I7="",'Consolidated Input'!K7,'F_Input Override'!I7) -> 0 | L7: =SUM(Table3[[#This Row],[2023-24]:[2029-30]]) -> 0
A8: =Table1[[#This Row],[Acronym]] -> ANH | B8: =Table1[[#This Row],[BON code]] -> CWW12_121TOT_PR24 | C8: =Table1[[#This Row],[Item Description]] -> EA/NRW environmental programme wastewater (WINEP/NEP) - Restoration management (marine conservation zones etc) (WINEP/NEP) wastewater capex - Total | D8: =Table1[[#This Row],[Unit]] -> £m | E8: =IF('F_Input Override'!D8="",'Consolidated Input'!E8,'F_Input Override'!#REF!) -> 0 | F8: =IF('F_Input Override'!D8="",'Consolidated Input'!F8,'F_Input Override'!D8) -> 0 | G8: =IF('F_Input Override'!E8="",'Consolidated Input'!G8,'F_Input Override'!E8) -> 0 | H8: =IF('F_Input Override'!F8="",'Consolidated Input'!H8,'F_Input Override'!F8) -> 0 | I8: =IF('F_Input Override'!G8="",'Consolidated Input'!I8,'F_Input Override'!G8) -> 0 | J8: =IF('F_Input Override'!H8="",'Consolidated Input'!J8,'F_Input Override'!H8) -> 0 | K8: =IF('F_Input Override'!I8="",'Consolidated Input'!K8,'F_Input Override'!I8) -> 0 | L8: =SUM(Table3[[#This Row],[2023-24]:[2029-30]]) -> 0
A9: =Table1[[#This Row],[Acronym]] -> ANH | B9: =Table1[[#This Row],[BON code]] -> CWW12_122TOT_PR24 | C9: =Table1[[#This Row],[Item Description]] -> EA/NRW environmental programme wastewater (WINEP/NEP) - Restoration management (marine conservation zones etc) (WINEP/NEP) wastewater opex - Total | D9: =Table1[[#This Row],[Unit]] -> £m | E9: =IF('F_Input Override'!D9="",'Consolidated Input'!E9,'F_Input Override'!#REF!) -> 0 | F9: =IF('F_Input Override'!D9="",'Consolidated Input'!F9,'F_Input Override'!D9) -> 0 | G9: =IF('F_Input Override'!E9="",'Consolidated Input'!G9,'F_Input Override'!E9) -> 0 | H9: =IF('F_Input Override'!F9="",'Consolidated Input'!H9,'F_Input Override'!F9) -> 0 | I9: =IF('F_Input Override'!G9="",'Consolidated Input'!I9,'F_Input Override'!G9) -> 0 | J9: =IF('F_Input Override'!H9="",'Consolidated Input'!J9,'F_Input Override'!H9) -> 0 | K9: =IF('F_Input Override'!I9="",'Consolidated Input'!K9,'F_Input Override'!I9) -> 0 | L9: =SUM(Table3[[#This Row],[2023-24]:[2029-30]]) -> 0
A10: =Table1[[#This Row],[Acronym]] -> ANH | B10: =Table1[[#This Row],[BON code]] -> CWW12_123TOT_PR24 | C10: =Table1[[#This Row],[Item Description]] -> EA/NRW environmental programme wastewater (WINEP/NEP) - Restoration management (marine conservation zones etc) (WINEP/NEP) wastewater totex - Total | D10: =Table1[[#This Row],[Unit]] -> £m | E10: =IF('F_Input Override'!D10="",'Consolidated Input'!E10,'F_Input Override'!#REF!) -> 0 | F10: =IF('F_Input Override'!D10="",'Consolidated Input'!F10,'F_Input Override'!D10) -> 0 | G10: =IF('F_Input Override'!E10="",'Consolidated Input'!G10,'F_Input Override'!E10) -> 0 | H10: =IF('F_Input Override'!F10="",'Consolidated Input'!H10,'F_Input Override'!F10) -> 0 | I10: =IF('F_Input Override'!G10="",'Consolidated Input'!I10,'F_Input Override'!G10) -> 0 | J10: =IF('F_Input Override'!H10="",'Consolidated Input'!J10,'F_Input Override'!H10) -> 0 | K10: =IF('F_Input Override'!I10="",'Consolidated Input'!K10,'F_Input Override'!I10) -> 0 | L10: =SUM(Table3[[#This Row],[2023-24]:[2029-30]]) -> 0
A11: =Table1[[#This Row],[Acronym]] -> ANH | B11: =Table1[[#This Row],[BON code]] -> CWW17_121TOT_PR24 | C11: =Table1[[#This Row],[Item Description]] -> EA/NRW environmental programme wastewater (WINEP/NEP) - Restoration management (marine conservation zones etc) (WINEP/NEP) wastewater capex - Total | D11: =Table1[[#This Row],[Unit]] -> £m | E11: =IF('F_Input Override'!D11="",'Consolidated Input'!E11,'F_Input Override'!#REF!) -> 0 | F11: =IF('F_Input Override'!D11="",'Consolidated Input'!F11,'F_Input Override'!D11) -> 0 | G11: =IF('F_Input Override'!E11="",'Consolidated Input'!G11,'F_Input Override'!E11) -> 0 | H11: =IF('F_Input Override'!F11="",'Consolidated Input'!H11,'F_Input Override'!F11) -> 0 | I11: =IF('F_Input Override'!G11="",'Consolidated Input'!I11,'F_Input Override'!G11) -> 0 | J11: =IF('F_Input Override'!H11="",'Consolidated Input'!J11,'F_Input Override'!H11) -> 0 | K11: =IF('F_Input Override'!I11="",'Consolidated Input'!K11,'F_Input Override'!I11) -> 0 | L11: =SUM(Table3[[#This Row],[2023-24]:[2029-30]]) -> 0
A12: =Table1[[#This Row],[Acronym]] -> ANH | B12: =Table1[[#This Row],[BON code]] -> CWW17_122TOT_PR24 | C12: =Table1[[#This Row],[Item Description]] -> EA/NRW environmental programme wastewater (WINEP/NEP) - Restoration management (marine conservation zones etc) (WINEP/NEP) wastewater opex - Total | D12: =Table1[[#This Row],[Unit]] -> £m | E12: =IF('F_Input Override'!D12="",'Consolidated Input'!E12,'F_Input Override'!#REF!) -> 0 | F12: =IF('F_Input Override'!D12="",'Consolidated Input'!F12,'F_Input Override'!D12) -> 0 | G12: =IF('F_Input Override'!E12="",'Consolidated Input'!G12,'F_Input Override'!E12) -> 0 | H12: =IF('F_Input Override'!F12="",'Consolidated Input'!H12,'F_Input Override'!F12) -> 0 | I12: =IF('F_Input Override'!G12="",'Consolidated Input'!I12,'F_Input Override'!G12) -> 0 | J12: =IF('F_Input Override'!H12="",'Consolidated Input'!J12,'F_Input Override'!H12) -> 0 | K12: =IF('F_Input Override'!I12="",'Consolidated Input'!K12,'F_Input Override'!I12) -> 0 | L12: =SUM(Table3[[#This Row],[2023-24]:[2029-30]]) -> 0
A13: =Table1[[#This Row],[Acronym]] -> ANH | B13: =Table1[[#This Row],[BON code]] -> CWW17_123TOT_PR24 | C13: =Table1[[#This Row],[Item Description]] -> EA/NRW environmental programme wastewater (WINEP/NEP) - Restoration management (marine conservation zones etc) (WINEP/NEP) wastewater totex - Total | D13: =Table1[[#This Row],[Unit]] -> £m | E13: =IF('F_Input Override'!D13="",'Consolidated Input'!E13,'F_Input Override'!#REF!) -> 0 | F13: =IF('F_Input Override'!D13="",'Consolidated Input'!F13,'F_Input Override'!D13) -> 0 | G13: =IF('F_Input Override'!E13="",'Consolidated Input'!G13,'F_Input Override'!E13) -> 0 | H13: =IF('F_Input Override'!F13="",'Consolidated Input'!H13,'F_Input Override'!F13) -> 0 | I13: =IF('F_Input Override'!G13="",'Consolidated Input'!I13,'F_Input Override'!G13) -> 0 | J13: =IF('F_Input Override'!H13="",'Consolidated Input'!J13,'F_Input Override'!H13) -> 0 | K13: =IF('F_Input Override'!I13="",'Consolidated Input'!K13,'F_Input Override'!I13) -> 0 | L13: =SUM(Table3[[#This Row],[2023-24]:[2029-30]]) -> 0
A14: =Table1[[#This Row],[Acronym]] -> ANH | B14: =Table1[[#This Row],[BON code]] -> CWW20_070_PR24 | C14: =Table1[[#This Row],[Item Description]] -> Other data - Number of marine conservation zones (new and existing) | D14: =Table1[[#This Row],[Unit]] -> nr | E14: =IF('F_Input Override'!D14="",'Consolidated Input'!E14,'F_Input Override'!#REF!) -> 0 | F14: =IF('F_Input Override'!D14="",'Consolidated Input'!F14,'F_Input Override'!D14) -> 0 | G14: =IF('F_Input Override'!E14="",'Consolidated Input'!G14,'F_Input Override'!E14) -> 0 | H14: =IF('F_Input Override'!F14="",'Consolidated Input'!H14,'F_Input Override'!F14) -> 0 | I14: =IF('F_Input Override'!G14="",'Consolidated Input'!I14,'F_Input Override'!G14) -> 0 | J14: =IF('F_Input Override'!H14="",'Consolidated Input'!J14,'F_Input Override'!H14) -> 0 | K14: =IF('F_Input Override'!I14="",'Consolidated Input'!K14,'F_Input Override'!I14) -> 1 | L14: =SUM(Table3[[#This Row],[2023-24]:[2029-30]]) -> 1
A15: =Table1[[#This Row],[Acronym]] -> ANH | B15: =Table1[[#This Row],[BON code]] -> CWW20A_070_PR24 | C15: =Table1[[#This Row],[Item Description]] -> Other data - Number of marine conservation zones (new and existing) | D15: =Table1[[#This Row],[Unit]] -> nr | E15: =IF('F_Input Override'!D15="",'Consolidated Input'!E15,'F_Input Override'!#REF!) ->  | F15: =IF('F_Input Override'!D15="",'Consolidated Input'!F15,'F_Input Override'!D15) ->  | G15: =IF('F_Input Override'!E15="",'Consolidated Input'!G15,'F_Input Override'!E15) -> 0 | H15: =IF('F_Input Override'!F15="",'Consolidated Input'!H15,'F_Input Override'!F15) -> 0 | I15: =IF('F_Input Override'!G15="",'Consolidated Input'!I15,'F_Input Override'!G15) -> 0 | J15: =IF('F_Input Override'!H15="",'Consolidated Input'!J15,'F_Input Override'!H15) -> 0 | K15: =IF('F_Input Override'!I15="",'Consolidated Input'!K15,'F_Input Override'!I15) -> 0 | L15: =SUM(Table3[[#This Row],[2023-24]:[2029-30]]) -> 0
A16: =Table1[[#This Row],[Acronym]] -> ANH | B16: =Table1[[#This Row],[BON code]] -> PR24_E_WW123_TOTAL | C16: =Table1[[#This Row],[Item Description]] -> PR24 BP EA/NRW environmental programme wastewater (WINEP/NEP) - Restoration management (marine conservation zones etc) (WINEP/NEP) wastewater totex - Total inc. accelerated & transition costs | D16: =Table1[[#This Row],[Unit]] -> £m | E16: =IF('F_Input Override'!D16="",'Consolidated Input'!E16,'F_Input Override'!#REF!) -> 0 | F16: =IF('F_Input Override'!D16="",'Consolidated Input'!F16,'F_Input Override'!D16) -> 0 | G16: =IF('F_Input Override'!E16="",'Consolidated Input'!G16,'F_Input Override'!E16) -> 0 | H16: =IF('F_Input Override'!F16="",'Consolidated Input'!H16,'F_Input Override'!F16) -> 0 | I16: =IF('F_Input Override'!G16="",'Consolidated Input'!I16,'F_Input Override'!G16) -> 0 | J16: =IF('F_Input Override'!H16="",'Consolidated Input'!J16,'F_Input Override'!H16) -> 0 | K16: =IF('F_Input Override'!I16="",'Consolidated Input'!K16,'F_Input Override'!I16) -> 0 | L16: =SUM(Table3[[#This Row],[2023-24]:[2029-30]]) -> 0
A17: =Table1[[#This Row],[Acronym]] -> ANH | B17: =Table1[[#This Row],[BON code]] -> PR24_NETTOTEX_WASTE | C17: =Table1[[#This Row],[Item Description]] -> PR24 BP Net totex - Total inc. accelerated & transition costs | D17: =Table1[[#This Row],[Unit]] -> £m | E17: =IF('F_Input Override'!D17="",'Consolidated Input'!E17,'F_Input Override'!#REF!) -> 0 | F17: =IF('F_Input Override'!D17="",'Consolidated Input'!F17,'F_Input Override'!D17) -> 0 | G17: =IF('F_Input Override'!E17="",'Consolidated Input'!G17,'F_Input Override'!E17) -> 0 | H17: =IF('F_Input Override'!F17="",'Consolidated Input'!H17,'F_Input Override'!F17) -> 0 | I17: =IF('F_Input Override'!G17="",'Consolidated Input'!I17,'F_Input Override'!G17) -> 0 | J17: =IF('F_Input Override'!H17="",'Consolidated Input'!J17,'F_Input Override'!H17) -> 0 | K17: =IF('F_Input Override'!I17="",'Consolidated Input'!K17,'F_Input Override'!I17) -> 0 | L17: =SUM(Table3[[#This Row],[2023-24]:[2029-30]]) -> 0
A18: =Table1[[#This Row],[Acronym]] -> WSH | B18: =Table1[[#This Row],[BON code]] -> CWW3_121TOT_PR24 | C18: =Table1[[#This Row],[Item Description]] -> EA/NRW environmental programme wastewater (WINEP/NEP) - Restoration management (marine conservation zones etc) (WINEP/NEP) wastewater capex - Total | D18: =Table1[[#This Row],[Unit]] -> £m | E18: =IF('F_Input Override'!D18="",'Consolidated Input'!E18,'F_Input Override'!#REF!) -> 0 | F18: =IF('F_Input Override'!D18="",'Consolidated Input'!F18,'F_Input Override'!D18) -> 0 | G18: =IF('F_Input Override'!E18="",'Consolidated Input'!G18,'F_Input Override'!E18) -> 0 | H18: =IF('F_Input Override'!F18="",'Consolidated Input'!H18,'F_Input Override'!F18) -> 0 | I18: =IF('F_Input Override'!G18="",'Consolidated Input'!I18,'F_Input Override'!G18) -> 0 | J18: =IF('F_Input Override'!H18="",'Consolidated Input'!J18,'F_Input Override'!H18) -> 0 | K18: =IF('F_Input Override'!I18="",'Consolidated Input'!K18,'F_Input Override'!I18) -> 0 | L18: =SUM(Table3[[#This Row],[2023-24]:[2029-30]]) -> 0
A19: =Table1[[#This Row],[Acronym]] -> WSH | B19: =Table1[[#This Row],[BON code]] -> CWW3_122TOT_PR24 | C19: =Table1[[#This Row],[Item Description]] -> EA/NRW environmental programme wastewater (WINEP/NEP) - Restoration management (marine conservation zones etc) (WINEP/NEP) wastewater opex - Total | D19: =Table1[[#This Row],[Unit]] -> £m | E19: =IF('F_Input Override'!D19="",'Consolidated Input'!E19,'F_Input Override'!#REF!) -> 0 | F19: =IF('F_Input Override'!D19="",'Consolidated Input'!F19,'F_Input Override'!D19) -> 0 | G19: =IF('F_Input Override'!E19="",'Consolidated Input'!G19,'F_Input Override'!E19) -> 0 | H19: =IF('F_Input Override'!F19="",'Consolidated Input'!H19,'F_Input Override'!F19) -> 0 | I19: =IF('F_Input Override'!G19="",'Consolidated Input'!I19,'F_Input Override'!G19) -> 0 | J19: =IF('F_Input Override'!H19="",'Consolidated Input'!J19,'F_Input Override'!H19) -> 0 | K19: =IF('F_Input Override'!I19="",'Consolidated Input'!K19,'F_Input Override'!I19) -> 0 | L19: =SUM(Table3[[#This Row],[2023-24]:[2029-30]]) -> 0
A20: =Table1[[#This Row],[Acronym]] -> WSH | B20: =Table1[[#This Row],[BON code]] -> CWW3_123TOT_PR24 | C20: =Table1[[#This Row],[Item Description]] -> EA/NRW environmental programme wastewater (WINEP/NEP) - Restoration management (marine conservation zones etc) (WINEP/NEP) wastewater totex - Total | D20: =Table1[[#This Row],[Unit]] -> £m | E20: =IF('F_Input Override'!D20="",'Consolidated Input'!E20,'F_Input Override'!#REF!) -> 0 | F20: =IF('F_Input Override'!D20="",'Consolidated Input'!F20,'F_Input Override'!D20) -> 0 | G20: =IF('F_Input Override'!E20="",'Consolidated Input'!G20,'F_Input Override'!E20) -> 0 | H20: =IF('F_Input Override'!F20="",'Consolidated Input'!H20,'F_Input Override'!F20) -> 0 | I20: =IF('F_Input Override'!G20="",'Consolidated Input'!I20,'F_Input Override'!G20) -> 0 | J20: =IF('F_Input Override'!H20="",'Consolidated Input'!J20,'F_Input Override'!H20) -> 0 | K20: =IF('F_Input Override'!I20="",'Consolidated Input'!K20,'F_Input Override'!I20) -> 0 | L20: =SUM(Table3[[#This Row],[2023-24]:[2029-30]]) -> 0
A21: =Table1[[#This Row],[Acronym]] -> WSH | B21: =Table1[[#This Row],[BON code]] -> CWW12_121TOT_PR24 | C21: =Table1[[#This Row],[Item Description]] -> EA/NRW environmental programme wastewater (WINEP/NEP) - Restoration management (marine conservation zones etc) (WINEP/NEP) wastewater capex - Total | D21: =Table1[[#This Row],[Unit]] -> £m | E21: =IF('F_Input Override'!D21="",'Consolidated Input'!E21,'F_Input Override'!#REF!) -> 0 | F21: =IF('F_Input Override'!D21="",'Consolidated Input'!F21,'F_Input Override'!D21) -> 0 | G21: =IF('F_Input Override'!E21="",'Consolidated Input'!G21,'F_Input Override'!E21) -> 0 | H21: =IF('F_Input Override'!F21="",'Consolidated Input'!H21,'F_Input Override'!F21) -> 0 | I21: =IF('F_Input Override'!G21="",'Consolidated Input'!I21,'F_Input Override'!G21) -> 0 | J21: =IF('F_Input Override'!H21="",'Consolidated Input'!J21,'F_Input Override'!H21) -> 0 | K21: =IF('F_Input Override'!I21="",'Consolidated Input'!K21,'F_Input Override'!I21) -> 0 | L21: =SUM(Table3[[#This Row],[2023-24]:[2029-30]]) -> 0
A22: =Table1[[#This Row],[Acronym]] -> WSH | B22: =Table1[[#This Row],[BON code]] -> CWW12_122TOT_PR24 | C22: =Table1[[#This Row],[Item Description]] -> EA/NRW environmental programme wastewater (WINEP/NEP) - Restoration management (marine conservation zones etc) (WINEP/NEP) wastewater opex - Total | D22: =Table1[[#This Row],[Unit]] -> £m | E22: =IF('F_Input Override'!D22="",'Consolidated Input'!E22,'F_Input Override'!#REF!) -> 0 | F22: =IF('F_Input Override'!D22="",'Consolidated Input'!F22,'F_Input Override'!D22) -> 0 | G22: =IF('F_Input Override'!E22="",'Consolidated Input'!G22,'F_Input Override'!E22) -> 0 | H22: =IF('F_Input Override'!F22="",'Consolidated Input'!H22,'F_Input Override'!F22) -> 0 | I22: =IF('F_Input Override'!G22="",'Consolidated Input'!I22,'F_Input Override'!G22) -> 0 | J22: =IF('F_Input Override'!H22="",'Consolidated Input'!J22,'F_Input Override'!H22) -> 0 | K22: =IF('F_Input Override'!I22="",'Consolidated Input'!K22,'F_Input Override'!I22) -> 0 | L22: =SUM(Table3[[#This Row],[2023-24]:[2029-30]]) -> 0
A23: =Table1[[#This Row],[Acronym]] -> WSH | B23: =Table1[[#This Row],[BON code]] -> CWW12_123TOT_PR24 | C23: =Table1[[#This Row],[Item Description]] -> EA/NRW environmental programme wastewater (WINEP/NEP) - Restoration management (marine conservation zones etc) (WINEP/NEP) wastewater totex - Total | D23: =Table1[[#This Row],[Unit]] -> £m | E23: =IF('F_Input Override'!D23="",'Consolidated Input'!E23,'F_Input Override'!#REF!) -> 0 | F23: =IF('F_Input Override'!D23="",'Consolidated Input'!F23,'F_Input Override'!D23) -> 0 | G23: =IF('F_Input Override'!E23="",'Consolidated Input'!G23,'F_Input Override'!E23) -> 0 | H23: =IF('F_Input Override'!F23="",'Consolidated Input'!H23,'F_Input Override'!F23) -> 0 | I23: =IF('F_Input Override'!G23="",'Consolidated Input'!I23,'F_Input Override'!G23) -> 0 | J23: =IF('F_Input Override'!H23="",'Consolidated Input'!J23,'F_Input Override'!H23) -> 0 | K23: =IF('F_Input Override'!I23="",'Consolidated Input'!K23,'F_Input Override'!I23) -> 0 | L23: =SUM(Table3[[#This Row],[2023-24]:[2029-30]]) -> 0
A24: =Table1[[#This Row],[Acronym]] -> WSH | B24: =Table1[[#This Row],[BON code]] -> CWW17_121TOT_PR24 | C24: =Table1[[#This Row],[Item Description]] -> EA/NRW environmental programme wastewater (WINEP/NEP) - Restoration management (marine conservation zones etc) (WINEP/NEP) wastewater capex - Total | D24: =Table1[[#This Row],[Unit]] -> £m | E24: =IF('F_Input Override'!D24="",'Consolidated Input'!E24,'F_Input Override'!#REF!) -> 0 | F24: =IF('F_Input Override'!D24="",'Consolidated Input'!F24,'F_Input Override'!D24) -> 0 | G24: =IF('F_Input Override'!E24="",'Consolidated Input'!G24,'F_Input Override'!E24) -> 0 | H24: =IF('F_Input Override'!F24="",'Consolidated Input'!H24,'F_Input Override'!F24) -> 0 | I24: =IF('F_Input Override'!G24="",'Consolidated Input'!I24,'F_Input Override'!G24) -> 0 | J24: =IF('F_Input Override'!H24="",'Consolidated Input'!J24,'F_Input Override'!H24) -> 0 | K24: =IF('F_Input Override'!I24="",'Consolidated Input'!K24,'F_Input Override'!I24) -> 0 | L24: =SUM(Table3[[#This Row],[2023-24]:[2029-30]]) -> 0
A25: =Table1[[#This Row],[Acronym]] -> WSH | B25: =Table1[[#This Row],[BON code]] -> CWW17_122TOT_PR24 | C25: =Table1[[#This Row],[Item Description]] -> EA/NRW environmental programme wastewater (WINEP/NEP) - Restoration management (marine conservation zones etc) (WINEP/NEP) wastewater opex - Total | D25: =Table1[[#This Row],[Unit]] -> £m | E25: =IF('F_Input Override'!D25="",'Consolidated Input'!E25,'F_Input Override'!#REF!) -> 0 | F25: =IF('F_Input Override'!D25="",'Consolidated Input'!F25,'F_Input Override'!D25) -> 0 | G25: =IF('F_Input Override'!E25="",'Consolidated Input'!G25,'F_Input Override'!E25) -> 0 | H25: =IF('F_Input Override'!F25="",'Consolidated Input'!H25,'F_Input Override'!F25) -> 0 | I25: =IF('F_Input Override'!G25="",'Consolidated Input'!I25,'F_Input Override'!G25) -> 0 | J25: =IF('F_Input Override'!H25="",'Consolidated Input'!J25,'F_Input Override'!H25) -> 0 | K25: =IF('F_Input Override'!I25="",'Consolidated Input'!K25,'F_Input Override'!I25) -> 0 | L25: =SUM(Table3[[#This Row],[2023-24]:[2029-30]]) -> 0
A26: =Table1[[#This Row],[Acronym]] -> WSH | B26: =Table1[[#This Row],[BON code]] -> CWW17_123TOT_PR24 | C26: =Table1[[#This Row],[Item Description]] -> EA/NRW environmental programme wastewater (WINEP/NEP) - Restoration management (marine conservation zones etc) (WINEP/NEP) wastewater totex - Total | D26: =Table1[[#This Row],[Unit]] -> £m | E26: =IF('F_Input Override'!D26="",'Consolidated Input'!E26,'F_Input Override'!#REF!) -> 0 | F26: =IF('F_Input Override'!D26="",'Consolidated Input'!F26,'F_Input Override'!D26) -> 0 | G26: =IF('F_Input Override'!E26="",'Consolidated Input'!G26,'F_Input Override'!E26) -> 0 | H26: =IF('F_Input Override'!F26="",'Consolidated Input'!H26,'F_Input Override'!F26) -> 0 | I26: =IF('F_Input Override'!G26="",'Consolidated Input'!I26,'F_Input Override'!G26) -> 0 | J26: =IF('F_Input Override'!H26="",'Consolidated Input'!J26,'F_Input Override'!H26) -> 0 | K26: =IF('F_Input Override'!I26="",'Consolidated Input'!K26,'F_Input Override'!I26) -> 0 | L26: =SUM(Table3[[#This Row],[2023-24]:[2029-30]]) -> 0
A27: =Table1[[#This Row],[Acronym]] -> WSH | B27: =Table1[[#This Row],[BON code]] -> CWW20_070_PR24 | C27: =Table1[[#This Row],[Item Description]] -> Other data - Number of marine conservation zones (new and existing) | D27: =Table1[[#This Row],[Unit]] -> nr | E27: =IF('F_Input Override'!D27="",'Consolidated Input'!E27,'F_Input Override'!#REF!) -> 0 | F27: =IF('F_Input Override'!D27="",'Consolidated Input'!F27,'F_Input Override'!D27) -> 0 | G27: =IF('F_Input Override'!E27="",'Consolidated Input'!G27,'F_Input Override'!E27) -> 1 | H27: =IF('F_Input Override'!F27="",'Consolidated Input'!H27,'F_Input Override'!F27) -> 1 | I27: =IF('F_Input Override'!G27="",'Consolidated Input'!I27,'F_Input Override'!G27) -> 1 | J27: =IF('F_Input Override'!H27="",'Consolidated Input'!J27,'F_Input Override'!H27) -> 1 | K27: =IF('F_Input Override'!I27="",'Consolidated Input'!K27,'F_Input Override'!I27) -> 1 | L27: =SUM(Table3[[#This Row],[2023-24]:[2029-30]]) -> 5
A28: =Table1[[#This Row],[Acronym]] -> WSH | B28: =Table1[[#This Row],[BON code]] -> CWW20A_070_PR24 | C28: =Table1[[#This Row],[Item Description]] -> Other data - Number of marine conservation zones (new and existing) | D28: =Table1[[#This Row],[Unit]] -> nr | E28: =IF('F_Input Override'!D28="",'Consolidated Input'!E28,'F_Input Override'!#REF!) ->  | F28: =IF('F_Input Override'!D28="",'Consolidated Input'!F28,'F_Input Override'!D28) ->  | G28: =IF('F_Input Override'!E28="",'Consolidated Input'!G28,'F_Input Override'!E28) -> 0 | H28: =IF('F_Input Override'!F28="",'Consolidated Input'!H28,'F_Input Override'!F28) -> 0 | I28: =IF('F_Input Override'!G28="",'Consolidated Input'!I28,'F_Input Override'!G28) -> 0 | J28: =IF('F_Input Override'!H28="",'Consolidated Input'!J28,'F_Input Override'!H28) -> 0 | K28: =IF('F_Input Override'!I28="",'Consolidated Input'!K28,'F_Input Override'!I28) -> 0 | L28: =SUM(Table3[[#This Row],[2023-24]:[2029-30]]) -> 0
A29: =Table1[[#This Row],[Acronym]] -> WSH | B29: =Table1[[#This Row],[BON code]] -> PR24_E_WW123_TOTAL | C29: =Table1[[#This Row],[Item Description]] -> PR24 BP EA/NRW environmental programme wastewater (WINEP/NEP) - Restoration management (marine conservation zones etc) (WINEP/NEP) wastewater totex - Total inc. accelerated & transition costs | D29: =Table1[[#This Row],[Unit]] -> £m | E29: =IF('F_Input Override'!D29="",'Consolidated Input'!E29,'F_Input Override'!#REF!) -> 0 | F29: =IF('F_Input Override'!D29="",'Consolidated Input'!F29,'F_Input Override'!D29) -> 0 | G29: =IF('F_Input Override'!E29="",'Consolidated Input'!G29,'F_Input Override'!E29) -> 0 | H29: =IF('F_Input Override'!F29="",'Consolidated Input'!H29,'F_Input Override'!F29) -> 0 | I29: =IF('F_Input Override'!G29="",'Consolidated Input'!I29,'F_Input Override'!G29) -> 0 | J29: =IF('F_Input Override'!H29="",'Consolidated Input'!J29,'F_Input Override'!H29) -> 0 | K29: =IF('F_Input Override'!I29="",'Consolidated Input'!K29,'F_Input Override'!I29) -> 0 | L29: =SUM(Table3[[#This Row],[2023-24]:[2029-30]]) -> 0
A30: =Table1[[#This Row],[Acronym]] -> WSH | B30: =Table1[[#This Row],[BON code]] -> PR24_NETTOTEX_WASTE | C30: =Table1[[#This Row],[Item Description]] -> PR24 BP Net totex - Total inc. accelerated & transition costs | D30: =Table1[[#This Row],[Unit]] -> £m | E30: =IF('F_Input Override'!D30="",'Consolidated Input'!E30,'F_Input Override'!#REF!) -> 0 | F30: =IF('F_Input Override'!D30="",'Consolidated Input'!F30,'F_Input Override'!D30) -> 0 | G30: =IF('F_Input Override'!E30="",'Consolidated Input'!G30,'F_Input Override'!E30) -> 0 | H30: =IF('F_Input Override'!F30="",'Consolidated Input'!H30,'F_Input Override'!F30) -> 0 | I30: =IF('F_Input Override'!G30="",'Consolidated Input'!I30,'F_Input Override'!G30) -> 0 | J30: =IF('F_Input Override'!H30="",'Consolidated Input'!J30,'F_Input Override'!H30) -> 0 | K30: =IF('F_Input Override'!I30="",'Consolidated Input'!K30,'F_Input Override'!I30) -> 0 | L30: =SUM(Table3[[#This Row],[2023-24]:[2029-30]]) -> 0
A31: =Table1[[#This Row],[Acronym]] -> HDD | B31: =Table1[[#This Row],[BON code]] -> CWW3_121TOT_PR24 | C31: =Table1[[#This Row],[Item Description]] -> EA/NRW environmental programme wastewater (WINEP/NEP) - Restoration management (marine conservation zones etc) (WINEP/NEP) wastewater capex - Total | D31: =Table1[[#This Row],[Unit]] -> £m | E31: =IF('F_Input Override'!D31="",'Consolidated Input'!E31,'F_Input Override'!#REF!) -> 0 | F31: =IF('F_Input Override'!D31="",'Consolidated Input'!F31,'F_Input Override'!D31) -> 0 | G31: =IF('F_Input Override'!E31="",'Consolidated Input'!G31,'F_Input Override'!E31) -> 0 | H31: =IF('F_Input Override'!F31="",'Consolidated Input'!H31,'F_Input Override'!F31) -> 0 | I31: =IF('F_Input Override'!G31="",'Consolidated Input'!I31,'F_Input Override'!G31) -> 0 | J31: =IF('F_Input Override'!H31="",'Consolidated Input'!J31,'F_Input Override'!H31) -> 0 | K31: =IF('F_Input Override'!I31="",'Consolidated Input'!K31,'F_Input Override'!I31) -> 0 | L31: =SUM(Table3[[#This Row],[2023-24]:[2029-30]]) -> 0
A32: =Table1[[#This Row],[Acronym]] -> HDD | B32: =Table1[[#This Row],[BON code]] -> CWW3_122TOT_PR24 | C32: =Table1[[#This Row],[Item Description]] -> EA/NRW environmental programme wastewater (WINEP/NEP) - Restoration management (marine conservation zones etc) (WINEP/NEP) wastewater opex - Total | D32: =Table1[[#This Row],[Unit]] -> £m | E32: =IF('F_Input Override'!D32="",'Consolidated Input'!E32,'F_Input Override'!#REF!) -> 0 | F32: =IF('F_Input Override'!D32="",'Consolidated Input'!F32,'F_Input Override'!D32) -> 0 | G32: =IF('F_Input Override'!E32="",'Consolidated Input'!G32,'F_Input Override'!E32) -> 0 | H32: =IF('F_Input Override'!F32="",'Consolidated Input'!H32,'F_Input Override'!F32) -> 0 | I32: =IF('F_Input Override'!G32="",'Consolidated Input'!I32,'F_Input Override'!G32) -> 0 | J32: =IF('F_Input Override'!H32="",'Consolidated Input'!J32,'F_Input Override'!H32) -> 0 | K32: =IF('F_Input Override'!I32="",'Consolidated Input'!K32,'F_Input Override'!I32) -> 0 | L32: =SUM(Table3[[#This Row],[2023-24]:[2029-30]]) -> 0
A33: =Table1[[#This Row],[Acronym]] -> HDD | B33: =Table1[[#This Row],[BON code]] -> CWW3_123TOT_PR24 | C33: =Table1[[#This Row],[Item Description]] -> EA/NRW environmental programme wastewater (WINEP/NEP) - Restoration management (marine conservation zones etc) (WINEP/NEP) wastewater totex - Total | D33: =Table1[[#This Row],[Unit]] -> £m | E33: =IF('F_Input Override'!D33="",'Consolidated Input'!E33,'F_Input Override'!#REF!) -> 0 | F33: =IF('F_Input Override'!D33="",'Consolidated Input'!F33,'F_Input Override'!D33) -> 0 | G33: =IF('F_Input Override'!E33="",'Consolidated Input'!G33,'F_Input Override'!E33) -> 0 | H33: =IF('F_Input Override'!F33="",'Consolidated Input'!H33,'F_Input Override'!F33) -> 0 | I33: =IF('F_Input Override'!G33="",'Consolidated Input'!I33,'F_Input Override'!G33) -> 0 | J33: =IF('F_Input Override'!H33="",'Consolidated Input'!J33,'F_Input Override'!H33) -> 0 | K33: =IF('F_Input Override'!I33="",'Consolidated Input'!K33,'F_Input Override'!I33) -> 0 | L33: =SUM(Table3[[#This Row],[2023-24]:[2029-30]]) -> 0
A34: =Table1[[#This Row],[Acronym]] -> HDD | B34: =Table1[[#This Row],[BON code]] -> CWW12_121TOT_PR24 | C34: =Table1[[#This Row],[Item Description]] -> EA/NRW environmental programme wastewater (WINEP/NEP) - Restoration management (marine conservation zones etc) (WINEP/NEP) wastewater capex - Total | D34: =Table1[[#This Row],[Unit]] -> £m | E34: =IF('F_Input Override'!D34="",'Consolidated Input'!E34,'F_Input Override'!#REF!) -> 0 | F34: =IF('F_Input Override'!D34="",'Consolidated Input'!F34,'F_Input Override'!D34) -> 0 | G34: =IF('F_Input Override'!E34="",'Consolidated Input'!G34,'F_Input Override'!E34) -> 0 | H34: =IF('F_Input Override'!F34="",'Consolidated Input'!H34,'F_Input Override'!F34) -> 0 | I34: =IF('F_Input Override'!G34="",'Consolidated Input'!I34,'F_Input Override'!G34) -> 0 | J34: =IF('F_Input Override'!H34="",'Consolidated Input'!J34,'F_Input Override'!H34) -> 0 | K34: =IF('F_Input Override'!I34="",'Consolidated Input'!K34,'F_Input Override'!I34) -> 0 | L34: =SUM(Table3[[#This Row],[2023-24]:[2029-30]]) -> 0
A35: =Table1[[#This Row],[Acronym]] -> HDD | B35: =Table1[[#This Row],[BON code]] -> CWW12_122TOT_PR24 | C35: =Table1[[#This Row],[Item Description]] -> EA/NRW environmental programme wastewater (WINEP/NEP) - Restoration management (marine conservation zones etc) (WINEP/NEP) wastewater opex - Total | D35: =Table1[[#This Row],[Unit]] -> £m | E35: =IF('F_Input Override'!D35="",'Consolidated Input'!E35,'F_Input Override'!#REF!) -> 0 | F35: =IF('F_Input Override'!D35="",'Consolidated Input'!F35,'F_Input Override'!D35) -> 0 | G35: =IF('F_Input Override'!E35="",'Consolidated Input'!G35,'F_Input Override'!E35) -> 0 | H35: =IF('F_Input Override'!F35="",'Consolidated Input'!H35,'F_Input Override'!F35) -> 0 | I35: =IF('F_Input Override'!G35="",'Consolidated Input'!I35,'F_Input Override'!G35) -> 0 | J35: =IF('F_Input Override'!H35="",'Consolidated Input'!J35,'F_Input Override'!H35) -> 0 | K35: =IF('F_Input Override'!I35="",'Consolidated Input'!K35,'F_Input Override'!I35) -> 0 | L35: =SUM(Table3[[#This Row],[2023-24]:[2029-30]]) -> 0
A36: =Table1[[#This Row],[Acronym]] -> HDD | B36: =Table1[[#This Row],[BON code]] -> CWW12_123TOT_PR24 | C36: =Table1[[#This Row],[Item Description]] -> EA/NRW environmental programme wastewater (WINEP/NEP) - Restoration management (marine conservation zones etc) (WINEP/NEP) wastewater totex - Total | D36: =Table1[[#This Row],[Unit]] -> £m | E36: =IF('F_Input Override'!D36="",'Consolidated Input'!E36,'F_Input Override'!#REF!) -> 0 | F36: =IF('F_Input Override'!D36="",'Consolidated Input'!F36,'F_Input Override'!D36) -> 0 | G36: =IF('F_Input Override'!E36="",'Consolidated Input'!G36,'F_Input Override'!E36) -> 0 | H36: =IF('F_Input Override'!F36="",'Consolidated Input'!H36,'F_Input Override'!F36) -> 0 | I36: =IF('F_Input Override'!G36="",'Consolidated Input'!I36,'F_Input Override'!G36) -> 0 | J36: =IF('F_Input Override'!H36="",'Consolidated Input'!J36,'F_Input Override'!H36) -> 0 | K36: =IF('F_Input Override'!I36="",'Consolidated Input'!K36,'F_Input Override'!I36) -> 0 | L36: =SUM(Table3[[#This Row],[2023-24]:[2029-30]]) -> 0
A37: =Table1[[#This Row],[Acronym]] -> HDD | B37: =Table1[[#This Row],[BON code]] -> CWW17_121TOT_PR24 | C37: =Table1[[#This Row],[Item Description]] -> EA/NRW environmental programme wastewater (WINEP/NEP) - Restoration management (marine conservation zones etc) (WINEP/NEP) wastewater capex - Total | D37: =Table1[[#This Row],[Unit]] -> £m | E37: =IF('F_Input Override'!D37="",'Consolidated Input'!E37,'F_Input Override'!#REF!) -> 0 | F37: =IF('F_Input Override'!D37="",'Consolidated Input'!F37,'F_Input Override'!D37) -> 0 | G37: =IF('F_Input Override'!E37="",'Consolidated Input'!G37,'F_Input Override'!E37) -> 0 | H37: =IF('F_Input Override'!F37="",'Consolidated Input'!H37,'F_Input Override'!F37) -> 0 | I37: =IF('F_Input Override'!G37="",'Consolidated Input'!I37,'F_Input Override'!G37) -> 0 | J37: =IF('F_Input Override'!H37="",'Consolidated Input'!J37,'F_Input Override'!H37) -> 0 | K37: =IF('F_Input Override'!I37="",'Consolidated Input'!K37,'F_Input Override'!I37) -> 0 | L37: =SUM(Table3[[#This Row],[2023-24]:[2029-30]]) -> 0
A38: =Table1[[#This Row],[Acronym]] -> HDD | B38: =Table1[[#This Row],[BON code]] -> CWW17_122TOT_PR24 | C38: =Table1[[#This Row],[Item Description]] -> EA/NRW environmental programme wastewater (WINEP/NEP) - Restoration management (marine conservation zones etc) (WINEP/NEP) wastewater opex - Total | D38: =Table1[[#This Row],[Unit]] -> £m | E38: =IF('F_Input Override'!D38="",'Consolidated Input'!E38,'F_Input Override'!#REF!) -> 0 | F38: =IF('F_Input Override'!D38="",'Consolidated Input'!F38,'F_Input Override'!D38) -> 0 | G38: =IF('F_Input Override'!E38="",'Consolidated Input'!G38,'F_Input Override'!E38) -> 0 | H38: =IF('F_Input Override'!F38="",'Consolidated Input'!H38,'F_Input Override'!F38) -> 0 | I38: =IF('F_Input Override'!G38="",'Consolidated Input'!I38,'F_Input Override'!G38) -> 0 | J38: =IF('F_Input Override'!H38="",'Consolidated Input'!J38,'F_Input Override'!H38) -> 0 | K38: =IF('F_Input Override'!I38="",'Consolidated Input'!K38,'F_Input Override'!I38) -> 0 | L38: =SUM(Table3[[#This Row],[2023-24]:[2029-30]]) -> 0
A39: =Table1[[#This Row],[Acronym]] -> HDD | B39: =Table1[[#This Row],[BON code]] -> CWW17_123TOT_PR24 | C39: =Table1[[#This Row],[Item Description]] -> EA/NRW environmental programme wastewater (WINEP/NEP) - Restoration management (marine conservation zones etc) (WINEP/NEP) wastewater totex - Total | D39: =Table1[[#This Row],[Unit]] -> £m | E39: =IF('F_Input Override'!D39="",'Consolidated Input'!E39,'F_Input Override'!#REF!) -> 0 | F39: =IF('F_Input Override'!D39="",'Consolidated Input'!F39,'F_Input Override'!D39) -> 0 | G39: =IF('F_Input Override'!E39="",'Consolidated Input'!G39,'F_Input Override'!E39) -> 0 | H39: =IF('F_Input Override'!F39="",'Consolidated Input'!H39,'F_Input Override'!F39) -> 0 | I39: =IF('F_Input Override'!G39="",'Consolidated Input'!I39,'F_Input Override'!G39) -> 0 | J39: =IF('F_Input Override'!H39="",'Consolidated Input'!J39,'F_Input Override'!H39) -> 0 | K39: =IF('F_Input Override'!I39="",'Consolidated Input'!K39,'F_Input Override'!I39) -> 0 | L39: =SUM(Table3[[#This Row],[2023-24]:[2029-30]]) -> 0
A40: =Table1[[#This Row],[Acronym]] -> HDD | B40: =Table1[[#This Row],[BON code]] -> CWW20_070_PR24 | C40: =Table1[[#This Row],[Item Description]] -> Other data - Number of marine conservation zones (new and existing) | D40: =Table1[[#This Row],[Unit]] -> nr | E40: =IF('F_Input Override'!D40="",'Consolidated Input'!E40,'F_Input Override'!#REF!) -> 0 | F40: =IF('F_Input Override'!D40="",'Consolidated Input'!F40,'F_Input Override'!D40) -> 0 | G40: =IF('F_Input Override'!E40="",'Consolidated Input'!G40,'F_Input Override'!E40) -> 0 | H40: =IF('F_Input Override'!F40="",'Consolidated Input'!H40,'F_Input Override'!F40) -> 0 | I40: =IF('F_Input Override'!G40="",'Consolidated Input'!I40,'F_Input Override'!G40) -> 0 | J40: =IF('F_Input Override'!H40="",'Consolidated Input'!J40,'F_Input Override'!H40) -> 0 | K40: =IF('F_Input Override'!I40="",'Consolidated Input'!K40,'F_Input Override'!I40) -> 0 | L40: =SUM(Table3[[#This Row],[2023-24]:[2029-30]]) -> 0
A41: =Table1[[#This Row],[Acronym]] -> HDD | B41: =Table1[[#This Row],[BON code]] -> CWW20A_070_PR24 | C41: =Table1[[#This Row],[Item Description]] -> Other data - Number of marine conservation zones (new and existing) | D41: =Table1[[#This Row],[Unit]] -> nr | E41: =IF('F_Input Override'!D41="",'Consolidated Input'!E41,'F_Input Override'!#REF!) ->  | F41: =IF('F_Input Override'!D41="",'Consolidated Input'!F41,'F_Input Override'!D41) ->  | G41: =IF('F_Input Override'!E41="",'Consolidated Input'!G41,'F_Input Override'!E41) -> 0 | H41: =IF('F_Input Override'!F41="",'Consolidated Input'!H41,'F_Input Override'!F41) -> 0 | I41: =IF('F_Input Override'!G41="",'Consolidated Input'!I41,'F_Input Override'!G41) -> 0 | J41: =IF('F_Input Override'!H41="",'Consolidated Input'!J41,'F_Input Override'!H41) -> 0 | K41: =IF('F_Input Override'!I41="",'Consolidated Input'!K41,'F_Input Override'!I41) -> 0 | L41: =SUM(Table3[[#This Row],[2023-24]:[2029-30]]) -> 0
A42: =Table1[[#This Row],[Acronym]] -> HDD | B42: =Table1[[#This Row],[BON code]] -> PR24_E_WW123_TOTAL | C42: =Table1[[#This Row],[Item Description]] -> PR24 BP EA/NRW environmental programme wastewater (WINEP/NEP) - Restoration management (marine conservation zones etc) (WINEP/NEP) wastewater totex - Total inc. accelerated & transition costs | D42: =Table1[[#This Row],[Unit]] -> £m | E42: =IF('F_Input Override'!D42="",'Consolidated Input'!E42,'F_Input Override'!#REF!) -> 0 | F42: =IF('F_Input Override'!D42="",'Consolidated Input'!F42,'F_Input Override'!D42) -> 0 | G42: =IF('F_Input Override'!E42="",'Consolidated Input'!G42,'F_Input Override'!E42) -> 0 | H42: =IF('F_Input Override'!F42="",'Consolidated Input'!H42,'F_Input Override'!F42) -> 0 | I42: =IF('F_Input Override'!G42="",'Consolidated Input'!I42,'F_Input Override'!G42) -> 0 | J42: =IF('F_Input Override'!H42="",'Consolidated Input'!J42,'F_Input Override'!H42) -> 0 | K42: =IF('F_Input Override'!I42="",'Consolidated Input'!K42,'F_Input Override'!I42) -> 0 | L42: =SUM(Table3[[#This Row],[2023-24]:[2029-30]]) -> 0
A43: =Table1[[#This Row],[Acronym]] -> HDD | B43: =Table1[[#This Row],[BON code]] -> PR24_NETTOTEX_WASTE | C43: =Table1[[#This Row],[Item Description]] -> PR24 BP Net totex - Total inc. accelerated & transition costs | D43: =Table1[[#This Row],[Unit]] -> £m | E43: =IF('F_Input Override'!D43="",'Consolidated Input'!E43,'F_Input Override'!#REF!) -> 0 | F43: =IF('F_Input Override'!D43="",'Consolidated Input'!F43,'F_Input Override'!D43) -> 0 | G43: =IF('F_Input Override'!E43="",'Consolidated Input'!G43,'F_Input Override'!E43) -> 0 | H43: =IF('F_Input Override'!F43="",'Consolidated Input'!H43,'F_Input Override'!F43) -> 0 | I43: =IF('F_Input Override'!G43="",'Consolidated Input'!I43,'F_Input Override'!G43) -> 0 | J43: =IF('F_Input Override'!H43="",'Consolidated Input'!J43,'F_Input Override'!H43) -> 0 | K43: =IF('F_Input Override'!I43="",'Consolidated Input'!K43,'F_Input Override'!I43) -> 0 | L43: =SUM(Table3[[#This Row],[2023-24]:[2029-30]]) -> 0
A44: =Table1[[#This Row],[Acronym]] -> NES | B44: =Table1[[#This Row],[BON code]] -> CWW3_121TOT_PR24 | C44: =Table1[[#This Row],[Item Description]] -> EA/NRW environmental programme wastewater (WINEP/NEP) - Restoration management (marine conservation zones etc) (WINEP/NEP) wastewater capex - Total | D44: =Table1[[#This Row],[Unit]] -> £m | E44: =IF('F_Input Override'!D44="",'Consolidated Input'!E44,'F_Input Override'!#REF!) -> 0 | F44: =IF('F_Input Override'!D44="",'Consolidated Input'!F44,'F_Input Override'!D44) -> 0 | G44: =IF('F_Input Override'!E44="",'Consolidated Input'!G44,'F_Input Override'!E44) -> 0.813 | H44: =IF('F_Input Override'!F44="",'Consolidated Input'!H44,'F_Input Override'!F44) -> 0.813 | I44: =IF('F_Input Override'!G44="",'Consolidated Input'!I44,'F_Input Override'!G44) -> 0.813 | J44: =IF('F_Input Override'!H44="",'Consolidated Input'!J44,'F_Input Override'!H44) -> 0.813 | K44: =IF('F_Input Override'!I44="",'Consolidated Input'!K44,'F_Input Override'!I44) -> 0.813 | L44: =SUM(Table3[[#This Row],[2023-24]:[2029-30]]) -> 4.065
A45: =Table1[[#This Row],[Acronym]] -> NES | B45: =Table1[[#This Row],[BON code]] -> CWW3_122TOT_PR24 | C45: =Table1[[#This Row],[Item Description]] -> EA/NRW environmental programme wastewater (WINEP/NEP) - Restoration management (marine conservation zones etc) (WINEP/NEP) wastewater opex - Total | D45: =Table1[[#This Row],[Unit]] -> £m | E45: =IF('F_Input Override'!D45="",'Consolidated Input'!E45,'F_Input Override'!#REF!) -> 0 | F45: =IF('F_Input Override'!D45="",'Consolidated Input'!F45,'F_Input Override'!D45) -> 0 | G45: =IF('F_Input Override'!E45="",'Consolidated Input'!G45,'F_Input Override'!E45) -> 0.198 | H45: =IF('F_Input Override'!F45="",'Consolidated Input'!H45,'F_Input Override'!F45) -> 0.198 | I45: =IF('F_Input Override'!G45="",'Consolidated Input'!I45,'F_Input Override'!G45) -> 0.198 | J45: =IF('F_Input Override'!H45="",'Consolidated Input'!J45,'F_Input Override'!H45) -> 0.198 | K45: =IF('F_Input Override'!I45="",'Consolidated Input'!K45,'F_Input Override'!I45) -> 0.198 | L45: =SUM(Table3[[#This Row],[2023-24]:[2029-30]]) -> 0.99
A46: =Table1[[#This Row],[Acronym]] -> NES | B46: =Table1[[#This Row],[BON code]] -> CWW3_123TOT_PR24 | C46: =Table1[[#This Row],[Item Description]] -> EA/NRW environmental programme wastewater (WINEP/NEP) - Restoration management (marine conservation zones etc) (WINEP/NEP) wastewater totex - Total | D46: =Table1[[#This Row],[Unit]] -> £m | E46: =IF('F_Input Override'!D46="",'Consolidated Input'!E46,'F_Input Override'!#REF!) -> 0 | F46: =IF('F_Input Override'!D46="",'Consolidated Input'!F46,'F_Input Override'!D46) -> 0 | G46: =IF('F_Input Override'!E46="",'Consolidated Input'!G46,'F_Input Override'!E46) -> 1.011 | H46: =IF('F_Input Override'!F46="",'Consolidated Input'!H46,'F_Input Override'!F46) -> 1.011 | I46: =IF('F_Input Override'!G46="",'Consolidated Input'!I46,'F_Input Override'!G46) -> 1.011 | J46: =IF('F_Input Override'!H46="",'Consolidated Input'!J46,'F_Input Override'!H46) -> 1.011 | K46: =IF('F_Input Override'!I46="",'Consolidated Input'!K46,'F_Input Override'!I46) -> 1.011 | L46: =SUM(Table3[[#This Row],[2023-24]:[2029-30]]) -> 5.055
A47: =Table1[[#This Row],[Acronym]] -> NES | B47: =Table1[[#This Row],[BON code]] -> CWW12_121TOT_PR24 | C47: =Table1[[#This Row],[Item Description]] -> EA/NRW environmental programme wastewater (WINEP/NEP) - Restoration management (marine conservation zones etc) (WINEP/NEP) wastewater capex - Total | D47: =Table1[[#This Row],[Unit]] -> £m | E47: =IF('F_Input Override'!D47="",'Consolidated Input'!E47,'F_Input Override'!#REF!) -> 0.961 | F47: =IF('F_Input Override'!D47="",'Consolidated Input'!F47,'F_Input Override'!D47) -> 0.961 | G47: =IF('F_Input Override'!E47="",'Consolidated Input'!G47,'F_Input Override'!E47) -> 0 | H47: =IF('F_Input Override'!F47="",'Consolidated Input'!H47,'F_Input Override'!F47) -> 0 | I47: =IF('F_Input Override'!G47="",'Consolidated Input'!I47,'F_Input Override'!G47) -> 0 | J47: =IF('F_Input Override'!H47="",'Consolidated Input'!J47,'F_Input Override'!H47) -> 0 | K47: =IF('F_Input Override'!I47="",'Consolidated Input'!K47,'F_Input Override'!I47) -> 0 | L47: =SUM(Table3[[#This Row],[2023-24]:[2029-30]]) -> 1.922
A48: =Table1[[#This Row],[Acronym]] -> NES | B48: =Table1[[#This Row],[BON code]] -> CWW12_122TOT_PR24 | C48: =Table1[[#This Row],[Item Description]] -> EA/NRW environmental programme wastewater (WINEP/NEP) - Restoration management (marine conservation zones etc) (WINEP/NEP) wastewater opex - Total | D48: =Table1[[#This Row],[Unit]] -> £m | E48: =IF('F_Input Override'!D48="",'Consolidated Input'!E48,'F_Input Override'!#REF!) -> 0.082 | F48: =IF('F_Input Override'!D48="",'Consolidated Input'!F48,'F_Input Override'!D48) -> 0.082 | G48: =IF('F_Input Override'!E48="",'Consolidated Input'!G48,'F_Input Override'!E48) -> 0 | H48: =IF('F_Input Override'!F48="",'Consolidated Input'!H48,'F_Input Override'!F48) -> 0 | I48: =IF('F_Input Override'!G48="",'Consolidated Input'!I48,'F_Input Override'!G48) -> 0 | J48: =IF('F_Input Override'!H48="",'Consolidated Input'!J48,'F_Input Override'!H48) -> 0 | K48: =IF('F_Input Override'!I48="",'Consolidated Input'!K48,'F_Input Override'!I48) -> 0 | L48: =SUM(Table3[[#This Row],[2023-24]:[2029-30]]) -> 0.164
A49: =Table1[[#This Row],[Acronym]] -> NES | B49: =Table1[[#This Row],[BON code]] -> CWW12_123TOT_PR24 | C49: =Table1[[#This Row],[Item Description]] -> EA/NRW environmental programme wastewater (WINEP/NEP) - Restoration management (marine conservation zones etc) (WINEP/NEP) wastewater totex - Total | D49: =Table1[[#This Row],[Unit]] -> £m | E49: =IF('F_Input Override'!D49="",'Consolidated Input'!E49,'F_Input Override'!#REF!) -> 1.043 | F49: =IF('F_Input Override'!D49="",'Consolidated Input'!F49,'F_Input Override'!D49) -> 1.043 | G49: =IF('F_Input Override'!E49="",'Consolidated Input'!G49,'F_Input Override'!E49) -> 0 | H49: =IF('F_Input Override'!F49="",'Consolidated Input'!H49,'F_Input Override'!F49) -> 0 | I49: =IF('F_Input Override'!G49="",'Consolidated Input'!I49,'F_Input Override'!G49) -> 0 | J49: =IF('F_Input Override'!H49="",'Consolidated Input'!J49,'F_Input Override'!H49) -> 0 | K49: =IF('F_Input Override'!I49="",'Consolidated Input'!K49,'F_Input Override'!I49) -> 0 | L49: =SUM(Table3[[#This Row],[2023-24]:[2029-30]]) -> 2.086
A50: =Table1[[#This Row],[Acronym]] -> NES | B50: =Table1[[#This Row],[BON code]] -> CWW17_121TOT_PR24 | C50: =Table1[[#This Row],[Item Description]] -> EA/NRW environmental programme wastewater (WINEP/NEP) - Restoration management (marine conservation zones etc) (WINEP/NEP) wastewater capex - Total | D50: =Table1[[#This Row],[Unit]] -> £m | E50: =IF('F_Input Override'!D50="",'Consolidated Input'!E50,'F_Input Override'!#REF!) -> 0 | F50: =IF('F_Input Override'!D50="",'Consolidated Input'!F50,'F_Input Override'!D50) -> 0 | G50: =IF('F_Input Override'!E50="",'Consolidated Input'!G50,'F_Input Override'!E50) -> 0 | H50: =IF('F_Input Override'!F50="",'Consolidated Input'!H50,'F_Input Override'!F50) -> 0 | I50: =IF('F_Input Override'!G50="",'Consolidated Input'!I50,'F_Input Override'!G50) -> 0 | J50: =IF('F_Input Override'!H50="",'Consolidated Input'!J50,'F_Input Override'!H50) -> 0 | K50: =IF('F_Input Override'!I50="",'Consolidated Input'!K50,'F_Input Override'!I50) -> 0 | L50: =SUM(Table3[[#This Row],[2023-24]:[2029-30]]) -> 0
A51: =Table1[[#This Row],[Acronym]] -> NES | B51: =Table1[[#This Row],[BON code]] -> CWW17_122TOT_PR24 | C51: =Table1[[#This Row],[Item Description]] -> EA/NRW environmental programme wastewater (WINEP/NEP) - Restoration management (marine conservation zones etc) (WINEP/NEP) wastewater opex - Total | D51: =Table1[[#This Row],[Unit]] -> £m | E51: =IF('F_Input Override'!D51="",'Consolidated Input'!E51,'F_Input Override'!#REF!) -> 0 | F51: =IF('F_Input Override'!D51="",'Consolidated Input'!F51,'F_Input Override'!D51) -> 0 | G51: =IF('F_Input Override'!E51="",'Consolidated Input'!G51,'F_Input Override'!E51) -> 0 | H51: =IF('F_Input Override'!F51="",'Consolidated Input'!H51,'F_Input Override'!F51) -> 0 | I51: =IF('F_Input Override'!G51="",'Consolidated Input'!I51,'F_Input Override'!G51) -> 0 | J51: =IF('F_Input Override'!H51="",'Consolidated Input'!J51,'F_Input Override'!H51) -> 0 | K51: =IF('F_Input Override'!I51="",'Consolidated Input'!K51,'F_Input Override'!I51) -> 0 | L51: =SUM(Table3[[#This Row],[2023-24]:[2029-30]]) -> 0
A52: =Table1[[#This Row],[Acronym]] -> NES | B52: =Table1[[#This Row],[BON code]] -> CWW17_123TOT_PR24 | C52: =Table1[[#This Row],[Item Description]] -> EA/NRW environmental programme wastewater (WINEP/NEP) - Restoration management (marine conservation zones etc) (WINEP/NEP) wastewater totex - Total | D52: =Table1[[#This Row],[Unit]] -> £m | E52: =IF('F_Input Override'!D52="",'Consolidated Input'!E52,'F_Input Override'!#REF!) -> 0 | F52: =IF('F_Input Override'!D52="",'Consolidated Input'!F52,'F_Input Override'!D52) -> 0 | G52: =IF('F_Input Override'!E52="",'Consolidated Input'!G52,'F_Input Override'!E52) -> 0 | H52: =IF('F_Input Override'!F52="",'Consolidated Input'!H52,'F_Input Override'!F52) -> 0 | I52: =IF('F_Input Override'!G52="",'Consolidated Input'!I52,'F_Input Override'!G52) -> 0 | J52: =IF('F_Input Override'!H52="",'Consolidated Input'!J52,'F_Input Override'!H52) -> 0 | K52: =IF('F_Input Override'!I52="",'Consolidated Input'!K52,'F_Input Override'!I52) -> 0 | L52: =SUM(Table3[[#This Row],[2023-24]:[2029-30]]) -> 0
